Workbook

Sheet Summary
A1: 분 전
A2: minutes
A3: 일전
A4: days
A5: 시간 전
A6: hours
A7: 방금
A8: 1 minutes
A10: 브론즈
A11: Bronze
A12: 실버
A13: Silver
A14: 골드
A15: Gold
A16: 플래티넘
A17: Platinum
A18: 다이아몬드
A19: Diamond
A20: 마스터
A21: Master
A22: 그랜드마스터
A23: Grandmaster

Sheet Analysis - 1v1
A1: 2014-04-14 | B1: 104.4 | C1: 180 | D1: 104.4 | E1: 180 | F1: 1
A2: 2014-04-21 | B2: 104.4 | C2: 180 | D2: 208.8 | E2: 360 | F2: 2
A3: 2014-04-28 | B3: 104.4 | C3: 180 | D3: 313.2 | E3: 540 | F3: 3
A4: 2014-05-05 | B4: 104.4 | C4: 180 | D4: 417.6 | E4: 720 | F4: 4
A5: 2014-05-12 | B5: 104.4 | C5: 180 | D5: 522 | E5: 900 | F5: 5
A6: 2014-05-19 | B6: 104.4 | C6: 180 | D6: 626.4 | E6: 1080 | F6: 6
A7: 2014-05-26 | B7: 104.4 | C7: 180 | D7: 730.8 | E7: 1260 | F7: 7
A8: 2014-06-02 | B8: 104.4 | C8: 180 | D8: 835.2 | E8: 1440 | F8: 8
A9: 2014-06-09 | B9: 104.4 | C9: 180 | D9: 939.6 | E9: 1620 | F9: 9
A10: 2014-06-16 | B10: 104.4 | C10: 180 | D10: 1044 | E10: 1800 | F10: 10
A11: 2014-06-23 | B11: 104.4 | C11: 180 | D11: 1148.4 | E11: 1980 | F11: 11
A12: 6/30/2014 (season lock)
A14: Raw Counts | K14: % Distributions
A15: Weeks Remaining | B15: Bronze | C15: Silver | D15: Gold | E15: Platinum | F15: Diamond | G15: Master | H15: Grandmaster | I15: Totals | K15: Bronze | L15: Silver | M15: Gold | N15: Platinum | O15: Diamond | P15: Master
A16: 1 | B16: 220 | C16: 398 | D16: 2126 | E16: 1718 | F16: 1667 | G16: 200 | H16: 199 | I16: =SUM(B16:H16) -> 6528 | J16: =I16/I27 -> 0.1335652174 | K16: =B16/$I16 -> 0.03370098039 | L16: =C16/$I16 -> 0.06096813725 | M16: =D16/$I16 -> 0.3256740196 | N16: =E16/$I16 -> 0.2631740196 | O16: =F16/$I16 -> 0.2553615196 | P16: =G16/$I16 -> 0.0306372549
A17: 2 | B17: 69 | C17: 134 | D17: 530 | E17: 438 | F17: 342 | G17: 59 | I17: =SUM(B17:H17) -> 1572 | K17: =B17/$I17 -> 0.04389312977 | L17: =C17/$I17 -> 0.08524173028 | M17: =D17/$I17 -> 0.3371501272 | N17: =E17/$I17 -> 0.2786259542 | O17: =F17/$I17 -> 0.2175572519 | P17: =G17/$I17 -> 0.03753180662
A18: 3 | B18: 57 | C18: 164 | D18: 562 | E18: 376 | F18: 296 | G18: 50 | I18: 1505 | K18: 0.03787375415 | L18: 0.1089700997 | M18: 0.3734219269 | N18: 0.249833887 | O18: 0.1966777409 | P18: 0.03322259136
A19: 4 | B19: 69 | C19: 206 | D19: 608 | E19: 339 | F19: 293 | G19: 59 | I19: 1574 | K19: 0.04383735705 | L19: 0.1308767471 | M19: 0.3862770013 | N19: 0.2153748412 | O19: 0.1861499365 | P19: 0.0374841169
A20: 5 | B20: 86 | C20: 236 | D20: 744 | E20: 379 | F20: 258 | G20: 50 | I20: 1753 | K20: 0.04905875642 | L20: 0.1346263548 | M20: 0.4244152881 | N20: 0.2162007986 | O20: 0.1471762693 | P20: 0.0285225328
A21: 6 | B21: 115 | C21: 344 | D21: 844 | E21: 382 | F21: 272 | G21: 75 | I21: 2032 | K21: 0.05659448819 | L21: 0.1692913386 | M21: 0.4153543307 | N21: 0.187992126 | O21: 0.1338582677 | P21: 0.03690944882
A22: 7 | B22: 186 | C22: 589 | D22: 1123 | E22: 379 | F22: 319 | G22: 79 | I22: 2675 | K22: 0.06953271028 | L22: 0.2201869159 | M22: 0.4198130841 | N22: 0.141682243 | O22: 0.1192523364 | P22: 0.02953271028
A23: 8 | B23: 294 | C23: 931 | D23: 1461 | E23: 412 | F23: 288 | G23: 85 | I23: 3471 | K23: 0.08470181504 | L23: 0.2682224143 | M23: 0.4209161625 | N23: 0.1186977816 | O23: 0.08297320657 | P23: 0.02448861999
A24: 9 | B24: 617 | C24: 1904 | D24: 1738 | E24: 478 | F24: 309 | G24: 87 | I24: 5133 | K24: 0.1202026106 | L24: 0.3709331775 | M24: 0.3385934152 | N24: 0.09312293006 | O24: 0.0601987142 | P24: 0.01694915254
A25: 10 | B25: 3238 | C25: 5091 | D25: 2544 | E25: 815 | F25: 413 | G25: 122 | I25: 12223 | J25: =I25+I26 -> 22632 | K25: 0.2649104148 | L25: 0.4165098585 | M25: 0.2081322098 | N25: 0.06667757506 | O25: 0.0337887589 | P25: 0.009981183016
A26: 11 | B26: 3776 | C26: 3816 | D26: 1756 | E26: 718 | F26: 268 | G26: 75 | I26: 10409 | J26: =J25/I27 -> 0.4630588235 | K26: 0.3627629936 | L26: 0.3666058219 | M26: 0.1687001633 | N26: 0.06897876837 | O26: 0.02574694976 | P26: 0.007205303103
A27: Totals | B27: =SUM(B16:B26) -> 8727 | C27: =SUM(C16:C26) -> 13813 | D27: 14036 | E27: 6434 | F27: 4725 | G27: 941 | H27: 199 | I27: 48875 | K27: =B27/$I27 -> 0.1785575448 | L27: =C27/$I27 -> 0.2826189258 | M27: =D27/$I27 -> 0.2871815857 | N27: =E27/$I27 -> 0.1316419437 | O27: =F27/$I27 -> 0.09667519182 | P27: =G27/$I27 -> 0.01925319693
J28: Targets: | K28: 0.08 | L28: 0.2 | M28: 0.32 | N28: 0.2 | O28: 0.18 | P28: 0.02
A30: For Reddit tables
A31: =A16&"* | "&B16&" | "&C16&" | "&D16&" | "&E16&" | "&F16&" | "&G16 -> 1* | 220 | 398 | 2126 | 1718 | 1667 | 200 | K31: =A16&"* | "&ROUNDDOWN(K16,4)*100&"% | "&ROUNDDOWN(L16,4)*100&"% | "&ROUNDDOWN(M16,4)*100&"% | "&ROUNDDOWN(N16,4)*100&"% | "&ROUNDDOWN(O16,4)*100&"% | "&ROUNDDOWN(P16,4)*100&"%" -> 1* | 3.37% | 6.09% | 32.56% | 26.31% | 25.53% | 3.06%
A32: =A17&" | "&B17&" | "&C17&" | "&D17&" | "&E17&" | "&F17&" | "&G17 -> 2 | 69 | 134 | 530 | 438 | 342 | 59 | K32: =A17&" | "&ROUNDDOWN(K17,4)*100&"% | "&ROUNDDOWN(L17,4)*100&"% | "&ROUNDDOWN(M17,4)*100&"% | "&ROUNDDOWN(N17,4)*100&"% | "&ROUNDDOWN(O17,4)*100&"% | "&ROUNDDOWN(P17,4)*100&"%" -> 2 | 4.38% | 8.52% | 33.71% | 27.86% | 21.75% | 3.75%
A33: 3 | 57 | 164 | 562 | 376 | 296 | 50 | K33: 3 | 3.78% | 10.89% | 37.34% | 24.98% | 19.66% | 3.32%
A34: 4 | 69 | 206 | 608 | 339 | 293 | 59 | K34: 4 | 4.38% | 13.08% | 38.62% | 21.53% | 18.61% | 3.74%
A35: 5 | 86 | 236 | 744 | 379 | 258 | 50 | K35: 5 | 4.9% | 13.46% | 42.44% | 21.62% | 14.71% | 2.85%
A36: 6 | 115 | 344 | 844 | 382 | 272 | 75 | K36: 6 | 5.65% | 16.92% | 41.53% | 18.79% | 13.38% | 3.69%
A37: 7 | 186 | 589 | 1123 | 379 | 319 | 79 | K37: 7 | 6.95% | 22.01% | 41.98% | 14.16% | 11.92% | 2.95%
A38: 8 | 294 | 931 | 1461 | 412 | 288 | 85 | K38: 8 | 8.47% | 26.82% | 42.09% | 11.86% | 8.29% | 2.44%
A39: 9 | 617 | 1904 | 1738 | 478 | 309 | 87 | K39: 9 | 12.02% | 37.09% | 33.85% | 9.31% | 6.01% | 1.69%
A40: 10 | 3238 | 5091 | 2544 | 815 | 413 | 122 | K40: 10 | 26.49% | 41.65% | 20.81% | 6.66% | 3.37% | 0.99%
A41: =A26&"** | "&B26&" | "&C26&" | "&D26&" | "&E26&" | "&F26&" | "&G26 -> 11** | 3776 | 3816 | 1756 | 718 | 268 | 75 | K41: =A26&"** | "&ROUNDDOWN(K26,4)*100&"% | "&ROUNDDOWN(L26,4)*100&"% | "&ROUNDDOWN(M26,4)*100&"% | "&ROUNDDOWN(N26,4)*100&"% | "&ROUNDDOWN(O26,4)*100&"% | "&ROUNDDOWN(P26,4)*100&"%" -> 11** | 36.27% | 36.66% | 16.87% | 6.89% | 2.57% | 0.72%
A45: Race Stats
B46: Bronze | F46: Silver | J46: Gold | N46: Platinum | R46: Diamond | V46: Master | Z46: Grandmaster | AD46: Totals
A47: Weeks Remaining | B47: Z | C47: T | D47: P | E47: R | F47: Z | G47: T | H47: P | I47: R | J47: Z | K47: T | L47: P | M47: R | N47: Z | O47: T | P47: P | Q47: R | R47: Z | S47: T | T47: P | U47: R | V47: Z | W47: T | X47: P | Y47: R | Z47: Z | AA47: T | AB47: P | AC47: R | AD47: Z | AE47: T | AF47: P | AG47: R
A48: 1 | B48: 39 | C48: 82 | D48: 74 | E48: 25 | F48: 78 | G48: 114 | H48: 157 | I48: 49 | J48: 470 | K48: 610 | L48: 771 | M48: 275 | N48: 476 | O48: 484 | P48: 591 | Q48: 167 | R48: 533 | S48: 507 | T48: 526 | U48: 101 | V48: 68 | W48: 70 | X48: 53 | Y48: 9 | Z48: 73 | AA48: 58 | AB48: 67 | AC48: 1 | AD48: =B48+F48+J48+N48+R48+V48+Z48 -> 1737 | AE48: =C48+G48+K48+O48+S48+W48+AA48 -> 1925 | AF48: =D48+H48+L48+P48+T48+X48+AB48 -> 2239 | AG48: =E48+I48+M48+Q48+U48+Y48+AC48 -> 627
A49: 2 | B49: 9 | C49: 29 | D49: 24 | E49: 7 | F49: 22 | G49: 50 | H49: 46 | I49: 16 | J49: 129 | K49: 148 | L49: 189 | M49: 64 | N49: 129 | O49: 122 | P49: 143 | Q49: 44 | R49: 116 | S49: 102 | T49: 110 | U49: 14 | V49: 21 | W49: 17 | X49: 20 | Y49: 1 | AD49: =B49+F49+J49+N49+R49+V49+Z49 -> 426 | AE49: 468 | AF49: 532 | AG49: 146
A50: 3 | B50: 8 | C50: 27 | D50: 17 | E50: 5 | F50: 26 | G50: 65 | H50: 53 | I50: 20 | J50: 128 | K50: 154 | L50: 207 | M50: 73 | N50: 99 | O50: 108 | P50: 127 | Q50: 42 | R50: 100 | S50: 96 | T50: 87 | U50: 13 | V50: 18 | W50: 15 | X50: 17 | AD50: 379 | AE50: 465 | AF50: 508 | AG50: 153
A51: 4 | B51: 13 | C51: 28 | D51: 22 | E51: 6 | F51: 33 | G51: 67 | H51: 83 | I51: 23 | J51: 155 | K51: 173 | L51: 220 | M51: 60 | N51: 100 | O51: 98 | P51: 100 | Q51: 41 | R51: 96 | S51: 92 | T51: 89 | U51: 16 | V51: 15 | W51: 17 | X51: 24 | Y51: 3 | AD51: 412 | AE51: 475 | AF51: 538 | AG51: 149
A52: 5 | B52: 11 | C52: 34 | D52: 30 | E52: 11 | F52: 52 | G52: 79 | H52: 83 | I52: 22 | J52: 196 | K52: 205 | L52: 259 | M52: 84 | N52: 123 | O52: 101 | P52: 124 | Q52: 31 | R52: 84 | S52: 70 | T52: 87 | U52: 17 | V52: 18 | W52: 14 | X52: 14 | Y52: 4 | AD52: 484 | AE52: 503 | AF52: 597 | AG52: 169
A53: 6 | B53: 20 | C53: 37 | D53: 44 | E53: 14 | F53: 71 | G53: 112 | H53: 131 | I53: 30 | J53: 237 | K53: 238 | L53: 272 | M53: 97 | N53: 129 | O53: 113 | P53: 104 | Q53: 36 | R53: 96 | S53: 81 | T53: 79 | U53: 16 | V53: 27 | W53: 22 | X53: 21 | Y53: 5 | AD53: 580 | AE53: 603 | AF53: 651 | AG53: 198
A54: 7 | B54: 39 | C54: 61 | D54: 72 | E54: 14 | F54: 130 | G54: 171 | H54: 227 | I54: 61 | J54: 323 | K54: 335 | L54: 354 | M54: 111 | N54: 120 | O54: 116 | P54: 108 | Q54: 35 | R54: 100 | S54: 90 | T54: 104 | U54: 25 | V54: 30 | W54: 20 | X54: 24 | Y54: 5 | AD54: 742 | AE54: 793 | AF54: 889 | AG54: 251
A55: 8 | B55: 61 | C55: 99 | D55: 108 | E55: 26 | F55: 209 | G55: 259 | H55: 346 | I55: 117 | J55: 408 | K55: 411 | L55: 482 | M55: 160 | N55: 131 | O55: 128 | P55: 119 | Q55: 34 | R55: 81 | S55: 95 | T55: 91 | U55: 21 | V55: 31 | W55: 31 | X55: 19 | Y55: 4 | AD55: 921 | AE55: 1023 | AF55: 1165 | AG55: 362
A56: 9 | B56: 137 | C56: 193 | D56: 235 | E56: 52 | F56: 464 | G56: 593 | H56: 665 | I56: 182 | J56: 487 | K56: 476 | L56: 576 | M56: 199 | N56: 134 | O56: 160 | P56: 136 | Q56: 48 | R56: 84 | S56: 120 | T56: 87 | U56: 18 | V56: 26 | W56: 21 | X56: 39 | Y56: 1 | AD56: 1332 | AE56: 1563 | AF56: 1738 | AG56: 500
A57: 10 | B57: 754 | C57: 1073 | D57: 1094 | E57: 317 | F57: 1287 | G57: 1561 | H57: 1630 | I57: 613 | J57: 767 | K57: 725 | L57: 764 | M57: 288 | N57: 271 | O57: 232 | P57: 243 | Q57: 69 | R57: 127 | S57: 141 | T57: 120 | U57: 25 | V57: 37 | W57: 40 | X57: 42 | Y57: 3 | AD57: 3243 | AE57: 3772 | AF57: 3893 | AG57: 1315
A58: 11 | B58: 861 | C58: 1269 | D58: 1242 | E58: 404 | F58: 989 | G58: 1196 | H58: 1252 | I58: 379 | J58: 489 | K58: 542 | L58: 556 | M58: 169 | N58: 230 | O58: 212 | P58: 208 | Q58: 68 | R58: 68 | S58: 87 | T58: 89 | U58: 24 | V58: 20 | W58: 19 | X58: 31 | Y58: 5 | AD58: 2657 | AE58: 3325 | AF58: 3378 | AG58: 1049
A59: Totals | B59: =SUM(B48:B58) -> 1952 | C59: =SUM(C48:C58) -> 2932 | D59: 2962 | E59: 881 | F59: 3361 | G59: 4267 | H59: 4673 | I59: 1512 | J59: 3789 | K59: 4017 | L59: 4650 | M59: 1580 | N59: 1942 | O59: 1874 | P59: 2003 | Q59: 615 | R59: 1485 | S59: 1481 | T59: 1469 | U59: 290 | V59: 311 | W59: 286 | X59: 304 | Y59: 40 | Z59: 73 | AA59: 58 | AB59: 67 | AC59: 1 | AD59: =SUM(AD48:AD58) -> 12913 | AE59: 14915 | AF59: 16128 | AG59: 4919
A63: Percentages Race Stats
B64: Bronze | F64: Silver | J64: Gold | N64: Platinum | R64: Diamond | V64: Master | Z64: Grandmaster | AD64: Totals
A65: Weeks Remaining | B65: Z | C65: T | D65: P | E65: R | F65: Z | G65: T | H65: P | I65: R | J65: Z | K65: T | L65: P | M65: R | N65: Z | O65: T | P65: P | Q65: R | R65: Z | S65: T | T65: P | U65: R | V65: Z | W65: T | X65: P | Y65: R | Z65: Z | AA65: T | AB65: P | AC65: R | AD65: Z | AE65: T | AF65: P | AG65: R
A66: 1 | B66: =B48/$B16 -> 0.1772727273 | C66: =C48/$B16 -> 0.3727272727 | D66: =D48/$B16 -> 0.3363636364 | E66: 0.1136363636 | F66: =F48/$C16 -> 0.1959798995 | G66: =G48/$C16 -> 0.2864321608 | H66: 0.3944723618 | I66: 0.1231155779 | J66: =J48/$D16 -> 0.2210724365 | K66: 0.2869238006 | L66: 0.3626528692 | M66: 0.1293508937 | N66: =N48/$E16 -> 0.2770663562 | O66: 0.2817229336 | P66: 0.3440046566 | Q66: 0.09720605355 | R66: =R48/$F16 -> 0.3197360528 | S66: 0.3041391722 | T66: 0.3155368926 | U66: 0.06058788242 | V66: =V48/$G16 -> 0.34 | W66: 0.35 | X66: 0.265 | Y66: 0.045 | Z66: =Z48/$H16 -> 0.3668341709 | AA66: 0.2914572864 | AB66: =AH48/$H16 -> 0 | AC66: =AC48/$H16 -> 0.005025125628 | AD66: =AD48/$I16 -> 0.2660845588 | AE66: 0.2948835784 | AF66: 0.3429840686 | AG66: 0.09604779412
A67: 2 | B67: =B49/$B17 -> 0.1304347826 | C67: 0.4202898551 | D67: 0.347826087 | E67: 0.1014492754 | F67: =F49/$C17 -> 0.1641791045 | G67: 0.3731343284 | H67: 0.3432835821 | I67: 0.1194029851 | J67: 0.2433962264 | K67: 0.279245283 | L67: 0.3566037736 | M67: 0.120754717 | N67: 0.2945205479 | O67: 0.2785388128 | P67: 0.3264840183 | Q67: 0.100456621 | R67: 0.3391812865 | S67: 0.298245614 | T67: 0.3216374269 | U67: 0.04093567251 | V67: 0.3559322034 | W67: 0.2881355932 | X67: 0.3389830508 | Y67: 0.01694915254 | AD67: 0.2709923664 | AE67: 0.2977099237 | AF67: 0.3384223919 | AG67: 0.09287531807
A68: 3 | B68: =B50/$B18 -> 0.1403508772 | C68: 0.4736842105 | D68: 0.298245614 | E68: 0.08771929825 | F68: =F50/$C18 -> 0.1585365854 | G68: 0.3963414634 | H68: 0.3231707317 | I68: 0.1219512195 | J68: 0.2277580071 | K68: 0.2740213523 | L68: 0.3683274021 | M68: 0.1298932384 | N68: 0.2632978723 | O68: 0.2872340426 | P68: 0.3377659574 | Q68: 0.1117021277 | R68: 0.3378378378 | S68: 0.3243243243 | T68: 0.2939189189 | U68: 0.04391891892 | V68: 0.36 | W68: 0.3 | X68: 0.34 | Y68: 0 | AD68: 0.2518272425 | AE68: 0.3089700997 | AF68: 0.3375415282 | AG68: 0.1016611296
A69: 4 | B69: =B51/$B19 -> 0.1884057971 | C69: 0.4057971014 | D69: 0.3188405797 | E69: 0.08695652174 | F69: =F51/$C19 -> 0.1601941748 | G69: 0.3252427184 | H69: 0.4029126214 | I69: 0.1116504854 | J69: 0.2549342105 | K69: 0.2845394737 | L69: 0.3618421053 | M69: 0.09868421053 | N69: 0.2949852507 | O69: 0.2890855457 | P69: 0.2949852507 | Q69: 0.1209439528 | R69: 0.3276450512 | S69: 0.3139931741 | T69: 0.3037542662 | U69: 0.05460750853 | V69: 0.2542372881 | W69: 0.2881355932 | X69: 0.406779661 | Y69: 0.05084745763 | AD69: 0.2617534943 | AE69: 0.3017789072 | AF69: 0.3418043202 | AG69: 0.09466327827
A70: 5 | B70: =B52/$B20 -> 0.1279069767 | C70: 0.3953488372 | D70: 0.3488372093 | E70: 0.1279069767 | F70: =F52/$C20 -> 0.2203389831 | G70: 0.3347457627 | H70: 0.3516949153 | I70: 0.09322033898 | J70: 0.2634408602 | K70: 0.2755376344 | L70: 0.3481182796 | M70: 0.1129032258 | N70: 0.3245382586 | O70: 0.2664907652 | P70: 0.327176781 | Q70: 0.08179419525 | R70: 0.3255813953 | S70: 0.2713178295 | T70: 0.3372093023 | U70: 0.06589147287 | V70: 0.36 | W70: 0.28 | X70: 0.28 | Y70: 0.08 | AD70: 0.2760981175 | AE70: 0.28693668 | AF70: 0.3405590416 | AG70: 0.09640616087
A71: 6 | B71: =B53/$B21 -> 0.1739130435 | C71: 0.3217391304 | D71: 0.3826086957 | E71: 0.1217391304 | F71: =F53/$C21 -> 0.2063953488 | G71: 0.3255813953 | H71: 0.3808139535 | I71: 0.08720930233 | J71: 0.2808056872 | K71: 0.2819905213 | L71: 0.3222748815 | M71: 0.11492891 | N71: 0.3376963351 | O71: 0.2958115183 | P71: 0.2722513089 | Q71: 0.0942408377 | R71: 0.3529411765 | S71: 0.2977941176 | T71: 0.2904411765 | U71: 0.05882352941 | V71: 0.36 | W71: 0.2933333333 | X71: 0.28 | Y71: 0.06666666667 | AD71: 0.2854330709 | AE71: 0.2967519685 | AF71: 0.3203740157 | AG71: 0.09744094488
A72: 7 | B72: =B54/$B22 -> 0.2096774194 | C72: 0.3279569892 | D72: 0.3870967742 | E72: 0.0752688172 | F72: =F54/$C22 -> 0.220713073 | G72: 0.2903225806 | H72: 0.3853989813 | I72: 0.103565365 | J72: 0.2876224399 | K72: 0.2983081033 | L72: 0.3152270703 | M72: 0.09884238646 | N72: 0.3166226913 | O72: 0.3060686016 | P72: 0.2849604222 | Q72: 0.09234828496 | R72: 0.3134796238 | S72: 0.2821316614 | T72: 0.3260188088 | U72: 0.07836990596 | V72: 0.3797468354 | W72: 0.253164557 | X72: 0.3037974684 | Y72: 0.06329113924 | AD72: 0.2773831776 | AE72: 0.2964485981 | AF72: 0.3323364486 | AG72: 0.0938317757
A73: 8 | B73: =B55/$B23 -> 0.2074829932 | C73: 0.3367346939 | D73: 0.3673469388 | E73: 0.08843537415 | F73: =F55/$C23 -> 0.2244897959 | G73: 0.2781954887 | H73: 0.3716433942 | I73: 0.1256713212 | J73: 0.2792607803 | K73: 0.2813141684 | L73: 0.3299110198 | M73: 0.1095140315 | N73: 0.317961165 | O73: 0.3106796117 | P73: 0.2888349515 | Q73: 0.08252427184 | R73: 0.28125 | S73: 0.3298611111 | T73: 0.3159722222 | U73: 0.07291666667 | V73: 0.3647058824 | W73: 0.3647058824 | X73: 0.2235294118 | Y73: 0.04705882353 | AD73: 0.2653414002 | AE73: 0.2947277442 | AF73: 0.3356381446 | AG73: 0.104292711
A74: 9 | B74: =B56/$B24 -> 0.2220421394 | C74: 0.3128038898 | D74: 0.3808752026 | E74: 0.08427876823 | F74: =F56/$C24 -> 0.243697479 | G74: 0.3114495798 | H74: 0.3492647059 | I74: 0.09558823529 | J74: 0.2802071346 | K74: 0.2738780207 | L74: 0.33141542 | M74: 0.1144994246 | N74: 0.280334728 | O74: 0.3347280335 | P74: 0.2845188285 | Q74: 0.10041841 | R74: 0.2718446602 | S74: 0.3883495146 | T74: 0.2815533981 | U74: 0.05825242718 | V74: 0.2988505747 | W74: 0.2413793103 | X74: 0.4482758621 | Y74: 0.01149425287 | AD74: 0.25949737 | AE74: 0.3045002922 | AF74: 0.3385934152 | AG74: 0.09740892266
A75: 10 | B75: =B57/$B25 -> 0.23285979 | C75: 0.3313773935 | D75: 0.3378628783 | E75: 0.09789993823 | F75: =F57/$C25 -> 0.2527990572 | G75: 0.3066195247 | H75: 0.3201728541 | I75: 0.1204085641 | J75: 0.3014937107 | K75: 0.2849842767 | L75: 0.3003144654 | M75: 0.1132075472 | N75: 0.3325153374 | O75: 0.2846625767 | P75: 0.2981595092 | Q75: 0.08466257669 | R75: 0.3075060533 | S75: 0.3414043584 | T75: 0.2905569007 | U75: 0.06053268765 | V75: 0.3032786885 | W75: 0.3278688525 | X75: 0.3442622951 | Y75: 0.02459016393 | AD75: 0.2653194797 | AE75: 0.3085985437 | AF75: 0.3184979138 | AG75: 0.1075840628
A76: 11 | B76: =B58/$B26 -> 0.2280190678 | C76: 0.3360699153 | D76: 0.3289194915 | E76: 0.1069915254 | F76: =F58/$C26 -> 0.2591719078 | G76: 0.3134171908 | H76: 0.3280922432 | I76: 0.09931865828 | J76: 0.2784738041 | K76: 0.3086560364 | L76: 0.3166287016 | M76: 0.09624145786 | N76: 0.3203342618 | O76: 0.295264624 | P76: 0.2896935933 | Q76: 0.09470752089 | R76: 0.2537313433 | S76: 0.3246268657 | T76: 0.3320895522 | U76: 0.08955223881 | V76: 0.2666666667 | W76: 0.2533333333 | X76: 0.4133333333 | Y76: 0.06666666667 | AD76: 0.2552598713 | AE76: 0.3194351042 | AF76: 0.3245268518 | AG76: 0.1007781727
A80: Most Recent Games
B81: Bronze | D81: Silver | F81: Gold | H81: Platinum | J81: Diamond | L81: Master | N81: Grandmaster | P81: Totals
A82: Weeks Remaining | B82: Last Week | C82: Last Month | D82: Last Week | E82: Last Month | F82: Last Week | G82: Last Month | H82: Last Week | I82: Last Month | J82: Last Week | K82: Last Month | L82: Last Week | M82: Last Month | N82: Last Week | O82: Last Month | P82: Last Week | Q82: Last Month
A83: 1 | B83: 218 | C83: 2 | D83: 389 | E83: 9 | F83: 2095 | G83: 31 | H83: 1695 | I83: 23 | J83: 1646 | K83: 21 | L83: 199 | M83: 1 | N83: 197 | O83: 2 | P83: =B83+D83+F83+H83+J83+L83+N83 -> 6439 | Q83: =C83+E83+G83+I83+K83+M83+O83 -> 89
A84: 2 | B84: 56 | C84: 13 | D84: 91 | E84: 43 | F84: 353 | G84: 177 | H84: 280 | I84: 158 | J84: 193 | K84: 149 | L84: 45 | M84: 14 | P84: =B84+D84+F84+H84+J84+L84+N84 -> 1018 | Q84: 554
A85: 3 | B85: 31 | C85: 26 | D85: 112 | E85: 52 | F85: 359 | G85: 203 | H85: 225 | I85: 151 | J85: 154 | K85: 142 | L85: 34 | M85: 16 | P85: 915 | Q85: 590
A86: 4 | B86: 43 | C86: 26 | D86: 129 | E86: 77 | F86: 352 | G86: 256 | H86: 192 | I86: 147 | J86: 139 | K86: 154 | L86: 37 | M86: 22 | P86: 892 | Q86: 682
A87: 5 | B87: 41 | C87: 37 | D87: 145 | E87: 75 | F87: 421 | G87: 260 | H87: 173 | I87: 174 | J87: 100 | K87: 114 | L87: 33 | M87: 17 | P87: 913 | Q87: 677
A88: 6 | B88: 50 | C88: 39 | D88: 207 | E88: 95 | F88: 442 | G88: 283 | H88: 170 | I88: 135 | J88: 107 | K88: 109 | L88: 37 | M88: 32 | P88: 1013 | Q88: 693
A89: 7 | B89: 60 | C89: 70 | D89: 263 | E89: 196 | F89: 531 | G89: 405 | H89: 156 | I89: 158 | J89: 121 | K89: 102 | L89: 40 | M89: 27 | P89: 1171 | Q89: 958
A90: 8 | B90: 91 | C90: 72 | D90: 365 | E90: 295 | F90: 610 | G90: 567 | H90: 152 | I90: 169 | J90: 88 | K90: 105 | L90: 37 | M90: 27 | P90: 1343 | Q90: 1235
A91: 9 | B91: 159 | C91: 149 | D91: 638 | E91: 690 | F91: 579 | G91: 769 | H91: 150 | I91: 204 | J91: 92 | K91: 119 | L91: 38 | M91: 28 | P91: 1656 | Q91: 1959
A92: 10 | B92: 442 | C92: 622 | D92: 1226 | E92: 2182 | F92: 647 | G92: 1099 | H92: 207 | I92: 338 | J92: 100 | K92: 140 | L92: 25 | M92: 45 | P92: 2647 | Q92: 4426
A93: 11 | B93: 297 | C93: 719 | D93: 686 | E93: 1590 | F93: 374 | G93: 752 | H93: 164 | I93: 314 | J93: 41 | K93: 79 | L93: 19 | M93: 21 | P93: 1581 | Q93: 3475
A94: Totals | B94: =SUM(B83:B93) -> 1488 | C94: =SUM(C83:C93) -> 1775 | D94: 4251 | E94: 5304 | F94: 6763 | G94: 4802 | H94: 3564 | I94: 1971 | J94: 2781 | K94: 1234 | L94: 544 | M94: 250 | N94: 197 | O94: 2 | P94: 19588 | Q94: 15338
A95: At least 1 game in the last month | B95: =SUM(B94:C94) -> 3263 | D95: =SUM(D94:E94) -> 9555 | F95: =SUM(F94:G94) -> 11565 | H95: =SUM(H94:I94) -> 5535 | J95: =SUM(J94:K94) -> 4015 | L95: =SUM(L94:M94) -> 794 | N95: =SUM(N94:O94) -> 199 | P95: =SUM(P94:Q94) -> 34926
A99: Percentages - Most Recent Games
B100: Bronze | D100: Silver | F100: Gold | H100: Platinum | J100: Diamond | L100: Master | N100: Grandmaster | P100: Totals
A101: Weeks Remaining | B101: Last Week | C101: Last Month | D101: Last Week | E101: Last Month | F101: Last Week | G101: Last Month | H101: Last Week | I101: Last Month | J101: Last Week | K101: Last Month | L101: Last Week | M101: Last Month | N101: Last Week | O101: Last Month | P101: Last Week | Q101: Last Month
A102: 1 | B102: =B83/$I16 -> 0.03339460784 | C102: =C83/$I16 -> 0.000306372549 | D102: 0.05958946078 | E102: =E83/$I16 -> 0.001378676471 | F102: 0.3209252451 | G102: 0.00474877451 | H102: 0.2596507353 | I102: 0.003523284314 | J102: 0.2521446078 | K102: 0.003216911765 | L102: 0.03048406863 | M102: 0.0001531862745 | N102: 0.03017769608 | O102: 0.000306372549 | P102: =P83/$I16 -> 0.9863664216 | Q102: 0.01363357843
A103: 2 | B103: =B84/$I17 -> 0.03562340967 | C103: 0.008269720102 | D103: 0.05788804071 | E103: =E84/$I17 -> 0.02735368957 | F103: 0.2245547074 | G103: 0.1125954198 | H103: 0.1781170483 | I103: 0.1005089059 | J103: 0.1227735369 | K103: 0.09478371501 | L103: 0.0286259542 | M103: 0.008905852417 | N103: 0 | O103: 0 | P103: =P84/$I17 -> 0.6475826972 | Q103: 0.3524173028
A104: 3 | B104: =B85/$I18 -> 0.02059800664 | C104: 0.01727574751 | D104: 0.07441860465 | E104: =E85/$I18 -> 0.03455149502 | F104: 0.238538206 | G104: 0.1348837209 | H104: 0.1495016611 | I104: 0.1003322259 | J104: 0.1023255814 | K104: 0.09435215947 | L104: 0.02259136213 | M104: 0.01063122924 | N104: 0 | O104: 0 | P104: =P85/$I18 -> 0.6079734219 | Q104: 0.3920265781
A105: 4 | B105: =B86/$I19 -> 0.02731893266 | C105: 0.0165184244 | D105: 0.08195679797 | E105: =E86/$I19 -> 0.04891994917 | F105: 0.2236340534 | G105: 0.1626429479 | H105: 0.1219822109 | I105: 0.09339263024 | J105: 0.08831003812 | K105: 0.09783989835 | L105: 0.02350698856 | M105: 0.01397712834 | N105: 0 | O105: 0 | P105: =P86/$I19 -> 0.5667090216 | Q105: 0.4332909784
A106: 5 | B106: =B87/$I20 -> 0.0233884769 | C106: 0.02110667427 | D106: 0.08271534512 | E106: =E87/$I20 -> 0.0427837992 | F106: 0.2401597262 | G106: 0.1483171706 | H106: 0.09868796349 | I106: 0.09925841415 | J106: 0.0570450656 | K106: 0.06503137479 | L106: 0.01882487165 | M106: 0.009697661152 | N106: 0 | O106: 0 | P106: =P87/$I20 -> 0.5208214489 | Q106: 0.3861950941
A107: 6 | B107: =B88/$I21 -> 0.02460629921 | C107: 0.01919291339 | D107: 0.1018700787 | E107: =E88/$I21 -> 0.0467519685 | F107: 0.217519685 | G107: 0.1392716535 | H107: 0.08366141732 | I107: 0.06643700787 | J107: 0.05265748031 | K107: 0.05364173228 | L107: 0.01820866142 | M107: 0.0157480315 | N107: 0 | O107: 0 | P107: =P88/$I21 -> 0.498523622 | Q107: 0.3410433071
A108: 7 | B108: =B89/$I22 -> 0.02242990654 | C108: 0.0261682243 | D108: 0.09831775701 | E108: =E89/$I22 -> 0.07327102804 | F108: 0.1985046729 | G108: 0.1514018692 | H108: 0.05831775701 | I108: 0.05906542056 | J108: 0.04523364486 | K108: 0.03813084112 | L108: 0.01495327103 | M108: 0.01009345794 | N108: 0 | O108: 0 | P108: =P89/$I22 -> 0.4377570093 | Q108: 0.3581308411
A109: 8 | B109: =B90/$I23 -> 0.02621722846 | C109: 0.02074330164 | D109: 0.1051570153 | E109: =E90/$I23 -> 0.08498991645 | F109: 0.1757418611 | G109: 0.1633535004 | H109: 0.04379141458 | I109: 0.04868913858 | J109: 0.02535292423 | K109: 0.03025064823 | L109: 0.01065975223 | M109: 0.007778738116 | N109: 0 | O109: 0 | P109: =P90/$I23 -> 0.3869201959 | Q109: 0.3558052434
A110: 9 | B110: =B91/$I24 -> 0.03097603741 | C110: 0.02902785895 | D110: 0.1242937853 | E110: =E91/$I24 -> 0.1344243133 | F110: 0.1127995324 | G110: 0.149814923 | H110: 0.0292226768 | I110: 0.03974284044 | J110: 0.01792324177 | K110: 0.02318332359 | L110: 0.007403078122 | M110: 0.005454899669 | N110: 0 | O110: 0 | P110: =P91/$I24 -> 0.3226183518 | Q110: 0.381648159
A111: 10 | B111: =B92/$I25 -> 0.03616133519 | C111: 0.05088767078 | D111: 0.100302708 | E111: =E92/$I25 -> 0.1785159126 | F111: 0.05293299517 | G111: 0.08991246012 | H111: 0.01693528594 | I111: 0.02765278573 | J111: 0.008181297554 | K111: 0.01145381658 | L111: 0.002045324388 | M111: 0.003681583899 | N111: 0 | O111: 0 | P111: =P92/$I25 -> 0.2165589462 | Q111: 0.3621042297
A112: 11 | B112: =B93/$I26 -> 0.02853300029 | C112: 0.06907483908 | D112: 0.06590450572 | E112: =E93/$I26 -> 0.1527524258 | F112: 0.03593044481 | G112: 0.07224517245 | H112: 0.01575559612 | I112: 0.03016620232 | J112: 0.00393889903 | K112: 0.007589585935 | L112: 0.001825343453 | M112: 0.002017484869 | N112: 0 | O112: 0 | P112: =P93/$I26 -> 0.1518877894 | Q112: 0.3338457104
A113: Totals | B113: 0.03044501279 | C113: 0.03631713555 | D113: 0.0869769821 | E113: =E94/$I27 -> 0.1085217391 | F113: 0.1383734015 | G113: 0.09825063939 | H113: 0.07292071611 | I113: 0.04032736573 | J113: 0.05690025575 | K113: 0.02524808184 | L113: 0.01113043478 | M113: 0.005115089514 | N113: 0.004030690537 | O113: 4.092071611e-05 | P113: =P94/$I27 -> 0.4007774936 | Q113: 0.3138209719
A114: Percentage in the Last Month | B114: =SUM(B113:C113) -> 0.06676214834 | D114: =SUM(D113:E113) -> 0.1954987212 | F114: =SUM(F113:G113) -> 0.2366240409 | H114: =SUM(H113:I113) -> 0.1132480818 | J114: =SUM(J113:K113) -> 0.0821483376 | L114: =SUM(L113:M113) -> 0.0162455243 | N114: =SUM(N113:O113) -> 0.004071611253 | P114: =SUM(P113:Q113) -> 0.7145984655
A115: At least 1 game in the last week (league-specific) | B115: =B94/B27 -> 0.1705053283 | D115: =D94/C27 -> 0.3077535655 | F115: =F94/D27 -> 0.4818324309 | H115: =H94/E27 -> 0.553932235 | J115: =J94/F27 -> 0.5885714286 | L115: =L94/G27 -> 0.5781083953 | N115: =N94/H27 -> 0.9899497487
A116: At least 1 game in the last month (league-specific) | B116: =B95/B27 -> 0.373897101 | D116: =D95/C27 -> 0.6917396655 | F116: =F95/D27 -> 0.8239526931 | H116: =H95/E27 -> 0.8602735468 | J116: =J95/F27 -> 0.8497354497 | L116: =L95/G27 -> 0.8437832094 | N116: =N95/H16 -> 1
A118: Inactive Player Analysis (11 bonus pool weeks remaining that have not played a game in the last month) | B118: Bronze | C118: Silver | D118: Gold | E118: Platinum | F118: Diamond | G118: Master | H118: Totals
A119: Total Players | B119: =B26-B93-C93 -> 2760 | C119: =C26-D93-E93 -> 1540 | D119: =D26-F93-G93 -> 630 | E119: =E26-H93-I93 -> 240 | F119: =F26-J93-K93 -> 148 | G119: =G26-L93-M93 -> 35 | H119: =SUM(B119:G119) -> 5353

Sheet 1v1
A1: PlayerID | B1: ServerID | C1: SubServerID | D1: PlayerName | E1: Race | F1: League | G1: DivisionName | H1: Wins | I1: Losses | J1: Score | K1: BonusPool | L1: JoinDate | M1: LastGame | N1: LastUpdate | O1: TrueID | P1: Duplicate Check | Q1: Bonus Pool Weeks Remaining
A2: 498656 | B2: kr | C2: 2 | D2: Alice | E2: t | F2: Bronze | G2: 아메리고 리마 조 | H2: 156 | I2: 139 | J2: 1269 | K2: 0 | L2: 2014-06-04 | M2: 3 hours | N2: 2014-06-25T15:07:06 | O2: =A2&"-"&C2 -> 498656-2 | P2: 0 | Q2: 1 | S2: =IF(Q2>=10,SUM(I2+H2),0) -> 0
A3: 773496 | B3: kr | C3: 1 | D3: WhisperLive | E3: r | F3: Bronze | G3: 칼로스 감마 조 | H3: 98 | I3: 98 | J3: 1253 | K3: 0 | L3: 2014-05-26 | M3: 20 hours | N3: 2014-06-25T15:07:07 | O3: 773496-1 | P3: 0 | Q3: 1 | S3: =IF(Q3>=10,SUM(I3+H3),0) -> 0
A4: 988145 | B4: kr | C4: 2 | D4: LoveSong | E4: p | F4: Bronze | G4: 갈귀 알파 조 | H4: 55 | I4: 62 | J4: 1252 | K4: 0 | L4: 2014-04-19 | M4: 18 hours | N4: 2014-06-25T15:07:08 | O4: 988145-2 | P4: 0 | Q4: 1 | S4: 0
A5: 2733866 | B5: kr | C5: 1 | D5: DNAageloc | E5: r | F5: Bronze | G5: 갈귀 로미오 조 | H5: 44 | I5: 47 | J5: 1242 | K5: 2 | L5: 2014-04-15 | M5: 1 days | N5: 2014-06-25T15:07:09 | O5: 2733866-1 | P5: 0 | Q5: 1 | S5: 0
A6: 665308 | B6: kr | C6: 1 | D6: GoBaWoo | E6: z | F6: Bronze | G6: 아메리고 킬로 조 | H6: 195 | I6: 198 | J6: 1242 | K6: 0 | L6: 2014-04-15 | M6: 21 hours | N6: 2014-06-25T15:07:09 | O6: 665308-1 | P6: 0 | Q6: 1 | S6: 0
A7: 882377 | B7: kr | C7: 2 | D7: HOYA | E7: p | F7: Bronze | G7: 감염충 탱고 조 | H7: 55 | I7: 65 | J7: 1241 | K7: 0 | L7: 2014-04-14 | M7: 9 hours | N7: 2014-06-25T15:07:10 | O7: 882377-2 | P7: 0 | Q7: 1 | S7: 0
A8: 2994028 | B8: kr | C8: 1 | D8: 처음처럼 | E8: t | F8: Bronze | G8: 차 양키 조 | H8: 99 | I8: 86 | J8: 1238 | K8: 0 | L8: 2014-05-18 | M8: 5 hours | N8: 2014-06-25T15:07:11 | O8: 2994028-1 | P8: 0 | Q8: 1 | S8: 0
A9: 4440248 | B9: kr | C9: 1 | D9: 포토뱅 | E9: z | F9: Bronze | G9: 아우구스트그라드 시그마 조 | H9: 74 | I9: 75 | J9: 1235 | K9: 0 | L9: 2014-04-14 | M9: 4 hours | N9: 2014-06-25T15:07:11 | O9: 4440248-1 | P9: 0 | Q9: 1 | S9: 0
A10: 4387038 | B10: kr | C10: 1 | D10: 정토스 | E10: p | F10: Bronze | G10: 아우구스트그라드 세타 조 | H10: 60 | I10: 53 | J10: 1233 | K10: 0 | L10: 2014-04-19 | M10: 7 hours | N10: 2014-06-25T15:07:12 | O10: 4387038-1 | P10: 0 | Q10: 1 | S10: 0
A11: 4412735 | B11: kr | C11: 1 | D11: suzuki | E11: r | F11: Bronze | G11: 집정관 람다 조 | H11: 68 | I11: 64 | J11: 1233 | K11: 0 | L11: 2014-04-16 | M11: 23 hours | N11: 2014-06-25T15:07:13 | O11: 4412735-1 | P11: 0 | Q11: 1 | S11: 0
A12: 4128856 | B12: kr | C12: 1 | D12: jjnim | E12: z | F12: Bronze | G12: 대군주 감마 조 | H12: 58 | I12: 55 | J12: 1230 | K12: 0 | L12: 2014-04-25 | M12: 1 days | N12: 2014-06-25T15:07:13 | O12: 4128856-1 | P12: 0 | Q12: 1 | S12: 0
A13: 4641796 | B13: kr | C13: 1 | D13: VladToss | E13: z | F13: Bronze | G13: 밤까마귀 위스키 조 | H13: 49 | I13: 44 | J13: 1230 | K13: 14 | L13: 2014-05-15 | M13: 21 minutes | N13: 2014-06-25T15:07:14 | O13: 4641796-1 | P13: 0 | Q13: 1 | S13: 0
A14: 907958 | B14: kr | C14: 2 | D14: 老維 | E14: p | F14: Bronze | G14: 파멸충 딕시 조 | H14: 127 | I14: 130 | J14: 1225 | K14: 0 | L14: 2014-04-14 | M14: 1 days | N14: 2014-06-25T15:07:15 | O14: 907958-2 | P14: 0 | Q14: 1 | S14: 0
A15: 3970178 | B15: kr | C15: 1 | D15: 김보라바보 | E15: t | F15: Bronze | G15: 갈귀 로미오 조 | H15: 137 | I15: 149 | J15: 1223 | K15: 0 | L15: 2014-04-15 | M15: 29 minutes | N15: 2014-06-25T15:07:15 | O15: 3970178-1 | P15: 0 | Q15: 1 | S15: 0
A16: 1047580 | B16: kr | C16: 2 | D16: colin | E16: p | F16: Bronze | G16: 아르타니스 에코 조 | H16: 42 | I16: 49 | J16: 1222 | K16: 13 | L16: 2014-04-19 | M16: 3 days | N16: 2014-06-25T15:07:17 | O16: 1047580-2 | P16: 0 | Q16: 1 | S16: 0
A17: 986867 | B17: kr | C17: 2 | D17: Teaerh | E17: p | F17: Bronze | G17: 펠라니스 타우 조 | H17: 43 | I17: 41 | J17: 1222 | K17: 35 | L17: 2014-05-19 | M17: 1 days | N17: 2014-06-25T15:07:16 | O17: 986867-2 | P17: 0 | Q17: 1 | S17: 0
A18: 841553 | B18: kr | C18: 1 | D18: 우주의끝으로 | E18: p | F18: Bronze | G18: 갈귀 로미오 조 | H18: 67 | I18: 64 | J18: 1221 | K18: 0 | L18: 2014-04-15 | M18: 6 hours | N18: 2014-06-25T15:07:17 | O18: 841553-1 | P18: 0 | Q18: 1 | S18: 0
A19: 4232044 | B19: kr | C19: 1 | D19: UNDEATABLE | E19: t | F19: Bronze | G19: 스투코프 폭스트롯 조 | H19: 107 | I19: 111 | J19: 1219 | K19: 0 | L19: 2014-04-30 | M19: 1 days | N19: 2014-06-25T15:07:18 | O19: 4232044-1 | P19: 0 | Q19: 1 | S19: 0
A20: 822092 | B20: kr | C20: 2 | D20: suzukialu | E20: t | F20: Bronze | G20: 히페리온 페퍼 조 | H20: 172 | I20: 176 | J20: 1217 | K20: 0 | L20: 2014-04-20 | M20: 19 hours | N20: 2014-06-25T15:07:19 | O20: 822092-2 | P20: 0 | Q20: 1 | S20: 0
A21: 4481661 | B21: kr | C21: 1 | D21: 짱구아빠 | E21: p | F21: Bronze | G21: 스투코프 폭스트롯 조 | H21: 47 | I21: 41 | J21: 1215 | K21: 33 | L21: 2014-04-30 | M21: 5 days | N21: 2014-06-25T15:07:19 | O21: 4481661-1 | P21: 0 | Q21: 1 | S21: 0
A22: 4225040 | B22: kr | C22: 1 | D22: 짬뽕 | E22: p | F22: Bronze | G22: 갈귀 로미오 조 | H22: 53 | I22: 50 | J22: 1210 | K22: 41 | L22: 2014-04-15 | M22: 12 hours | N22: 2014-06-25T15:07:20 | O22: 4225040-1 | P22: 0 | Q22: 1 | S22: 0
A23: 371579 | B23: kr | C23: 1 | D23: 앤키두 | E23: z | F23: Bronze | G23: 모리아 에타 조 | H23: 88 | I23: 104 | J23: 1209 | K23: 0 | L23: 2014-04-15 | M23: 2 hours | N23: 2014-06-25T15:07:21 | O23: 371579-1 | P23: 0 | Q23: 1 | S23: 0
A24: 1086577 | B24: kr | C24: 2 | D24: 吃訝 | E24: t | F24: Bronze | G24: 감시군주 뮤 조 | H24: 75 | I24: 75 | J24: 1208 | K24: 0 | L24: 2014-04-18 | M24: 11 hours | N24: 2014-06-25T15:07:22 | O24: 1086577-2 | P24: 0 | Q24: 1 | S24: 0
A25: 3882996 | B25: kr | C25: 1 | D25: 스나이퍼 | E25: r | F25: Bronze | G25: 보로스 로 조 | H25: 71 | I25: 83 | J25: 1205 | K25: 0 | L25: 2014-04-20 | M25: 1 days | N25: 2014-06-25T15:07:23 | O25: 3882996-1 | P25: 0 | Q25: 1 | S25: 0
A26: 349348 | B26: kr | C26: 2 | D26: michaeljok | E26: p | F26: Bronze | G26: 사르가스 엑스레이 조 | H26: 55 | I26: 53 | J26: 1204 | K26: 4 | L26: 2014-04-14 | M26: 3 days | N26: 2014-06-25T15:07:23 | O26: 349348-2 | P26: 0 | Q26: 1 | S26: 0
A27: 4488615 | B27: kr | C27: 1 | D27: 수원고구마 | E27: t | F27: Bronze | G27: 토러스 리마 조 | H27: 49 | I27: 47 | J27: 1202 | K27: 0 | L27: 2014-05-26 | M27: 3 days | N27: 2014-06-25T15:07:24 | O27: 4488615-1 | P27: 0 | Q27: 1 | S27: 0
A28: 4388115 | B28: kr | C28: 1 | D28: SevenRule | E28: t | F28: Bronze | G28: 노바 제타 조 | H28: 60 | I28: 74 | J28: 1199 | K28: 0 | L28: 2014-04-14 | M28: 1 days | N28: 2014-06-25T15:07:25 | O28: 4388115-1 | P28: 0 | Q28: 1 | S28: 0
A29: 109382 | B29: kr | C29: 1 | D29: BIGBEAR | E29: p | F29: Bronze | G29: 아둔 빅터 조 | H29: 103 | I29: 122 | J29: 1197 | K29: 0 | L29: 2014-04-16 | M29: 4 hours | N29: 2014-06-25T15:07:25 | O29: 109382-1 | P29: 0 | Q29: 1 | S29: 0
A30: 4380301 | B30: kr | C30: 1 | D30: 애키호용 | E30: z | F30: Bronze | G30: 모라툰 시그마 조 | H30: 158 | I30: 175 | J30: 1196 | K30: 0 | L30: 2014-05-10 | M30: 27 minutes | N30: 2014-06-25T15:07:27 | O30: 4380301-1 | P30: 0 | Q30: 1 | S30: 0
A31: 989257 | B31: kr | C31: 2 | D31: DDRE | E31: z | F31: Bronze | G31: 가시지옥 크시 조 | H31: 53 | I31: 58 | J31: 1196 | K31: 0 | L31: 2014-05-13 | M31: 22 hours | N31: 2014-06-25T15:07:26 | O31: 989257-2 | P31: 0 | Q31: 1 | S31: 0
A32: 1409865 | B32: kr | C32: 1 | D32: 밥타령 | E32: t | F32: Bronze | G32: 카그 카파 조 | H32: 67 | I32: 67 | J32: 1195 | K32: 5 | L32: 2014-04-30 | M32: 3 days | N32: 2014-06-25T15:07:27 | O32: 1409865-1 | P32: 0 | Q32: 1 | S32: 0
A33: 2564086 | B33: kr | C33: 1 | D33: gogodk | E33: t | F33: Bronze | G33: 뉴 폴섬 알라모 조 | H33: 71 | I33: 89 | J33: 1194 | K33: 0 | L33: 2014-04-16 | M33: 2 days | N33: 2014-06-25T15:07:28 | O33: 2564086-1 | P33: 0 | Q33: 1 | S33: 0
A34: 4462363 | B34: kr | C34: 1 | D34: 나는진화한다 | E34: z | F34: Bronze | G34: 록웰 양키 조 | H34: 48 | I34: 42 | J34: 1194 | K34: 0 | L34: 2014-06-18 | M34: 43 minutes | N34: 2014-06-25T15:07:29 | O34: 4462363-1 | P34: 0 | Q34: 1 | S34: 0
A35: 4143496 | B35: kr | C35: 1 | D35: 이옥자 | E35: z | F35: Bronze | G35: 감염충 탱고 조 | H35: 100 | I35: 111 | J35: 1193 | K35: 0 | L35: 2014-04-15 | M35: 5 hours | N35: 2014-06-25T15:07:29 | O35: 4143496-1 | P35: 0 | Q35: 1 | S35: 0
A36: 3642092 | B36: kr | C36: 1 | D36: 먹고보니할매 | E36: p | F36: Bronze | G36: 제라나 페퍼 조 | H36: 103 | I36: 103 | J36: 1192 | K36: 9 | L36: 2014-04-19 | M36: 3 days | N36: 2014-06-25T15:07:30 | O36: 3642092-1 | P36: 0 | Q36: 1 | S36: 0
A37: 3171432 | B37: kr | C37: 1 | D37: 주인없는발롱도르 | E37: t | F37: Bronze | G37: 레나사 노벰버 조 | H37: 74 | I37: 87 | J37: 1191 | K37: 0 | L37: 2014-05-01 | M37: 2 hours | N37: 2014-06-25T15:07:32 | O37: 3171432-1 | P37: 0 | Q37: 1 | S37: 0
A38: 783687 | B38: kr | C38: 1 | D38: 까미저그 | E38: z | F38: Bronze | G38: 아우구스트그라드 시그마 조 | H38: 114 | I38: 122 | J38: 1191 | K38: 0 | L38: 2014-04-14 | M38: 1 days | N38: 2014-06-25T15:07:31 | O38: 783687-1 | P38: 0 | Q38: 1 | S38: 0
A39: 774592 | B39: kr | C39: 2 | D39: 草莓棉花糖 | E39: r | F39: Bronze | G39: 감염충 폭스트롯 조 | H39: 109 | I39: 112 | J39: 1190 | K39: 8 | L39: 2014-04-19 | M39: 3 days | N39: 2014-06-25T15:07:33 | O39: 774592-2 | P39: 0 | Q39: 1 | S39: 0
A40: 203441 | B40: kr | C40: 2 | D40: 搖滾客 | E40: r | F40: Bronze | G40: 토러스 리마 조 | H40: 61 | I40: 71 | J40: 1187 | K40: 0 | L40: 2014-06-05 | M40: 22 hours | N40: 2014-06-25T15:07:33 | O40: 203441-2 | P40: 0 | Q40: 1 | S40: 0
A41: 3367592 | B41: kr | C41: 1 | D41: cbs | E41: t | F41: Bronze | G41: 밴시 로미오 조 | H41: 86 | I41: 86 | J41: 1187 | K41: 0 | L41: 2014-04-25 | M41: 21 hours | N41: 2014-06-25T15:07:35 | O41: 3367592-1 | P41: 0 | Q41: 1 | S41: 0
A42: 4584261 | B42: kr | C42: 1 | D42: 스탈놈휠라 | E42: p | F42: Bronze | G42: 신관 제드 조 | H42: 133 | I42: 144 | J42: 1187 | K42: 0 | L42: 2014-05-13 | M42: 2 hours | N42: 2014-06-25T15:07:35 | O42: 4584261-1 | P42: 0 | Q42: 1 | S42: 0
A43: 727736 | B43: kr | C43: 2 | D43: WonderWind | E43: t | F43: Bronze | G43: 여왕 마즈 조 | H43: 70 | I43: 70 | J43: 1187 | K43: 17 | L43: 2014-05-13 | M43: 4 days | N43: 2014-06-25T15:07:34 | O43: 727736-2 | P43: 0 | Q43: 1 | S43: 0
A44: 319649 | B44: kr | C44: 2 | D44: ming | E44: t | F44: Bronze | G44: 아이어 그라비티 조 | H44: 101 | I44: 116 | J44: 1185 | K44: 0 | L44: 2014-04-14 | M44: 23 hours | N44: 2014-06-25T15:07:36 | O44: 319649-2 | P44: 0 | Q44: 1 | S44: 0
A45: 3924735 | B45: kr | C45: 1 | D45: wag | E45: p | F45: Bronze | G45: 갈귀 로미오 조 | H45: 94 | I45: 103 | J45: 1183 | K45: 0 | L45: 2014-04-15 | M45: 5 hours | N45: 2014-06-25T15:07:37 | O45: 3924735-1 | P45: 0 | Q45: 1 | S45: 0
A46: 4350690 | B46: kr | C46: 1 | D46: DedoPoderoso | E46: t | F46: Bronze | G46: 여왕 노벰버 조 | H46: 61 | I46: 69 | J46: 1183 | K46: 0 | L46: 2014-04-27 | M46: 8 hours | N46: 2014-06-25T15:07:37 | O46: 4350690-1 | P46: 0 | Q46: 1 | S46: 0
A47: 395627 | B47: kr | C47: 2 | D47: 黑射會老大 | E47: p | F47: Bronze | G47: 토시 알파 조 | H47: 103 | I47: 115 | J47: 1180 | K47: 0 | L47: 2014-04-13 | M47: 46 minutes | N47: 2014-06-25T15:07:38 | O47: 395627-2 | P47: 0 | Q47: 1 | S47: 0
A48: 1291291 | B48: kr | C48: 1 | D48: hoze | E48: t | F48: Bronze | G48: 핸슨 퀘스트 조 | H48: 96 | I48: 102 | J48: 1177 | K48: 3 | L48: 2014-05-25 | M48: 3 days | N48: 2014-06-25T15:07:40 | O48: 1291291-1 | P48: 0 | Q48: 1 | S48: 0
A49: 238103 | B49: kr | C49: 1 | D49: 불굴에의지 | E49: t | F49: Bronze | G49: 아우구스트그라드 시그마 조 | H49: 154 | I49: 172 | J49: 1177 | K49: 0 | L49: 2014-04-14 | M49: 3 days | N49: 2014-06-25T15:07:39 | O49: 238103-1 | P49: 0 | Q49: 1 | S49: 0
A50: 4615493 | B50: kr | C50: 1 | D50: 도그마게돈 | E50: t | F50: Bronze | G50: 듀란 시에라 조 | H50: 59 | I50: 60 | J50: 1175 | K50: 0 | L50: 2014-05-04 | M50: 3 hours | N50: 2014-06-25T15:07:41 | O50: 4615493-1 | P50: 0 | Q50: 1 | S50: 0
A51: 936337 | B51: kr | C51: 2 | D51: 牛寶寶 | E51: p | F51: Bronze | G51: 감염충 폭스트롯 조 | H51: 64 | I51: 53 | J51: 1175 | K51: 9 | L51: 2014-05-25 | M51: 3 days | N51: 2014-06-25T15:07:40 | O51: 936337-2 | P51: 0 | Q51: 1 | S51: 0
A52: 3389413 | B52: kr | C52: 1 | D52: bigeyer | E52: r | F52: Bronze | G52: 감시군주 시에라 조 | H52: 241 | I52: 268 | J52: 1174 | K52: 0 | L52: 2014-04-13 | M52: 11 hours | N52: 2014-06-25T15:07:41 | O52: 3389413-1 | P52: 0 | Q52: 1 | S52: 0
A53: 2616531 | B53: kr | C53: 1 | D53: Pureness | E53: t | F53: Bronze | G53: 모라툰 입실론 조 | H53: 63 | I53: 76 | J53: 1173 | K53: 0 | L53: 2014-04-30 | M53: 2 days | N53: 2014-06-25T15:07:44 | O53: 2616531-1 | P53: 0 | Q53: 1 | S53: 0
A54: 583438 | B54: kr | C54: 1 | D54: 태권 | E54: t | F54: Bronze | G54: 스투코프 파이 조 | H54: 90 | I54: 110 | J54: 1173 | K54: 21 | L54: 2014-04-16 | M54: 4 days | N54: 2014-06-25T15:07:42 | O54: 583438-1 | P54: 0 | Q54: 1 | S54: 0
A55: 943777 | B55: kr | C55: 2 | D55: 阿爽 | E55: z | F55: Bronze | G55: 티폰 프사이 조 | H55: 87 | I55: 90 | J55: 1173 | K55: 0 | L55: 2014-04-18 | M55: 7 minutes | N55: 2014-06-25T15:07:43 | O55: 943777-2 | P55: 0 | Q55: 1 | S55: 0
A56: 1270922 | B56: kr | C56: 1 | D56: 광장동휘발유 | E56: t | F56: Bronze | G56: 레나사 마즈 조 | H56: 86 | I56: 80 | J56: 1172 | K56: 0 | L56: 2014-06-10 | M56: 1 days | N56: 2014-06-25T15:07:45 | O56: 1270922-1 | P56: 0 | Q56: 1 | S56: 0
A57: 520773 | B57: kr | C57: 2 | D57: Nick | E57: t | F57: Bronze | G57: 토시 알파 조 | H57: 61 | I57: 90 | J57: 1172 | K57: 0 | L57: 2014-04-13 | M57: 22 hours | N57: 2014-06-25T15:07:44 | O57: 520773-2 | P57: 0 | Q57: 1 | S57: 0
A58: 1129793 | B58: kr | C58: 1 | D58: 싸울아비 | E58: r | F58: Bronze | G58: 악령 오미크론 조 | H58: 72 | I58: 76 | J58: 1171 | K58: 22 | L58: 2014-04-15 | M58: 2 days | N58: 2014-06-25T15:07:46 | O58: 1129793-1 | P58: 0 | Q58: 1 | S58: 0
A59: 897907 | B59: kr | C59: 2 | D59: 雷諾突擊隊 | E59: t | F59: Bronze | G59: 토시 알파 조 | H59: 182 | I59: 198 | J59: 1171 | K59: 0 | L59: 2014-04-13 | M59: 1 days | N59: 2014-06-25T15:07:46 | O59: 897907-2 | P59: 0 | Q59: 1 | S59: 0
A60: 4402512 | B60: kr | C60: 1 | D60: 전설준호 | E60: r | F60: Bronze | G60: 폴레 제드 조 | H60: 81 | I60: 91 | J60: 1170 | K60: 15 | L60: 2014-04-15 | M60: 3 days | N60: 2014-06-25T15:07:47 | O60: 4402512-1 | P60: 0 | Q60: 1 | S60: 0
A61: 4626959 | B61: kr | C61: 1 | D61: Beckham | E61: p | F61: Bronze | G61: 레나사 노벰버 조 | H61: 93 | I61: 85 | J61: 1169 | K61: 0 | L61: 2014-05-01 | M61: 48 minutes | N61: 2014-06-25T15:07:48 | O61: 4626959-1 | P61: 0 | Q61: 1 | S61: 0
A62: 3929121 | B62: kr | C62: 1 | D62: Ttndsd | E62: p | F62: Bronze | G62: 아르타니스 에코 조 | H62: 124 | I62: 140 | J62: 1168 | K62: 0 | L62: 2014-04-19 | M62: 2 hours | N62: 2014-06-25T15:07:49 | O62: 3929121-1 | P62: 0 | Q62: 1 | S62: 0
A63: 2713323 | B63: kr | C63: 1 | D63: kang | E63: t | F63: Bronze | G63: 사신 오메가 조 | H63: 40 | I63: 58 | J63: 1166 | K63: 0 | L63: 2014-06-06 | M63: 12 minutes | N63: 2014-06-25T15:07:49 | O63: 2713323-1 | P63: 0 | Q63: 1 | S63: 0
A64: 1241759 | B64: kr | C64: 2 | D64: COPYCAT | E64: p | F64: Bronze | G64: 칼로스 감마 조 | H64: 60 | I64: 80 | J64: 1165 | K64: 0 | L64: 2014-04-14 | M64: 1 days | N64: 2014-06-25T15:07:51 | O64: 1241759-2 | P64: 0 | Q64: 1 | S64: 0
A65: 1315148 | B65: kr | C65: 2 | D65: 我要稱霸星海 | E65: t | F65: Bronze | G65: 집정관 람다 조 | H65: 145 | I65: 183 | J65: 1165 | K65: 0 | L65: 2014-04-16 | M65: 2 hours | N65: 2014-06-25T15:07:52 | O65: 1315148-2 | P65: 0 | Q65: 1 | S65: 0
A66: 89667 | B66: kr | C66: 1 | D66: 키레트키 | E66: t | F66: Bronze | G66: 의료선 피 조 | H66: 44 | I66: 54 | J66: 1165 | K66: 11 | L66: 2014-04-17 | M66: 1 days | N66: 2014-06-25T15:07:50 | O66: =A66&"-"&C66 -> 89667-1 | P66: 0 | Q66: 1 | S66: 0
A67: 944021 | B67: kr | C67: 2 | D67: 賊小文 | E67: t | F67: Bronze | G67: 토시 알파 조 | H67: 146 | I67: 267 | J67: 1165 | K67: 0 | L67: 2014-04-13 | M67: 21 hours | N67: 2014-06-25T15:07:51 | O67: 944021-2 | P67: 0 | Q67: 1 | S67: =IF(Q67>=10,SUM(I67+H67),0) -> 0
A68: 1190053 | B68: kr | C68: 2 | D68: 阿寶 | E68: p | F68: Bronze | G68: 아이어 그라비티 조 | H68: 81 | I68: 100 | J68: 1161 | K68: 0 | L68: 2014-04-14 | M68: 1 hours | N68: 2014-06-25T15:07:53 | O68: 1190053-2 | P68: 0 | Q68: 1 | S68: 0
A69: 332753 | B69: kr | C69: 1 | D69: strongdolsan | E69: z | F69: Bronze | G69: 제라나 페퍼 조 | H69: 122 | I69: 137 | J69: 1157 | K69: 0 | L69: 2014-04-14 | M69: 1 days | N69: 2014-06-25T15:07:53 | O69: 332753-1 | P69: 0 | Q69: 1 | S69: 0
A70: 4374470 | B70: kr | C70: 1 | D70: 핵언더 | E70: p | F70: Bronze | G70: 제라나 페퍼 조 | H70: 161 | I70: 175 | J70: 1157 | K70: 0 | L70: 2014-04-14 | M70: 2 days | N70: 2014-06-25T15:07:54 | O70: 4374470-1 | P70: 0 | Q70: 1 | S70: 0
A71: 1046625 | B71: kr | C71: 2 | D71: Louis | E71: t | F71: Bronze | G71: 파멸충 딕시 조 | H71: 174 | I71: 204 | J71: 1156 | K71: 0 | L71: 2014-04-14 | M71: 2 hours | N71: 2014-06-25T15:07:55 | O71: 1046625-2 | P71: 0 | Q71: 1 | S71: 0
A72: 1033821 | B72: kr | C72: 1 | D72: 포풍같은러쉬 | E72: p | F72: Bronze | G72: 바퀴 탱고 조 | H72: 50 | I72: 63 | J72: 1154 | K72: 0 | L72: 2014-05-08 | M72: 6 hours | N72: 2014-06-25T15:07:55 | O72: 1033821-1 | P72: 0 | Q72: 1 | S72: 0
A73: 2942666 | B73: kr | C73: 1 | D73: 마대영 | E73: t | F73: Bronze | G73: 밤까마귀 위스키 조 | H73: 44 | I73: 50 | J73: 1154 | K73: 0 | L73: 2014-06-06 | M73: 1 minutes | N73: 2014-06-25T15:07:56 | O73: 2942666-1 | P73: 0 | Q73: 1 | S73: 0
A74: 1171280 | B74: kr | C74: 1 | D74: 가조우 | E74: t | F74: Bronze | G74: 무리 군주 양키 조 | H74: 66 | I74: 68 | J74: 1153 | K74: 107 | L74: 2014-04-14 | M74: 2 days | N74: 2014-06-25T15:07:57 | O74: 1171280-1 | P74: 0 | Q74: 2 | S74: 0
A75: 1434084 | B75: kr | C75: 1 | D75: 성격폭팔 | E75: t | F75: Bronze | G75: 파멸충 엡실론 조 | H75: 81 | I75: 101 | J75: 1153 | K75: 0 | L75: 2014-04-17 | M75: 22 hours | N75: 2014-06-25T15:07:57 | O75: 1434084-1 | P75: 0 | Q75: 1 | S75: 0
A76: 2789664 | B76: kr | C76: 1 | D76: 코로사박 | E76: z | F76: Bronze | G76: 의료선 피 조 | H76: 105 | I76: 123 | J76: 1153 | K76: 5 | L76: 2014-04-17 | M76: 3 days | N76: 2014-06-25T15:07:58 | O76: 2789664-1 | P76: 0 | Q76: 1 | S76: 0
A77: 302380 | B77: kr | C77: 1 | D77: stevensigal | E77: p | F77: Bronze | G77: 파멸충 딕시 조 | H77: 140 | I77: 163 | J77: 1152 | K77: 0 | L77: 2014-04-14 | M77: 6 hours | N77: 2014-06-25T15:07:59 | O77: 302380-1 | P77: 0 | Q77: 1 | S77: 0
A78: 243947 | B78: kr | C78: 1 | D78: dwfc | E78: t | F78: Bronze | G78: 차원 분광기 베타 조 | H78: 70 | I78: 90 | J78: 1150 | K78: 0 | L78: 2014-04-13 | M78: 8 hours | N78: 2014-06-25T15:08:00 | O78: 243947-1 | P78: 0 | Q78: 1 | S78: 0
A79: 4325846 | B79: kr | C79: 1 | D79: 역시정반장 | E79: t | F79: Bronze | G79: 모리아 에타 조 | H79: 138 | I79: 156 | J79: 1150 | K79: 0 | L79: 2014-04-15 | M79: 1 days | N79: 2014-06-25T15:08:00 | O79: 4325846-1 | P79: 0 | Q79: 1 | S79: 0
A80: 1109489 | B80: kr | C80: 2 | D80: 戀雅 | E80: p | F80: Bronze | G80: 건설로봇 마즈 조 | H80: 45 | I80: 41 | J80: 1148 | K80: 84 | L80: 2014-05-22 | M80: 3 days | N80: 2014-06-25T15:08:01 | O80: 1109489-2 | P80: 0 | Q80: 1 | S80: 0
A81: 3950454 | B81: kr | C81: 1 | D81: 용이쓰 | E81: p | F81: Bronze | G81: 가시지옥 크시 조 | H81: 68 | I81: 76 | J81: 1147 | K81: 35 | L81: 2014-04-14 | M81: 2 days | N81: 2014-06-25T15:08:02 | O81: 3950454-1 | P81: 0 | Q81: 1 | S81: 0
A82: 4310696 | B82: kr | C82: 1 | D82: lhh | E82: p | F82: Bronze | G82: 아킬래 줄리엣 조 | H82: 118 | I82: 131 | J82: 1147 | K82: 4 | L82: 2014-04-18 | M82: 3 days | N82: 2014-06-25T15:08:03 | O82: 4310696-1 | P82: 0 | Q82: 1 | S82: 0
A83: 959102 | B83: kr | C83: 2 | D83: LOVJ | E83: p | F83: Bronze | G83: 칼라시 찰리 조 | H83: 53 | I83: 54 | J83: 1146 | K83: 0 | L83: 2014-05-18 | M83: 8 hours | N83: 2014-06-25T15:08:04 | O83: 959102-2 | P83: 0 | Q83: 1 | S83: 0
A84: 4614683 | B84: kr | C84: 1 | D84: 라리가라라 | E84: t | F84: Bronze | G84: 중재자 빅터 조 | H84: 130 | I84: 165 | J84: 1144 | K84: 0 | L84: 2014-04-27 | M84: 2 hours | N84: 2014-06-25T15:08:05 | O84: 4614683-1 | P84: 0 | Q84: 1 | S84: 0
A85: 815200 | B85: kr | C85: 2 | D85: ttnwinf | E85: t | F85: Bronze | G85: 악령 오미크론 조 | H85: 126 | I85: 136 | J85: 1144 | K85: 0 | L85: 2014-04-15 | M85: 23 hours | N85: 2014-06-25T15:08:04 | O85: 815200-2 | P85: 0 | Q85: 1 | S85: 0
A86: 2510380 | B86: kr | C86: 1 | D86: ghost | E86: t | F86: Bronze | G86: 토러스 리마 조 | H86: 66 | I86: 78 | J86: 1143 | K86: 0 | L86: 2014-04-13 | M86: 20 hours | N86: 2014-06-25T15:08:07 | O86: 2510380-1 | P86: 0 | Q86: 1 | S86: 0
A87: 4198463 | B87: kr | C87: 1 | D87: 조의군단수장 | E87: z | F87: Bronze | G87: 아킬래 줄리엣 조 | H87: 77 | I87: 86 | J87: 1143 | K87: 0 | L87: 2014-04-18 | M87: 18 hours | N87: 2014-06-25T15:08:07 | O87: 4198463-1 | P87: 0 | Q87: 1 | S87: 0
A88: 812513 | B88: kr | C88: 2 | D88: 八條鄉長 | E88: t | F88: Bronze | G88: 감시군주 시에라 조 | H88: 60 | I88: 86 | J88: 1143 | K88: 6 | L88: 2014-04-24 | M88: 3 days | N88: 2014-06-25T15:08:06 | O88: 812513-2 | P88: 0 | Q88: 1 | S88: 0
A89: 1272006 | B89: kr | C89: 2 | D89: Jerryhouse | E89: t | F89: Bronze | G89: 모리아 에타 조 | H89: 95 | I89: 106 | J89: 1142 | K89: 27 | L89: 2014-04-15 | M89: 4 days | N89: 2014-06-25T15:08:08 | O89: 1272006-2 | P89: 0 | Q89: 1 | S89: 0
A90: 4594535 | B90: kr | C90: 1 | D90: Boss | E90: r | F90: Bronze | G90: 핸슨 뉴 조 | H90: 124 | I90: 128 | J90: 1142 | K90: 0 | L90: 2014-04-27 | M90: 1 days | N90: 2014-06-25T15:08:08 | O90: 4594535-1 | P90: 0 | Q90: 1 | S90: 0
A91: 2053038 | B91: kr | C91: 1 | D91: noviceguy | E91: t | F91: Bronze | G91: 감시군주 시에라 조 | H91: 69 | I91: 83 | J91: 1141 | K91: 0 | L91: 2014-04-13 | M91: 28 minutes | N91: 2014-06-25T15:08:09 | O91: 2053038-1 | P91: 0 | Q91: 1 | S91: 0
A92: 4369356 | B92: kr | C92: 1 | D92: zaGrab | E92: p | F92: Bronze | G92: 의료선 오메가 조 | H92: 98 | I92: 126 | J92: 1141 | K92: 0 | L92: 2014-05-27 | M92: 2 days | N92: 2014-06-25T15:08:10 | O92: 4369356-1 | P92: 0 | Q92: 1 | S92: 0
A93: 4516163 | B93: kr | C93: 1 | D93: startrack | E93: p | F93: Bronze | G93: 레나사 마즈 조 | H93: 68 | I93: 89 | J93: 1138 | K93: 0 | L93: 2014-04-22 | M93: 8 hours | N93: 2014-06-25T15:08:10 | O93: 4516163-1 | P93: 0 | Q93: 1 | S93: 0
A94: 110412 | B94: kr | C94: 1 | D94: Airforceone | E94: t | F94: Bronze | G94: 토시 알파 조 | H94: 53 | I94: 53 | J94: 1137 | K94: 12 | L94: 2014-04-23 | M94: 26 minutes | N94: 2014-06-25T15:08:11 | O94: 110412-1 | P94: 0 | Q94: 1 | S94: 0
A95: 439290 | B95: kr | C95: 1 | D95: superKERORO | E95: p | F95: Bronze | G95: 듀란 시에라 조 | H95: 162 | I95: 182 | J95: 1137 | K95: 0 | L95: 2014-05-13 | M95: 22 hours | N95: 2014-06-25T15:08:12 | O95: 439290-1 | P95: 0 | Q95: 1 | S95: 0
A96: 172025 | B96: kr | C96: 1 | D96: scuffle | E96: z | F96: Bronze | G96: 감염충 탱고 조 | H96: 128 | I96: 186 | J96: 1136 | K96: 0 | L96: 2014-04-14 | M96: 1 hours | N96: 2014-06-25T15:08:13 | O96: 172025-1 | P96: 0 | Q96: 1 | S96: 0
A97: 374666 | B97: kr | C97: 2 | D97: 神鬼驚嘆 | E97: p | F97: Bronze | G97: 여왕 엉클 조 | H97: 49 | I97: 77 | J97: 1135 | K97: 0 | L97: 2014-04-26 | M97: 2 days | N97: 2014-06-25T15:08:14 | O97: 374666-2 | P97: 0 | Q97: 1 | S97: 0
A98: 1323369 | B98: kr | C98: 2 | D98: nado | E98: p | F98: Bronze | G98: 용기병 카이 조 | H98: 183 | I98: 218 | J98: 1134 | K98: 13 | L98: 2014-04-14 | M98: 18 minutes | N98: 2014-06-25T15:08:16 | O98: 1323369-2 | P98: 0 | Q98: 1 | S98: 0
A99: 4474686 | B99: kr | C99: 1 | D99: 스타마스터 | E99: r | F99: Bronze | G99: 가시지옥 찰리 조 | H99: 55 | I99: 64 | J99: 1134 | K99: 0 | L99: 2014-04-19 | M99: 2 hours | N99: 2014-06-25T15:08:17 | O99: 4474686-1 | P99: 0 | Q99: 1 | S99: 0
A100: 683589 | B100: kr | C100: 1 | D100: Blackeros | E100: r | F100: Bronze | G100: 무리 군주 양키 조 | H100: 44 | I100: 57 | J100: 1134 | K100: 5 | L100: 2014-04-14 | M100: 3 days | N100: 2014-06-25T15:08:15 | O100: 683589-1 | P100: 0 | Q100: 1 | S100: 0
A101: 999644 | B101: kr | C101: 2 | D101: WhoAreYou | E101: p | F101: Bronze | G101: 사르가스 엑스레이 조 | H101: 70 | I101: 83 | J101: 1134 | K101: 0 | L101: 2014-04-14 | M101: 7 minutes | N101: 2014-06-25T15:08:15 | O101: 999644-2 | P101: 0 | Q101: 1 | S101: 0
A102: 610646 | B102: kr | C102: 1 | D102: hoonyjjang | E102: r | F102: Bronze | G102: 바퀴 탱고 조 | H102: 57 | I102: 57 | J102: 1133 | K102: 0 | L102: 2014-05-20 | M102: 2 days | N102: 2014-06-25T15:08:17 | O102: 610646-1 | P102: 0 | Q102: 1 | S102: 0
A103: 656865 | B103: kr | C103: 2 | D103: CozyMiDi | E103: t | F103: Bronze | G103: 사르가스 엑스레이 조 | H103: 90 | I103: 109 | J103: 1133 | K103: 0 | L103: 2014-04-14 | M103: 3 hours | N103: 2014-06-25T15:08:19 | O103: 656865-2 | P103: 0 | Q103: 1 | S103: 0
A104: 721233 | B104: kr | C104: 2 | D104: JACK | E104: t | F104: Bronze | G104: 감염충 탱고 조 | H104: 138 | I104: 157 | J104: 1133 | K104: 0 | L104: 2014-04-14 | M104: 1 hours | N104: 2014-06-25T15:08:19 | O104: 721233-2 | P104: 0 | Q104: 1 | S104: 0
A105: 469215 | B105: kr | C105: 1 | D105: 슬픈늑대 | E105: t | F105: Bronze | G105: 아우구스트그라드 시그마 조 | H105: 96 | I105: 121 | J105: 1132 | K105: 3 | L105: 2014-04-14 | M105: 3 days | N105: 2014-06-25T15:08:20 | O105: 469215-1 | P105: 0 | Q105: 1 | S105: 0
A106: 1120250 | B106: kr | C106: 2 | D106: Toleas | E106: t | F106: Bronze | G106: 용기병 카이 조 | H106: 141 | I106: 167 | J106: 1131 | K106: 3 | L106: 2014-04-14 | M106: 3 days | N106: 2014-06-25T15:08:22 | O106: 1120250-2 | P106: 0 | Q106: 1 | S106: 0
A107: 154964 | B107: kr | C107: 1 | D107: 날콩깔려는게냐 | E107: z | F107: Bronze | G107: 대군주 감마 조 | H107: 92 | I107: 93 | J107: 1131 | K107: 16 | L107: 2014-04-22 | M107: 4 days | N107: 2014-06-25T15:08:21 | O107: 154964-1 | P107: 0 | Q107: 1 | S107: 0
A108: 1324306 | B108: kr | C108: 1 | D108: 거성 | E108: t | F108: Bronze | G108: 핸슨 퀘스트 조 | H108: 90 | I108: 103 | J108: 1129 | K108: 15 | L108: 2014-04-19 | M108: 3 days | N108: 2014-06-25T15:08:22 | O108: 1324306-1 | P108: 0 | Q108: 1 | S108: 0
A109: 2609833 | B109: kr | C109: 1 | D109: 똥싼맹구 | E109: p | F109: Bronze | G109: 아르타니스 람다 조 | H109: 110 | I109: 126 | J109: 1127 | K109: 17 | L109: 2014-04-27 | M109: 1 days | N109: 2014-06-25T15:08:24 | O109: 2609833-1 | P109: 0 | Q109: 1 | S109: 0
A110: 373723 | B110: kr | C110: 1 | D110: 파인만 | E110: t | F110: Bronze | G110: 무리 군주 양키 조 | H110: 68 | I110: 90 | J110: 1127 | K110: 0 | L110: 2014-04-14 | M110: 3 hours | N110: 2014-06-25T15:08:23 | O110: 373723-1 | P110: 0 | Q110: 1 | S110: 0
A111: 864219 | B111: kr | C111: 1 | D111: moldey | E111: z | F111: Bronze | G111: 록웰 인디고 조 | H111: 67 | I111: 75 | J111: 1127 | K111: 0 | L111: 2014-05-30 | M111: 1 hours | N111: 2014-06-25T15:08:24 | O111: 864219-1 | P111: 0 | Q111: 1 | S111: 0
A112: 4291977 | B112: kr | C112: 1 | D112: zeus | E112: p | F112: Bronze | G112: 가시지옥 찰리 조 | H112: 104 | I112: 120 | J112: 1126 | K112: 0 | L112: 2014-04-19 | M112: 2 hours | N112: 2014-06-25T15:08:26 | O112: 4291977-1 | P112: 0 | Q112: 1 | S112: 0
A113: 848194 | B113: kr | C113: 2 | D113: Fomula | E113: z | F113: Bronze | G113: 사르가스 엑스레이 조 | H113: 129 | I113: 144 | J113: 1126 | K113: 1 | L113: 2014-04-14 | M113: 20 hours | N113: 2014-06-25T15:08:25 | O113: 848194-2 | P113: 0 | Q113: 1 | S113: 0
A114: 4632676 | B114: kr | C114: 1 | D114: cltiger | E114: z | F114: Bronze | G114: 관문 오메가 조 | H114: 274 | I114: 301 | J114: 1125 | K114: 0 | L114: 2014-05-08 | M114: 2 hours | N114: 2014-06-25T15:08:27 | O114: 4632676-1 | P114: 0 | Q114: 1 | S114: 0
A115: 285137 | B115: kr | C115: 1 | D115: 오닉시아 | E115: z | F115: Bronze | G115: 중재자 델타 조 | H115: 64 | I115: 80 | J115: 1124 | K115: 4 | L115: 2014-04-19 | M115: 3 days | N115: 2014-06-25T15:08:27 | O115: 285137-1 | P115: 0 | Q115: 1 | S115: 0
A116: 3591895 | B116: kr | C116: 1 | D116: 띠리띠리 | E116: r | F116: Bronze | G116: 악령 오미크론 조 | H116: 115 | I116: 134 | J116: 1124 | K116: 0 | L116: 2014-04-15 | M116: 2 hours | N116: 2014-06-25T15:08:28 | O116: 3591895-1 | P116: 0 | Q116: 1 | S116: 0
A117: 3640762 | B117: kr | C117: 1 | D117: 힘바이 | E117: z | F117: Bronze | G117: 티폰 호크 조 | H117: 172 | I117: 216 | J117: 1123 | K117: 0 | L117: 2014-04-14 | M117: 2 hours | N117: 2014-06-25T15:08:29 | O117: 3640762-1 | P117: 0 | Q117: 1 | S117: 0
A118: 2572838 | B118: kr | C118: 1 | D118: BlueTa | E118: z | F118: Bronze | G118: 아이어 그라비티 조 | H118: 117 | I118: 131 | J118: 1122 | K118: 0 | L118: 2014-04-14 | M118: 3 minutes | N118: 2014-06-25T15:08:29 | O118: 2572838-1 | P118: 0 | Q118: 1 | S118: 0
A119: 1187328 | B119: kr | C119: 2 | D119: 殲滅飄飄 | E119: t | F119: Bronze | G119: 의료선 피 조 | H119: 38 | I119: 59 | J119: 1120 | K119: 4 | L119: 2014-05-04 | M119: 3 days | N119: 2014-06-25T15:08:32 | O119: 1187328-2 | P119: 0 | Q119: 1 | S119: 0
A120: 559183 | B120: kr | C120: 1 | D120: 불타는깡다구 | E120: t | F120: Bronze | G120: 아우구스트그라드 시그마 조 | H120: 132 | I120: 154 | J120: 1120 | K120: 0 | L120: 2014-04-14 | M120: 29 minutes | N120: 2014-06-25T15:08:30 | O120: 559183-1 | P120: 0 | Q120: 1 | S120: 0
A121: 941414 | B121: kr | C121: 2 | D121: Pulong | E121: p | F121: Bronze | G121: 감염충 폭스트롯 조 | H121: 91 | I121: 91 | J121: 1120 | K121: 68 | L121: 2014-04-18 | M121: 4 hours | N121: 2014-06-25T15:08:31 | O121: 941414-2 | P121: 0 | Q121: 1 | S121: 0
A122: 1900117 | B122: kr | C122: 1 | D122: GolfOrSecond | E122: p | F122: Bronze | G122: 왕복선 브라보 조 | H122: 41 | I122: 61 | J122: 1119 | K122: 0 | L122: 2014-05-12 | M122: 1 days | N122: 2014-06-25T15:08:32 | O122: 1900117-1 | P122: 0 | Q122: 1 | S122: 0
A123: 2498777 | B123: kr | C123: 1 | D123: IIIIIIIIII | E123: t | F123: Bronze | G123: 폴레 제드 조 | H123: 90 | I123: 89 | J123: 1119 | K123: 62 | L123: 2014-05-29 | M123: 7 days | N123: 2014-06-25T15:08:33 | O123: 2498777-1 | P123: 0 | Q123: 1 | S123: 0
A124: 4626660 | B124: kr | C124: 1 | D124: 찍어라 | E124: p | F124: Bronze | G124: 파멸충 제타 조 | H124: 50 | I124: 54 | J124: 1119 | K124: 0 | L124: 2014-06-18 | M124: 1 minutes | N124: 2014-06-25T15:08:34 | O124: 4626660-1 | P124: 0 | Q124: 1 | S124: 0
A125: 3441733 | B125: kr | C125: 1 | D125: 최말순 | E125: t | F125: Bronze | G125: 의료선 피 조 | H125: 95 | I125: 127 | J125: 1118 | K125: 0 | L125: 2014-04-17 | M125: 2 hours | N125: 2014-06-25T15:08:35 | O125: 3441733-1 | P125: 0 | Q125: 1 | S125: 0
A126: 4540108 | B126: kr | C126: 1 | D126: valve | E126: p | F126: Bronze | G126: 여왕 엉클 조 | H126: 63 | I126: 50 | J126: 1118 | K126: 97 | L126: 2014-06-04 | M126: 4 days | N126: 2014-06-25T15:08:36 | O126: 4540108-1 | P126: 0 | Q126: 1 | S126: 0
A127: 818638 | B127: kr | C127: 1 | D127: 한호리 | E127: t | F127: Bronze | G127: 토시 알파 조 | H127: 111 | I127: 135 | J127: 1118 | K127: 0 | L127: 2014-04-13 | M127: 1 days | N127: 2014-06-25T15:08:34 | O127: 818638-1 | P127: 0 | Q127: 1 | S127: 0
A128: 4581909 | B128: kr | C128: 1 | D128: 마스터군단 | E128: z | F128: Bronze | G128: 제라나 페퍼 조 | H128: 70 | I128: 74 | J128: 1117 | K128: 0 | L128: 2014-04-14 | M128: 1 hours | N128: 2014-06-25T15:08:36 | O128: 4581909-1 | P128: 0 | Q128: 1 | S128: 0
A129: 1264825 | B129: kr | C129: 1 | D129: Bluepain | E129: z | F129: Bronze | G129: 여왕 노벰버 조 | H129: 170 | I129: 195 | J129: 1116 | K129: 0 | L129: 2014-05-21 | M129: 21 hours | N129: 2014-06-25T15:08:38 | O129: 1264825-1 | P129: 0 | Q129: 1 | S129: 0
A130: 398604 | B130: kr | C130: 1 | D130: wtlohscvehsc | E130: z | F130: Bronze | G130: 티폰 호크 조 | H130: 126 | I130: 150 | J130: 1116 | K130: 0 | L130: 2014-04-14 | M130: 43 minutes | N130: 2014-06-25T15:08:37 | O130: =A130&"-"&C130 -> 398604-1 | P130: 0 | Q130: 1 | S130: 0
A131: 4411976 | B131: kr | C131: 1 | D131: jeff | E131: z | F131: Bronze | G131: 용기병 카이 조 | H131: 117 | I131: 126 | J131: 1116 | K131: 0 | L131: 2014-04-14 | M131: 2 days | N131: 2014-06-25T15:08:38 | O131: 4411976-1 | P131: 0 | Q131: 1 | S131: =IF(Q131>=10,SUM(I131+H131),0) -> 0
A132: 3352798 | B132: kr | C132: 1 | D132: 캡틴썬희 | E132: p | F132: Bronze | G132: 히페리온 위스키 조 | H132: 119 | I132: 128 | J132: 1115 | K132: 0 | L132: 2014-04-16 | M132: 6 hours | N132: 2014-06-25T15:08:40 | O132: 3352798-1 | P132: 0 | Q132: 1 | S132: 0
A133: 823600 | B133: kr | C133: 1 | D133: 대장 | E133: p | F133: Bronze | G133: 제라나 페퍼 조 | H133: 40 | I133: 43 | J133: 1115 | K133: 105 | L133: 2014-04-14 | M133: 2 days | N133: 2014-06-25T15:08:39 | O133: 823600-1 | P133: 0 | Q133: 2 | S133: 0
A134: 4632935 | B134: kr | C134: 1 | D134: sweetsquash | E134: t | F134: Bronze | G134: 아메리고 킬로 조 | H134: 41 | I134: 58 | J134: 1113 | K134: 6 | L134: 2014-06-03 | M134: 3 days | N134: 2014-06-25T15:08:40 | O134: 4632935-1 | P134: 0 | Q134: 1 | S134: 0
A135: 1615274 | B135: kr | C135: 1 | D135: 블랙호이트 | E135: t | F135: Bronze | G135: 차 양키 조 | H135: 112 | I135: 120 | J135: 1110 | K135: 1017 | L135: 2014-04-14 | M135: 9 minutes | N135: 2014-06-25T15:08:41 | O135: 1615274-1 | P135: 0 | Q135: 10 | S135: 232
A136: 318597 | B136: kr | C136: 1 | D136: 이춘경 | E136: p | F136: Bronze | G136: 여왕 마즈 조 | H136: 59 | I136: 67 | J136: 1109 | K136: 81 | L136: 2014-04-17 | M136: 3 days | N136: 2014-06-25T15:08:42 | O136: 318597-1 | P136: 0 | Q136: 1 | S136: 0
A137: 3861979 | B137: kr | C137: 1 | D137: 황태자 | E137: r | F137: Bronze | G137: 가시지옥 크시 조 | H137: 102 | I137: 126 | J137: 1109 | K137: 0 | L137: 2014-04-14 | M137: 2 days | N137: 2014-06-25T15:08:43 | O137: 3861979-1 | P137: 0 | Q137: 1 | S137: 0
A138: 4529388 | B138: kr | C138: 1 | D138: 고스티브잡스 | E138: r | F138: Bronze | G138: 제라나 페퍼 조 | H138: 481 | I138: 520 | J138: 1108 | K138: 59 | L138: 2014-05-25 | M138: 6 days | N138: 2014-06-25T15:08:44 | O138: 4529388-1 | P138: 0 | Q138: 1 | S138: 0
A139: 221487 | B139: kr | C139: 1 | D139: 천그루 | E139: t | F139: Bronze | G139: 아메리고 리마 조 | H139: 101 | I139: 137 | J139: 1107 | K139: 0 | L139: 2014-04-19 | M139: 2 days | N139: 2014-06-25T15:08:45 | O139: 221487-1 | P139: 0 | Q139: 1 | S139: 0
A140: 4624857 | B140: kr | C140: 1 | D140: Angry | E140: z | F140: Bronze | G140: 바퀴 탱고 조 | H140: 46 | I140: 61 | J140: 1105 | K140: 0 | L140: 2014-06-05 | M140: 22 hours | N140: 2014-06-25T15:08:45 | O140: 4624857-1 | P140: 0 | Q140: 1 | S140: 0
A141: 2347923 | B141: kr | C141: 1 | D141: 일수일멸 | E141: t | F141: Bronze | G141: 감염충 탱고 조 | H141: 104 | I141: 116 | J141: 1104 | K141: 0 | L141: 2014-04-14 | M141: 3 hours | N141: 2014-06-25T15:08:46 | O141: 2347923-1 | P141: 0 | Q141: 1 | S141: 0
A142: 4010129 | B142: kr | C142: 1 | D142: 난난난 | E142: p | F142: Bronze | G142: 사르가스 엑스레이 조 | H142: 160 | I142: 177 | J142: 1104 | K142: 0 | L142: 2014-04-14 | M142: 22 hours | N142: 2014-06-25T15:08:46 | O142: 4010129-1 | P142: 0 | Q142: 1 | S142: 0
A143: 4187866 | B143: kr | C143: 1 | D143: 머털도사 | E143: z | F143: Bronze | G143: 토르 브라보 조 | H143: 42 | I143: 55 | J143: 1104 | K143: 44 | L143: 2014-04-14 | M143: 2 days | N143: 2014-06-25T15:08:47 | O143: 4187866-1 | P143: 0 | Q143: 1 | S143: 0
A144: 1536018 | B144: kr | C144: 1 | D144: 노트 | E144: p | F144: Bronze | G144: 사신 오메가 조 | H144: 77 | I144: 86 | J144: 1102 | K144: 0 | L144: 2014-04-14 | M144: 2 days | N144: 2014-06-25T15:08:48 | O144: 1536018-1 | P144: 0 | Q144: 1 | S144: 0
A145: 1200578 | B145: kr | C145: 2 | D145: adai | E145: z | F145: Bronze | G145: 폴레 제드 조 | H145: 123 | I145: 149 | J145: 1101 | K145: 0 | L145: 2014-04-15 | M145: 13 hours | N145: 2014-06-25T15:08:49 | O145: 1200578-2 | P145: 0 | Q145: 1 | S145: 0
A146: 135468 | B146: kr | C146: 2 | D146: YUBONCHEN | E146: p | F146: Bronze | G146: 노바 제타 조 | H146: 62 | I146: 79 | J146: 1101 | K146: 0 | L146: 2014-04-14 | M146: 2 days | N146: 2014-06-25T15:08:49 | O146: 135468-2 | P146: 0 | Q146: 1 | S146: 0
A147: 3996666 | B147: kr | C147: 1 | D147: 닉노이 | E147: t | F147: Bronze | G147: 브론테스 엉클 조 | H147: 55 | I147: 59 | J147: 1101 | K147: 1 | L147: 2014-04-15 | M147: 2 days | N147: 2014-06-25T15:08:50 | O147: 3996666-1 | P147: 0 | Q147: 1 | S147: 0
A148: 3972048 | B148: kr | C148: 1 | D148: soonhyo | E148: t | F148: Bronze | G148: 아킬래 줄리엣 조 | H148: 45 | I148: 49 | J148: 1100 | K148: 38 | L148: 2014-04-18 | M148: 2 hours | N148: 2014-06-25T15:08:52 | O148: 3972048-1 | P148: 0 | Q148: 1 | S148: 0
A149: 4402525 | B149: kr | C149: 1 | D149: RogueTurtle | E149: t | F149: Bronze | G149: 브론테스 엉클 조 | H149: 45 | I149: 53 | J149: 1100 | K149: 0 | L149: 2014-06-12 | M149: 17 hours | N149: 2014-06-25T15:08:52 | O149: 4402525-1 | P149: 0 | Q149: 1 | S149: 0
A150: 570276 | B150: kr | C150: 1 | D150: marin | E150: p | F150: Bronze | G150: 히페리온 위스키 조 | H150: 39 | I150: 60 | J150: 1100 | K150: 0 | L150: 2014-05-20 | M150: 19 hours | N150: 2014-06-25T15:08:51 | O150: 570276-1 | P150: 0 | Q150: 1 | S150: 0
A151: 2489900 | B151: kr | C151: 1 | D151: 마일드세븐 | E151: p | F151: Bronze | G151: 차원 분광기 베타 조 | H151: 41 | I151: 57 | J151: 1099 | K151: 16 | L151: 2014-04-19 | M151: 4 days | N151: 2014-06-25T15:08:53 | O151: 2489900-1 | P151: 0 | Q151: 1 | S151: 0
A152: 4029635 | B152: kr | C152: 1 | D152: 미니맥스 | E152: p | F152: Bronze | G152: 바퀴 탱고 조 | H152: 86 | I152: 93 | J152: 1097 | K152: 0 | L152: 2014-05-05 | M152: 1 days | N152: 2014-06-25T15:08:54 | O152: 4029635-1 | P152: 0 | Q152: 1 | S152: 0
A153: 4086774 | B153: kr | C153: 1 | D153: 끼낌이 | E153: z | F153: Bronze | G153: 여왕 마즈 조 | H153: 40 | I153: 47 | J153: 1096 | K153: 80 | L153: 2014-04-20 | M153: 1 days | N153: 2014-06-25T15:08:55 | O153: 4086774-1 | P153: 0 | Q153: 1 | S153: 0
A154: 943884 | B154: kr | C154: 2 | D154: 蕃茄 | E154: z | F154: Bronze | G154: 사신 오메가 조 | H154: 78 | I154: 112 | J154: 1095 | K154: 29 | L154: 2014-04-14 | M154: 4 days | N154: 2014-06-25T15:08:56 | O154: 943884-2 | P154: 0 | Q154: 1 | S154: 0
A155: 4323542 | B155: kr | C155: 1 | D155: towns | E155: p | F155: Bronze | G155: 감염충 탱고 조 | H155: 75 | I155: 125 | J155: 1094 | K155: 2 | L155: 2014-04-14 | M155: 3 days | N155: 2014-06-25T15:08:56 | O155: 4323542-1 | P155: 0 | Q155: 1 | S155: 0
A156: 3894158 | B156: kr | C156: 1 | D156: 나성원 | E156: p | F156: Bronze | G156: 브론테스 엉클 조 | H156: 63 | I156: 120 | J156: 1093 | K156: 0 | L156: 2014-06-06 | M156: 5 hours | N156: 2014-06-25T15:08:57 | O156: 3894158-1 | P156: 0 | Q156: 1 | S156: 0
A157: 943979 | B157: kr | C157: 1 | D157: 라디오스타 | E157: p | F157: Bronze | G157: 아킬래 줄리엣 조 | H157: 83 | I157: 94 | J157: 1093 | K157: 24 | L157: 2014-04-18 | M157: 4 days | N157: 2014-06-25T15:08:57 | O157: 943979-1 | P157: 0 | Q157: 1 | S157: 0
A158: 755913 | B158: kr | C158: 2 | D158: abcsu | E158: t | F158: Bronze | G158: 아킬래 줄리엣 조 | H158: 60 | I158: 85 | J158: 1090 | K158: 11 | L158: 2014-04-18 | M158: 3 days | N158: 2014-06-25T15:08:58 | O158: 755913-2 | P158: 0 | Q158: 1 | S158: 0
A159: 197877 | B159: kr | C159: 1 | D159: 호미베베 | E159: p | F159: Bronze | G159: 파멸충 딕시 조 | H159: 40 | I159: 40 | J159: 1089 | K159: 154 | L159: 2014-04-14 | M159: 1 days | N159: 2014-06-25T15:08:59 | O159: 197877-1 | P159: 0 | Q159: 2 | S159: 0
A160: 1055014 | B160: kr | C160: 2 | D160: Woo | E160: t | F160: Bronze | G160: 모리아 에타 조 | H160: 43 | I160: 38 | J160: 1088 | K160: 105 | L160: 2014-04-15 | M160: 2 days | N160: 2014-06-25T15:09:00 | O160: 1055014-2 | P160: 0 | Q160: 2 | S160: 0
A161: 2310266 | B161: kr | C161: 1 | D161: 무서운꼬마 | E161: t | F161: Bronze | G161: 알자다르 페퍼 조 | H161: 36 | I161: 53 | J161: 1088 | K161: 79 | L161: 2014-06-21 | M161: 23 hours | N161: 2014-06-25T15:09:01 | O161: 2310266-1 | P161: 0 | Q161: 1 | S161: 0
A162: 3087526 | B162: kr | C162: 1 | D162: Michael | E162: t | F162: Bronze | G162: 아메리고 킬로 조 | H162: 125 | I162: 133 | J162: 1088 | K162: 2 | L162: 2014-04-15 | M162: 3 days | N162: 2014-06-25T15:09:02 | O162: 3087526-1 | P162: 0 | Q162: 1 | S162: 0
A163: 3613511 | B163: kr | C163: 1 | D163: SlayerSBoXeR | E163: r | F163: Bronze | G163: UED 요타 조 | H163: 49 | I163: 73 | J163: 1088 | K163: 49 | L163: 2014-05-21 | M163: 4 days | N163: 2014-06-25T15:09:03 | O163: 3613511-1 | P163: 0 | Q163: 1 | S163: 0
A164: 919239 | B164: kr | C164: 2 | D164: CHA | E164: p | F164: Bronze | G164: 가시지옥 크시 조 | H164: 151 | I164: 166 | J164: 1088 | K164: 48 | L164: 2014-04-14 | M164: 5 days | N164: 2014-06-25T15:08:59 | O164: 919239-2 | P164: 0 | Q164: 1 | S164: 0
A165: 1627893 | B165: kr | C165: 1 | D165: 태극알파 | E165: t | F165: Bronze | G165: 아메리고 킬로 조 | H165: 40 | I165: 51 | J165: 1087 | K165: 3 | L165: 2014-04-19 | M165: 3 days | N165: 2014-06-25T15:09:03 | O165: 1627893-1 | P165: 0 | Q165: 1 | S165: 0
A166: 4091642 | B166: kr | C166: 1 | D166: 초럭 | E166: p | F166: Bronze | G166: 티폰 프사이 조 | H166: 107 | I166: 145 | J166: 1087 | K166: 15 | L166: 2014-04-18 | M166: 3 days | N166: 2014-06-25T15:09:04 | O166: 4091642-1 | P166: 0 | Q166: 1 | S166: 0
A167: 4617549 | B167: kr | C167: 1 | D167: beomline | E167: z | F167: Bronze | G167: 아이어 그라비티 조 | H167: 44 | I167: 44 | J167: 1086 | K167: 146 | L167: 2014-05-24 | M167: 4 days | N167: 2014-06-25T15:09:05 | O167: 4617549-1 | P167: 0 | Q167: 2 | S167: 0
A168: 4651511 | B168: kr | C168: 1 | D168: yXz | E168: r | F168: Bronze | G168: UED 요타 조 | H168: 73 | I168: 91 | J168: 1085 | K168: 0 | L168: 2014-06-20 | M168: 2 days | N168: 2014-06-25T15:09:05 | O168: 4651511-1 | P168: 0 | Q168: 1 | S168: 0
A169: 1105197 | B169: kr | C169: 2 | D169: CHICHENG | E169: t | F169: Bronze | G169: 스투코프 파이 조 | H169: 84 | I169: 110 | J169: 1084 | K169: 0 | L169: 2014-04-16 | M169: 3 days | N169: 2014-06-25T15:09:06 | O169: 1105197-2 | P169: 0 | Q169: 1 | S169: 0
A170: 1039041 | B170: kr | C170: 1 | D170: Troubadour | E170: t | F170: Bronze | G170: 무리 군주 양키 조 | H170: 47 | I170: 73 | J170: 1082 | K170: 21 | L170: 2014-04-14 | M170: 9 hours | N170: 2014-06-25T15:09:07 | O170: 1039041-1 | P170: 0 | Q170: 1 | S170: 0
A171: 4027211 | B171: kr | C171: 1 | D171: 간지동생단지 | E171: p | F171: Bronze | G171: 세이렌고 오스카 조 | H171: 41 | I171: 46 | J171: 1082 | K171: 14 | L171: 2014-05-13 | M171: 2 hours | N171: 2014-06-25T15:09:08 | O171: 4027211-1 | P171: 0 | Q171: 1 | S171: 0
A172: 950577 | B172: kr | C172: 1 | D172: 가람 | E172: t | F172: Bronze | G172: 무리 군주 인디고 조 | H172: 37 | I172: 59 | J172: 1082 | K172: 15 | L172: 2014-04-18 | M172: 3 hours | N172: 2014-06-25T15:09:07 | O172: 950577-1 | P172: 0 | Q172: 1 | S172: 0
A173: 3423200 | B173: kr | C173: 1 | D173: winwooin | E173: p | F173: Bronze | G173: 밴시 알파 조 | H173: 130 | I173: 136 | J173: 1081 | K173: 0 | L173: 2014-05-03 | M173: 1 days | N173: 2014-06-25T15:09:09 | O173: 3423200-1 | P173: 0 | Q173: 1 | S173: 0
A174: 544512 | B174: kr | C174: 1 | D174: yckiller | E174: t | F174: Bronze | G174: 히페리온 페퍼 조 | H174: 148 | I174: 192 | J174: 1080 | K174: 0 | L174: 2014-04-20 | M174: 21 hours | N174: 2014-06-25T15:09:09 | O174: 544512-1 | P174: 0 | Q174: 1 | S174: 0
A175: 2068161 | B175: kr | C175: 1 | D175: fluxusnamu | E175: z | F175: Bronze | G175: 토시 알파 조 | H175: 118 | I175: 153 | J175: 1078 | K175: 0 | L175: 2014-04-13 | M175: 2 days | N175: 2014-06-25T15:09:10 | O175: 2068161-1 | P175: 0 | Q175: 1 | S175: 0
A176: 904370 | B176: kr | C176: 2 | D176: 王小虎 | E176: t | F176: Bronze | G176: 의료선 피 조 | H176: 107 | I176: 139 | J176: 1075 | K176: 0 | L176: 2014-04-17 | M176: 2 days | N176: 2014-06-25T15:09:11 | O176: 904370-2 | P176: 0 | Q176: 1 | S176: 0
A177: 226376 | B177: kr | C177: 2 | D177: saweaz | E177: z | F177: Bronze | G177: 파멸충 엡실론 조 | H177: 49 | I177: 57 | J177: 1074 | K177: 80 | L177: 2014-04-17 | M177: 3 days | N177: 2014-06-25T15:09:11 | O177: 226376-2 | P177: 0 | Q177: 1 | S177: 0
A178: 1297270 | B178: kr | C178: 2 | D178: Armored | E178: t | F178: Bronze | G178: 아이어 그라비티 조 | H178: 121 | I178: 154 | J178: 1072 | K178: 0 | L178: 2014-04-14 | M178: 23 hours | N178: 2014-06-25T15:09:13 | O178: 1297270-2 | P178: 0 | Q178: 1 | S178: 0
A179: 664469 | B179: kr | C179: 2 | D179: 我是我错误 | E179: r | F179: Bronze | G179: 감시군주 시에라 조 | H179: 48 | I179: 75 | J179: 1072 | K179: 0 | L179: 2014-04-13 | M179: 16 hours | N179: 2014-06-25T15:09:12 | O179: 664469-2 | P179: 0 | Q179: 1 | S179: 0
A180: 1172655 | B180: kr | C180: 2 | D180: 禁區 | E180: p | F180: Bronze | G180: 밴시 로미오 조 | H180: 62 | I180: 94 | J180: 1071 | K180: 0 | L180: 2014-05-04 | M180: 19 hours | N180: 2014-06-25T15:09:14 | O180: 1172655-2 | P180: 0 | Q180: 1 | S180: 0
A181: 2987884 | B181: kr | C181: 1 | D181: LullabyforEO | E181: t | F181: Bronze | G181: 뉴 폴섬 알라모 조 | H181: 76 | I181: 87 | J181: 1071 | K181: 17 | L181: 2014-05-13 | M181: 2 days | N181: 2014-06-25T15:09:15 | O181: 2987884-1 | P181: 0 | Q181: 1 | S181: 0
A182: 942306 | B182: kr | C182: 2 | D182: 星殞 | E182: z | F182: Bronze | G182: UED 요타 조 | H182: 58 | I182: 73 | J182: 1071 | K182: 78 | L182: 2014-05-02 | M182: 4 days | N182: 2014-06-25T15:09:13 | O182: 942306-2 | P182: 0 | Q182: 1 | S182: 0
A183: 1329519 | B183: kr | C183: 1 | D183: Painstaking | E183: r | F183: Bronze | G183: 밤까마귀 위스키 조 | H183: 55 | I183: 82 | J183: 1070 | K183: 6 | L183: 2014-05-14 | M183: 3 days | N183: 2014-06-25T15:09:17 | O183: 1329519-1 | P183: 0 | Q183: 1 | S183: 0
A184: 115725 | B184: kr | C184: 2 | D184: 紅花油 | E184: p | F184: Bronze | G184: 악령 오미크론 조 | H184: 112 | I184: 167 | J184: 1069 | K184: 0 | L184: 2014-04-18 | M184: 2 days | N184: 2014-06-25T15:09:18 | O184: 115725-2 | P184: 0 | Q184: 1 | S184: 0
A185: 280438 | B185: kr | C185: 1 | D185: 아이리터 | E185: p | F185: Bronze | G185: 집정관 람다 조 | H185: 47 | I185: 62 | J185: 1067 | K185: 72 | L185: 2014-04-16 | M185: 1 days | N185: 2014-06-25T15:09:19 | O185: 280438-1 | P185: 0 | Q185: 1 | S185: 0
A186: 4310045 | B186: kr | C186: 1 | D186: 춘돌이 | E186: p | F186: Bronze | G186: 무리 군주 양키 조 | H186: 103 | I186: 135 | J186: 1065 | K186: 0 | L186: 2014-05-01 | M186: 21 hours | N186: 2014-06-25T15:09:19 | O186: 4310045-1 | P186: 0 | Q186: 1 | S186: 0
A187: 2184149 | B187: kr | C187: 1 | D187: 진주떵땅뚜 | E187: t | F187: Bronze | G187: 갈귀 로미오 조 | H187: 35 | I187: 48 | J187: 1064 | K187: 119 | L187: 2014-04-15 | M187: 1 days | N187: 2014-06-25T15:09:20 | O187: 2184149-1 | P187: 0 | Q187: 2 | S187: 0
A188: 2771051 | B188: kr | C188: 1 | D188: 제작은안해 | E188: z | F188: Bronze | G188: 아르타니스 에코 조 | H188: 45 | I188: 43 | J188: 1064 | K188: 77 | L188: 2014-06-20 | M188: 3 hours | N188: 2014-06-25T15:09:21 | O188: 2771051-1 | P188: 0 | Q188: 1 | S188: 0
A189: 4177896 | B189: kr | C189: 1 | D189: Hard | E189: t | F189: Bronze | G189: 아우구스트그라드 시그마 조 | H189: 58 | I189: 128 | J189: 1062 | K189: 16 | L189: 2014-04-14 | M189: 4 days | N189: 2014-06-25T15:09:21 | O189: 4177896-1 | P189: 0 | Q189: 1 | S189: 0
A190: 1255664 | B190: kr | C190: 2 | D190: 大炮 | E190: p | F190: Bronze | G190: 호너 줄리엣 조 | H190: 78 | I190: 125 | J190: 1061 | K190: 0 | L190: 2014-05-01 | M190: 22 hours | N190: 2014-06-25T15:09:22 | O190: 1255664-2 | P190: 0 | Q190: 1 | S190: 0
A191: 1048680 | B191: kr | C191: 1 | D191: terriana | E191: p | F191: Bronze | G191: 부세팔루스 델타 조 | H191: 37 | I191: 76 | J191: 1060 | K191: 71 | L191: 2014-05-05 | M191: 5 days | N191: 2014-06-25T15:09:23 | O191: 1048680-1 | P191: 0 | Q191: 1 | S191: 0
A192: 4530881 | B192: kr | C192: 1 | D192: Terramine | E192: t | F192: Bronze | G192: 레나사 노벰버 조 | H192: 36 | I192: 58 | J192: 1058 | K192: 65 | L192: 2014-05-01 | M192: 4 days | N192: 2014-06-25T15:09:23 | O192: 4530881-1 | P192: 0 | Q192: 1 | S192: 0
A193: 3945061 | B193: kr | C193: 1 | D193: tosin | E193: z | F193: Bronze | G193: 파멸충 제타 조 | H193: 65 | I193: 84 | J193: 1057 | K193: 105 | L193: 2014-04-24 | M193: 2 days | N193: 2014-06-25T15:09:24 | O193: 3945061-1 | P193: 0 | Q193: 2 | S193: 0
A194: 2665857 | B194: kr | C194: 1 | D194: 서현점알바생 | E194: p | F194: Bronze | G194: 아우구스트그라드 세타 조 | H194: 85 | I194: 101 | J194: 1056 | K194: 106 | L194: 2014-04-19 | M194: 1 days | N194: 2014-06-25T15:09:25 | O194: =A194&"-"&C194 -> 2665857-1 | P194: 0 | Q194: 2 | S194: 0
A195: 823527 | B195: kr | C195: 2 | D195: AOSHIMA | E195: r | F195: Bronze | G195: 알렉산더 그라비티 조 | H195: 38 | I195: 44 | J195: 1056 | K195: 48 | L195: 2014-06-15 | M195: 1 days | N195: 2014-06-25T15:09:25 | O195: 823527-2 | P195: 0 | Q195: 1 | S195: =IF(Q195>=10,SUM(I195+H195),0) -> 0
A196: 4539374 | B196: kr | C196: 1 | D196: skyterran | E196: t | F196: Bronze | G196: 히페리온 페퍼 조 | H196: 46 | I196: 63 | J196: 1053 | K196: 5 | L196: 2014-04-26 | M196: 3 days | N196: 2014-06-25T15:09:26 | O196: 4539374-1 | P196: 0 | Q196: 1 | S196: 0
A197: 4594332 | B197: kr | C197: 1 | D197: 히틀러 | E197: p | F197: Bronze | G197: 감염충 폭스트롯 조 | H197: 45 | I197: 69 | J197: 1052 | K197: 0 | L197: 2014-06-04 | M197: 1 hours | N197: 2014-06-25T15:09:27 | O197: 4594332-1 | P197: 0 | Q197: 1 | S197: 0
A198: 3675611 | B198: kr | C198: 1 | D198: Wehae | E198: p | F198: Bronze | G198: 아우구스트그라드 세타 조 | H198: 39 | I198: 41 | J198: 1050 | K198: 163 | L198: 2014-06-19 | M198: 45 minutes | N198: 2014-06-25T15:09:28 | O198: 3675611-1 | P198: 0 | Q198: 2 | S198: 0
A199: 4616806 | B199: kr | C199: 1 | D199: Starshah | E199: z | F199: Bronze | G199: 시체매 세타 조 | H199: 71 | I199: 80 | J199: 1049 | K199: 152 | L199: 2014-05-02 | M199: 11 days | N199: 2014-06-25T15:09:29 | O199: 4616806-1 | P199: 0 | Q199: 2 | S199: 0
A200: 384292 | B200: kr | C200: 1 | D200: 뿌악 | E200: z | F200: Bronze | G200: 노바 제타 조 | H200: 38 | I200: 48 | J200: 1048 | K200: 60 | L200: 2014-04-25 | M200: 5 days | N200: 2014-06-25T15:09:29 | O200: 384292-1 | P200: 0 | Q200: 1 | S200: 0
... 4300 more rows

Sheet Analysis - Team
A1: 2v2 - Most Recent Games
B2: Bronze | D2: Silver | F2: Gold | H2: Platinum | J2: Diamond | L2: Master | N2: Totals | P2: Total Team Count
A3: Category | B3: Last Week | C3: Last Month | D3: Last Week | E3: Last Month | F3: Last Week | G3: Last Month | H3: Last Week | I3: Last Month | J3: Last Week | K3: Last Month | L3: Last Week | M3: Last Month | N3: Last Week | O3: Last Month
A4: Totals | B4: 817 | C4: 1550 | D4: 935 | E4: 1390 | F4: 877 | G4: 1090 | H4: 368 | I4: 343 | J4: 89 | K4: 106 | L4: 35 | M4: 22 | N4: 3121 | O4: 4501
A5: At least 1 game within the last month | B5: 2367 | D5: 2325 | F5: 1967 | H5: 711 | J5: 195 | L5: 57 | N5: 7622
B6: Avg Wins | C6: Avg Losses | D6: Avg Wins | E6: Avg Losses | F6: Avg Wins | G6: Avg Losses | H6: Avg Wins | I6: Avg Losses | J6: Avg Wins | K6: Avg Losses | L6: Avg Wins | M6: Avg Losses | N6: Avg Wins | O6: Avg Losses
A7: Games Count | B7: 4.086611045 | C7: 5.094954311 | D7: 8.320688649 | E7: 7.419317187 | F7: 15.50919493 | G7: 12.47527585 | H7: 24.22222222 | I7: 17.69706499 | J7: 28.38576779 | K7: 18.86142322 | L7: 51.41791045 | M7: 20.67164179 | N7: 9.935224664 | O7: 8.601590685
A8: Avg Score | B8: 95.11223679 | D8: 170.5698862 | F8: 270.9681242 | H8: 338.1572327 | J8: 366.3632959 | L8: 493.9253731 | N8: 178.7398327
A9: Total Team Count | B9: 5034 | D9: 3427 | F9: 2447 | H9: 954 | J9: 267 | L9: 67 | N9: 12196
A13: 3v3 - Most Recent Games
B14: Bronze | D14: Silver | F14: Gold | H14: Platinum | J14: Diamond | L14: Master | N14: Totals | P14: Total Team Count
A15: Category | B15: Last Week | C15: Last Month | D15: Last Week | E15: Last Month | F15: Last Week | G15: Last Month | H15: Last Week | I15: Last Month | J15: Last Week | K15: Last Month | L15: Last Week | M15: Last Month | N15: Last Week | O15: Last Month
A16: Totals | B16: 244 | C16: 493 | D16: 397 | E16: 703 | F16: 366 | G16: 537 | H16: 117 | I16: 178 | J16: 28 | K16: 35 | L16: 10 | M16: 8 | N16: 1162 | O16: 1954
A17: At least 1 game within the last month | B17: 737 | D17: 1100 | F17: 903 | H17: 295 | J17: 63 | L17: 18 | N17: 3116
B18: Avg Wins | C18: Avg Losses | D18: Avg Wins | E18: Avg Losses | F18: Avg Wins | G18: Avg Losses | H18: Avg Wins | I18: Avg Losses | J18: Avg Wins | K18: Avg Losses | L18: Avg Wins | M18: Avg Losses | N18: Avg Wins | O18: Avg Losses
A19: Games Count | B19: 3.598246519 | C19: 4.059824652 | D19: 6.406105991 | E19: 5.300691244 | F19: 11.88672566 | G19: 8.269026549 | H19: 12.8 | I19: 6.802040816 | J19: 21.26190476 | K19: 8.833333333 | L19: 48.76190476 | M19: 15.33333333 | N19: 8.158703704 | O19: 5.962962963
A20: Avg Score | B20: 73.05879319 | D20: 107.3312212 | F20: 162.0256637 | H20: 134.8755102 | J20: 225.5119048 | L20: 297.8571429 | N20: 117.6772222
A21: Total Team Count | B21: 1939 | D21: 1736 | F21: 1130 | H21: 490 | J21: 84 | L21: 21 | N21: 5400
A25: 4v4 - Most Recent Games
B26: Bronze | D26: Silver | F26: Gold | H26: Platinum | J26: Diamond | L26: Master | N26: Totals | P26: Total Team Count
A27: Category | B27: Last Week | C27: Last Month | D27: Last Week | E27: Last Month | F27: Last Week | G27: Last Month | H27: Last Week | I27: Last Month | J27: Last Week | K27: Last Month | L27: Last Week | M27: Last Month | N27: Last Week | O27: Last Month
A28: Totals | B28: 61 | C28: 170 | D28: 120 | E28: 258 | F28: 56 | G28: 103 | H28: 23 | I28: 63 | J28: 6 | K28: 6 | N28: 266 | O28: 600
A29: At least 1 game within the last month | B29: 231 | D29: 378 | F29: 159 | H29: 86 | J29: 12 | N29: 866
B30: Avg Wins | C30: Avg Losses | D30: Avg Wins | E30: Avg Losses | F30: Avg Wins | G30: Avg Losses | H30: Avg Wins | I30: Avg Losses | J30: Avg Wins | K30: Avg Losses | L30: Avg Wins | M30: Avg Losses | N30: Avg Wins | O30: Avg Losses
A31: Games Count | B31: 2.96803653 | C31: 3.238964992 | D31: 4.952542373 | E31: 3.640677966 | F31: 9.715686275 | G31: 5.769607843 | H31: 6.587878788 | I31: 1.424242424 | J31: 13.5 | K31: 3.928571429 | N31: 5.61595092 | O31: 3.720858896
A32: Avg Score | B32: 54.08371385 | D32: 76.13050847 | F32: 142.254902 | H32: 45.12727273 | J32: 128.2857143 | N32: 76.66687117
A33: Total Team Count | B33: 657 | D33: 590 | F33: 204 | H33: 165 | J33: 14 | N33: 1630
A37: 2v2r - Most Recent Games
B38: Bronze | D38: Silver | F38: Gold | H38: Platinum | J38: Diamond | L38: Master | N38: Totals
A39: Category | B39: Last Week | C39: Last Month | D39: Last Week | E39: Last Month | F39: Last Week | G39: Last Month | H39: Last Week | I39: Last Month | J39: Last Week | K39: Last Month | L39: Last Week | M39: Last Month | N39: Last Week | O39: Last Month
A40: Totals | B40: 324 | C40: 624 | D40: 970 | E40: 964 | F40: 801 | G40: 522 | H40: 473 | I40: 288 | J40: 166 | K40: 83 | L40: 89 | M40: 29 | N40: 2823 | O40: 2510
A41: At least 1 game within the last month | B41: 948 | D41: 1934 | F41: 1323 | H41: 761 | J41: 249 | L41: 118 | N41: 5333
B42: Avg Wins | C42: Avg Losses | D42: Avg Wins | E42: Avg Losses | F42: Avg Wins | G42: Avg Losses | H42: Avg Wins | I42: Avg Losses | J42: Avg Wins | K42: Avg Losses | L42: Avg Wins | M42: Avg Losses | N42: Avg Wins | O42: Avg Losses
A43: Games Count | B43: 3.324458484 | C43: 5.347472924 | D43: 11.13213573 | E43: 12.41756487 | F43: 25.37207833 | G43: 24.90587492 | H43: 41.42628571 | I43: 37.95771429 | J43: 52.37267081 | K43: 47.02795031 | L43: 75.26717557 | M43: 58.95419847 | N43: 18.13273061 | O43: 18.14216457
A44: Avg Score | B44: 71.28023466 | D44: 236.5353293 | F44: 428.3404927 | H44: 559.8137143 | J44: 572.9161491 | L44: 812.5725191 | N44: 289.4790356
A45: Total Player Count | B45: 2216 | D45: 2505 | F45: 1583 | H45: 875 | J45: 322 | L45: 131 | N45: 7632
A49: 3v3r - Most Recent Games
B50: Bronze | D50: Silver | F50: Gold | H50: Platinum | J50: Diamond | L50: Master | N50: Totals
A51: Category | B51: Last Week | C51: Last Month | D51: Last Week | E51: Last Month | F51: Last Week | G51: Last Month | H51: Last Week | I51: Last Month | J51: Last Week | K51: Last Month | L51: Last Week | M51: Last Month | N51: Last Week | O51: Last Month
A52: Totals | B52: 445 | C52: 665 | D52: 1656 | E52: 1400 | F52: 1396 | G52: 773 | H52: 639 | I52: 285 | J52: 236 | K52: 92 | N52: 4372 | O52: 3215
A53: At least 1 game within the last month | B53: 1110 | D53: 3056 | F53: 2169 | H53: 924 | J53: 328 | N53: 7587
B54: Avg Wins | C54: Avg Losses | D54: Avg Wins | E54: Avg Losses | F54: Avg Wins | G54: Avg Losses | H54: Avg Wins | I54: Avg Losses | J54: Avg Wins | K54: Avg Losses | L54: Avg Wins | M54: Avg Losses | N54: Avg Wins | O54: Avg Losses
A55: Games Count | B55: 6.362335217 | C55: 9.856497175 | D55: 15.83090615 | E55: 17.61299892 | F55: 35.47940824 | G55: 36.10595762 | H55: 48.74141221 | I55: 46.86832061 | J55: 59.2253886 | K55: 54.47150259 | N55: 24.09487279 | O55: 25.21324529
A56: Avg Score | B56: 107.3962335 | D56: 293.8225458 | F56: 518.9732107 | H56: 591.3311069 | J56: 631.9792746 | N56: 353.7278112
A57: Total Player Count | B57: 2655 | D57: 3708 | F57: 2501 | H57: 1048 | J57: 386 | N57: 10298
A61: 4v4r - Most Recent Games
B62: Bronze | D62: Silver | F62: Gold | H62: Platinum | J62: Diamond | L62: Master | N62: Totals
A63: Category | B63: Last Week | C63: Last Month | D63: Last Week | E63: Last Month | F63: Last Week | G63: Last Month | H63: Last Week | I63: Last Month | J63: Last Week | K63: Last Month | L63: Last Week | M63: Last Month | N63: Last Week | O63: Last Month
A64: Totals | B64: 246 | C64: 435 | D64: 677 | E64: 687 | F64: 475 | G64: 286 | H64: 95 | I64: 74 | J64: 50 | K64: 38 | L64: 24 | M64: 16 | N64: 1567 | O64: 1536
A65: At least 1 game within the last month | B65: 681 | D65: 1364 | F65: 761 | H65: 169 | J65: 88 | L65: 40 | N65: 3103
B66: Avg Wins | C66: Avg Losses | D66: Avg Wins | E66: Avg Losses | F66: Avg Wins | G66: Avg Losses | H66: Avg Wins | I66: Avg Losses | J66: Avg Wins | K66: Avg Losses | L66: Avg Wins | M66: Avg Losses | N66: Avg Wins | O66: Avg Losses
A67: Games Count | B67: 3.304652645 | C67: 5.768642447 | D67: 13.94500296 | E67: 16.62329982 | F67: 32.21064553 | G67: 34.61268403 | H67: 22.069869 | I67: 20.09606987 | J67: 21.08547009 | K67: 14.1965812 | L67: 30.72881356 | M67: 13.93220339 | N67: 19.65765172 | O67: 21.07189974
A68: Avg Score | B68: 63.75908222 | D68: 273.668835 | F68: 502.5492639 | H68: 330.0436681 | J68: 372.7521368 | L68: 467.4576271 | N68: 307.2293316
A69: Total Player Count | B69: 1569 | D69: 1691 | F69: 883 | H69: 229 | J69: 117 | L69: 59 | N69: 4548
A73: Most Recent Game Played
A74: Percentages of Total | B74: Last Week | C74: Last Month
A75: 2v2 | B75: =N4/N9 -> 0.2559035749 | C75: =N5/N9 -> 0.624959003
A76: 3v3 | B76: =N16/N21 -> 0.2151851852 | C76: =N17/N21 -> 0.577037037
A77: 4v4 | B77: =N28/N33 -> 0.163190184 | C77: =N29/N33 -> 0.5312883436
A78: 2v2 Random | B78: =N40/N45 -> 0.3698899371 | C78: =N41/N45 -> 0.6987683438
A79: 3v3 Random | B79: =N52/N57 -> 0.424548456 | C79: =N53/N57 -> 0.736744999
A80: 4v4 Random | B80: =N64/N69 -> 0.3445470536 | C80: =N65/N69 -> 0.6822779244
A84: Unique Player Counts
A85: Team Type | B85: Counts
A86: 2v2 | B86: =N9 -> 12196
A87: 3v3 | B87: =N21 -> 5400
A88: 4v4 | B88: =N33 -> 1630
A89: 2v2 Random | B89: =N45 -> 7632
A90: 3v3 Random | B90: =N57 -> 10298
A91: 4v4 Random | B91: =N69 -> 4548
A95: League Distributions - Based on Having Played At Least 1 Game Last Month | I95: League Distributions - All Teams
A96: Team Type | B96: Bronze | C96: Silver | D96: Gold | E96: Platinum | F96: Diamond | G96: Master | I96: Team Type | J96: Bronze | K96: Silver | L96: Gold | M96: Platinum | N96: Diamond | O96: Master
A97: 2v2 | B97: =B5/N5 -> 0.3105484125 | C97: =D5/N5 -> 0.3050380478 | D97: =F5/N5 -> 0.2580687484 | E97: =H5/N5 -> 0.09328260299 | F97: =J5/N5 -> 0.02558383626 | G97: =L5/N5 -> 0.007478352139 | I97: 2v2 | J97: =B9/N9 -> 0.4127582814 | K97: =D9/N9 -> 0.2809937684 | L97: =F9/N9 -> 0.200639554 | M97: =H9/N9 -> 0.07822236799 | N97: =J9/N9 -> 0.02189242375 | O97: =L9/N9 -> 0.00549360446
A98: 3v3 | B98: =B17/N17 -> 0.236521181 | C98: =D17/N17 -> 0.3530166881 | D98: =F17/N17 -> 0.2897946085 | E98: =H17/N17 -> 0.09467265725 | F98: =J17/N17 -> 0.0202182285 | G98: =L17/N17 -> 0.005776636714 | I98: 3v3 | J98: =B21/N21 -> 0.3590740741 | K98: =D21/N21 -> 0.3214814815 | L98: =F21/N21 -> 0.2092592593 | M98: =H21/N21 -> 0.09074074074 | N98: =J21/N21 -> 0.01555555556 | O98: =L21/N21 -> 0.003888888889
A99: 4v4 | B99: =B29/N29 -> 0.266743649 | C99: =D29/N29 -> 0.4364896074 | D99: =F29/N29 -> 0.1836027714 | E99: =H29/N29 -> 0.09930715935 | F99: =J29/N29 -> 0.01385681293 | G99: =L29/N29 -> 0 | I99: 4v4 | J99: =B33/N33 -> 0.4030674847 | K99: =D33/N33 -> 0.3619631902 | L99: =F33/N33 -> 0.1251533742 | M99: =H33/N33 -> 0.1012269939 | N99: =J33/N33 -> 0.008588957055 | O99: =L33/N33 -> 0
A100: 2v2 Random | B100: =B41/N41 -> 0.1777611101 | C100: =D41/N41 -> 0.3626476655 | D100: =F41/N41 -> 0.2480780049 | E100: =H41/N41 -> 0.1426964185 | F100: =J41/N41 -> 0.04669041815 | G100: =L41/N41 -> 0.0221263829 | I100: 2v2 Random | J100: =B45/N45 -> 0.2903563941 | K100: =D45/N45 -> 0.3282232704 | L100: =F45/N45 -> 0.2074161426 | M100: =H45/N45 -> 0.114648847 | N100: =J45/N45 -> 0.04219077568 | O100: =L45/N45 -> 0.01716457023
A101: 3v3 Random | B101: =B53/N53 -> 0.1463028865 | C101: =D53/N53 -> 0.4027942533 | D101: =F53/N53 -> 0.2858837485 | E101: =H53/N53 -> 0.1217872677 | F101: =J53/N53 -> 0.04323184394 | G101: =L53/N53 -> 0 | I101: 3v3 Random | J101: =B57/N57 -> 0.2578170519 | K101: =D57/N57 -> 0.3600699165 | L101: =F57/N57 -> 0.2428626918 | M101: =H57/N57 -> 0.1017673335 | N101: =J57/N57 -> 0.03748300641 | O101: =L57/N57 -> 0
A102: 4v4 Random | B102: =B65/N65 -> 0.2194650338 | C102: =D65/N65 -> 0.4395746052 | D102: =F65/N65 -> 0.2452465356 | E102: =H65/N65 -> 0.05446342249 | F102: =J65/N65 -> 0.02835965195 | G102: =L65/N65 -> 0.01289075089 | I102: 4v4 Random | J102: =B69/N69 -> 0.3449868074 | K102: =D69/N69 -> 0.3718117854 | L102: =F69/N69 -> 0.1941512753 | M102: =H69/N69 -> 0.05035180299 | N102: =J69/N69 -> 0.02572559367 | O102: =L69/N69 -> 0.01297273527

Sheet IDs
A1: Player IDs | B1: Team Type | D1: Unique IDs | E1: # of team types | F1: Only in team games (if error) | G1: Unique 1v1 | H1: Only in 1v1 (if error)
A2: 32324 | B2: 4v4r | D2: 32324 | E2: 1 | G2: 498656 | H2: 498656
A3: 32356 | B3: 4v4r | D3: 32356 | E3: 1 | G3: 773496
A4: 32399 | B4: 4v4r | D4: 32399 | E4: 1 | G4: 988145
A5: 32408 | B5: 2v2 Team | D5: 32408 | E5: 1 | F5: 32408 | G5: 2733866 | H5: 2733866
A6: 32472 | B6: 3v3r | D6: 32472 | E6: 1 | F6: 32472 | G6: 665308 | H6: 665308
A7: 32530 | B7: 2v2 Team | D7: 32530 | E7: 1 | F7: 32530 | G7: 882377
A8: 32531 | B8: 2v2 Team | D8: 32531 | E8: 1 | G8: 2994028 | H8: 2994028
A9: 32736 | B9: 2v2r | D9: 32736 | E9: 1 | G9: 4440248 | H9: 4440248
A10: 32818 | B10: 4v4r | D10: 32818 | E10: 1 | G10: 4387038 | H10: 4387038
A11: 32826 | B11: 3v3r | D11: 32826 | E11: 1 | G11: 4412735
A12: 32862 | B12: 2v2 Team | D12: 32862 | E12: 1 | G12: 4128856 | H12: 4128856
A13: 32881 | B13: 2v2 Team | D13: 32881 | E13: 1 | G13: 4641796 | H13: 4641796
A14: 32946 | B14: 3v3r | D14: 32946 | E14: 1 | G14: 907958
A15: 33010 | B15: 2v2 Team | D15: 33010 | E15: 12 | F15: 33010 | G15: 3970178 | H15: 3970178
A16: 33010 | B16: 2v2 Team | D16: 33157 | E16: 2 | F16: 33157 | G16: 1047580
A17: 33010 | B17: 2v2 Team | D17: 33222 | E17: 1 | G17: 986867 | H17: 986867
A18: 33010 | B18: 3v3 Team | D18: 33341 | E18: 3 | G18: 841553
A19: 33010 | B19: 3v3 Team | D19: 33344 | E19: 1 | G19: 4232044 | H19: 4232044
A20: 33010 | B20: 3v3 Team | D20: 33349 | E20: 1 | G20: 822092 | H20: 822092
A21: 33010 | B21: 3v3 Team | D21: 33420 | E21: 2 | F21: 33420 | G21: 4481661
A22: 33010 | B22: 3v3r | D22: 33453 | E22: 2 | G22: 4225040
A23: 33010 | B23: 4v4 Team | D23: 33495 | E23: 1 | F23: 33495 | G23: 371579
A24: 33010 | B24: 4v4 Team | D24: 33538 | E24: 1 | G24: 1086577 | H24: 1086577
A25: 33010 | B25: 4v4 Team | D25: 33677 | E25: 2 | F25: 33677 | G25: 3882996
A26: 33010 | B26: 4v4r | D26: 33751 | E26: 2 | F26: 33751 | G26: 349348
A27: 33157 | B27: 2v2r | D27: 33789 | E27: 1 | F27: 33789 | G27: 4488615
A28: 33157 | B28: 3v3r | D28: 33847 | E28: 2 | G28: 4388115
A29: 33222 | B29: 3v3r | D29: 33869 | E29: 1 | G29: 109382
A30: 33341 | B30: 2v2r | D30: 33929 | E30: 2 | F30: 33929 | G30: 4380301
A31: 33341 | B31: 3v3r | D31: 33969 | E31: 2 | G31: 989257
A32: 33341 | B32: 4v4r | D32: 34288 | E32: 1 | G32: 1409865
A33: 33344 | B33: 3v3r | D33: 34384 | E33: 2 | G33: 2564086
A34: 33349 | B34: 3v3r | D34: 34461 | E34: 1 | G34: 4462363
A35: 33420 | B35: 2v2 Team | D35: 34552 | E35: 1 | G35: 4143496
A36: 33420 | B36: 2v2r | D36: 34594 | E36: 1 | F36: 34594 | G36: 3642092 | H36: 3642092
A37: 33453 | B37: 2v2 Team | D37: 34607 | E37: 1 | F37: 34607 | G37: 3171432 | H37: 3171432
A38: 33453 | B38: 3v3r | D38: 34648 | E38: 1 | G38: 783687
A39: 33495 | B39: 2v2r | D39: 34668 | E39: 1 | G39: 774592
A40: 33538 | B40: 3v3r | D40: 34736 | E40: 1 | G40: 203441 | H40: 203441
A41: 33677 | B41: 2v2 Team | D41: 34916 | E41: 4 | F41: 34916 | G41: 3367592
A42: 33677 | B42: 2v2 Team | D42: 35056 | E42: 2 | G42: 4584261
A43: 33751 | B43: 2v2r | D43: 35127 | E43: 1 | G43: 727736
A44: 33751 | B44: 3v3r | D44: 35229 | E44: 1 | G44: 319649
A45: 33789 | B45: 2v2 Team | D45: 35237 | E45: 1 | G45: 3924735
A46: 33847 | B46: 3v3r | D46: 35269 | E46: 1 | F46: 35269 | G46: 4350690
A47: 33847 | B47: 4v4r | D47: 35347 | E47: 1 | F47: 35347 | G47: 395627 | H47: 395627
A48: 33869 | B48: 2v2r | D48: 35421 | E48: 1 | G48: 1291291
A49: 33929 | B49: 2v2 Team | D49: 35586 | E49: 1 | G49: 238103 | H49: 238103
A50: 33929 | B50: 2v2 Team | D50: 35633 | E50: 1 | G50: 4615493
A51: 33969 | B51: 2v2 Team | D51: 35835 | E51: 1 | G51: 936337
A52: 33969 | B52: 2v2r | D52: 35847 | E52: 1 | F52: 35847 | G52: 3389413 | H52: 3389413
A53: 34288 | B53: 2v2r | D53: 36015 | E53: 4 | G53: 2616531
A54: 34384 | B54: 3v3r | D54: 36071 | E54: 1 | G54: 583438
A55: 34384 | B55: 4v4r | D55: 36115 | E55: 1 | G55: 943777 | H55: 943777
A56: 34461 | B56: 4v4r | D56: 36240 | E56: 2 | G56: 1270922
A57: 34552 | B57: 2v2 Team | D57: 36283 | E57: 1 | G57: 520773 | H57: 520773
A58: 34594 | B58: 4v4r | D58: 36322 | E58: 1 | G58: 1129793
A59: 34607 | B59: 3v3r | D59: 36327 | E59: 1 | F59: 36327 | G59: 897907
A60: 34648 | B60: 4v4r | D60: 36373 | E60: 2 | G60: 4402512 | H60: 4402512
A61: 34668 | B61: 3v3r | D61: 36429 | E61: 2 | G61: 4626959
A62: 34736 | B62: 2v2 Team | D62: 36441 | E62: 6 | F62: 36441 | G62: 3929121 | H62: 3929121
A63: 34916 | B63: 2v2 Team | D63: 36743 | E63: 1 | F63: 36743 | G63: 2713323
A64: 34916 | B64: 2v2r | D64: 36826 | E64: 6 | F64: 36826 | G64: 1241759
A65: 34916 | B65: 3v3r | D65: 36870 | E65: 2 | G65: 1315148
A66: 34916 | B66: 4v4r | D66: 36885 | E66: 2 | F66: 36885 | G66: 89667
A67: 35056 | B67: 2v2 Team | D67: 36908 | E67: 2 | F67: 36908 | G67: 944021 | H67: 944021
A68: 35056 | B68: 3v3r | D68: 36930 | E68: 2 | F68: 36930 | G68: 1190053 | H68: 1190053
A69: 35127 | B69: 2v2r | D69: 37031 | E69: 3 | G69: 332753
A70: 35229 | B70: 3v3r | D70: 37041 | E70: 2 | G70: 4374470
A71: 35237 | B71: 3v3r | D71: 37121 | E71: 1 | G71: 1046625
A72: 35269 | B72: 2v2 Team | D72: 37282 | E72: 3 | G72: 1033821 | H72: 1033821
A73: 35347 | B73: 2v2r | D73: 37328 | E73: 1 | G73: 2942666 | H73: 2942666
A74: 35421 | B74: 3v3r | D74: 37442 | E74: 1 | G74: 1171280
A75: 35586 | B75: 3v3r | D75: 37591 | E75: 1 | G75: 1434084
A76: 35633 | B76: 3v3r | D76: 37723 | E76: 1 | G76: 2789664
A77: 35835 | B77: 3v3r | D77: 37812 | E77: 2 | G77: 302380 | H77: 302380
A78: 35847 | B78: 4v4r | D78: 37819 | E78: 1 | G78: 243947 | H78: 243947
A79: 36015 | B79: 2v2 Team | D79: 37838 | E79: 1 | G79: 4325846 | H79: 4325846
A80: 36015 | B80: 2v2r | D80: 37971 | E80: 2 | F80: 37971 | G80: 1109489 | H80: 1109489
A81: 36015 | B81: 3v3r | D81: 37985 | E81: 3 | G81: 3950454
A82: 36015 | B82: 4v4r | D82: 38027 | E82: 2 | F82: 38027 | G82: 4310696
A83: 36071 | B83: 2v2 Team | D83: 38090 | E83: 1 | G83: 959102
A84: 36115 | B84: 2v2r | D84: 38371 | E84: 3 | G84: 4614683
A85: 36240 | B85: 3v3r | D85: 38400 | E85: 1 | G85: 815200
A86: 36240 | B86: 4v4r | D86: 38541 | E86: 1 | G86: 2510380 | H86: 2510380
A87: 36283 | B87: 3v3r | D87: 38583 | E87: 1 | F87: 38583 | G87: 4198463
A88: 36322 | B88: 4v4r | D88: 38605 | E88: 1 | G88: 812513
A89: 36327 | B89: 2v2r | D89: 38691 | E89: 2 | F89: 38691 | G89: 1272006 | H89: 1272006
A90: 36373 | B90: 3v3r | D90: 38781 | E90: 1 | G90: 4594535
A91: 36373 | B91: 4v4r | D91: 38798 | E91: 1 | F91: 38798 | G91: 2053038
A92: 36429 | B92: 3v3r | D92: 38818 | E92: 1 | G92: 4369356
A93: 36429 | B93: 4v4r | D93: 38822 | E93: 1 | G93: 4516163
A94: 36441 | B94: 2v2 Team | D94: 38827 | E94: 1 | G94: 110412
A95: 36441 | B95: 2v2 Team | D95: 38871 | E95: 1 | F95: 38871 | G95: 439290
A96: 36441 | B96: 2v2 Team | D96: 39050 | E96: 2 | G96: 172025
A97: 36441 | B97: 2v2r | D97: 39057 | E97: 3 | F97: 39057 | G97: 374666 | H97: 374666
A98: 36441 | B98: 3v3r | D98: 39065 | E98: 2 | F98: 39065 | G98: 1323369 | H98: 1323369
A99: 36441 | B99: 4v4r | D99: 39235 | E99: 1 | F99: 39235 | G99: 4474686
A100: 36743 | B100: 2v2r | D100: 39474 | E100: 1 | G100: 683589
A101: 36826 | B101: 2v2 Team | D101: 39504 | E101: 1 | F101: 39504 | G101: 999644 | H101: 999644
A102: 36826 | B102: 2v2 Team | D102: 39538 | E102: 2 | G102: 610646 | H102: 610646
A103: 36826 | B103: 2v2r | D103: 39634 | E103: 1 | F103: 39634 | G103: 656865 | H103: 656865
A104: 36826 | B104: 3v3 Team | D104: 39854 | E104: 1 | F104: 39854 | G104: 721233
A105: 36826 | B105: 3v3r | D105: 39892 | E105: 1 | G105: 469215 | H105: 469215
A106: 36826 | B106: 4v4r | D106: 39893 | E106: 1 | F106: 39893 | G106: 1120250
A107: 36870 | B107: 2v2 Team | D107: 39948 | E107: 1 | G107: 154964 | H107: 154964
A108: 36870 | B108: 2v2 Team | D108: 39976 | E108: 1 | G108: 1324306 | H108: 1324306
A109: 36885 | B109: 2v2 Team | D109: 40027 | E109: 1 | G109: 2609833
A110: 36885 | B110: 4v4r | D110: 40064 | E110: 1 | G110: 373723
A111: 36908 | B111: 3v3r | D111: 40091 | E111: 1 | G111: 864219 | H111: 864219
A112: 36908 | B112: 4v4r | D112: 40193 | E112: 1 | G112: 4291977
A113: 36930 | B113: 2v2 Team | D113: 40347 | E113: 1 | G113: 848194
A114: 36930 | B114: 2v2 Team | D114: 40438 | E114: 1 | G114: 4632676
A115: 37031 | B115: 2v2 Team | D115: 40750 | E115: 1 | G115: 285137
A116: 37031 | B116: 2v2 Team | D116: 40761 | E116: 2 | F116: 40761 | G116: 3591895
A117: 37031 | B117: 3v3 Team | D117: 40763 | E117: 1 | G117: 3640762 | H117: 3640762
A118: 37041 | B118: 4v4 Team | D118: 40801 | E118: 1 | G118: 2572838
A119: 37041 | B119: 4v4r | D119: 40860 | E119: 1 | G119: 1187328
A120: 37121 | B120: 2v2 Team | D120: 40883 | E120: 2 | G120: 559183
A121: 37282 | B121: 2v2 Team | D121: 40910 | E121: 3 | F121: 40910 | G121: 941414 | H121: 941414
A122: 37282 | B122: 3v3r | D122: 40984 | E122: 1 | G122: 1900117
A123: 37282 | B123: 4v4r | D123: 41059 | E123: 1 | G123: 2498777
A124: 37328 | B124: 2v2 Team | D124: 41168 | E124: 2 | G124: 4626660
A125: 37442 | B125: 3v3r | D125: 41584 | E125: 1 | G125: 3441733 | H125: 3441733
A126: 37591 | B126: 4v4r | D126: 41634 | E126: 2 | G126: 4540108 | H126: 4540108
A127: 37723 | B127: 3v3 Team | D127: 41897 | E127: 1 | G127: 818638
A128: 37812 | B128: 3v3r | D128: 42079 | E128: 1 | G128: 4581909
A129: 37812 | B129: 4v4r | D129: 42289 | E129: 1 | F129: 42289 | G129: 1264825
A130: 37819 | B130: 4v4r | D130: 42357 | E130: 2 | G130: 398604
A131: 37838 | B131: 4v4r | D131: 42578 | E131: 1 | G131: 4411976
A132: 37971 | B132: 2v2 Team | D132: 42581 | E132: 3 | F132: 42581 | G132: 3352798
A133: 37971 | B133: 2v2 Team | D133: 42673 | E133: 2 | G133: 823600
A134: 37985 | B134: 2v2 Team | D134: 42750 | E134: 2 | G134: 4632935 | H134: 4632935
A135: 37985 | B135: 2v2r | D135: 42898 | E135: 1 | G135: 1615274
A136: 37985 | B136: 3v3r | D136: 43017 | E136: 4 | F136: 43017 | G136: 318597 | H136: 318597
A137: 38027 | B137: 2v2r | D137: 43026 | E137: 1 | G137: 3861979
A138: 38027 | B138: 3v3r | D138: 43096 | E138: 3 | G138: 4529388 | H138: 4529388
A139: 38090 | B139: 3v3r | D139: 43125 | E139: 2 | G139: 221487
A140: 38371 | B140: 2v2 Team | D140: 43144 | E140: 1 | G140: 4624857
A141: 38371 | B141: 3v3r | D141: 43206 | E141: 1 | G141: 2347923 | H141: 2347923
A142: 38371 | B142: 4v4r | D142: 43309 | E142: 3 | F142: 43309 | G142: 4010129
A143: 38400 | B143: 2v2r | D143: 43315 | E143: 5 | F143: 43315 | G143: 4187866 | H143: 4187866
A144: 38541 | B144: 4v4r | D144: 43352 | E144: 1 | G144: 1536018
A145: 38583 | B145: 3v3r | D145: 43366 | E145: 1 | G145: 1200578 | H145: 1200578
A146: 38605 | B146: 4v4r | D146: 43925 | E146: 1 | F146: 43925 | G146: 135468
A147: 38691 | B147: 2v2 Team | D147: 43964 | E147: 3 | F147: 43964 | G147: 3996666
A148: 38691 | B148: 3v3r | D148: 44158 | E148: 1 | G148: 3972048 | H148: 3972048
A149: 38781 | B149: 4v4r | D149: 44167 | E149: 2 | G149: 4402525 | H149: 4402525
A150: 38798 | B150: 2v2 Team | D150: 44282 | E150: 4 | G150: 570276
A151: 38818 | B151: 3v3r | D151: 44389 | E151: 1 | G151: 2489900
A152: 38822 | B152: 4v4r | D152: 44408 | E152: 1 | G152: 4029635 | H152: 4029635
A153: 38827 | B153: 4v4r | D153: 44455 | E153: 1 | G153: 4086774
A154: 38871 | B154: 2v2 Team | D154: 44468 | E154: 2 | F154: 44468 | G154: 943884
A155: 39050 | B155: 3v3r | D155: 44486 | E155: 2 | G155: 4323542 | H155: 4323542
A156: 39050 | B156: 4v4r | D156: 44713 | E156: 2 | G156: 3894158
A157: 39057 | B157: 2v2 Team | D157: 44866 | E157: 4 | F157: 44866 | G157: 943979 | H157: 943979
A158: 39057 | B158: 2v2 Team | D158: 45089 | E158: 1 | F158: 45089 | G158: 755913
A159: 39057 | B159: 2v2r | D159: 45205 | E159: 1 | G159: 197877 | H159: 197877
A160: 39065 | B160: 3v3r | D160: 45380 | E160: 3 | F160: 45380 | G160: 1055014
A161: 39065 | B161: 4v4r | D161: 45455 | E161: 1 | G161: 2310266
A162: 39235 | B162: 4v4r | D162: 45488 | E162: 1 | G162: 3087526
A163: 39474 | B163: 2v2r | D163: 45578 | E163: 1 | G163: 3613511 | H163: 3613511
A164: 39504 | B164: 2v2 Team | D164: 45608 | E164: 1 | G164: 919239
A165: 39538 | B165: 3v3 Team | D165: 45742 | E165: 1 | F165: 45742 | G165: 1627893
A166: 39538 | B166: 4v4r | D166: 46030 | E166: 2 | G166: 4091642 | H166: 4091642
A167: 39634 | B167: 2v2 Team | D167: 46144 | E167: 2 | F167: 46144 | G167: 4617549 | H167: 4617549
A168: 39854 | B168: 2v2 Team | D168: 46295 | E168: 1 | G168: 4651511
A169: 39892 | B169: 3v3r | D169: 46323 | E169: 2 | F169: 46323 | G169: 1105197 | H169: 1105197
A170: 39893 | B170: 2v2 Team | D170: 46401 | E170: 1 | G170: 1039041
A171: 39948 | B171: 3v3r | D171: 46478 | E171: 1 | G171: 4027211
A172: 39976 | B172: 3v3r | D172: 46637 | E172: 3 | F172: 46637 | G172: 950577 | H172: 950577
A173: 40027 | B173: 3v3r | D173: 46706 | E173: 1 | F173: 46706 | G173: 3423200
A174: 40064 | B174: 3v3r | D174: 46713 | E174: 3 | G174: 544512
A175: 40091 | B175: 2v2 Team | D175: 46804 | E175: 2 | G175: 2068161
A176: 40193 | B176: 2v2 Team | D176: 47119 | E176: 2 | G176: 904370 | H176: 904370
A177: 40347 | B177: 3v3r | D177: 47235 | E177: 2 | F177: 47235 | G177: 226376
A178: 40438 | B178: 3v3r | D178: 47257 | E178: 1 | G178: 1297270
A179: 40750 | B179: 3v3r | D179: 47329 | E179: 1 | G179: 664469
A180: 40761 | B180: 2v2r | D180: 47366 | E180: 5 | F180: 47366 | G180: 1172655
A181: 40761 | B181: 3v3r | D181: 47639 | E181: 4 | F181: 47639 | G181: 2987884
A182: 40763 | B182: 4v4r | D182: 47900 | E182: 1 | F182: 47900 | G182: 942306 | H182: 942306
A183: 40801 | B183: 3v3r | D183: 47909 | E183: 1 | F183: 47909 | G183: 1329519 | H183: 1329519
A184: 40860 | B184: 3v3r | D184: 48011 | E184: 2 | G184: 115725
A185: 40883 | B185: 2v2 Team | D185: 48026 | E185: 1 | F185: 48026 | G185: 280438
A186: 40883 | B186: 4v4r | D186: 48364 | E186: 2 | F186: 48364 | G186: 4310045 | H186: 4310045
A187: 40910 | B187: 2v2 Team | D187: 48628 | E187: 2 | F187: 48628 | G187: 2184149
A188: 40910 | B188: 2v2r | D188: 49075 | E188: 1 | F188: 49075 | G188: 2771051
A189: 40910 | B189: 3v3r | D189: 49261 | E189: 2 | G189: 4177896
A190: 40984 | B190: 2v2 Team | D190: 49321 | E190: 2 | G190: 1255664
A191: 41059 | B191: 2v2r | D191: 49356 | E191: 1 | F191: 49356 | G191: 1048680
A192: 41168 | B192: 3v3r | D192: 49758 | E192: 1 | G192: 4530881
A193: 41168 | B193: 4v4r | D193: 49820 | E193: 1 | G193: 3945061
A194: 41584 | B194: 2v2 Team | D194: 49882 | E194: 1 | G194: 2665857
A195: 41634 | B195: 2v2r | D195: 50014 | E195: 1 | G195: 823527 | H195: 823527
A196: 41634 | B196: 3v3r | D196: 50244 | E196: 1 | G196: 4539374
A197: 41897 | B197: 4v4r | D197: 50261 | E197: 1 | F197: 50261 | G197: 4594332
A198: 42079 | B198: 3v3r | D198: 50264 | E198: 3 | G198: 3675611
A199: 42289 | B199: 2v2 Team | D199: 50849 | E199: 1 | G199: 4616806
A200: 42357 | B200: 2v2 Team | D200: 50907 | E200: 3 | G200: 384292
... 4300 more rows

Sheet 2v2 Team
A1: Player 1 ID | B1: Race 1 | C1: Player 2 ID | D1: Race 2 | E1: League | F1: Wins | G1: Losses | H1: Score | I1: JoinDate | J1: Last Game | K1: Timestamp
A2: 1064322 | B2: z | C2: 827890 | D2: p | E2: Bronze | F2: 53 | G2: 54 | H2: 858 | I2: 2014-05-24 | J2: 20 minutes | K2: 2014-06-21T10:54:12
A3: 1580970 | B3: z | C3: 525248 | D3: p | E3: Bronze | F3: 51 | G3: 64 | H3: 845 | I3: 2014-04-15 | J3: 1 days | K3: 2014-06-21T10:54:12
A4: 189495 | B4: r | C4: 81096 | D4: z | E4: Bronze | F4: 50 | G4: 48 | H4: 826 | I4: 2014-04-14 | J4: 1 minutes | K4: 2014-06-21T10:54:12
A5: 4148130 | B5: t | C5: 347912 | D5: z | E5: Bronze | F5: 61 | G5: 65 | H5: 826 | I5: 2014-05-02 | J5: 6 hours | K5: 2014-06-21T10:54:12
A6: 1306908 | B6: p | C6: 1208896 | D6: p | E6: Bronze | F6: 30 | G6: 34 | H6: 820 | I6: 2014-05-25 | J6: 1 days | K6: 2014-06-21T10:54:12
A7: 2424979 | B7: r | C7: 1285807 | D7: t | E7: Bronze | F7: 69 | G7: 90 | H7: 819 | I7: 2014-04-19 | J7: 6 minutes | K7: 2014-06-21T10:54:12
A8: 4529388 | B8: r | C8: 144083 | D8: r | E8: Bronze | F8: 66 | G8: 56 | H8: 818 | I8: 2014-06-06 | J8: 3 days | K8: 2014-06-21T10:54:12
A9: 2010075 | B9: r | C9: 475432 | D9: r | E9: Bronze | F9: 41 | G9: 51 | H9: 817 | I9: 2014-04-30 | J9: 2 days | K9: 2014-06-21T10:54:12
A10: 457727 | B10: p | C10: 377460 | D10: t | E10: Bronze | F10: 94 | G10: 109 | H10: 816 | I10: 2014-04-17 | J10: 17 minutes | K10: 2014-06-21T10:54:12
A11: 575196 | B11: p | C11: 84672 | D11: p | E11: Bronze | F11: 29 | G11: 36 | H11: 811 | I11: 2014-05-13 | J11: 5 hours | K11: 2014-06-21T10:54:12
A12: 718543 | B12: t | C12: 388256 | D12: p | E12: Bronze | F12: 31 | G12: 42 | H12: 808 | I12: 2014-05-01 | J12: 31 minutes | K12: 2014-06-21T10:54:12
A13: 4007538 | B13: p | C13: 4003389 | D13: r | E13: Bronze | F13: 47 | G13: 57 | H13: 806 | I13: 2014-04-14 | J13: 8 days | K13: 2014-06-21T10:54:12
A14: 393844 | B14: t | C14: 193308 | D14: p | E14: Bronze | F14: 57 | G14: 63 | H14: 803 | I14: 2014-04-25 | J14: 1 days | K14: 2014-06-21T10:54:12
A15: 4463117 | B15: z | C15: 4463062 | D15: r | E15: Bronze | F15: 27 | G15: 35 | H15: 802 | I15: 2014-05-24 | J15: 1 hours | K15: 2014-06-21T10:54:12
A16: 325795 | B16: t | C16: 266715 | D16: z | E16: Bronze | F16: 28 | G16: 25 | H16: 789 | I16: 2014-04-20 | J16: 6 days | K16: 2014-06-21T10:54:12
A17: 2511507 | B17: t | C17: 1224310 | D17: z | E17: Bronze | F17: 38 | G17: 51 | H17: 782 | I17: 2014-05-21 | J17: 1 days | K17: 2014-06-21T10:54:12
A18: 1319724 | B18: r | C18: 826091 | D18: r | E18: Bronze | F18: 94 | G18: 133 | H18: 781 | I18: 2014-05-09 | J18: 1 days | K18: 2014-06-21T10:54:12
A19: 4449624 | B19: t | C19: 3273877 | D19: p | E19: Bronze | F19: 27 | G19: 30 | H19: 776 | I19: 2014-05-23 | J19: 3 days | K19: 2014-06-21T10:54:12
A20: 1187329 | B20: z | C20: 1112832 | D20: t | E20: Bronze | F20: 42 | G20: 57 | H20: 762 | I20: 2014-04-15 | J20: 7 hours | K20: 2014-06-21T10:54:12
A21: 3114126 | B21: p | C21: 1974398 | D21: r | E21: Bronze | F21: 32 | G21: 49 | H21: 760 | I21: 2014-06-09 | J21: 17 hours | K21: 2014-06-21T10:54:12
A22: 1001378 | B22: p | C22: 1001135 | D22: z | E22: Bronze | F22: 57 | G22: 76 | H22: 754 | I22: 2014-04-14 | J22: 1 days | K22: 2014-06-21T10:54:12
A23: 111416 | B23: r | C23: 106759 | D23: r | E23: Bronze | F23: 99 | G23: 176 | H23: 754 | I23: 2014-04-20 | J23: 1 hours | K23: 2014-06-21T10:54:12
A24: 2948482 | B24: t | C24: 1193200 | D24: z | E24: Bronze | F24: 60 | G24: 71 | H24: 742 | I24: 2014-04-20 | J24: 57 minutes | K24: 2014-06-21T10:54:12
A25: 4105889 | B25: r | C25: 2158216 | D25: t | E25: Bronze | F25: 31 | G25: 31 | H25: 740 | I25: 2014-04-21 | J25: 5 days | K25: 2014-06-21T10:54:12
A26: 4413018 | B26: z | C26: 4378132 | D26: p | E26: Bronze | F26: 24 | G26: 28 | H26: 736 | I26: 2014-05-14 | J26: 1 days | K26: 2014-06-21T10:54:12
A27: 3086007 | B27: r | C27: 1477058 | D27: r | E27: Bronze | F27: 35 | G27: 55 | H27: 732 | I27: 2014-04-13 | J27: 7 minutes | K27: 2014-06-21T10:54:12
A28: 1211279 | B28: p | C28: 1210093 | D28: p | E28: Bronze | F28: 78 | G28: 103 | H28: 729 | I28: 2014-05-07 | J28: 1 days | K28: 2014-06-21T10:54:12
A29: 3996310 | B29: p | C29: 1819829 | D29: z | E29: Bronze | F29: 41 | G29: 57 | H29: 726 | I29: 2014-04-30 | J29: 2 days | K29: 2014-06-21T10:54:12
A30: 537196 | B30: z | C30: 90736 | D30: t | E30: Bronze | F30: 38 | G30: 59 | H30: 726 | I30: 2014-04-24 | J30: 5 days | K30: 2014-06-21T10:54:12
A31: 225164 | B31: p | C31: 110265 | D31: t | E31: Bronze | F31: 28 | G31: 31 | H31: 724 | I31: 2014-04-22 | J31: 6 days | K31: 2014-06-21T10:54:12
A32: 1928462 | B32: t | C32: 1928356 | D32: z | E32: Bronze | F32: 24 | G32: 44 | H32: 712 | I32: 2014-05-27 | J32: 3 days | K32: 2014-06-21T10:54:12
A33: 4016706 | B33: t | C33: 3795232 | D33: p | E33: Bronze | F33: 24 | G33: 44 | H33: 709 | I33: 2014-04-19 | J33: 4 days | K33: 2014-06-21T10:54:12
A34: 1699066 | B34: t | C34: 763665 | D34: p | E34: Bronze | F34: 24 | G34: 43 | H34: 706 | I34: 2014-05-24 | J34: 1 hours | K34: 2014-06-21T10:54:12
A35: 773439 | B35: z | C35: 389157 | D35: t | E35: Bronze | F35: 23 | G35: 27 | H35: 704 | I35: 2014-05-10 | J35: 1 days | K35: 2014-06-21T10:54:12
A36: 857431 | B36: p | C36: 382262 | D36: t | E36: Bronze | F36: 61 | G36: 74 | H36: 703 | I36: 2014-04-17 | J36: 9 days | K36: 2014-06-21T10:54:12
A37: 3179718 | B37: p | C37: 1559896 | D37: z | E37: Bronze | F37: 45 | G37: 44 | H37: 700 | I37: 2014-04-17 | J37: 14 days | K37: 2014-06-21T10:54:12
A38: 4028383 | B38: t | C38: 4006077 | D38: p | E38: Bronze | F38: 23 | G38: 27 | H38: 698 | I38: 2014-04-23 | J38: 3 days | K38: 2014-06-21T10:54:12
A39: 805055 | B39: p | C39: 803464 | D39: p | E39: Bronze | F39: 24 | G39: 31 | H39: 695 | I39: 2014-05-10 | J39: 5 days | K39: 2014-06-21T10:54:12
A40: 1067190 | B40: p | C40: 274575 | D40: p | E40: Bronze | F40: 157 | G40: 186 | H40: 691 | I40: 2014-04-13 | J40: 19 days | K40: 2014-06-21T10:54:13
A41: 1336743 | B41: t | C41: 797112 | D41: z | E41: Bronze | F41: 33 | G41: 40 | H41: 690 | I41: 2014-05-12 | J41: 1 hours | K41: 2014-06-21T10:54:13
A42: 1545430 | B42: p | C42: 1519038 | D42: p | E42: Bronze | F42: 32 | G42: 38 | H42: 683 | I42: 2014-05-08 | J42: 10 days | K42: 2014-06-21T10:54:13
A43: 1003731 | B43: z | C43: 781634 | D43: z | E43: Bronze | F43: 27 | G43: 31 | H43: 675 | I43: 2014-04-18 | J43: 6 days | K43: 2014-06-21T10:54:13
A44: 1271557 | B44: p | C44: 450441 | D44: z | E44: Bronze | F44: 51 | G44: 90 | H44: 675 | I44: 2014-04-18 | J44: 1 days | K44: 2014-06-21T10:54:13
A45: 4059707 | B45: r | C45: 4058818 | D45: p | E45: Bronze | F45: 31 | G45: 41 | H45: 669 | I45: 2014-04-26 | J45: 7 days | K45: 2014-06-21T10:54:13
A46: 604227 | B46: p | C46: 430007 | D46: t | E46: Bronze | F46: 29 | G46: 25 | H46: 661 | I46: 2014-04-29 | J46: 13 days | K46: 2014-06-21T10:54:13
A47: 2737099 | B47: p | C47: 197001 | D47: r | E47: Bronze | F47: 47 | G47: 74 | H47: 653 | I47: 2014-04-13 | J47: 4 days | K47: 2014-06-21T10:54:13
A48: 1186723 | B48: t | C48: 985441 | D48: z | E48: Bronze | F48: 22 | G48: 23 | H48: 652 | I48: 2014-04-19 | J48: 3 days | K48: 2014-06-21T10:54:13
A49: 3973174 | B49: z | C49: 3810728 | D49: z | E49: Bronze | F49: 22 | G49: 30 | H49: 652 | I49: 2014-05-22 | J49: 23 minutes | K49: 2014-06-21T10:54:13
A50: 3060564 | B50: t | C50: 950464 | D50: p | E50: Bronze | F50: 23 | G50: 23 | H50: 648 | I50: 2014-04-30 | J50: 1 days | K50: 2014-06-21T10:54:13
A51: 4591241 | B51: p | C51: 497573 | D51: t | E51: Bronze | F51: 36 | G51: 47 | H51: 648 | I51: 2014-04-20 | J51: 21 days | K51: 2014-06-21T10:54:13
A52: 4273153 | B52: r | C52: 1222739 | D52: t | E52: Bronze | F52: 24 | G52: 37 | H52: 646 | I52: 2014-05-29 | J52: 3 days | K52: 2014-06-21T10:54:13
A53: 1009098 | B53: z | C53: 819105 | D53: t | E53: Bronze | F53: 22 | G53: 28 | H53: 644 | I53: 2014-04-14 | J53: 1 days | K53: 2014-06-21T10:54:13
A54: 3514369 | B54: t | C54: 1560049 | D54: z | E54: Bronze | F54: 38 | G54: 84 | H54: 644 | I54: 2014-04-19 | J54: 1 hours | K54: 2014-06-21T10:54:13
A55: 1224310 | B55: z | C55: 1224179 | D55: p | E55: Bronze | F55: 22 | G55: 39 | H55: 640 | I55: 2014-05-25 | J55: 7 days | K55: 2014-06-21T10:54:13
A56: 3362098 | B56: t | C56: 3134558 | D56: r | E56: Bronze | F56: 24 | G56: 39 | H56: 639 | I56: 2014-04-18 | J56: 7 days | K56: 2014-06-21T10:54:13
A57: 4529388 | B57: r | C57: 636729 | D57: t | E57: Bronze | F57: 107 | G57: 171 | H57: 637 | I57: 2014-04-14 | J57: 7 days | K57: 2014-06-21T10:54:13
A58: 4516464 | B58: t | C58: 3954966 | D58: t | E58: Bronze | F58: 37 | G58: 40 | H58: 626 | I58: 2014-04-26 | J58: 25 days | K58: 2014-06-21T10:54:13
A59: 4566852 | B59: p | C59: 195358 | D59: p | E59: Bronze | F59: 55 | G59: 86 | H59: 619 | I59: 2014-04-19 | J59: 8 days | K59: 2014-06-21T10:54:13
A60: 1146432 | B60: t | C60: 956665 | D60: z | E60: Bronze | F60: 30 | G60: 35 | H60: 611 | I60: 2014-04-15 | J60: 14 days | K60: 2014-06-21T10:54:13
A61: 4146669 | B61: p | C61: 3582433 | D61: r | E61: Bronze | F61: 19 | G61: 21 | H61: 606 | I61: 2014-05-06 | J61: 6 days | K61: 2014-06-21T10:54:13
A62: 2972858 | B62: r | C62: 636729 | D62: r | E62: Bronze | F62: 29 | G62: 104 | H62: 605 | I62: 2014-04-20 | J62: 3 days | K62: 2014-06-21T10:54:13
A63: 2823259 | B63: p | C63: 2756439 | D63: r | E63: Bronze | F63: 37 | G63: 43 | H63: 600 | I63: 2014-04-14 | J63: 20 hours | K63: 2014-06-21T10:54:13
A64: 1259997 | B64: p | C64: 288913 | D64: t | E64: Bronze | F64: 19 | G64: 23 | H64: 600 | I64: 2014-04-14 | J64: 4 days | K64: 2014-06-21T10:54:13
A65: 4517596 | B65: t | C65: 4517571 | D65: t | E65: Bronze | F65: 99 | G65: 171 | H65: 600 | I65: 2014-04-16 | J65: 3 days | K65: 2014-06-21T10:54:13
A66: 1437406 | B66: r | C66: 1025023 | D66: t | E66: Bronze | F66: 44 | G66: 112 | H66: 597 | I66: 2014-05-02 | J66: 5 hours | K66: 2014-06-21T10:54:13
A67: 3390809 | B67: t | C67: 166504 | D67: z | E67: Bronze | F67: 20 | G67: 21 | H67: 596 | I67: 2014-05-18 | J67: 21 hours | K67: 2014-06-21T10:54:13
A68: 4597943 | B68: p | C68: 1336688 | D68: p | E68: Bronze | F68: 30 | G68: 30 | H68: 587 | I68: 2014-04-17 | J68: 3 days | K68: 2014-06-21T10:54:13
A69: 2569875 | B69: t | C69: 1659422 | D69: t | E69: Bronze | F69: 19 | G69: 27 | H69: 584 | I69: 2014-04-26 | J69: 13 days | K69: 2014-06-21T10:54:13
A70: 2367031 | B70: r | C70: 161612 | D70: r | E70: Bronze | F70: 22 | G70: 7 | H70: 581 | I70: 2014-04-19 | J70: 1 days | K70: 2014-06-21T10:54:13
A71: 413875 | B71: t | C71: 163519 | D71: z | E71: Bronze | F71: 27 | G71: 17 | H71: 570 | I71: 2014-04-18 | J71: 10 days | K71: 2014-06-21T10:54:13
A72: 930857 | B72: z | C72: 833187 | D72: t | E72: Bronze | F72: 21 | G72: 22 | H72: 570 | I72: 2014-05-19 | J72: 6 hours | K72: 2014-06-21T10:54:13
A73: 892431 | B73: p | C73: 636887 | D73: r | E73: Bronze | F73: 22 | G73: 16 | H73: 568 | I73: 2014-04-13 | J73: 40 days | K73: 2014-06-21T10:54:13
A74: 225107 | B74: p | C74: 224979 | D74: r | E74: Bronze | F74: 23 | G74: 28 | H74: 566 | I74: 2014-04-28 | J74: 26 days | K74: 2014-06-21T10:54:13
A75: 830117 | B75: z | C75: 561070 | D75: t | E75: Bronze | F75: 19 | G75: 19 | H75: 564 | I75: 2014-04-24 | J75: 16 days | K75: 2014-06-21T10:54:13
A76: 4462766 | B76: t | C76: 4446525 | D76: r | E76: Bronze | F76: 41 | G76: 62 | H76: 561 | I76: 2014-04-15 | J76: 14 days | K76: 2014-06-21T10:54:13
A77: 4284506 | B77: p | C77: 1441052 | D77: t | E77: Bronze | F77: 17 | G77: 17 | H77: 560 | I77: 2014-06-07 | J77: 30 minutes | K77: 2014-06-21T10:54:13
A78: 1044670 | B78: p | C78: 596881 | D78: p | E78: Bronze | F78: 18 | G78: 20 | H78: 560 | I78: 2014-05-17 | J78: 5 days | K78: 2014-06-21T10:54:13
A79: 2077399 | B79: r | C79: 560287 | D79: t | E79: Bronze | F79: 26 | G79: 36 | H79: 555 | I79: 2014-04-14 | J79: 16 days | K79: 2014-06-21T10:54:13
A80: 1376375 | B80: z | C80: 400384 | D80: p | E80: Bronze | F80: 21 | G80: 12 | H80: 554 | I80: 2014-04-29 | J80: 5 days | K80: 2014-06-21T10:54:13
A81: 4450291 | B81: r | C81: 2722108 | D81: r | E81: Bronze | F81: 19 | G81: 14 | H81: 552 | I81: 2014-05-08 | J81: 4 days | K81: 2014-06-21T10:54:13
A82: 4586016 | B82: p | C82: 1156383 | D82: p | E82: Bronze | F82: 22 | G82: 19 | H82: 551 | I82: 2014-04-18 | J82: 27 days | K82: 2014-06-21T10:54:13
A83: 1260200 | B83: t | C83: 4488297 | D83: z | E83: Bronze | F83: 23 | G83: 29 | H83: 550 | I83: 2014-04-26 | J83: 1 hours | K83: 2014-06-21T10:54:13
A84: 274847 | B84: z | C84: 130063 | D84: p | E84: Bronze | F84: 16 | G84: 30 | H84: 548 | I84: 2014-05-25 | J84: 21 days | K84: 2014-06-21T10:54:13
A85: 1262978 | B85: p | C85: 1092578 | D85: p | E85: Bronze | F85: 29 | G85: 35 | H85: 547 | I85: 2014-05-10 | J85: 29 days | K85: 2014-06-21T10:54:13
A86: 4656277 | B86: p | C86: 2733866 | D86: r | E86: Bronze | F86: 19 | G86: 29 | H86: 540 | I86: 2014-06-04 | J86: 14 days | K86: 2014-06-21T10:54:13
A87: 483913 | B87: t | C87: 253025 | D87: z | E87: Bronze | F87: 21 | G87: 13 | H87: 538 | I87: 2014-04-27 | J87: 22 days | K87: 2014-06-21T10:54:13
A88: 371659 | B88: p | C88: 333827 | D88: t | E88: Bronze | F88: 16 | G88: 29 | H88: 538 | I88: 2014-04-28 | J88: 6 days | K88: 2014-06-21T10:54:13
A89: 4079745 | B89: p | C89: 76904 | D89: t | E89: Bronze | F89: 20 | G89: 32 | H89: 537 | I89: 2014-04-27 | J89: 17 days | K89: 2014-06-21T10:54:13
A90: 4625899 | B90: z | C90: 218453 | D90: p | E90: Bronze | F90: 19 | G90: 35 | H90: 528 | I90: 2014-05-27 | J90: 15 days | K90: 2014-06-21T10:54:13
A91: 3209465 | B91: p | C91: 353800 | D91: z | E91: Bronze | F91: 19 | G91: 20 | H91: 527 | I91: 2014-04-14 | J91: 3 days | K91: 2014-06-21T10:54:13
A92: 258191 | B92: t | C92: 112329 | D92: r | E92: Bronze | F92: 20 | G92: 27 | H92: 526 | I92: 2014-05-15 | J92: 28 days | K92: 2014-06-21T10:54:13
A93: 4270919 | B93: t | C93: 1900434 | D93: p | E93: Bronze | F93: 45 | G93: 63 | H93: 525 | I93: 2014-04-20 | J93: 31 minutes | K93: 2014-06-21T10:54:13
A94: 1372408 | B94: z | C94: 880010 | D94: p | E94: Bronze | F94: 14 | G94: 10 | H94: 522 | I94: 2014-04-20 | J94: 39 days | K94: 2014-06-21T10:54:13
A95: 2465559 | B95: z | C95: 1257448 | D95: p | E95: Bronze | F95: 17 | G95: 14 | H95: 518 | I95: 2014-04-30 | J95: 3 hours | K95: 2014-06-21T10:54:13
A96: 4341070 | B96: r | C96: 2482987 | D96: t | E96: Bronze | F96: 29 | G96: 28 | H96: 518 | I96: 2014-04-18 | J96: 15 days | K96: 2014-06-21T10:54:13
A97: 4044470 | B97: t | C97: 185552 | D97: p | E97: Bronze | F97: 17 | G97: 26 | H97: 516 | I97: 2014-04-16 | J97: 11 days | K97: 2014-06-21T10:54:13
A98: 4662886 | B98: p | C98: 3169206 | D98: t | E98: Bronze | F98: 16 | G98: 51 | H98: 514 | I98: 2014-06-10 | J98: 2 days | K98: 2014-06-21T10:54:13
A99: 4623068 | B99: t | C99: 3027792 | D99: r | E99: Bronze | F99: 21 | G99: 17 | H99: 510 | I99: 2014-04-25 | J99: 23 days | K99: 2014-06-21T10:54:13
A100: 574764 | B100: z | C100: 341765 | D100: t | E100: Bronze | F100: 19 | G100: 21 | H100: 509 | I100: 2014-04-27 | J100: 27 days | K100: 2014-06-21T10:54:13
A101: 2065631 | B101: t | C101: 120171 | D101: p | E101: Bronze | F101: 16 | G101: 31 | H101: 508 | I101: 2014-05-04 | J101: 13 days | K101: 2014-06-21T10:54:13
A102: 3081884 | B102: z | C102: 246085 | D102: t | E102: Bronze | F102: 18 | G102: 16 | H102: 506 | I102: 2014-05-09 | J102: 1 days | K102: 2014-06-21T10:54:13
A103: 2644451 | B103: p | C103: 2461393 | D103: t | E103: Bronze | F103: 27 | G103: 40 | H103: 505 | I103: 2014-05-05 | J103: 35 days | K103: 2014-06-21T10:54:13
A104: 2670142 | B104: z | C104: 2427884 | D104: r | E104: Bronze | F104: 19 | G104: 7 | H104: 504 | I104: 2014-04-20 | J104: 2 days | K104: 2014-06-21T10:54:13
A105: 4289084 | B105: t | C105: 715213 | D105: z | E105: Bronze | F105: 17 | G105: 14 | H105: 498 | I105: 2014-05-17 | J105: 14 days | K105: 2014-06-21T10:54:13
A106: 708478 | B106: p | C106: 707215 | D106: p | E106: Bronze | F106: 16 | G106: 21 | H106: 498 | I106: 2014-04-17 | J106: 12 days | K106: 2014-06-21T10:54:13
A107: 2027925 | B107: r | C107: 2006569 | D107: r | E107: Bronze | F107: 17 | G107: 8 | H107: 496 | I107: 2014-04-30 | J107: 7 days | K107: 2014-06-21T10:54:13
A108: 1007706 | B108: r | C108: 138652 | D108: p | E108: Bronze | F108: 17 | G108: 17 | H108: 496 | I108: 2014-05-16 | J108: 18 hours | K108: 2014-06-21T10:54:13
A109: 1025363 | B109: r | C109: 540440 | D109: r | E109: Bronze | F109: 16 | G109: 11 | H109: 490 | I109: 2014-05-01 | J109: 7 days | K109: 2014-06-21T10:54:13
A110: 1344894 | B110: p | C110: 77614 | D110: r | E110: Bronze | F110: 17 | G110: 26 | H110: 486 | I110: 2014-06-13 | J110: 1 hours | K110: 2014-06-21T10:54:13
A111: 3476953 | B111: t | C111: 3355235 | D111: z | E111: Bronze | F111: 16 | G111: 20 | H111: 484 | I111: 2014-04-20 | J111: 13 days | K111: 2014-06-21T10:54:13
A112: 4638052 | B112: p | C112: 3779975 | D112: z | E112: Bronze | F112: 16 | G112: 25 | H112: 484 | I112: 2014-05-27 | J112: 4 days | K112: 2014-06-21T10:54:13
A113: 2611834 | B113: p | C113: 330186 | D113: t | E113: Bronze | F113: 16 | G113: 14 | H113: 482 | I113: 2014-05-05 | J113: 1 hours | K113: 2014-06-21T10:54:13
A114: 310138 | B114: t | C114: 204080 | D114: t | E114: Bronze | F114: 19 | G114: 17 | H114: 480 | I114: 2014-06-07 | J114: 6 days | K114: 2014-06-21T10:54:13
A115: 3687780 | B115: p | C115: 1277962 | D115: t | E115: Bronze | F115: 16 | G115: 28 | H115: 480 | I115: 2014-04-20 | J115: 1 hours | K115: 2014-06-21T10:54:13
A116: 4468051 | B116: t | C116: 2600642 | D116: r | E116: Bronze | F116: 13 | G116: 4 | H116: 478 | I116: 2014-05-04 | J116: 47 days | K116: 2014-06-21T10:54:13
A117: 1400404 | B117: p | C117: 1347211 | D117: t | E117: Bronze | F117: 16 | G117: 19 | H117: 478 | I117: 2014-06-18 | J117: 14 hours | K117: 2014-06-21T10:54:13
A118: 1137306 | B118: p | C118: 1133749 | D118: z | E118: Bronze | F118: 15 | G118: 36 | H118: 478 | I118: 2014-05-26 | J118: 20 hours | K118: 2014-06-21T10:54:13
A119: 3209896 | B119: p | C119: 849252 | D119: t | E119: Bronze | F119: 29 | G119: 22 | H119: 474 | I119: 2014-04-19 | J119: 42 days | K119: 2014-06-21T10:54:13
A120: 4312039 | B120: r | C120: 4220977 | D120: r | E120: Bronze | F120: 18 | G120: 23 | H120: 474 | I120: 2014-04-14 | J120: 1 days | K120: 2014-06-21T10:54:13
A121: 225107 | B121: p | C121: 222823 | D121: t | E121: Bronze | F121: 20 | G121: 23 | H121: 470 | I121: 2014-04-14 | J121: 19 minutes | K121: 2014-06-21T10:54:13
A122: 1333551 | B122: r | C122: 1107241 | D122: t | E122: Bronze | F122: 14 | G122: 23 | H122: 470 | I122: 2014-05-18 | J122: 1 days | K122: 2014-06-21T10:54:13
A123: 374629 | B123: p | C123: 366446 | D123: z | E123: Bronze | F123: 23 | G123: 16 | H123: 465 | I123: 2014-04-30 | J123: 49 days | K123: 2014-06-21T10:54:13
A124: 627326 | B124: z | C124: 596835 | D124: p | E124: Bronze | F124: 17 | G124: 11 | H124: 464 | I124: 2014-05-01 | J124: 5 hours | K124: 2014-06-21T10:54:13
A125: 943082 | B125: t | C125: 768864 | D125: t | E125: Bronze | F125: 23 | G125: 33 | H125: 464 | I125: 2014-05-08 | J125: 21 days | K125: 2014-06-21T10:54:13
A126: 4150747 | B126: z | C126: 1734095 | D126: t | E126: Bronze | F126: 14 | G126: 13 | H126: 462 | I126: 2014-04-27 | J126: 3 days | K126: 2014-06-21T10:54:13
A127: 4592828 | B127: r | C127: 4454262 | D127: r | E127: Bronze | F127: 18 | G127: 23 | H127: 462 | I127: 2014-05-31 | J127: 1 days | K127: 2014-06-21T10:54:13
A128: 224599 | B128: t | C128: 221382 | D128: t | E128: Bronze | F128: 16 | G128: 22 | H128: 462 | I128: 2014-04-18 | J128: 20 days | K128: 2014-06-21T10:54:13
A129: 4010168 | B129: p | C129: 3926512 | D129: z | E129: Bronze | F129: 16 | G129: 3 | H129: 460 | I129: 2014-04-19 | J129: 42 days | K129: 2014-06-21T10:54:13
A130: 1332006 | B130: p | C130: 806906 | D130: z | E130: Bronze | F130: 17 | G130: 15 | H130: 460 | I130: 2014-05-28 | J130: 3 days | K130: 2014-06-21T10:54:13
A131: 1074172 | B131: t | C131: 1028489 | D131: p | E131: Bronze | F131: 14 | G131: 8 | H131: 456 | I131: 2014-04-25 | J131: 21 days | K131: 2014-06-21T10:54:13
A132: 1252275 | B132: p | C132: 1221710 | D132: p | E132: Bronze | F132: 15 | G132: 19 | H132: 454 | I132: 2014-06-16 | J132: 1 days | K132: 2014-06-21T10:54:13
A133: 4148404 | B133: p | C133: 3789051 | D133: t | E133: Bronze | F133: 15 | G133: 29 | H133: 454 | I133: 2014-04-22 | J133: 5 days | K133: 2014-06-21T10:54:13
A134: 474760 | B134: p | C134: 361437 | D134: r | E134: Bronze | F134: 17 | G134: 17 | H134: 453 | I134: 2014-05-05 | J134: 28 days | K134: 2014-06-21T10:54:13
A135: 1776579 | B135: p | C135: 1773150 | D135: t | E135: Bronze | F135: 60 | G135: 65 | H135: 453 | I135: 2014-04-15 | J135: 36 days | K135: 2014-06-21T10:54:13
A136: 1318313 | B136: t | C136: 4601413 | D136: p | E136: Bronze | F136: 22 | G136: 39 | H136: 453 | I136: 2014-05-03 | J136: 23 days | K136: 2014-06-21T10:54:13
A137: 1142908 | B137: p | C137: 658588 | D137: r | E137: Bronze | F137: 14 | G137: 16 | H137: 452 | I137: 2014-05-21 | J137: 3 days | K137: 2014-06-21T10:54:13
A138: 353126 | B138: z | C138: 80486 | D138: t | E138: Bronze | F138: 17 | G138: 12 | H138: 448 | I138: 2014-04-28 | J138: 7 days | K138: 2014-06-21T10:54:13
A139: 4486856 | B139: t | C139: 567618 | D139: t | E139: Bronze | F139: 15 | G139: 26 | H139: 446 | I139: 2014-04-24 | J139: 17 days | K139: 2014-06-21T10:54:13
A140: 1070834 | B140: t | C140: 1060501 | D140: t | E140: Bronze | F140: 31 | G140: 28 | H140: 440 | I140: 2014-04-26 | J140: 40 days | K140: 2014-06-21T10:54:14
A141: 2401771 | B141: r | C141: 431664 | D141: r | E141: Bronze | F141: 23 | G141: 15 | H141: 437 | I141: 2014-04-20 | J141: 1 days | K141: 2014-06-21T10:54:14
A142: 1791532 | B142: z | C142: 140009 | D142: t | E142: Bronze | F142: 19 | G142: 15 | H142: 437 | I142: 2014-04-27 | J142: 45 days | K142: 2014-06-21T10:54:14
A143: 1059306 | B143: p | C143: 80009 | D143: t | E143: Bronze | F143: 15 | G143: 17 | H143: 436 | I143: 2014-05-04 | J143: 3 hours | K143: 2014-06-21T10:54:14
A144: 4232202 | B144: z | C144: 4216178 | D144: p | E144: Bronze | F144: 17 | G144: 29 | H144: 435 | I144: 2014-04-26 | J144: 48 days | K144: 2014-06-21T10:54:14
A145: 2369814 | B145: r | C145: 354047 | D145: r | E145: Bronze | F145: 12 | G145: 4 | H145: 434 | I145: 2014-04-23 | J145: 5 days | K145: 2014-06-21T10:54:14
A146: 4282685 | B146: p | C146: 1757192 | D146: p | E146: Bronze | F146: 14 | G146: 3 | H146: 432 | I146: 2014-05-10 | J146: 1 days | K146: 2014-06-21T10:54:14
A147: 325431 | B147: z | C147: 91030 | D147: z | E147: Bronze | F147: 15 | G147: 14 | H147: 432 | I147: 2014-04-21 | J147: 30 days | K147: 2014-06-21T10:54:14
A148: 369127 | B148: p | C148: 341765 | D148: t | E148: Bronze | F148: 14 | G148: 18 | H148: 431 | I148: 2014-04-13 | J148: 7 days | K148: 2014-06-21T10:54:14
A149: 3547967 | B149: r | C149: 212062 | D149: t | E149: Bronze | F149: 21 | G149: 24 | H149: 428 | I149: 2014-04-20 | J149: 36 days | K149: 2014-06-21T10:54:14
A150: 3591833 | B150: p | C150: 2079528 | D150: t | E150: Bronze | F150: 14 | G150: 28 | H150: 428 | I150: 2014-05-07 | J150: 1 hours | K150: 2014-06-21T10:54:14
A151: 3227882 | B151: r | C151: 1469108 | D151: t | E151: Bronze | F151: 18 | G151: 17 | H151: 426 | I151: 2014-05-02 | J151: 24 days | K151: 2014-06-21T10:54:14
A152: 2021666 | B152: z | C152: 626974 | D152: p | E152: Bronze | F152: 15 | G152: 23 | H152: 426 | I152: 2014-05-20 | J152: 10 days | K152: 2014-06-21T10:54:14
A153: 2796671 | B153: t | C153: 493689 | D153: p | E153: Bronze | F153: 14 | G153: 24 | H153: 426 | I153: 2014-04-28 | J153: 3 days | K153: 2014-06-21T10:54:14
A154: 1251002 | B154: z | C154: 845310 | D154: r | E154: Bronze | F154: 16 | G154: 11 | H154: 425 | I154: 2014-04-19 | J154: 35 days | K154: 2014-06-21T10:54:14
A155: 1848331 | B155: t | C155: 1260586 | D155: p | E155: Bronze | F155: 12 | G155: 11 | H155: 424 | I155: 2014-05-10 | J155: 14 days | K155: 2014-06-21T10:54:14
A156: 532185 | B156: r | C156: 328697 | D156: p | E156: Bronze | F156: 14 | G156: 9 | H156: 422 | I156: 2014-04-19 | J156: 8 hours | K156: 2014-06-21T10:54:14
A157: 4359282 | B157: p | C157: 1239373 | D157: p | E157: Bronze | F157: 14 | G157: 26 | H157: 422 | I157: 2014-05-05 | J157: 15 days | K157: 2014-06-21T10:54:14
A158: 1011374 | B158: r | C158: 130033 | D158: r | E158: Bronze | F158: 19 | G158: 33 | H158: 421 | I158: 2014-04-14 | J158: 27 days | K158: 2014-06-21T10:54:14
A159: 2666732 | B159: p | C159: 601249 | D159: z | E159: Bronze | F159: 14 | G159: 7 | H159: 420 | I159: 2014-06-21 | J159: 3 hours | K159: 2014-06-21T10:54:14
A160: 4461894 | B160: p | C160: 1405890 | D160: t | E160: Bronze | F160: 14 | G160: 18 | H160: 420 | I160: 2014-05-30 | J160: 17 days | K160: 2014-06-21T10:54:14
A161: 4476077 | B161: z | C161: 4475018 | D161: t | E161: Bronze | F161: 30 | G161: 35 | H161: 419 | I161: 2014-04-21 | J161: 30 days | K161: 2014-06-21T10:54:14
A162: 681546 | B162: t | C162: 620237 | D162: z | E162: Bronze | F162: 11 | G162: 6 | H162: 416 | I162: 2014-05-11 | J162: 1 hours | K162: 2014-06-21T10:54:14
A163: 1656729 | B163: t | C163: 343643 | D163: r | E163: Bronze | F163: 15 | G163: 12 | H163: 416 | I163: 2014-05-29 | J163: 3 days | K163: 2014-06-21T10:54:14
A164: 1509198 | B164: t | C164: 1508148 | D164: p | E164: Bronze | F164: 36 | G164: 45 | H164: 416 | I164: 2014-04-20 | J164: 35 days | K164: 2014-06-21T10:54:14
A165: 355487 | B165: z | C165: 82396 | D165: t | E165: Bronze | F165: 15 | G165: 4 | H165: 413 | I165: 2014-04-18 | J165: 6 days | K165: 2014-06-21T10:54:14
A166: 1752401 | B166: z | C166: 708385 | D166: p | E166: Bronze | F166: 14 | G166: 9 | H166: 412 | I166: 2014-05-12 | J166: 8 days | K166: 2014-06-21T10:54:14
A167: 1108336 | B167: t | C167: 110689 | D167: p | E167: Bronze | F167: 14 | G167: 12 | H167: 412 | I167: 2014-04-16 | J167: 2 days | K167: 2014-06-21T10:54:14
A168: 1444983 | B168: p | C168: 144019 | D168: z | E168: Bronze | F168: 15 | G168: 7 | H168: 411 | I168: 2014-04-24 | J168: 53 days | K168: 2014-06-21T10:54:14
A169: 2903799 | B169: r | C169: 1057955 | D169: z | E169: Bronze | F169: 14 | G169: 2 | H169: 410 | I169: 2014-05-02 | J169: 6 days | K169: 2014-06-21T10:54:14
A170: 2267157 | B170: t | C170: 1903539 | D170: t | E170: Bronze | F170: 12 | G170: 10 | H170: 410 | I170: 2014-05-04 | J170: 1 days | K170: 2014-06-21T10:54:14
A171: 2778821 | B171: t | C171: 2161592 | D171: r | E171: Bronze | F171: 14 | G171: 18 | H171: 410 | I171: 2014-06-06 | J171: 3 days | K171: 2014-06-21T10:54:14
A172: 4160214 | B172: r | C172: 1852380 | D172: p | E172: Bronze | F172: 13 | G172: 18 | H172: 408 | I172: 2014-04-19 | J172: 45 days | K172: 2014-06-21T10:54:14
A173: 1424627 | B173: p | C173: 1195399 | D173: z | E173: Bronze | F173: 13 | G173: 21 | H173: 406 | I173: 2014-06-05 | J173: 1 hours | K173: 2014-06-21T10:54:14
A174: 3081011 | B174: t | C174: 2405948 | D174: p | E174: Bronze | F174: 13 | G174: 10 | H174: 402 | I174: 2014-05-03 | J174: 14 days | K174: 2014-06-21T10:54:14
A175: 4394041 | B175: z | C175: 3475737 | D175: p | E175: Bronze | F175: 13 | G175: 18 | H175: 400 | I175: 2014-05-17 | J175: 8 days | K175: 2014-06-21T10:54:14
A176: 4617347 | B176: z | C176: 3874683 | D176: r | E176: Bronze | F176: 15 | G176: 25 | H176: 400 | I176: 2014-05-27 | J176: 14 days | K176: 2014-06-21T10:54:14
A177: 2503524 | B177: p | C177: 2225125 | D177: t | E177: Bronze | F177: 10 | G177: 3 | H177: 398 | I177: 2014-04-26 | J177: 27 days | K177: 2014-06-21T10:54:14
A178: 3896359 | B178: p | C178: 1107473 | D178: t | E178: Bronze | F178: 12 | G178: 8 | H178: 397 | I178: 2014-04-14 | J178: 49 days | K178: 2014-06-21T10:54:14
A179: 1334735 | B179: p | C179: 396369 | D179: t | E179: Bronze | F179: 17 | G179: 21 | H179: 397 | I179: 2014-04-26 | J179: 35 days | K179: 2014-06-21T10:54:14
A180: 303866 | B180: p | C180: 33010 | D180: z | E180: Bronze | F180: 10 | G180: 6 | H180: 396 | I180: 2014-04-18 | J180: 5 days | K180: 2014-06-21T10:54:14
A181: 2196291 | B181: p | C181: 1142525 | D181: t | E181: Bronze | F181: 18 | G181: 12 | H181: 394 | I181: 2014-04-23 | J181: 44 days | K181: 2014-06-21T10:54:14
A182: 482124 | B182: r | C182: 88245 | D182: p | E182: Bronze | F182: 12 | G182: 11 | H182: 394 | I182: 2014-04-26 | J182: 13 days | K182: 2014-06-21T10:54:14
A183: 638853 | B183: t | C183: 376477 | D183: z | E183: Bronze | F183: 13 | G183: 15 | H183: 394 | I183: 2014-05-01 | J183: 2 days | K183: 2014-06-21T10:54:14
A184: 4511545 | B184: t | C184: 189469 | D184: p | E184: Bronze | F184: 16 | G184: 20 | H184: 394 | I184: 2014-04-15 | J184: 18 days | K184: 2014-06-21T10:54:14
A185: 4121717 | B185: t | C185: 2798002 | D185: r | E185: Bronze | F185: 16 | G185: 12 | H185: 393 | I185: 2014-04-19 | J185: 14 days | K185: 2014-06-21T10:54:14
A186: 4333242 | B186: p | C186: 4331910 | D186: r | E186: Bronze | F186: 12 | G186: 8 | H186: 392 | I186: 2014-04-13 | J186: 9 days | K186: 2014-06-21T10:54:14
A187: 2846579 | B187: r | C187: 1018993 | D187: r | E187: Bronze | F187: 12 | G187: 11 | H187: 392 | I187: 2014-04-18 | J187: 41 days | K187: 2014-06-21T10:54:14
A188: 1394041 | B188: t | C188: 645425 | D188: r | E188: Bronze | F188: 12 | G188: 13 | H188: 392 | I188: 2014-04-16 | J188: 10 days | K188: 2014-06-21T10:54:14
A189: 420093 | B189: p | C189: 368386 | D189: z | E189: Bronze | F189: 12 | G189: 15 | H189: 392 | I189: 2014-04-18 | J189: 8 days | K189: 2014-06-21T10:54:14
A190: 1322804 | B190: r | C190: 1321244 | D190: p | E190: Bronze | F190: 11 | G190: 2 | H190: 391 | I190: 2014-04-20 | J190: 6 days | K190: 2014-06-21T10:54:14
A191: 4319107 | B191: r | C191: 3248728 | D191: r | E191: Bronze | F191: 16 | G191: 10 | H191: 390 | I191: 2014-04-16 | J191: 7 days | K191: 2014-06-21T10:54:14
A192: 4599771 | B192: t | C192: 4450314 | D192: t | E192: Bronze | F192: 15 | G192: 15 | H192: 390 | I192: 2014-04-28 | J192: 49 days | K192: 2014-06-21T10:54:14
A193: 998481 | B193: z | C193: 957991 | D193: p | E193: Bronze | F193: 12 | G193: 3 | H193: 389 | I193: 2014-04-19 | J193: 48 days | K193: 2014-06-21T10:54:14
A194: 4527088 | B194: p | C194: 124687 | D194: p | E194: Bronze | F194: 16 | G194: 7 | H194: 389 | I194: 2014-05-04 | J194: 47 days | K194: 2014-06-21T10:54:14
A195: 2892538 | B195: z | C195: 102414 | D195: z | E195: Bronze | F195: 16 | G195: 15 | H195: 389 | I195: 2014-04-14 | J195: 6 days | K195: 2014-06-21T10:54:14
A196: 1108411 | B196: z | C196: 512170 | D196: t | E196: Bronze | F196: 12 | G196: 10 | H196: 388 | I196: 2014-04-25 | J196: 3 days | K196: 2014-06-21T10:54:14
A197: 4607879 | B197: t | C197: 578882 | D197: z | E197: Bronze | F197: 14 | G197: 21 | H197: 388 | I197: 2014-05-18 | J197: 22 days | K197: 2014-06-21T10:54:14
A198: 4274037 | B198: t | C198: 2846434 | D198: p | E198: Bronze | F198: 13 | G198: 25 | H198: 388 | I198: 2014-04-24 | J198: 7 days | K198: 2014-06-21T10:54:14
A199: 935152 | B199: p | C199: 637724 | D199: p | E199: Bronze | F199: 16 | G199: 11 | H199: 387 | I199: 2014-04-19 | J199: 6 days | K199: 2014-06-21T10:54:14
A200: 1891455 | B200: r | C200: 1033340 | D200: r | E200: Bronze | F200: 14 | G200: 6 | H200: 386 | I200: 2014-05-01 | J200: 7 days | K200: 2014-06-21T10:54:14
... 4300 more rows

Sheet 3v3 Team
A1: Player 1 ID | B1: Race 1 | C1: Player 2 ID | D1: Race 2 | E1: Player 3 ID | F1: Race 3 | G1: League | H1: Wins | I1: Losses | J1: Score | K1: JoinDate | L1: Last Game | M1: Timestamp
A2: 1372766 | B2: p | C2: 736550 | D2: t | E2: 526545 | F2: p | G2: Bronze | H2: 25 | I2: 26 | J2: 517 | K2: 2014-05-06 | L2: 1 days | M2: 2014-06-21T11:00:39
A3: 4500925 | B3: r | C3: 3334727 | D3: z | E3: 943210 | F3: r | G3: Bronze | H3: 27 | I3: 28 | J3: 472 | K3: 2014-05-05 | L3: 5 days | M3: 2014-06-21T11:00:39
A4: 202439 | B4: r | C4: 187460 | D4: r | E4: 56469 | F4: t | G4: Bronze | H4: 21 | I4: 16 | J4: 458 | K4: 2014-05-01 | L4: 6 days | M4: 2014-06-21T11:00:39
A5: 4042650 | B5: p | C5: 2401771 | D5: r | E5: 431664 | F5: r | G5: Bronze | H5: 35 | I5: 47 | J5: 454 | K5: 2014-04-17 | L5: 1 days | M5: 2014-06-21T11:00:39
A6: 4550712 | B6: t | C6: 4342969 | D6: t | E6: 4339493 | F6: z | G6: Bronze | H6: 23 | I6: 22 | J6: 453 | K6: 2014-05-08 | L6: 2 days | M6: 2014-06-21T11:00:39
A7: 818670 | B7: r | C7: 684596 | D7: p | E7: 383190 | F7: r | G7: Bronze | H7: 41 | I7: 46 | J7: 450 | K7: 2014-04-19 | L7: 13 days | M7: 2014-06-21T11:00:39
A8: 3840572 | B8: z | C8: 539501 | D8: p | E8: 324958 | F8: t | G8: Bronze | H8: 32 | I8: 52 | J8: 436 | K8: 2014-04-13 | L8: 22 hours | M8: 2014-06-21T11:00:39
A9: 850376 | B9: z | C9: 849581 | D9: p | E9: 848774 | F9: t | G9: Bronze | H9: 16 | I9: 8 | J9: 434 | K9: 2014-04-30 | L9: 16 minutes | M9: 2014-06-21T11:00:39
A10: 4364342 | B10: p | C10: 4346756 | D10: t | E10: 1883978 | F10: t | G10: Bronze | H10: 15 | I10: 8 | J10: 420 | K10: 2014-05-02 | L10: 15 days | M10: 2014-06-21T11:00:39
A11: 2725121 | B11: t | C11: 2404138 | D11: z | E11: 424816 | F11: r | G11: Bronze | H11: 18 | I11: 21 | J11: 418 | K11: 2014-04-15 | L11: 2 days | M11: 2014-06-21T11:00:39
A12: 609204 | B12: p | C12: 448769 | D12: t | E12: 414582 | F12: t | G12: Bronze | H12: 14 | I12: 21 | J12: 413 | K12: 2014-05-24 | L12: 41 minutes | M12: 2014-06-21T11:00:39
A13: 3120433 | B13: z | C13: 2576239 | D13: p | E13: 501579 | F13: t | G13: Bronze | H13: 13 | I13: 6 | J13: 410 | K13: 2014-05-05 | L13: 8 days | M13: 2014-06-21T11:00:39
A14: 453300 | B14: p | C14: 134936 | D14: t | E14: 90881 | F14: z | G14: Bronze | H14: 15 | I14: 19 | J14: 410 | K14: 2014-06-09 | L14: 1 days | M14: 2014-06-21T11:00:39
A15: 2922534 | B15: r | C15: 1898237 | D15: r | E15: 877063 | F15: r | G15: Bronze | H15: 13 | I15: 14 | J15: 404 | K15: 2014-06-14 | L15: 5 days | M15: 2014-06-21T11:00:39
A16: 1270244 | B16: p | C16: 711372 | D16: p | E16: 465616 | F16: r | G16: Bronze | H16: 16 | I16: 6 | J16: 402 | K16: 2014-04-29 | L16: 6 days | M16: 2014-06-21T11:00:39
A17: 3490570 | B17: t | C17: 3138835 | D17: r | E17: 2588282 | F17: p | G17: Bronze | H17: 20 | I17: 9 | J17: 400 | K17: 2014-04-17 | L17: 43 days | M17: 2014-06-21T11:00:39
A18: 3209465 | B18: p | C18: 1124863 | D18: p | E18: 353800 | F18: z | G18: Bronze | H18: 20 | I18: 28 | J18: 399 | K18: 2014-04-17 | L18: 10 days | M18: 2014-06-21T11:00:39
A19: 3314910 | B19: p | C19: 3303262 | D19: r | E19: 1177363 | F19: t | G19: Bronze | H19: 28 | I19: 43 | J19: 399 | K19: 2014-05-18 | L19: 6 days | M19: 2014-06-21T11:00:39
A20: 4486856 | B20: t | C20: 3204117 | D20: p | E20: 567618 | F20: t | G20: Bronze | H20: 16 | I20: 21 | J20: 393 | K20: 2014-05-02 | L20: 14 days | M20: 2014-06-21T11:00:39
A21: 205935 | B21: t | C21: 134936 | D21: p | E21: 90881 | F21: p | G21: Bronze | H21: 17 | I21: 18 | J21: 387 | K21: 2014-05-24 | L21: 23 hours | M21: 2014-06-21T11:00:39
A22: 4516464 | B22: t | C22: 3954966 | D22: r | E22: 1228226 | F22: p | G22: Bronze | H22: 37 | I22: 33 | J22: 386 | K22: 2014-04-19 | L22: 24 days | M22: 2014-06-21T11:00:39
A23: 775000 | B23: t | C23: 769884 | D23: t | E23: 691255 | F23: z | G23: Bronze | H23: 18 | I23: 16 | J23: 385 | K23: 2014-04-21 | L23: 8 days | M23: 2014-06-21T11:00:39
A24: 4626231 | B24: p | C24: 4312506 | D24: z | E24: 4130806 | F24: p | G24: Bronze | H24: 13 | I24: 6 | J24: 382 | K24: 2014-06-17 | L24: 3 days | M24: 2014-06-21T11:00:39
A25: 4613199 | B25: p | C25: 4506004 | D25: p | E25: 3051197 | F25: p | G25: Bronze | H25: 10 | I25: 9 | J25: 380 | K25: 2014-05-06 | L25: 6 days | M25: 2014-06-21T11:00:39
A26: 4529388 | B26: r | C26: 636729 | D26: t | E26: 144083 | F26: t | G26: Bronze | H26: 75 | I26: 133 | J26: 379 | K26: 2014-05-25 | L26: 22 hours | M26: 2014-06-21T11:00:39
A27: 1452177 | B27: r | C27: 605087 | D27: r | E27: 143973 | F27: r | G27: Bronze | H27: 13 | I27: 12 | J27: 376 | K27: 2014-06-01 | L27: 13 days | M27: 2014-06-21T11:00:39
A28: 4645359 | B28: p | C28: 4615104 | D28: t | E28: 4497939 | F28: z | G28: Bronze | H28: 13 | I28: 16 | J28: 372 | K28: 2014-06-12 | L28: 2 days | M28: 2014-06-21T11:00:39
A29: 2392815 | B29: t | C29: 213521 | D29: p | E29: 130216 | F29: t | G29: Bronze | H29: 13 | I29: 11 | J29: 364 | K29: 2014-05-04 | L29: 1 days | M29: 2014-06-21T11:00:39
A30: 4460177 | B30: p | C30: 4445168 | D30: z | E30: 3078314 | F30: t | G30: Bronze | H30: 10 | I30: 24 | J30: 360 | K30: 2014-05-23 | L30: 1 days | M30: 2014-06-21T11:00:39
A31: 3086007 | B31: p | C31: 1477058 | D31: r | E31: 970853 | F31: r | G31: Bronze | H31: 18 | I31: 24 | J31: 358 | K31: 2014-04-19 | L31: 7 days | M31: 2014-06-21T11:00:39
A32: 909359 | B32: r | C32: 202439 | D32: r | E32: 56469 | F32: t | G32: Bronze | H32: 11 | I32: 6 | J32: 356 | K32: 2014-05-10 | L32: 2 days | M32: 2014-06-21T11:00:39
A33: 889845 | B33: r | C33: 370343 | D33: r | E33: 332905 | F33: r | G33: Bronze | H33: 16 | I33: 19 | J33: 355 | K33: 2014-04-22 | L33: 2 days | M33: 2014-06-21T11:00:39
A34: 4656188 | B34: p | C34: 559547 | D34: t | E34: 383990 | F34: z | G34: Bronze | H34: 14 | I34: 17 | J34: 354 | K34: 2014-06-01 | L34: 13 days | M34: 2014-06-21T11:00:39
A35: 4651081 | B35: t | C35: 4138538 | D35: z | E35: 4128183 | F35: p | G35: Bronze | H35: 13 | I35: 8 | J35: 352 | K35: 2014-05-26 | L35: 25 days | M35: 2014-06-21T11:00:39
A36: 1067190 | B36: p | C36: 584044 | D36: p | E36: 274575 | F36: p | G36: Bronze | H36: 17 | I36: 21 | J36: 348 | K36: 2014-04-27 | L36: 18 days | M36: 2014-06-21T11:00:39
A37: 3687780 | B37: p | C37: 1277962 | D37: t | E37: 842430 | F37: z | G37: Bronze | H37: 17 | I37: 18 | J37: 347 | K37: 2014-04-19 | L37: 6 days | M37: 2014-06-21T11:00:39
A38: 2464646 | B38: p | C38: 1312974 | D38: p | E38: 1045266 | F38: t | G38: Bronze | H38: 20 | I38: 14 | J38: 344 | K38: 2014-04-14 | L38: 31 days | M38: 2014-06-21T11:00:39
A39: 710474 | B39: t | C39: 228266 | D39: p | E39: 89063 | F39: r | G39: Bronze | H39: 16 | I39: 11 | J39: 340 | K39: 2014-04-19 | L39: 41 days | M39: 2014-06-21T11:00:39
A40: 1950806 | B40: p | C40: 853430 | D40: z | E40: 324089 | F40: z | G40: Bronze | H40: 12 | I40: 6 | J40: 338 | K40: 2014-04-16 | L40: 8 days | M40: 2014-06-21T11:00:39
A41: 3654915 | B41: z | C41: 3360325 | D41: p | E41: 1940812 | F41: p | G41: Bronze | H41: 13 | I41: 1 | J41: 337 | K41: 2014-04-18 | L41: 38 days | M41: 2014-06-21T11:00:40
A42: 1678308 | B42: r | C42: 256103 | D42: z | E42: 180697 | F42: p | G42: Bronze | H42: 14 | I42: 2 | J42: 336 | K42: 2014-05-05 | L42: 47 days | M42: 2014-06-21T11:00:40
A43: 4254213 | B43: p | C43: 1094100 | D43: r | E43: 999644 | F43: t | G43: Bronze | H43: 10 | I43: 7 | J43: 336 | K43: 2014-04-29 | L43: 16 days | M43: 2014-06-21T11:00:40
A44: 1503689 | B44: t | C44: 1008919 | D44: z | E44: 507552 | F44: p | G44: Bronze | H44: 17 | I44: 19 | J44: 336 | K44: 2014-04-18 | L44: 16 days | M44: 2014-06-21T11:00:40
A45: 2511507 | B45: t | C45: 1224310 | D45: z | E45: 1224179 | F45: p | G45: Bronze | H45: 11 | I45: 18 | J45: 336 | K45: 2014-05-25 | L45: 7 days | M45: 2014-06-21T11:00:40
A46: 3781600 | B46: p | C46: 3343074 | D46: t | E46: 1365820 | F46: r | G46: Bronze | H46: 26 | I46: 28 | J46: 333 | K46: 2014-05-03 | L46: 22 hours | M46: 2014-06-21T11:00:40
A47: 1113520 | B47: p | C47: 775537 | D47: t | E47: 774093 | F47: p | G47: Bronze | H47: 12 | I47: 14 | J47: 330 | K47: 2014-04-24 | L47: 5 days | M47: 2014-06-21T11:00:40
A48: 857009 | B48: p | C48: 750152 | D48: t | E48: 549600 | F48: p | G48: Bronze | H48: 12 | I48: 12 | J48: 326 | K48: 2014-05-19 | L48: 12 days | M48: 2014-06-21T11:00:40
A49: 901641 | B49: r | C49: 697741 | D49: r | E49: 696472 | F49: t | G49: Bronze | H49: 10 | I49: 11 | J49: 326 | K49: 2014-05-23 | L49: 16 days | M49: 2014-06-21T11:00:40
A50: 1001409 | B50: t | C50: 977620 | D50: z | E50: 922344 | F50: p | G50: Bronze | H50: 10 | I50: 7 | J50: 320 | K50: 2014-05-30 | L50: 13 days | M50: 2014-06-21T11:00:40
A51: 931009 | B51: p | C51: 758561 | D51: z | E51: 683305 | F51: p | G51: Bronze | H51: 11 | I51: 12 | J51: 320 | K51: 2014-05-15 | L51: 17 days | M51: 2014-06-21T11:00:40
A52: 3726036 | B52: t | C52: 474761 | D52: t | E52: 123137 | F52: t | G52: Bronze | H52: 11 | I52: 11 | J52: 318 | K52: 2014-05-15 | L52: 15 days | M52: 2014-06-21T11:00:40
A53: 3929235 | B53: p | C53: 1187408 | D53: t | E53: 1154332 | F53: r | G53: Bronze | H53: 9 | I53: 19 | J53: 318 | K53: 2014-05-31 | L53: 18 days | M53: 2014-06-21T11:00:40
A54: 1349852 | B54: t | C54: 714281 | D54: p | E54: 713462 | F54: p | G54: Bronze | H54: 13 | I54: 14 | J54: 316 | K54: 2014-06-12 | L54: 2 days | M54: 2014-06-21T11:00:40
A55: 1285834 | B55: z | C55: 1032277 | D55: z | E55: 729577 | F55: z | G55: Bronze | H55: 10 | I55: 9 | J55: 312 | K55: 2014-05-01 | L55: 26 days | M55: 2014-06-21T11:00:40
A56: 1299128 | B56: p | C56: 1298886 | D56: p | E56: 832584 | F56: t | G56: Bronze | H56: 10 | I56: 25 | J56: 312 | K56: 2014-06-01 | L56: 5 days | M56: 2014-06-21T11:00:40
A57: 4644353 | B57: t | C57: 4643172 | D57: z | E57: 4483976 | F57: p | G57: Bronze | H57: 11 | I57: 16 | J57: 311 | K57: 2014-05-17 | L57: 28 days | M57: 2014-06-21T11:00:40
A58: 1962351 | B58: r | C58: 1619722 | D58: r | E58: 763280 | F58: t | G58: Bronze | H58: 12 | I58: 9 | J58: 309 | K58: 2014-04-29 | L58: 9 days | M58: 2014-06-21T11:00:40
A59: 4105181 | B59: p | C59: 4105061 | D59: p | E59: 590022 | F59: r | G59: Bronze | H59: 13 | I59: 3 | J59: 304 | K59: 2014-04-20 | L59: 41 days | M59: 2014-06-21T11:00:40
A60: 442723 | B60: p | C60: 295701 | D60: z | E60: 293762 | F60: t | G60: Bronze | H60: 11 | I60: 6 | J60: 302 | K60: 2014-04-18 | L60: 23 days | M60: 2014-06-21T11:00:40
A61: 784671 | B61: p | C61: 770905 | D61: p | E61: 602856 | F61: t | G61: Bronze | H61: 13 | I61: 10 | J61: 301 | K61: 2014-04-23 | L61: 39 days | M61: 2014-06-21T11:00:40
A62: 675856 | B62: z | C62: 225164 | D62: p | E62: 110265 | F62: t | G62: Bronze | H62: 17 | I62: 20 | J62: 295 | K62: 2014-04-17 | L62: 21 days | M62: 2014-06-21T11:00:40
A63: 3346958 | B63: r | C63: 2018269 | D63: r | E63: 929804 | F63: t | G63: Bronze | H63: 9 | I63: 1 | J63: 294 | K63: 2014-04-22 | L63: 21 days | M63: 2014-06-21T11:00:40
A64: 1624197 | B64: t | C64: 1488957 | D64: r | E64: 1487732 | F64: r | G64: Bronze | H64: 9 | I64: 7 | J64: 292 | K64: 2014-05-03 | L64: 14 days | M64: 2014-06-21T11:00:40
A65: 4629187 | B65: z | C65: 2619026 | D65: z | E65: 2539067 | F65: p | G65: Bronze | H65: 11 | I65: 13 | J65: 290 | K65: 2014-05-19 | L65: 30 days | M65: 2014-06-21T11:00:40
A66: 2465559 | B66: z | C66: 1848331 | D66: t | E66: 1257448 | F66: p | G66: Bronze | H66: 13 | I66: 5 | J66: 289 | K66: 2014-04-17 | L66: 36 days | M66: 2014-06-21T11:00:40
A67: 1047938 | B67: p | C67: 1008023 | D67: p | E67: 817702 | F67: t | G67: Bronze | H67: 9 | I67: 3 | J67: 285 | K67: 2014-05-09 | L67: 41 days | M67: 2014-06-21T11:00:40
A68: 1346079 | B68: r | C68: 809610 | D68: p | E68: 77962 | F68: t | G68: Bronze | H68: 20 | I68: 19 | J68: 284 | K68: 2014-04-19 | L68: 16 days | M68: 2014-06-21T11:00:40
A69: 3816575 | B69: p | C69: 1077070 | D69: p | E69: 813719 | F69: p | G69: Bronze | H69: 9 | I69: 9 | J69: 284 | K69: 2014-05-04 | L69: 5 days | M69: 2014-06-21T11:00:40
A70: 1051942 | B70: p | C70: 915368 | D70: z | E70: 139251 | F70: t | G70: Bronze | H70: 10 | I70: 3 | J70: 282 | K70: 2014-05-13 | L70: 9 days | M70: 2014-06-21T11:00:40
A71: 4342634 | B71: p | C71: 870961 | D71: t | E71: 729347 | F71: p | G71: Bronze | H71: 10 | I71: 9 | J71: 282 | K71: 2014-04-25 | L71: 17 days | M71: 2014-06-21T11:00:40
A72: 4638052 | B72: t | C72: 3779975 | D72: z | E72: 1449545 | F72: t | G72: Bronze | H72: 12 | I72: 22 | J72: 282 | K72: 2014-05-29 | L72: 1 days | M72: 2014-06-21T11:00:40
A73: 4353922 | B73: r | C73: 3336119 | D73: t | E73: 1063466 | F73: t | G73: Bronze | H73: 14 | I73: 14 | J73: 281 | K73: 2014-04-28 | L73: 36 days | M73: 2014-06-21T11:00:40
A74: 1369439 | B74: r | C74: 892431 | D74: p | E74: 636887 | F74: r | G74: Bronze | H74: 9 | I74: 3 | J74: 280 | K74: 2014-04-22 | L74: 34 days | M74: 2014-06-21T11:00:40
A75: 225107 | B75: p | C75: 224979 | D75: r | E75: 222823 | F75: t | G75: Bronze | H75: 12 | I75: 13 | J75: 278 | K75: 2014-04-27 | L75: 28 days | M75: 2014-06-21T11:00:40
A76: 1701422 | B76: z | C76: 1237952 | D76: t | E76: 913223 | F76: t | G76: Bronze | H76: 6 | I76: 3 | J76: 276 | K76: 2014-04-18 | L76: 41 days | M76: 2014-06-21T11:00:40
A77: 1802112 | B77: z | C77: 776380 | D77: t | E77: 776140 | F77: p | G77: Bronze | H77: 9 | I77: 10 | J77: 276 | K77: 2014-06-21 | L77: 7 hours | M77: 2014-06-21T11:00:40
A78: 4137721 | B78: p | C78: 2305282 | D78: z | E78: 2274985 | F78: t | G78: Bronze | H78: 9 | I78: 3 | J78: 275 | K78: 2014-04-30 | L78: 44 days | M78: 2014-06-21T11:00:40
A79: 1077929 | B79: p | C79: 1036069 | D79: r | E79: 834689 | F79: t | G79: Bronze | H79: 7 | I79: 4 | J79: 275 | K79: 2014-05-05 | L79: 46 days | M79: 2014-06-21T11:00:40
A80: 2708582 | B80: p | C80: 2279665 | D80: t | E80: 1347227 | F80: t | G80: Bronze | H80: 7 | I80: 4 | J80: 274 | K80: 2014-06-04 | L80: 1 days | M80: 2014-06-21T11:00:40
A81: 389224 | B81: t | C81: 175702 | D81: r | E81: 175344 | F81: p | G81: Bronze | H81: 12 | I81: 8 | J81: 274 | K81: 2014-05-10 | L81: 39 days | M81: 2014-06-21T11:00:40
A82: 2846579 | B82: r | C82: 2131910 | D82: r | E82: 1018993 | F82: r | G82: Bronze | H82: 8 | I82: 7 | J82: 274 | K82: 2014-06-14 | L82: 21 hours | M82: 2014-06-21T11:00:40
A83: 4564898 | B83: p | C83: 4424263 | D83: t | E83: 3469797 | F83: z | G83: Bronze | H83: 8 | I83: 8 | J83: 270 | K83: 2014-04-25 | L83: 6 days | M83: 2014-06-21T11:00:40
A84: 775000 | B84: t | C84: 751688 | D84: p | E84: 691255 | F84: z | G84: Bronze | H84: 10 | I84: 13 | J84: 270 | K84: 2014-05-29 | L84: 1 days | M84: 2014-06-21T11:00:40
A85: 4310964 | B85: t | C85: 4186295 | D85: p | E85: 378590 | F85: r | G85: Bronze | H85: 8 | I85: 5 | J85: 268 | K85: 2014-05-24 | L85: 16 minutes | M85: 2014-06-21T11:00:40
A86: 759101 | B86: p | C86: 758237 | D86: t | E86: 181298 | F86: z | G86: Bronze | H86: 7 | I86: 1 | J86: 266 | K86: 2014-06-05 | L86: 37 minutes | M86: 2014-06-21T11:00:40
A87: 3657707 | B87: r | C87: 1709084 | D87: z | E87: 272984 | F87: t | G87: Bronze | H87: 8 | I87: 1 | J87: 265 | K87: 2014-04-15 | L87: 36 days | M87: 2014-06-21T11:00:40
A88: 4628748 | B88: t | C88: 3619872 | D88: p | E88: 1929345 | F88: z | G88: Bronze | H88: 14 | I88: 23 | J88: 265 | K88: 2014-05-13 | L88: 34 days | M88: 2014-06-21T11:00:40
A89: 1323045 | B89: t | C89: 604227 | D89: z | E89: 430007 | F89: t | G89: Bronze | H89: 8 | I89: 5 | J89: 264 | K89: 2014-04-27 | L89: 46 days | M89: 2014-06-21T11:00:40
A90: 4627335 | B90: p | C90: 4516464 | D90: t | E90: 3954966 | F90: t | G90: Bronze | H90: 9 | I90: 14 | J90: 264 | K90: 2014-05-07 | L90: 25 days | M90: 2014-06-21T11:00:40
A91: 1108440 | B91: p | C91: 615118 | D91: p | E91: 83183 | F91: t | G91: Bronze | H91: 7 | I91: 10 | J91: 262 | K91: 2014-05-30 | L91: 36 minutes | M91: 2014-06-21T11:00:40
A92: 683433 | B92: t | C92: 675814 | D92: z | E92: 577469 | F92: z | G92: Bronze | H92: 11 | I92: 3 | J92: 260 | K92: 2014-05-01 | L92: 13 days | M92: 2014-06-21T11:00:40
A93: 4421408 | B93: p | C93: 4103350 | D93: p | E93: 1648932 | F93: z | G93: Bronze | H93: 11 | I93: 6 | J93: 259 | K93: 2014-04-20 | L93: 9 days | M93: 2014-06-21T11:00:40
A94: 621135 | B94: z | C94: 440632 | D94: p | E94: 428581 | F94: t | G94: Bronze | H94: 11 | I94: 9 | J94: 259 | K94: 2014-04-27 | L94: 16 days | M94: 2014-06-21T11:00:40
A95: 4639116 | B95: t | C95: 4460032 | D95: p | E95: 4459330 | F95: t | G95: Bronze | H95: 10 | I95: 12 | J95: 258 | K95: 2014-05-10 | L95: 34 days | M95: 2014-06-21T11:00:40
A96: 3434911 | B96: p | C96: 3138059 | D96: p | E96: 2609315 | F96: t | G96: Bronze | H96: 21 | I96: 25 | J96: 257 | K96: 2014-05-05 | L96: 1 days | M96: 2014-06-21T11:00:40
A97: 3216310 | B97: p | C97: 3001892 | D97: z | E97: 77503 | F97: t | G97: Bronze | H97: 6 | I97: 5 | J97: 256 | K97: 2014-06-15 | L97: 3 days | M97: 2014-06-21T11:00:40
A98: 4480637 | B98: p | C98: 4407914 | D98: p | E98: 4404975 | F98: z | G98: Bronze | H98: 20 | I98: 26 | J98: 256 | K98: 2014-04-14 | L98: 14 days | M98: 2014-06-21T11:00:40
A99: 2289171 | B99: p | C99: 2042749 | D99: z | E99: 1171915 | F99: t | G99: Bronze | H99: 8 | I99: 10 | J99: 254 | K99: 2014-05-10 | L99: 25 days | M99: 2014-06-21T11:00:40
A100: 4136638 | B100: r | C100: 2170288 | D100: p | E100: 1964115 | F100: z | G100: Bronze | H100: 13 | I100: 17 | J100: 251 | K100: 2014-04-19 | L100: 34 days | M100: 2014-06-21T11:00:40
A101: 2503524 | B101: p | C101: 420093 | D101: p | E101: 368386 | F101: z | G101: Bronze | H101: 7 | I101: 2 | J101: 250 | K101: 2014-05-03 | L101: 4 days | M101: 2014-06-21T11:00:40
A102: 1075028 | B102: r | C102: 1074967 | D102: r | E102: 218138 | F102: r | G102: Bronze | H102: 9 | I102: 10 | J102: 249 | K102: 2014-04-17 | L102: 8 days | M102: 2014-06-21T11:00:40
A103: 1504545 | B103: t | C103: 627326 | D103: z | E103: 596835 | F103: p | G103: Bronze | H103: 13 | I103: 9 | J103: 248 | K103: 2014-04-19 | L103: 41 days | M103: 2014-06-21T11:00:40
A104: 1880294 | B104: p | C104: 1622137 | D104: t | E104: 816868 | F104: r | G104: Bronze | H104: 11 | I104: 12 | J104: 248 | K104: 2014-05-29 | L104: 2 days | M104: 2014-06-21T11:00:40
A105: 1332006 | B105: p | C105: 1210702 | D105: t | E105: 806906 | F105: z | G105: Bronze | H105: 10 | I105: 11 | J105: 248 | K105: 2014-06-06 | L105: 1 days | M105: 2014-06-21T11:00:40
A106: 1114281 | B106: r | C106: 679456 | D106: t | E106: 601333 | F106: r | G106: Bronze | H106: 6 | I106: 5 | J106: 246 | K106: 2014-05-09 | L106: 42 days | M106: 2014-06-21T11:00:40
A107: 4392371 | B107: p | C107: 3842314 | D107: t | E107: 289072 | F107: r | G107: Bronze | H107: 9 | I107: 9 | J107: 246 | K107: 2014-05-01 | L107: 33 days | M107: 2014-06-21T11:00:40
A108: 882152 | B108: p | C108: 565962 | D108: z | E108: 255564 | F108: p | G108: Bronze | H108: 19 | I108: 26 | J108: 245 | K108: 2014-04-20 | L108: 52 days | M108: 2014-06-21T11:00:40
A109: 3941100 | B109: t | C109: 3932970 | D109: z | E109: 3785446 | F109: p | G109: Bronze | H109: 7 | I109: 2 | J109: 244 | K109: 2014-05-17 | L109: 35 days | M109: 2014-06-21T11:00:40
A110: 4225569 | B110: t | C110: 2867418 | D110: p | E110: 1232463 | F110: r | G110: Bronze | H110: 8 | I110: 5 | J110: 244 | K110: 2014-05-08 | L110: 38 days | M110: 2014-06-21T11:00:40
A111: 1571646 | B111: p | C111: 1206679 | D111: p | E111: 244693 | F111: p | G111: Bronze | H111: 8 | I111: 21 | J111: 244 | K111: 2014-05-18 | L111: 7 hours | M111: 2014-06-21T11:00:40
A112: 4273758 | B112: p | C112: 3642092 | D112: p | E112: 2391340 | F112: r | G112: Bronze | H112: 13 | I112: 10 | J112: 242 | K112: 2014-05-05 | L112: 20 days | M112: 2014-06-21T11:00:40
A113: 2338603 | B113: p | C113: 2048173 | D113: t | E113: 213347 | F113: p | G113: Bronze | H113: 8 | I113: 4 | J113: 241 | K113: 2014-04-23 | L113: 41 days | M113: 2014-06-21T11:00:40
A114: 3148532 | B114: p | C114: 1687242 | D114: r | E114: 1555493 | F114: r | G114: Bronze | H114: 7 | I114: 5 | J114: 241 | K114: 2014-04-30 | L114: 42 days | M114: 2014-06-21T11:00:40
A115: 1026514 | B115: r | C115: 159192 | D115: t | E115: 36015 | F115: r | G115: Bronze | H115: 8 | I115: 7 | J115: 240 | K115: 2014-05-17 | L115: 30 days | M115: 2014-06-21T11:00:40
A116: 4563388 | B116: p | C116: 1201679 | D116: z | E116: 1146655 | F116: t | G116: Bronze | H116: 15 | I116: 22 | J116: 239 | K116: 2014-04-15 | L116: 36 days | M116: 2014-06-21T11:00:40
A117: 1250894 | B117: z | C117: 893380 | D117: p | E117: 891557 | F117: z | G117: Bronze | H117: 14 | I117: 9 | J117: 238 | K117: 2014-04-20 | L117: 46 days | M117: 2014-06-21T11:00:40
A118: 873352 | B118: t | C118: 861405 | D118: t | E118: 570903 | F118: p | G118: Bronze | H118: 7 | I118: 5 | J118: 238 | K118: 2014-05-02 | L118: 31 days | M118: 2014-06-21T11:00:40
A119: 4417177 | B119: z | C119: 3057100 | D119: r | E119: 1060293 | F119: t | G119: Bronze | H119: 12 | I119: 17 | J119: 238 | K119: 2014-04-26 | L119: 41 days | M119: 2014-06-21T11:00:40
A120: 998278 | B120: z | C120: 835339 | D120: z | E120: 349134 | F120: p | G120: Bronze | H120: 8 | I120: 5 | J120: 236 | K120: 2014-05-01 | L120: 46 days | M120: 2014-06-21T11:00:40
A121: 4282358 | B121: p | C121: 2835883 | D121: z | E121: 663174 | F121: r | G121: Bronze | H121: 9 | I121: 6 | J121: 234 | K121: 2014-05-09 | L121: 7 days | M121: 2014-06-21T11:00:40
A122: 3709217 | B122: p | C122: 1650868 | D122: z | E122: 1287513 | F122: z | G122: Bronze | H122: 8 | I122: 9 | J122: 234 | K122: 2014-05-02 | L122: 49 days | M122: 2014-06-21T11:00:40
A123: 4575101 | B123: t | C123: 1473216 | D123: z | E123: 1130272 | F123: p | G123: Bronze | H123: 9 | I123: 12 | J123: 234 | K123: 2014-04-24 | L123: 16 days | M123: 2014-06-21T11:00:40
A124: 4626375 | B124: z | C124: 3459618 | D124: r | E124: 1163453 | F124: t | G124: Bronze | H124: 19 | I124: 29 | J124: 234 | K124: 2014-05-04 | L124: 27 days | M124: 2014-06-21T11:00:40
A125: 856436 | B125: t | C125: 816979 | D125: t | E125: 813395 | F125: z | G125: Bronze | H125: 14 | I125: 34 | J125: 233 | K125: 2014-05-24 | L125: 6 days | M125: 2014-06-21T11:00:40
A126: 2946471 | B126: z | C126: 1910703 | D126: z | E126: 1580144 | F126: t | G126: Bronze | H126: 9 | I126: 0 | J126: 231 | K126: 2014-04-23 | L126: 50 days | M126: 2014-06-21T11:00:40
A127: 4349167 | B127: p | C127: 1318842 | D127: t | E127: 609773 | F127: z | G127: Bronze | H127: 7 | I127: 7 | J127: 231 | K127: 2014-04-21 | L127: 40 days | M127: 2014-06-21T11:00:40
A128: 1190855 | B128: t | C128: 1076774 | D128: z | E128: 1009758 | F128: z | G128: Bronze | H128: 7 | I128: 5 | J128: 230 | K128: 2014-06-10 | L128: 3 days | M128: 2014-06-21T11:00:40
A129: 972722 | B129: t | C129: 842504 | D129: t | E129: 99042 | F129: t | G129: Bronze | H129: 7 | I129: 1 | J129: 228 | K129: 2014-06-20 | L129: 1 days | M129: 2014-06-21T11:00:40
A130: 4090261 | B130: r | C130: 1156383 | D130: p | E130: 698013 | F130: r | G130: Bronze | H130: 9 | I130: 2 | J130: 228 | K130: 2014-04-17 | L130: 39 days | M130: 2014-06-21T11:00:40
A131: 1216969 | B131: z | C131: 1099582 | D131: z | E131: 137036 | F131: t | G131: Bronze | H131: 7 | I131: 2 | J131: 228 | K131: 2014-04-19 | L131: 21 hours | M131: 2014-06-21T11:00:40
A132: 1378205 | B132: p | C132: 1155798 | D132: p | E132: 198031 | F132: t | G132: Bronze | H132: 8 | I132: 3 | J132: 228 | K132: 2014-05-24 | L132: 17 days | M132: 2014-06-21T11:00:40
A133: 4498766 | B133: p | C133: 2310241 | D133: z | E133: 2194517 | F133: r | G133: Bronze | H133: 7 | I133: 7 | J133: 228 | K133: 2014-04-26 | L133: 21 days | M133: 2014-06-21T11:00:40
A134: 649101 | B134: p | C134: 457106 | D134: r | E134: 455073 | F134: p | G134: Bronze | H134: 10 | I134: 20 | J134: 228 | K134: 2014-04-19 | L134: 7 days | M134: 2014-06-21T11:00:40
A135: 4450291 | B135: r | C135: 2942666 | D135: t | E135: 2722108 | F135: r | G135: Bronze | H135: 6 | I135: 11 | J135: 226 | K135: 2014-06-06 | L135: 2 days | M135: 2014-06-21T11:00:40
A136: 1329112 | B136: t | C136: 1183948 | D136: t | E136: 1084902 | F136: p | G136: Bronze | H136: 10 | I136: 3 | J136: 225 | K136: 2014-04-20 | L136: 29 days | M136: 2014-06-21T11:00:40
A137: 4511545 | B137: t | C137: 1748591 | D137: p | E137: 189469 | F137: p | G137: Bronze | H137: 11 | I137: 6 | J137: 225 | K137: 2014-04-15 | L137: 47 days | M137: 2014-06-21T11:00:40
A138: 708234 | B138: r | C138: 707836 | D138: r | E138: 537146 | F138: r | G138: Bronze | H138: 7 | I138: 1 | J138: 224 | K138: 2014-05-05 | L138: 46 days | M138: 2014-06-21T11:00:40
A139: 3667135 | B139: p | C139: 1050450 | D139: p | E139: 788868 | F139: t | G139: Bronze | H139: 7 | I139: 4 | J139: 224 | K139: 2014-04-19 | L139: 13 days | M139: 2014-06-21T11:00:40
A140: 1366178 | B140: z | C140: 543399 | D140: t | E140: 181994 | F140: t | G140: Bronze | H140: 6 | I140: 5 | J140: 224 | K140: 2014-05-06 | L140: 46 days | M140: 2014-06-21T11:00:40
A141: 800301 | B141: r | C141: 735078 | D141: t | E141: 604416 | F141: t | G141: Bronze | H141: 6 | I141: 11 | J141: 222 | K141: 2014-05-05 | L141: 40 days | M141: 2014-06-21T11:00:41
A142: 1399308 | B142: r | C142: 874263 | D142: p | E142: 226866 | F142: z | G142: Bronze | H142: 5 | I142: 17 | J142: 222 | K142: 2014-05-15 | L142: 17 days | M142: 2014-06-21T11:00:41
A143: 3787199 | B143: t | C143: 1195425 | D143: p | E143: 269954 | F143: z | G143: Bronze | H143: 9 | I143: 7 | J143: 221 | K143: 2014-04-28 | L143: 49 days | M143: 2014-06-21T11:00:41
A144: 3785820 | B144: t | C144: 2528902 | D144: p | E144: 1425255 | F144: z | G144: Bronze | H144: 11 | I144: 11 | J144: 221 | K144: 2014-04-26 | L144: 33 days | M144: 2014-06-21T11:00:41
A145: 1052844 | B145: t | C145: 985822 | D145: t | E145: 217688 | F145: t | G145: Bronze | H145: 17 | I145: 22 | J145: 221 | K145: 2014-05-02 | L145: 2 days | M145: 2014-06-21T11:00:41
A146: 4628748 | B146: z | C146: 3619872 | D146: p | E146: 3345396 | F146: p | G146: Bronze | H146: 7 | I146: 12 | J146: 220 | K146: 2014-05-12 | L146: 32 days | M146: 2014-06-21T11:00:41
A147: 1709902 | B147: p | C147: 1060319 | D147: t | E147: 155432 | F147: p | G147: Bronze | H147: 7 | I147: 1 | J147: 218 | K147: 2014-05-24 | L147: 7 days | M147: 2014-06-21T11:00:41
A148: 1013502 | B148: t | C148: 607319 | D148: p | E148: 259223 | F148: p | G148: Bronze | H148: 7 | I148: 11 | J148: 218 | K148: 2014-06-19 | L148: 23 hours | M148: 2014-06-21T11:00:41
A149: 2566784 | B149: p | C149: 2224939 | D149: z | E149: 835065 | F149: t | G149: Bronze | H149: 8 | I149: 8 | J149: 217 | K149: 2014-04-25 | L149: 43 days | M149: 2014-06-21T11:00:41
A150: 1334367 | B150: t | C150: 1266281 | D150: p | E150: 637235 | F150: t | G150: Bronze | H150: 7 | I150: 8 | J150: 216 | K150: 2014-05-02 | L150: 16 days | M150: 2014-06-21T11:00:41
A151: 482929 | B151: r | C151: 244073 | D151: r | E151: 213693 | F151: r | G151: Bronze | H151: 9 | I151: 3 | J151: 215 | K151: 2014-05-02 | L151: 49 days | M151: 2014-06-21T11:00:41
A152: 4321231 | B152: t | C152: 1461053 | D152: p | E152: 1055491 | F152: p | G152: Bronze | H152: 7 | I152: 10 | J152: 215 | K152: 2014-05-02 | L152: 50 days | M152: 2014-06-21T11:00:41
A153: 1688546 | B153: r | C153: 1234600 | D153: r | E153: 1082239 | F153: r | G153: Bronze | H153: 6 | I153: 6 | J153: 214 | K153: 2014-05-03 | L153: 21 days | M153: 2014-06-21T11:00:41
A154: 1333975 | B154: p | C154: 934902 | D154: r | E154: 582221 | F154: t | G154: Bronze | H154: 11 | I154: 21 | J154: 214 | K154: 2014-05-04 | L154: 35 days | M154: 2014-06-21T11:00:41
A155: 3299890 | B155: p | C155: 2783340 | D155: t | E155: 2269388 | F155: p | G155: Bronze | H155: 6 | I155: 6 | J155: 212 | K155: 2014-05-10 | L155: 41 days | M155: 2014-06-21T11:00:41
A156: 4164432 | B156: t | C156: 1823454 | D156: z | E156: 616169 | F156: p | G156: Bronze | H156: 7 | I156: 10 | J156: 212 | K156: 2014-05-05 | L156: 47 days | M156: 2014-06-21T11:00:41
A157: 4408765 | B157: r | C157: 4292884 | D157: p | E157: 1302849 | F157: r | G157: Bronze | H157: 9 | I157: 4 | J157: 211 | K157: 2014-04-17 | L157: 22 days | M157: 2014-06-21T11:00:41
A158: 3528824 | B158: p | C158: 1857839 | D158: z | E158: 102551 | F158: z | G158: Bronze | H158: 14 | I158: 8 | J158: 211 | K158: 2014-04-18 | L158: 62 days | M158: 2014-06-21T11:00:41
A159: 3155616 | B159: p | C159: 2911698 | D159: p | E159: 2868383 | F159: p | G159: Bronze | H159: 9 | I159: 11 | J159: 210 | K159: 2014-04-19 | L159: 29 days | M159: 2014-06-21T11:00:41
A160: 3025383 | B160: z | C160: 2995500 | D160: p | E160: 120911 | F160: p | G160: Bronze | H160: 8 | I160: 10 | J160: 210 | K160: 2014-05-11 | L160: 35 days | M160: 2014-06-21T11:00:41
A161: 3535104 | B161: p | C161: 325795 | D161: t | E161: 266715 | F161: t | G161: Bronze | H161: 9 | I161: 19 | J161: 209 | K161: 2014-05-05 | L161: 28 days | M161: 2014-06-21T11:00:41
A162: 4501965 | B162: r | C162: 2413061 | D162: r | E162: 505073 | F162: r | G162: Bronze | H162: 6 | I162: 1 | J162: 208 | K162: 2014-04-17 | L162: 48 days | M162: 2014-06-21T11:00:41
A163: 3652260 | B163: t | C163: 3635315 | D163: p | E163: 3158528 | F163: t | G163: Bronze | H163: 7 | I163: 5 | J163: 208 | K163: 2014-04-16 | L163: 9 days | M163: 2014-06-21T11:00:41
A164: 744706 | B164: p | C164: 643152 | D164: z | E164: 157700 | F164: t | G164: Bronze | H164: 8 | I164: 6 | J164: 208 | K164: 2014-05-04 | L164: 27 days | M164: 2014-06-21T11:00:41
A165: 1301673 | B165: z | C165: 1296573 | D165: t | E165: 1245378 | F165: p | G165: Bronze | H165: 19 | I165: 21 | J165: 207 | K165: 2014-04-15 | L165: 50 days | M165: 2014-06-21T11:00:41
A166: 4464075 | B166: p | C166: 4463117 | D166: r | E166: 4463062 | F166: z | G166: Bronze | H166: 8 | I166: 9 | J166: 207 | K166: 2014-04-29 | L166: 42 days | M166: 2014-06-21T11:00:41
A167: 3242800 | B167: r | C167: 3119393 | D167: p | E167: 1307026 | F167: t | G167: Bronze | H167: 5 | I167: 3 | J167: 206 | K167: 2014-05-01 | L167: 51 days | M167: 2014-06-21T11:00:41
A168: 3209465 | B168: p | C168: 2438529 | D168: p | E168: 353800 | F168: z | G168: Bronze | H168: 7 | I168: 8 | J168: 206 | K168: 2014-05-31 | L168: 7 days | M168: 2014-06-21T11:00:41
A169: 551170 | B169: p | C169: 476546 | D169: p | E169: 402288 | F169: t | G169: Bronze | H169: 6 | I169: 2 | J169: 205 | K169: 2014-05-03 | L169: 49 days | M169: 2014-06-21T11:00:41
A170: 928337 | B170: p | C170: 904416 | D170: z | E170: 859323 | F170: t | G170: Bronze | H170: 12 | I170: 15 | J170: 205 | K170: 2014-05-03 | L170: 33 days | M170: 2014-06-21T11:00:41
A171: 4072251 | B171: r | C171: 1412807 | D171: r | E171: 1174132 | F171: p | G171: Bronze | H171: 7 | I171: 3 | J171: 203 | K171: 2014-05-04 | L171: 48 days | M171: 2014-06-21T11:00:41
A172: 493080 | B172: z | C172: 84231 | D172: z | E172: 48364 | F172: r | G172: Bronze | H172: 7 | I172: 4 | J172: 203 | K172: 2014-04-24 | L172: 48 days | M172: 2014-06-21T11:00:41
A173: 4147304 | B173: r | C173: 4130433 | D173: r | E173: 3004995 | F173: r | G173: Bronze | H173: 8 | I173: 3 | J173: 202 | K173: 2014-05-03 | L173: 46 days | M173: 2014-06-21T11:00:41
A174: 2615430 | B174: r | C174: 2298112 | D174: p | E174: 812541 | F174: t | G174: Bronze | H174: 8 | I174: 4 | J174: 202 | K174: 2014-05-02 | L174: 29 days | M174: 2014-06-21T11:00:41
A175: 650514 | B175: p | C175: 90707 | D175: z | E175: 85536 | F175: p | G175: Bronze | H175: 9 | I175: 3 | J175: 201 | K175: 2014-04-14 | L175: 45 days | M175: 2014-06-21T11:00:41
A176: 1053045 | B176: t | C176: 860025 | D176: r | E176: 552199 | F176: t | G176: Bronze | H176: 6 | I176: 3 | J176: 201 | K176: 2014-04-27 | L176: 49 days | M176: 2014-06-21T11:00:41
A177: 3941537 | B177: p | C177: 1357276 | D177: p | E177: 936390 | F177: r | G177: Bronze | H177: 6 | I177: 3 | J177: 200 | K177: 2014-04-14 | L177: 18 days | M177: 2014-06-21T11:00:41
A178: 1361406 | B178: t | C178: 1093048 | D178: r | E178: 697025 | F178: r | G178: Bronze | H178: 6 | I178: 3 | J178: 200 | K178: 2014-06-05 | L178: 7 days | M178: 2014-06-21T11:00:41
A179: 2293274 | B179: p | C179: 1479756 | D179: t | E179: 1270455 | F179: r | G179: Bronze | H179: 7 | I179: 5 | J179: 200 | K179: 2014-04-19 | L179: 28 days | M179: 2014-06-21T11:00:41
A180: 2108703 | B180: p | C180: 663174 | D180: r | E180: 237449 | F180: z | G180: Bronze | H180: 7 | I180: 12 | J180: 200 | K180: 2014-05-10 | L180: 9 days | M180: 2014-06-21T11:00:41
A181: 3266054 | B181: p | C181: 3119351 | D181: t | E181: 1190087 | F181: t | G181: Bronze | H181: 7 | I181: 3 | J181: 199 | K181: 2014-05-01 | L181: 51 days | M181: 2014-06-21T11:00:41
A182: 4307580 | B182: z | C182: 2714178 | D182: t | E182: 1128465 | F182: p | G182: Bronze | H182: 7 | I182: 8 | J182: 198 | K182: 2014-04-16 | L182: 38 days | M182: 2014-06-21T11:00:41
A183: 655825 | B183: r | C183: 639961 | D183: r | E183: 609825 | F183: p | G183: Bronze | H183: 7 | I183: 1 | J183: 194 | K183: 2014-04-24 | L183: 36 days | M183: 2014-06-21T11:00:41
A184: 3667135 | B184: p | C184: 1622290 | D184: z | E184: 1050450 | F184: p | G184: Bronze | H184: 6 | I184: 6 | J184: 194 | K184: 2014-05-18 | L184: 16 days | M184: 2014-06-21T11:00:41
A185: 4055617 | B185: t | C185: 2149549 | D185: z | E185: 1467543 | F185: p | G185: Bronze | H185: 6 | I185: 6 | J185: 194 | K185: 2014-06-06 | L185: 13 days | M185: 2014-06-21T11:00:41
A186: 4581474 | B186: p | C186: 1482336 | D186: z | E186: 700975 | F186: r | G186: Bronze | H186: 7 | I186: 7 | J186: 194 | K186: 2014-06-09 | L186: 6 days | M186: 2014-06-21T11:00:41
A187: 813844 | B187: z | C187: 768677 | D187: z | E187: 768453 | F187: z | G187: Bronze | H187: 6 | I187: 7 | J187: 194 | K187: 2014-05-12 | L187: 31 days | M187: 2014-06-21T11:00:41
A188: 3513021 | B188: z | C188: 2082468 | D188: p | E188: 2081173 | F188: t | G188: Bronze | H188: 6 | I188: 3 | J188: 193 | K188: 2014-05-06 | L188: 46 days | M188: 2014-06-21T11:00:41
A189: 2787795 | B189: t | C189: 2602113 | D189: p | E189: 2282210 | F189: z | G189: Bronze | H189: 6 | I189: 4 | J189: 192 | K189: 2014-04-19 | L189: 34 days | M189: 2014-06-21T11:00:41
A190: 2748911 | B190: t | C190: 2019524 | D190: t | E190: 1021605 | F190: p | G190: Bronze | H190: 7 | I190: 5 | J190: 192 | K190: 2014-05-04 | L190: 48 days | M190: 2014-06-21T11:00:41
A191: 2010943 | B191: r | C191: 1561169 | D191: t | E191: 1438785 | F191: p | G191: Bronze | H191: 7 | I191: 5 | J191: 192 | K191: 2014-05-05 | L191: 13 days | M191: 2014-06-21T11:00:41
A192: 4526756 | B192: z | C192: 1866290 | D192: t | E192: 1442586 | F192: p | G192: Bronze | H192: 8 | I192: 9 | J192: 192 | K192: 2014-05-01 | L192: 47 days | M192: 2014-06-21T11:00:41
A193: 4575101 | B193: t | C193: 1130272 | D193: p | E193: 197607 | F193: r | G193: Bronze | H193: 8 | I193: 10 | J193: 192 | K193: 2014-04-28 | L193: 31 days | M193: 2014-06-21T11:00:41
A194: 957434 | B194: z | C194: 846666 | D194: t | E194: 468139 | F194: p | G194: Bronze | H194: 12 | I194: 19 | J194: 192 | K194: 2014-04-18 | L194: 21 days | M194: 2014-06-21T11:00:41
A195: 4594439 | B195: z | C195: 2749709 | D195: t | E195: 2279121 | F195: t | G195: Bronze | H195: 5 | I195: 9 | J195: 192 | K195: 2014-05-10 | L195: 41 days | M195: 2014-06-21T11:00:41
A196: 2496952 | B196: p | C196: 2496035 | D196: t | E196: 303926 | F196: p | G196: Bronze | H196: 5 | I196: 1 | J196: 190 | K196: 2014-06-01 | L196: 19 days | M196: 2014-06-21T11:00:41
A197: 1445693 | B197: p | C197: 989652 | D197: p | E197: 849640 | F197: z | G197: Bronze | H197: 7 | I197: 2 | J197: 190 | K197: 2014-05-03 | L197: 1 hours | M197: 2014-06-21T11:00:41
A198: 907212 | B198: p | C198: 861405 | D198: t | E198: 215735 | F198: p | G198: Bronze | H198: 5 | I198: 2 | J198: 190 | K198: 2014-05-09 | L198: 23 days | M198: 2014-06-21T11:00:41
A199: 4426815 | B199: p | C199: 4404975 | D199: p | E199: 1855320 | F199: z | G199: Bronze | H199: 7 | I199: 4 | J199: 190 | K199: 2014-05-12 | L199: 29 days | M199: 2014-06-21T11:00:41
A200: 1186137 | B200: t | C200: 1067669 | D200: p | E200: 761954 | F200: z | G200: Bronze | H200: 7 | I200: 6 | J200: 190 | K200: 2014-04-24 | L200: 2 days | M200: 2014-06-21T11:00:41
... 5201 more rows

Sheet 4v4 Team
A1: Player 1 ID | B1: Race 1 | C1: Player 2 ID | D1: Race 2 | E1: Player 3 ID | F1: Race 3 | G1: Player 4 ID | H1: Race 4 | I1: League | J1: Wins | K1: Losses | L1: Score | M1: JoinDate | N1: Last Game | O1: Timestamp
A2: 4365459 | B2: p | C2: 3836558 | D2: z | E2: 2868997 | F2: t | G2: 995985 | H2: t | I2: Bronze | J2: 13 | K2: 7 | L2: 399 | M2: 2014-05-01 | N2: 32 days | O2: 2014-06-21T11:02:19
A3: 4498766 | B3: p | C3: 2310241 | D3: z | E3: 2194517 | F3: r | G3: 465090 | H3: r | I3: Bronze | J3: 12 | K3: 7 | L3: 357 | M3: 2014-04-20 | N3: 13 days | O3: 2014-06-21T11:02:19
A4: 4562980 | B4: z | C4: 3443872 | D4: p | E4: 2169974 | F4: t | G4: 1871008 | H4: z | I4: Bronze | J4: 14 | K4: 6 | L4: 352 | M4: 2014-04-20 | N4: 50 days | O4: 2014-06-21T11:02:19
A5: 4663488 | B5: p | C5: 334608 | D5: z | E5: 308004 | F5: r | G5: 138976 | H5: t | I5: Bronze | J5: 11 | K5: 10 | L5: 352 | M5: 2014-06-10 | N5: 4 days | O5: 2014-06-21T11:02:19
A6: 4401800 | B6: r | C6: 4400012 | D6: p | E6: 4394227 | F6: r | G6: 4391533 | H6: r | I6: Bronze | J6: 10 | K6: 3 | L6: 344 | M6: 2014-05-02 | N6: 15 days | O6: 2014-06-21T11:02:19
A7: 782355 | B7: p | C7: 777977 | D7: t | E7: 770905 | F7: p | G7: 768644 | H7: z | I7: Bronze | J7: 16 | K7: 24 | L7: 340 | M7: 2014-04-24 | N7: 44 days | O7: 2014-06-21T11:02:19
A8: 4529388 | B8: r | C8: 2972858 | D8: t | E8: 636729 | F8: t | G8: 144083 | H8: z | I8: Bronze | J8: 8 | K8: 11 | L8: 326 | M8: 2014-04-22 | N8: 17 days | O8: 2014-06-21T11:02:19
A9: 800301 | B9: r | C9: 785527 | D9: r | E9: 735078 | F9: t | G9: 604416 | H9: t | I9: Bronze | J9: 17 | K9: 22 | L9: 317 | M9: 2014-04-25 | N9: 41 days | O9: 2014-06-21T11:02:19
A10: 4400750 | B10: p | C10: 4394415 | D10: t | E10: 4151752 | F10: t | G10: 4142903 | H10: t | I10: Bronze | J10: 8 | K10: 3 | L10: 306 | M10: 2014-05-14 | N10: 22 days | O10: 2014-06-21T11:02:19
A11: 4622915 | B11: t | C11: 2760966 | D11: t | E11: 1348995 | F11: z | G11: 667243 | H11: p | I11: Bronze | J11: 13 | K11: 13 | L11: 306 | M11: 2014-04-25 | N11: 49 days | O11: 2014-06-21T11:02:19
A12: 4597234 | B12: p | C12: 4392433 | D12: t | E12: 2736247 | F12: z | G12: 1920395 | H12: t | I12: Bronze | J12: 11 | K12: 7 | L12: 289 | M12: 2014-04-19 | N12: 48 days | O12: 2014-06-21T11:02:19
A13: 1829986 | B13: p | C13: 1196634 | D13: p | E13: 348128 | F13: t | G13: 275608 | H13: p | I13: Bronze | J13: 9 | K13: 20 | L13: 284 | M13: 2014-05-27 | N13: 18 days | O13: 2014-06-21T11:02:19
A14: 478482 | B14: r | C14: 191868 | D14: r | E14: 123806 | F14: p | G14: 112378 | H14: r | I14: Bronze | J14: 6 | K14: 6 | L14: 266 | M14: 2014-06-01 | N14: 15 days | O14: 2014-06-21T11:02:19
A15: 1297554 | B15: p | C15: 812645 | D15: t | E15: 807151 | F15: r | G15: 744311 | H15: p | I15: Bronze | J15: 7 | K15: 1 | L15: 246 | M15: 2014-04-26 | N15: 23 days | O15: 2014-06-21T11:02:19
A16: 4415551 | B16: r | C16: 4264274 | D16: r | E16: 2316533 | F16: p | G16: 776533 | H16: r | I16: Bronze | J16: 7 | K16: 2 | L16: 244 | M16: 2014-05-25 | N16: 12 days | O16: 2014-06-21T11:02:19
A17: 4569510 | B17: p | C17: 2045876 | D17: t | E17: 722791 | F17: z | G17: 215717 | H17: t | I17: Bronze | J17: 9 | K17: 3 | L17: 244 | M17: 2014-05-13 | N17: 24 days | O17: 2014-06-21T11:02:19
A18: 759101 | B18: r | C18: 464005 | D18: p | E18: 181298 | F18: z | G18: 83768 | H18: r | I18: Bronze | J18: 8 | K18: 2 | L18: 240 | M18: 2014-04-26 | N18: 56 days | O18: 2014-06-21T11:02:19
A19: 4459354 | B19: r | C19: 4071370 | D19: p | E19: 1267317 | F19: r | G19: 300634 | H19: z | I19: Bronze | J19: 7 | K19: 7 | L19: 238 | M19: 2014-05-08 | N19: 42 days | O19: 2014-06-21T11:02:19
A20: 2852617 | B20: z | C20: 1220696 | D20: r | E20: 821584 | F20: z | G20: 250988 | H20: z | I20: Bronze | J20: 8 | K20: 1 | L20: 236 | M20: 2014-04-27 | N20: 55 days | O20: 2014-06-21T11:02:19
A21: 2240116 | B21: t | C21: 2240078 | D21: t | E21: 422682 | F21: t | G21: 402183 | H21: p | I21: Bronze | J21: 9 | K21: 6 | L21: 234 | M21: 2014-05-02 | N21: 29 days | O21: 2014-06-21T11:02:19
A22: 3781600 | B22: r | C22: 3343074 | D22: t | E22: 1366024 | F22: z | G22: 1365820 | H22: r | I22: Bronze | J22: 8 | K22: 4 | L22: 230 | M22: 2014-06-20 | N22: 23 hours | O22: 2014-06-21T11:02:19
A23: 4225569 | B23: t | C23: 2867418 | D23: t | E23: 1232463 | F23: r | G23: 600598 | H23: p | I23: Bronze | J23: 6 | K23: 5 | L23: 226 | M23: 2014-05-01 | N23: 44 days | O23: 2014-06-21T11:02:19
A24: 4141610 | B24: p | C24: 4141007 | D24: p | E24: 4140975 | F24: p | G24: 3969388 | H24: r | I24: Bronze | J24: 10 | K24: 26 | L24: 211 | M24: 2014-04-14 | N24: 5 days | O24: 2014-06-21T11:02:19
A25: 2497955 | B25: t | C25: 2092751 | D25: p | E25: 1447176 | F25: p | G25: 280496 | H25: z | I25: Bronze | J25: 7 | K25: 8 | L25: 210 | M25: 2014-05-11 | N25: 39 days | O25: 2014-06-21T11:02:19
A26: 2795941 | B26: p | C26: 1460169 | D26: z | E26: 1176511 | F26: r | G26: 822883 | H26: p | I26: Bronze | J26: 6 | K26: 5 | L26: 208 | M26: 2014-05-26 | N26: 25 days | O26: 2014-06-21T11:02:19
A27: 4415551 | B27: r | C27: 2774905 | D27: p | E27: 2316533 | F27: p | G27: 776533 | H27: r | I27: Bronze | J27: 6 | K27: 5 | L27: 208 | M27: 2014-06-15 | N27: 5 days | O27: 2014-06-21T11:02:19
A28: 931602 | B28: z | C28: 905982 | D28: p | E28: 708357 | F28: z | G28: 433520 | H28: t | I28: Bronze | J28: 6 | K28: 6 | L28: 204 | M28: 2014-06-02 | N28: 19 days | O28: 2014-06-21T11:02:19
A29: 784671 | B29: p | C29: 777977 | D29: t | E29: 770905 | F29: p | G29: 768644 | H29: z | I29: Bronze | J29: 8 | K29: 1 | L29: 200 | M29: 2014-05-12 | N29: 40 days | O29: 2014-06-21T11:02:19
A30: 4322707 | B30: t | C30: 1441753 | D30: t | E30: 273095 | F30: z | G30: 116815 | H30: t | I30: Bronze | J30: 5 | K30: 4 | L30: 200 | M30: 2014-04-22 | N30: 9 days | O30: 2014-06-21T11:02:19
A31: 666686 | B31: r | C31: 614702 | D31: z | E31: 202798 | F31: z | G31: 96699 | H31: r | I31: Bronze | J31: 6 | K31: 0 | L31: 198 | M31: 2014-06-11 | N31: 9 days | O31: 2014-06-21T11:02:19
A32: 1062930 | B32: t | C32: 835269 | D32: p | E32: 395627 | F32: p | G32: 74223 | H32: z | I32: Bronze | J32: 8 | K32: 12 | L32: 196 | M32: 2014-05-05 | N32: 44 days | O32: 2014-06-21T11:02:19
A33: 1295321 | B33: p | C33: 784504 | D33: p | E33: 782066 | F33: z | G33: 198750 | H33: t | I33: Bronze | J33: 4 | K33: 2 | L33: 184 | M33: 2014-05-10 | N33: 42 days | O33: 2014-06-21T11:02:19
A34: 696140 | B34: p | C34: 652953 | D34: z | E34: 648001 | F34: p | G34: 50907 | H34: t | I34: Bronze | J34: 5 | K34: 3 | L34: 184 | M34: 2014-04-30 | N34: 51 days | O34: 2014-06-21T11:02:19
A35: 4583897 | B35: t | C35: 4581906 | D35: z | E35: 4581007 | F35: t | G35: 4580959 | H35: p | I35: Bronze | J35: 6 | K35: 7 | L35: 184 | M35: 2014-04-20 | N35: 2 hours | O35: 2014-06-21T11:02:19
A36: 798746 | B36: r | C36: 617797 | D36: t | E36: 341889 | F36: z | G36: 87240 | H36: z | I36: Bronze | J36: 4 | K36: 6 | L36: 180 | M36: 2014-04-28 | N36: 49 days | O36: 2014-06-21T11:02:19
A37: 2386395 | B37: t | C37: 766163 | D37: p | E37: 489131 | F37: r | G37: 117663 | H37: r | I37: Bronze | J37: 6 | K37: 3 | L37: 176 | M37: 2014-05-24 | N37: 28 days | O37: 2014-06-21T11:02:19
A38: 3068167 | B38: z | C38: 657396 | D38: r | E38: 263442 | F38: p | G38: 193040 | H38: r | I38: Bronze | J38: 6 | K38: 9 | L38: 176 | M38: 2014-06-08 | N38: 8 days | O38: 2014-06-21T11:02:19
A39: 917313 | B39: r | C39: 783940 | D39: p | E39: 745467 | F39: r | G39: 744314 | H39: r | I39: Bronze | J39: 4 | K39: 1 | L39: 172 | M39: 2014-04-28 | N39: 54 days | O39: 2014-06-21T11:02:19
A40: 766028 | B40: p | C40: 710375 | D40: z | E40: 292087 | F40: p | G40: 41584 | H40: t | I40: Bronze | J40: 4 | K40: 4 | L40: 170 | M40: 2014-04-14 | N40: 51 days | O40: 2014-06-21T11:02:19
A41: 4512538 | B41: p | C41: 2457498 | D41: p | E41: 2398323 | F41: z | G41: 693172 | H41: p | I41: Bronze | J41: 4 | K41: 6 | L41: 170 | M41: 2014-06-14 | N41: 6 days | O41: 2014-06-21T11:02:19
A42: 4645359 | B42: p | C42: 4619054 | D42: t | E42: 4615104 | F42: t | G42: 4497939 | H42: z | I42: Bronze | J42: 7 | K42: 6 | L42: 168 | M42: 2014-06-08 | N42: 2 days | O42: 2014-06-21T11:02:19
A43: 1301958 | B43: p | C43: 1004760 | D43: z | E43: 839001 | F43: z | G43: 398301 | H43: p | I43: Bronze | J43: 8 | K43: 7 | L43: 168 | M43: 2014-04-27 | N43: 47 days | O43: 2014-06-21T11:02:19
A44: 784671 | B44: p | C44: 777977 | D44: t | E44: 770905 | F44: p | G44: 602856 | H44: t | I44: Bronze | J44: 6 | K44: 3 | L44: 162 | M44: 2014-04-30 | N44: 52 days | O44: 2014-06-21T11:02:19
A45: 798746 | B45: r | C45: 617797 | D45: t | E45: 547064 | F45: r | G45: 87240 | H45: z | I45: Bronze | J45: 5 | K45: 3 | L45: 162 | M45: 2014-05-09 | N45: 27 days | O45: 2014-06-21T11:02:19
A46: 3013846 | B46: p | C46: 2058016 | D46: z | E46: 1577970 | F46: r | G46: 601462 | H46: r | I46: Bronze | J46: 5 | K46: 1 | L46: 161 | M46: 2014-04-26 | N46: 56 days | O46: 2014-06-21T11:02:19
A47: 4614026 | B47: t | C47: 4000372 | D47: z | E47: 2955724 | F47: r | G47: 1163012 | H47: p | I47: Bronze | J47: 9 | K47: 2 | L47: 158 | M47: 2014-04-24 | N47: 57 days | O47: 2014-06-21T11:02:19
A48: 253791 | B48: t | C48: 202439 | D48: r | E48: 187460 | F48: r | G48: 56469 | H48: t | I48: Bronze | J48: 6 | K48: 8 | L48: 156 | M48: 2014-04-28 | N48: 5 days | O48: 2014-06-21T11:02:19
A49: 325619 | B49: p | C49: 232565 | D49: p | E49: 198456 | F49: t | G49: 77930 | H49: p | I49: Bronze | J49: 6 | K49: 13 | L49: 154 | M49: 2014-04-30 | N49: 25 days | O49: 2014-06-21T11:02:19
A50: 4591923 | B50: z | C50: 3629912 | D50: p | E50: 1667357 | F50: p | G50: 182197 | H50: t | I50: Bronze | J50: 9 | K50: 2 | L50: 152 | M50: 2014-04-18 | N50: 64 days | O50: 2014-06-21T11:02:19
A51: 2465585 | B51: p | C51: 2275420 | D51: p | E51: 1896056 | F51: z | G51: 1762802 | H51: t | I51: Bronze | J51: 6 | K51: 2 | L51: 152 | M51: 2014-05-03 | N51: 49 days | O51: 2014-06-21T11:02:19
A52: 838629 | B52: p | C52: 760001 | D52: t | E52: 234871 | F52: t | G52: 151902 | H52: z | I52: Bronze | J52: 7 | K52: 0 | L52: 150 | M52: 2014-04-14 | N52: 25 days | O52: 2014-06-21T11:02:19
A53: 843502 | B53: t | C53: 730530 | D53: p | E53: 91480 | F53: z | G53: 80843 | H53: p | I53: Bronze | J53: 6 | K53: 3 | L53: 150 | M53: 2014-04-29 | N53: 7 days | O53: 2014-06-21T11:02:19
A54: 306486 | B54: t | C54: 81789 | D54: z | E54: 79227 | F54: z | G54: 57721 | H54: t | I54: Bronze | J54: 4 | K54: 4 | L54: 150 | M54: 2014-05-24 | N54: 28 days | O54: 2014-06-21T11:02:19
A55: 1301958 | B55: z | C55: 1004760 | D55: z | E55: 473946 | F55: p | G55: 398301 | H55: p | I55: Bronze | J55: 7 | K55: 10 | L55: 150 | M55: 2014-05-26 | N55: 23 days | O55: 2014-06-21T11:02:19
A56: 4569510 | B56: p | C56: 2871785 | D56: z | E56: 2045876 | F56: t | G56: 722791 | H56: z | I56: Bronze | J56: 5 | K56: 8 | L56: 150 | M56: 2014-04-18 | N56: 10 days | O56: 2014-06-21T11:02:19
A57: 3503169 | B57: t | C57: 2671628 | D57: r | E57: 1152701 | F57: z | G57: 1011489 | H57: r | I57: Bronze | J57: 7 | K57: 2 | L57: 144 | M57: 2014-04-27 | N57: 40 days | O57: 2014-06-21T11:02:19
A58: 1102509 | B58: p | C58: 584213 | D58: r | E58: 533788 | F58: r | G58: 73635 | H58: p | I58: Bronze | J58: 3 | K58: 1 | L58: 144 | M58: 2014-05-10 | N58: 41 days | O58: 2014-06-21T11:02:19
A59: 4587229 | B59: p | C59: 4400750 | D59: p | E59: 4144908 | F59: p | G59: 4142903 | H59: t | I59: Bronze | J59: 4 | K59: 2 | L59: 144 | M59: 2014-05-06 | N59: 38 days | O59: 2014-06-21T11:02:19
A60: 4350061 | B60: p | C60: 4145869 | D60: p | E60: 689330 | F60: r | G60: 121694 | H60: t | I60: Bronze | J60: 4 | K60: 4 | L60: 144 | M60: 2014-04-18 | N60: 44 days | O60: 2014-06-21T11:02:19
A61: 2601331 | B61: p | C61: 2476960 | D61: t | E61: 1531732 | F61: r | G61: 1331404 | H61: r | I61: Bronze | J61: 5 | K61: 6 | L61: 144 | M61: 2014-04-20 | N61: 48 days | O61: 2014-06-21T11:02:19
A62: 4654396 | B62: t | C62: 4654345 | D62: r | E62: 4654295 | F62: t | G62: 4616613 | H62: z | I62: Bronze | J62: 3 | K62: 5 | L62: 144 | M62: 2014-05-31 | N62: 21 days | O62: 2014-06-21T11:02:19
A63: 2165025 | B63: p | C63: 1847894 | D63: t | E63: 500725 | F63: p | G63: 137974 | H63: r | I63: Bronze | J63: 5 | K63: 7 | L63: 142 | M63: 2014-04-27 | N63: 16 days | O63: 2014-06-21T11:02:19
A64: 3503169 | B64: t | C64: 1152701 | D64: z | E64: 502742 | F64: p | G64: 162992 | H64: p | I64: Bronze | J64: 4 | K64: 0 | L64: 140 | M64: 2014-04-18 | N64: 52 days | O64: 2014-06-21T11:02:19
A65: 907212 | B65: p | C65: 861405 | D65: t | E65: 570903 | F65: z | G65: 203441 | H65: r | I65: Bronze | J65: 5 | K65: 1 | L65: 140 | M65: 2014-04-20 | N65: 2 days | O65: 2014-06-21T11:02:19
A66: 3463265 | B66: r | C66: 3121001 | D66: t | E66: 2034883 | F66: r | G66: 254316 | H66: t | I66: Bronze | J66: 6 | K66: 3 | L66: 140 | M66: 2014-05-24 | N66: 28 days | O66: 2014-06-21T11:02:19
A67: 2635032 | B67: p | C67: 1494159 | D67: r | E67: 793550 | F67: z | G67: 177150 | H67: r | I67: Bronze | J67: 4 | K67: 3 | L67: 140 | M67: 2014-05-04 | N67: 48 days | O67: 2014-06-21T11:02:19
A68: 798542 | B68: r | C68: 745614 | D68: t | E68: 629805 | F68: z | G68: 152109 | H68: r | I68: Bronze | J68: 5 | K68: 4 | L68: 140 | M68: 2014-05-01 | N68: 26 days | O68: 2014-06-21T11:02:19
A69: 4179449 | B69: z | C69: 3298704 | D69: r | E69: 1963927 | F69: p | G69: 717709 | H69: r | I69: Bronze | J69: 7 | K69: 6 | L69: 140 | M69: 2014-05-11 | N69: 41 days | O69: 2014-06-21T11:02:19
A70: 1288195 | B70: t | C70: 1068186 | D70: r | E70: 1005442 | F70: p | G70: 252623 | H70: r | I70: Bronze | J70: 3 | K70: 1 | L70: 138 | M70: 2014-05-09 | N70: 42 days | O70: 2014-06-21T11:02:19
A71: 3057706 | B71: z | C71: 2213849 | D71: p | E71: 1454370 | F71: r | G71: 1232912 | H71: t | I71: Bronze | J71: 7 | K71: 3 | L71: 138 | M71: 2014-04-30 | N71: 48 days | O71: 2014-06-21T11:02:19
A72: 3425815 | B72: r | C72: 1791364 | D72: t | E72: 1645354 | F72: z | G72: 877936 | H72: r | I72: Bronze | J72: 3 | K72: 4 | L72: 138 | M72: 2014-05-19 | N72: 29 days | O72: 2014-06-21T11:02:19
A73: 988854 | B73: p | C73: 707208 | D73: p | E73: 618441 | F73: r | G73: 215443 | H73: t | I73: Bronze | J73: 4 | K73: 7 | L73: 134 | M73: 2014-06-21 | N73: 9 minutes | O73: 2014-06-21T11:02:19
A74: 1120289 | B74: r | C74: 1059084 | D74: r | E74: 4157622 | F74: p | G74: 4129845 | H74: t | I74: Bronze | J74: 4 | K74: 2 | L74: 132 | M74: 2014-05-30 | N74: 21 days | O74: 2014-06-21T11:02:19
A75: 1059586 | B75: z | C75: 971374 | D75: t | E75: 805055 | F75: p | G75: 803464 | H75: p | I75: Bronze | J75: 6 | K75: 4 | L75: 132 | M75: 2014-05-21 | N75: 25 days | O75: 2014-06-21T11:02:19
A76: 2286975 | B76: t | C76: 766163 | D76: p | E76: 489131 | F76: r | G76: 117663 | H76: r | I76: Bronze | J76: 5 | K76: 5 | L76: 132 | M76: 2014-04-20 | N76: 21 days | O76: 2014-06-21T11:02:19
A77: 874164 | B77: t | C77: 860178 | D77: z | E77: 731229 | F77: p | G77: 75734 | H77: z | I77: Bronze | J77: 5 | K77: 6 | L77: 132 | M77: 2014-05-18 | N77: 26 days | O77: 2014-06-21T11:02:19
A78: 3979809 | B78: p | C78: 3680761 | D78: t | E78: 869536 | F78: t | G78: 745399 | H78: z | I78: Bronze | J78: 6 | K78: 9 | L78: 132 | M78: 2014-04-14 | N78: 65 days | O78: 2014-06-21T11:02:19
A79: 929886 | B79: r | C79: 533788 | D79: p | E79: 73635 | F79: p | G79: 38605 | H79: r | I79: Bronze | J79: 4 | K79: 2 | L79: 128 | M79: 2014-05-02 | N79: 50 days | O79: 2014-06-21T11:02:19
A80: 3108254 | B80: p | C80: 2748911 | D80: t | E80: 2019524 | F80: t | G80: 1021605 | H80: p | I80: Bronze | J80: 7 | K80: 5 | L80: 128 | M80: 2014-05-17 | N80: 27 days | O80: 2014-06-21T11:02:19
A81: 941534 | B81: r | C81: 683701 | D81: p | E81: 196075 | F81: z | G81: 127863 | H81: z | I81: Bronze | J81: 6 | K81: 8 | L81: 128 | M81: 2014-05-20 | N81: 22 days | O81: 2014-06-21T11:02:19
A82: 4456373 | B82: t | C82: 3895114 | D82: z | E82: 1623728 | F82: p | G82: 261523 | H82: p | I82: Bronze | J82: 3 | K82: 6 | L82: 128 | M82: 2014-05-02 | N82: 36 days | O82: 2014-06-21T11:02:19
A83: 4531580 | B83: z | C83: 3570207 | D83: p | E83: 2720439 | F83: t | G83: 2100688 | H83: r | I83: Bronze | J83: 4 | K83: 1 | L83: 126 | M83: 2014-04-30 | N83: 52 days | O83: 2014-06-21T11:02:19
A84: 1028273 | B84: t | C84: 764744 | D84: p | E84: 622028 | F84: r | G84: 80382 | H84: r | I84: Bronze | J84: 4 | K84: 1 | L84: 126 | M84: 2014-06-03 | N84: 7 days | O84: 2014-06-21T11:02:19
A85: 1070999 | B85: z | C85: 884837 | D85: t | E85: 751583 | F85: p | G85: 729056 | H85: t | I85: Bronze | J85: 4 | K85: 2 | L85: 126 | M85: 2014-05-02 | N85: 49 days | O85: 2014-06-21T11:02:19
A86: 2398307 | B86: t | C86: 2160842 | D86: p | E86: 2135915 | F86: z | G86: 2134792 | H86: p | I86: Bronze | J86: 4 | K86: 3 | L86: 124 | M86: 2014-05-05 | N86: 47 days | O86: 2014-06-21T11:02:19
A87: 3139134 | B87: p | C87: 1441739 | D87: t | E87: 673526 | F87: r | G87: 243148 | H87: r | I87: Bronze | J87: 5 | K87: 0 | L87: 123 | M87: 2014-04-20 | N87: 62 days | O87: 2014-06-21T11:02:19
A88: 696229 | B88: p | C88: 440498 | D88: p | E88: 33010 | F88: z | G88: 4318232 | H88: r | I88: Bronze | J88: 4 | K88: 1 | L88: 122 | M88: 2014-04-26 | N88: 55 days | O88: 2014-06-21T11:02:19
A89: 4531580 | B89: z | C89: 2720439 | D89: t | E89: 2100688 | F89: z | G89: 1666289 | H89: z | I89: Bronze | J89: 5 | K89: 2 | L89: 122 | M89: 2014-04-18 | N89: 64 days | O89: 2014-06-21T11:02:19
A90: 737160 | B90: t | C90: 493080 | D90: p | E90: 84231 | F90: z | G90: 48364 | H90: r | I90: Bronze | J90: 6 | K90: 6 | L90: 122 | M90: 2014-04-26 | N90: 36 days | O90: 2014-06-21T11:02:19
A91: 4136638 | B91: r | C91: 2170288 | D91: p | E91: 1964115 | F91: z | G91: 1115357 | H91: r | I91: Bronze | J91: 7 | K91: 2 | L91: 120 | M91: 2014-04-26 | N91: 56 days | O91: 2014-06-21T11:02:19
A92: 874164 | B92: t | C92: 867539 | D92: t | E92: 860178 | F92: z | G92: 820199 | H92: t | I92: Bronze | J92: 3 | K92: 1 | L92: 120 | M92: 2014-04-24 | N92: 54 days | O92: 2014-06-21T11:02:19
A93: 3209465 | B93: p | C93: 2438529 | D93: p | E93: 1124863 | F93: p | G93: 353800 | H93: z | I93: Bronze | J93: 3 | K93: 3 | L93: 120 | M93: 2014-05-14 | N93: 37 days | O93: 2014-06-21T11:02:19
A94: 874164 | B94: t | C94: 860178 | D94: z | E94: 731229 | F94: p | G94: 51750 | H94: z | I94: Bronze | J94: 3 | K94: 4 | L94: 120 | M94: 2014-05-23 | N94: 27 days | O94: 2014-06-21T11:02:19
A95: 777977 | B95: t | C95: 770905 | D95: p | E95: 768644 | F95: z | G95: 602856 | H95: t | I95: Bronze | J95: 5 | K95: 8 | L95: 120 | M95: 2014-04-22 | N95: 60 days | O95: 2014-06-21T11:02:19
A96: 202439 | B96: r | C96: 187460 | D96: r | E96: 56469 | F96: t | G96: 4587007 | H96: t | I96: Bronze | J96: 6 | K96: 7 | L96: 117 | M96: 2014-04-20 | N96: 55 days | O96: 2014-06-21T11:02:19
A97: 549660 | B97: p | C97: 480952 | D97: p | E97: 164061 | F97: t | G97: 36826 | H97: t | I97: Bronze | J97: 4 | K97: 1 | L97: 116 | M97: 2014-05-15 | N97: 22 days | O97: 2014-06-21T11:02:19
A98: 860178 | B98: z | C98: 820199 | D98: r | E98: 75734 | F98: z | G98: 51750 | H98: z | I98: Bronze | J98: 5 | K98: 7 | L98: 116 | M98: 2014-05-10 | N98: 13 days | O98: 2014-06-21T11:02:19
A99: 4575101 | B99: t | C99: 1473216 | D99: z | E99: 1130272 | F99: p | G99: 342705 | H99: r | I99: Bronze | J99: 5 | K99: 8 | L99: 116 | M99: 2014-06-16 | N99: 5 days | O99: 2014-06-21T11:02:19
A100: 1709084 | B100: z | C100: 499164 | D100: r | E100: 303948 | F100: t | G100: 303390 | H100: z | I100: Bronze | J100: 6 | K100: 1 | L100: 114 | M100: 2014-04-14 | N100: 64 days | O100: 2014-06-21T11:02:19
A101: 680920 | B101: z | C101: 448072 | D101: p | E101: 250299 | F101: r | G101: 131135 | H101: p | I101: Bronze | J101: 4 | K101: 2 | L101: 114 | M101: 2014-05-03 | N101: 49 days | O101: 2014-06-21T11:02:19
A102: 3077660 | B102: t | C102: 483185 | D102: z | E102: 346422 | F102: t | G102: 308772 | H102: p | I102: Bronze | J102: 4 | K102: 3 | L102: 114 | M102: 2014-05-11 | N102: 39 days | O102: 2014-06-21T11:02:19
A103: 4370346 | B103: z | C103: 3641394 | D103: t | E103: 1037468 | F103: p | G103: 507684 | H103: z | I103: Bronze | J103: 4 | K103: 5 | L103: 114 | M103: 2014-05-24 | N103: 14 days | O103: 2014-06-21T11:02:19
A104: 988854 | B104: p | C104: 618441 | D104: r | E104: 476967 | F104: r | G104: 215443 | H104: t | I104: Bronze | J104: 3 | K104: 7 | L104: 114 | M104: 2014-05-27 | N104: 15 days | O104: 2014-06-21T11:02:19
A105: 696140 | B105: p | C105: 652953 | D105: z | E105: 648001 | F105: p | G105: 38827 | H105: z | I105: Bronze | J105: 4 | K105: 1 | L105: 110 | M105: 2014-04-20 | N105: 42 days | O105: 2014-06-21T11:02:19
A106: 1007706 | B106: z | C106: 653702 | D106: p | E106: 93401 | F106: t | G106: 50264 | H106: z | I106: Bronze | J106: 6 | K106: 6 | L106: 110 | M106: 2014-05-06 | N106: 45 days | O106: 2014-06-21T11:02:19
A107: 831406 | B107: t | C107: 749445 | D107: p | E107: 473009 | F107: z | G107: 131907 | H107: z | I107: Bronze | J107: 4 | K107: 10 | L107: 108 | M107: 2014-06-14 | N107: 9 minutes | O107: 2014-06-21T11:02:19
A108: 1120289 | B108: t | C108: 1059084 | D108: z | E108: 4130405 | F108: z | G108: 4129845 | H108: t | I108: Bronze | J108: 4 | K108: 1 | L108: 106 | M108: 2014-05-15 | N108: 33 days | O108: 2014-06-21T11:02:19
A109: 4630417 | B109: p | C109: 4629874 | D109: p | E109: 4394232 | F109: z | G109: 2458957 | H109: t | I109: Bronze | J109: 6 | K109: 2 | L109: 106 | M109: 2014-05-03 | N109: 48 days | O109: 2014-06-21T11:02:19
A110: 782355 | B110: p | C110: 777977 | D110: t | E110: 768644 | F110: z | G110: 602856 | H110: t | I110: Bronze | J110: 4 | K110: 2 | L110: 106 | M110: 2014-04-23 | N110: 59 days | O110: 2014-06-21T11:02:19
A111: 2163940 | B111: p | C111: 2095030 | D111: p | E111: 970960 | F111: z | G111: 560747 | H111: t | I111: Bronze | J111: 4 | K111: 4 | L111: 106 | M111: 2014-05-11 | N111: 40 days | O111: 2014-06-21T11:02:19
A112: 1008182 | B112: p | C112: 628641 | D112: t | E112: 628602 | F112: p | G112: 391811 | H112: z | I112: Bronze | J112: 4 | K112: 0 | L112: 102 | M112: 2014-04-20 | N112: 61 days | O112: 2014-06-21T11:02:19
A113: 1183856 | B113: p | C113: 1108440 | D113: p | E113: 83183 | F113: p | G113: 35056 | H113: z | I113: Bronze | J113: 5 | K113: 3 | L113: 102 | M113: 2014-05-12 | N113: 40 days | O113: 2014-06-21T11:02:19
A114: 4302522 | B114: z | C114: 3663090 | D114: p | E114: 1647730 | F114: z | G114: 562857 | H114: t | I114: Bronze | J114: 3 | K114: 1 | L114: 101 | M114: 2014-04-18 | N114: 64 days | O114: 2014-06-21T11:02:19
A115: 4492863 | B115: t | C115: 4491908 | D115: z | E115: 1100859 | F115: t | G115: 420345 | H115: p | I115: Bronze | J115: 4 | K115: 5 | L115: 101 | M115: 2014-04-14 | N115: 60 days | O115: 2014-06-21T11:02:19
A116: 824192 | B116: p | C116: 804131 | D116: t | E116: 798510 | F116: z | G116: 798424 | H116: r | I116: Bronze | J116: 3 | K116: 7 | L116: 100 | M116: 2014-05-27 | N116: 25 days | O116: 2014-06-21T11:02:19
A117: 4151752 | B117: t | C117: 4144908 | D117: t | E117: 4142903 | F117: t | G117: 4138761 | H117: t | I117: Bronze | J117: 3 | K117: 0 | L117: 96 | M117: 2014-04-30 | N117: 51 days | O117: 2014-06-21T11:02:19
A118: 618604 | B118: r | C118: 505531 | D118: r | E118: 381549 | F118: t | G118: 122164 | H118: r | I118: Bronze | J118: 3 | K118: 0 | L118: 96 | M118: 2014-05-04 | N118: 47 days | O118: 2014-06-21T11:02:19
A119: 3246880 | B119: t | C119: 2128323 | D119: r | E119: 842065 | F119: p | G119: 112800 | H119: p | I119: Bronze | J119: 3 | K119: 0 | L119: 96 | M119: 2014-05-09 | N119: 42 days | O119: 2014-06-21T11:02:19
A120: 823888 | B120: r | C120: 765205 | D120: r | E120: 727831 | F120: z | G120: 564089 | H120: p | I120: Bronze | J120: 6 | K120: 1 | L120: 96 | M120: 2014-05-01 | N120: 51 days | O120: 2014-06-21T11:02:19
A121: 759101 | B121: t | C121: 758237 | D121: t | E121: 616554 | F121: z | G121: 181298 | H121: r | I121: Bronze | J121: 6 | K121: 1 | L121: 96 | M121: 2014-05-01 | N121: 51 days | O121: 2014-06-21T11:02:19
A122: 2180675 | B122: p | C122: 1469218 | D122: r | E122: 1023736 | F122: r | G122: 754527 | H122: z | I122: Bronze | J122: 3 | K122: 1 | L122: 96 | M122: 2014-04-25 | N122: 57 days | O122: 2014-06-21T11:02:19
A123: 798136 | B123: z | C123: 659657 | D123: r | E123: 308520 | F123: p | G123: 219731 | H123: p | I123: Bronze | J123: 6 | K123: 2 | L123: 96 | M123: 2014-05-05 | N123: 1 days | O123: 2014-06-21T11:02:19
A124: 831997 | B124: z | C124: 758451 | D124: t | E124: 215735 | F124: p | G124: 203441 | H124: r | I124: Bronze | J124: 6 | K124: 2 | L124: 96 | M124: 2014-06-13 | N124: 6 days | O124: 2014-06-21T11:02:19
A125: 688782 | B125: p | C125: 537891 | D125: p | E125: 349524 | F125: z | G125: 181298 | H125: r | I125: Bronze | J125: 5 | K125: 2 | L125: 96 | M125: 2014-05-28 | N125: 24 days | O125: 2014-06-21T11:02:19
A126: 944677 | B126: t | C126: 907212 | D126: p | E126: 873352 | F126: t | G126: 861405 | H126: t | I126: Bronze | J126: 3 | K126: 2 | L126: 96 | M126: 2014-04-27 | N126: 55 days | O126: 2014-06-21T11:02:19
A127: 1092188 | B127: r | C127: 929886 | D127: r | E127: 781912 | F127: r | G127: 73635 | H127: p | I127: Bronze | J127: 3 | K127: 2 | L127: 96 | M127: 2014-05-01 | N127: 49 days | O127: 2014-06-21T11:02:19
A128: 2722778 | B128: t | C128: 2566895 | D128: p | E128: 1748591 | F128: p | G128: 189469 | H128: p | I128: Bronze | J128: 3 | K128: 2 | L128: 96 | M128: 2014-05-11 | N128: 41 days | O128: 2014-06-21T11:02:19
A129: 873352 | B129: t | C129: 800301 | D129: t | E129: 785527 | F129: t | G129: 362406 | H129: t | I129: Bronze | J129: 3 | K129: 2 | L129: 96 | M129: 2014-05-17 | N129: 12 days | O129: 2014-06-21T11:02:20
A130: 4546957 | B130: t | C130: 4147551 | D130: r | E130: 1871485 | F130: p | G130: 732413 | H130: r | I130: Bronze | J130: 4 | K130: 3 | L130: 96 | M130: 2014-04-20 | N130: 54 days | O130: 2014-06-21T11:02:20
A131: 828606 | B131: r | C131: 798542 | D131: r | E131: 629805 | F131: z | G131: 152109 | H131: t | I131: Bronze | J131: 4 | K131: 3 | L131: 96 | M131: 2014-06-03 | N131: 18 days | O131: 2014-06-21T11:02:20
A132: 1877134 | B132: p | C132: 507819 | D132: t | E132: 255566 | F132: z | G132: 241401 | H132: p | I132: Bronze | J132: 3 | K132: 3 | L132: 96 | M132: 2014-05-03 | N132: 49 days | O132: 2014-06-21T11:02:20
A133: 3379062 | B133: t | C133: 2974210 | D133: p | E133: 2438355 | F133: t | G133: 1638299 | H133: r | I133: Bronze | J133: 6 | K133: 6 | L133: 96 | M133: 2014-05-24 | N133: 13 days | O133: 2014-06-21T11:02:20
A134: 3671159 | B134: t | C134: 2400469 | D134: p | E134: 130882 | F134: z | G134: 115985 | H134: p | I134: Bronze | J134: 5 | K134: 5 | L134: 96 | M134: 2014-05-05 | N134: 47 days | O134: 2014-06-21T11:02:20
A135: 4465413 | B135: t | C135: 4462355 | D135: t | E135: 2385298 | F135: t | G135: 1925551 | H135: z | I135: Bronze | J135: 2 | K135: 2 | L135: 96 | M135: 2014-06-12 | N135: 9 days | O135: 2014-06-21T11:02:20
A136: 2059836 | B136: r | C136: 1931203 | D136: p | E136: 1846289 | F136: r | G136: 228740 | H136: r | I136: Bronze | J136: 3 | K136: 4 | L136: 96 | M136: 2014-05-11 | N136: 41 days | O136: 2014-06-21T11:02:20
A137: 4500925 | B137: r | C137: 3334727 | D137: z | E137: 959318 | F137: p | G137: 943210 | H137: r | I137: Bronze | J137: 6 | K137: 12 | L137: 96 | M137: 2014-05-09 | N137: 10 days | O137: 2014-06-21T11:02:20
A138: 1927664 | B138: r | C138: 1283372 | D138: r | E138: 820915 | F138: r | G138: 384515 | H138: r | I138: Bronze | J138: 3 | K138: 1 | L138: 94 | M138: 2014-04-20 | N138: 28 days | O138: 2014-06-21T11:02:20
A139: 759101 | B139: r | C139: 758237 | D139: t | E139: 464005 | F139: r | G139: 181298 | H139: r | I139: Bronze | J139: 3 | K139: 1 | L139: 94 | M139: 2014-05-18 | N139: 26 days | O139: 2014-06-21T11:02:20
A140: 820163 | B140: t | C140: 808337 | D140: r | E140: 613860 | F140: z | G140: 86890 | H140: p | I140: Bronze | J140: 5 | K140: 2 | L140: 94 | M140: 2014-04-24 | N140: 58 days | O140: 2014-06-21T11:02:20
A141: 820601 | B141: p | C141: 745614 | D141: t | E141: 211245 | F141: p | G141: 152109 | H141: r | I141: Bronze | J141: 6 | K141: 3 | L141: 94 | M141: 2014-04-27 | N141: 54 days | O141: 2014-06-21T11:02:20
A142: 1886341 | B142: r | C142: 1674493 | D142: r | E142: 1672991 | F142: r | G142: 1382432 | H142: z | I142: Bronze | J142: 6 | K142: 3 | L142: 94 | M142: 2014-05-10 | N142: 41 days | O142: 2014-06-21T11:02:20
A143: 4119123 | B143: z | C143: 1161319 | D143: z | E143: 1080834 | F143: t | G143: 1080452 | H143: p | I143: Bronze | J143: 3 | K143: 2 | L143: 94 | M143: 2014-04-23 | N143: 58 days | O143: 2014-06-21T11:02:20
A144: 1446761 | B144: p | C144: 1446674 | D144: p | E144: 1072919 | F144: z | G144: 598530 | H144: r | I144: Bronze | J144: 6 | K144: 4 | L144: 94 | M144: 2014-05-01 | N144: 51 days | O144: 2014-06-21T11:02:20
A145: 1018774 | B145: r | C145: 758237 | D145: t | E145: 181298 | F145: r | G145: 83768 | H145: r | I145: Bronze | J145: 5 | K145: 4 | L145: 94 | M145: 2014-04-27 | N145: 45 days | O145: 2014-06-21T11:02:20
A146: 1963456 | B146: r | C146: 1142761 | D146: z | E146: 681088 | F146: p | G146: 636937 | H146: r | I146: Bronze | J146: 2 | K146: 2 | L146: 94 | M146: 2014-04-24 | N146: 58 days | O146: 2014-06-21T11:02:20
A147: 4344628 | B147: p | C147: 4322681 | D147: p | E147: 4321513 | F147: z | G147: 1892403 | H147: t | I147: Bronze | J147: 4 | K147: 5 | L147: 94 | M147: 2014-06-17 | N147: 3 days | O147: 2014-06-21T11:02:20
A148: 4513815 | B148: p | C148: 861866 | D148: r | E148: 566938 | F148: t | G148: 565603 | H148: r | I148: Bronze | J148: 3 | K148: 4 | L148: 94 | M148: 2014-06-14 | N148: 6 days | O148: 2014-06-21T11:02:20
A149: 4399074 | B149: t | C149: 3735468 | D149: t | E149: 3385987 | F149: z | G149: 270678 | H149: p | I149: Bronze | J149: 3 | K149: 4 | L149: 94 | M149: 2014-06-15 | N149: 6 days | O149: 2014-06-21T11:02:20
A150: 874164 | B150: t | C150: 860178 | D150: z | E150: 75734 | F150: z | G150: 51750 | H150: z | I150: Bronze | J150: 4 | K150: 9 | L150: 94 | M150: 2014-05-11 | N150: 34 days | O150: 2014-06-21T11:02:20
A151: 4651081 | B151: t | C151: 4138538 | D151: z | E151: 4128183 | F151: p | G151: 956132 | H151: t | I151: Bronze | J151: 3 | K151: 9 | L151: 94 | M151: 2014-05-25 | N151: 26 days | O151: 2014-06-21T11:02:20
A152: 4059683 | B152: z | C152: 4043598 | D152: p | E152: 3912687 | F152: t | G152: 3815512 | H152: z | I152: Bronze | J152: 4 | K152: 0 | L152: 92 | M152: 2014-05-17 | N152: 35 days | O152: 2014-06-21T11:02:20
A153: 618604 | B153: r | C153: 505531 | D153: r | E153: 381549 | F153: t | G153: 87047 | H153: z | I153: Bronze | J153: 6 | K153: 1 | L153: 92 | M153: 2014-04-21 | N153: 60 days | O153: 2014-06-21T11:02:20
A154: 3061366 | B154: t | C154: 2349856 | D154: z | E154: 491424 | F154: r | G154: 217127 | H154: z | I154: Bronze | J154: 6 | K154: 2 | L154: 92 | M154: 2014-04-26 | N154: 55 days | O154: 2014-06-21T11:02:20
A155: 908027 | B155: p | C155: 808236 | D155: r | E155: 804794 | F155: z | G155: 804586 | H155: p | I155: Bronze | J155: 3 | K155: 1 | L155: 92 | M155: 2014-05-04 | N155: 48 days | O155: 2014-06-21T11:02:20
A156: 2669851 | B156: r | C156: 1716287 | D156: p | E156: 622635 | F156: r | G156: 483353 | H156: p | I156: Bronze | J156: 6 | K156: 5 | L156: 92 | M156: 2014-05-02 | N156: 49 days | O156: 2014-06-21T11:02:20
A157: 3720732 | B157: r | C157: 3256006 | D157: t | E157: 2678532 | F157: p | G157: 2349856 | H157: z | I157: Bronze | J157: 3 | K157: 3 | L157: 92 | M157: 2014-04-28 | N157: 26 days | O157: 2014-06-21T11:02:20
A158: 971031 | B158: p | C158: 862039 | D158: z | E158: 856690 | F158: z | G158: 325531 | H158: t | I158: Bronze | J158: 2 | K158: 2 | L158: 92 | M158: 2014-05-24 | N158: 27 days | O158: 2014-06-21T11:02:20
A159: 1334170 | B159: r | C159: 1321483 | D159: r | E159: 1041215 | F159: r | G159: 148322 | H159: r | I159: Bronze | J159: 5 | K159: 7 | L159: 92 | M159: 2014-05-05 | N159: 42 days | O159: 2014-06-21T11:02:20
A160: 1202095 | B160: p | C160: 1028273 | D160: t | E160: 622028 | F160: z | G160: 80382 | H160: t | I160: Bronze | J160: 2 | K160: 4 | L160: 92 | M160: 2014-05-20 | N160: 29 days | O160: 2014-06-21T11:02:20
A161: 2426358 | B161: r | C161: 886531 | D161: p | E161: 292164 | F161: z | G161: 115756 | H161: z | I161: Bronze | J161: 6 | K161: 3 | L161: 90 | M161: 2014-05-06 | N161: 45 days | O161: 2014-06-21T11:02:20
A162: 1010566 | B162: z | C162: 928677 | D162: t | E162: 462883 | F162: z | G162: 116470 | H162: r | I162: Bronze | J162: 3 | K162: 2 | L162: 90 | M162: 2014-05-18 | N162: 34 days | O162: 2014-06-21T11:02:20
A163: 1245066 | B163: t | C163: 835269 | D163: p | E163: 395627 | F163: p | G163: 74223 | H163: z | I163: Bronze | J163: 4 | K163: 3 | L163: 90 | M163: 2014-04-30 | N163: 51 days | O163: 2014-06-21T11:02:20
A164: 4310098 | B164: p | C164: 4179449 | D164: z | E164: 1048793 | F164: p | G164: 717709 | H164: t | I164: Bronze | J164: 5 | K164: 4 | L164: 90 | M164: 2014-05-12 | N164: 40 days | O164: 2014-06-21T11:02:20
A165: 4634316 | B165: t | C165: 1752401 | D165: z | E165: 844789 | F165: t | G165: 708385 | H165: p | I165: Bronze | J165: 5 | K165: 6 | L165: 90 | M165: 2014-05-05 | N165: 28 days | O165: 2014-06-21T11:02:20
A166: 759101 | B166: r | C166: 554187 | D166: r | E166: 464005 | F166: r | G166: 181298 | H166: r | I166: Bronze | J166: 3 | K166: 0 | L166: 88 | M166: 2014-05-10 | N166: 41 days | O166: 2014-06-21T11:02:20
A167: 798136 | B167: t | C167: 659657 | D167: r | E167: 620237 | F167: z | G167: 219731 | H167: p | I167: Bronze | J167: 3 | K167: 0 | L167: 88 | M167: 2014-05-13 | N167: 39 days | O167: 2014-06-21T11:02:20
A168: 4511545 | B168: t | C168: 2566895 | D168: p | E168: 1848675 | F168: t | G168: 1554803 | H168: t | I168: Bronze | J168: 6 | K168: 1 | L168: 88 | M168: 2014-05-18 | N168: 34 days | O168: 2014-06-21T11:02:20
A169: 936382 | B169: p | C169: 936055 | D169: z | E169: 933486 | F169: p | G169: 165914 | H169: t | I169: Bronze | J169: 5 | K169: 2 | L169: 88 | M169: 2014-05-01 | N169: 50 days | O169: 2014-06-21T11:02:20
A170: 745614 | B170: t | C170: 727831 | D170: z | E170: 554187 | F170: r | G170: 211245 | H170: p | I170: Bronze | J170: 5 | K170: 3 | L170: 88 | M170: 2014-04-29 | N170: 53 days | O170: 2014-06-21T11:02:20
A171: 1833562 | B171: p | C171: 1446588 | D171: z | E171: 1401848 | F171: t | G171: 329698 | H171: z | I171: Bronze | J171: 3 | K171: 3 | L171: 88 | M171: 2014-05-03 | N171: 49 days | O171: 2014-06-21T11:02:20
A172: 3970825 | B172: p | C172: 3278761 | D172: z | E172: 276815 | F172: t | G172: 274342 | H172: t | I172: Bronze | J172: 4 | K172: 4 | L172: 88 | M172: 2014-06-12 | N172: 4 days | O172: 2014-06-21T11:02:20
A173: 681546 | B173: t | C173: 659657 | D173: p | E173: 620237 | F173: z | G173: 511884 | H173: t | I173: Bronze | J173: 3 | K173: 5 | L173: 88 | M173: 2014-06-21 | N173: 6 minutes | O173: 2014-06-21T11:02:20
A174: 4595711 | B174: t | C174: 1282718 | D174: p | E174: 1111302 | F174: t | G174: 907569 | H174: p | I174: Bronze | J174: 3 | K174: 2 | L174: 86 | M174: 2014-05-12 | N174: 40 days | O174: 2014-06-21T11:02:20
A175: 440806 | B175: p | C175: 383369 | D175: z | E175: 228674 | F175: p | G175: 33677 | H175: z | I175: Bronze | J175: 3 | K175: 3 | L175: 86 | M175: 2014-04-18 | N175: 63 days | O175: 2014-06-21T11:02:20
A176: 1211642 | B176: t | C176: 919859 | D176: p | E176: 869231 | F176: r | G176: 867602 | H176: p | I176: Bronze | J176: 3 | K176: 3 | L176: 86 | M176: 2014-04-26 | N176: 56 days | O176: 2014-06-21T11:02:20
A177: 1388347 | B177: p | C177: 1368783 | D177: t | E177: 1281670 | F177: t | G177: 154179 | H177: z | I177: Bronze | J177: 2 | K177: 2 | L177: 86 | M177: 2014-05-20 | N177: 32 days | O177: 2014-06-21T11:02:20
A178: 971374 | B178: t | C178: 805055 | D178: p | E178: 803464 | F178: p | G178: 768430 | H178: z | I178: Bronze | J178: 5 | K178: 6 | L178: 86 | M178: 2014-05-28 | N178: 11 days | O178: 2014-06-21T11:02:20
A179: 4135763 | B179: z | C179: 3638744 | D179: t | E179: 3197755 | F179: p | G179: 671782 | H179: z | I179: Bronze | J179: 3 | K179: 4 | L179: 86 | M179: 2014-04-16 | N179: 61 days | O179: 2014-06-21T11:02:20
A180: 798661 | B180: p | C180: 697741 | D180: r | E180: 696472 | F180: z | G180: 154562 | H180: t | I180: Bronze | J180: 3 | K180: 6 | L180: 86 | M180: 2014-05-04 | N180: 48 days | O180: 2014-06-21T11:02:20
A181: 1598448 | B181: t | C181: 636237 | D181: p | E181: 179925 | F181: p | G181: 165747 | H181: t | I181: Bronze | J181: 5 | K181: 2 | L181: 84 | M181: 2014-04-16 | N181: 65 days | O181: 2014-06-21T11:02:20
A182: 851128 | B182: t | C182: 806554 | D182: p | E182: 653702 | F182: p | G182: 122890 | H182: t | I182: Bronze | J182: 5 | K182: 2 | L182: 84 | M182: 2014-04-30 | N182: 51 days | O182: 2014-06-21T11:02:20
A183: 999267 | B183: p | C183: 998031 | D183: t | E183: 930697 | F183: z | G183: 309830 | H183: p | I183: Bronze | J183: 4 | K183: 12 | L183: 84 | M183: 2014-05-09 | N183: 35 days | O183: 2014-06-21T11:02:20
A184: 4554609 | B184: r | C184: 2229663 | D184: t | E184: 993847 | F184: z | G184: 808236 | H184: r | I184: Bronze | J184: 4 | K184: 3 | L184: 83 | M184: 2014-04-17 | N184: 65 days | O184: 2014-06-21T11:02:20
A185: 4400750 | B185: p | C185: 4394415 | D185: z | E185: 4144908 | F185: p | G185: 4142903 | H185: t | I185: Bronze | J185: 2 | K185: 1 | L185: 82 | M185: 2014-05-02 | N185: 49 days | O185: 2014-06-21T11:02:20
A186: 1004760 | B186: z | C186: 473946 | D186: p | E186: 398301 | F186: p | G186: 220603 | H186: t | I186: Bronze | J186: 2 | K186: 5 | L186: 82 | M186: 2014-04-18 | N186: 49 days | O186: 2014-06-21T11:02:20
A187: 3848486 | B187: p | C187: 3828675 | D187: z | E187: 1458249 | F187: r | G187: 253096 | H187: r | I187: Bronze | J187: 4 | K187: 3 | L187: 80 | M187: 2014-05-03 | N187: 35 days | O187: 2014-06-21T11:02:20
A188: 1125761 | B188: t | C188: 1072220 | D188: z | E188: 225539 | F188: p | G188: 66892 | H188: t | I188: Bronze | J188: 2 | K188: 2 | L188: 80 | M188: 2014-04-27 | N188: 51 days | O188: 2014-06-21T11:02:20
A189: 2503524 | B189: p | C189: 2225125 | D189: r | E189: 420093 | F189: p | G189: 368386 | H189: z | I189: Bronze | J189: 2 | K189: 4 | L189: 80 | M189: 2014-05-03 | N189: 19 days | O189: 2014-06-21T11:02:20
A190: 4536578 | B190: t | C190: 4535664 | D190: p | E190: 4535164 | F190: z | G190: 1281785 | H190: z | I190: Bronze | J190: 4 | K190: 1 | L190: 79 | M190: 2014-04-13 | N190: 18 days | O190: 2014-06-21T11:02:20
A191: 1028273 | B191: t | C191: 764744 | D191: p | E191: 107234 | F191: p | G191: 80382 | H191: r | I191: Bronze | J191: 3 | K191: 0 | L191: 78 | M191: 2014-05-02 | N191: 49 days | O191: 2014-06-21T11:02:20
A192: 874164 | B192: t | C192: 860178 | D192: z | E192: 508284 | F192: t | G192: 51750 | H192: z | I192: Bronze | J192: 3 | K192: 0 | L192: 78 | M192: 2014-05-17 | N192: 34 days | O192: 2014-06-21T11:02:20
A193: 1927664 | B193: r | C193: 1582479 | D193: t | E193: 1283372 | F193: r | G193: 384515 | H193: r | I193: Bronze | J193: 3 | K193: 4 | L193: 78 | M193: 2014-05-03 | N193: 49 days | O193: 2014-06-21T11:02:20
A194: 4385590 | B194: p | C194: 1647900 | D194: z | E194: 987662 | F194: p | G194: 539612 | H194: t | I194: Bronze | J194: 5 | K194: 8 | L194: 78 | M194: 2014-04-22 | N194: 59 days | O194: 2014-06-21T11:02:20
A195: 2424979 | B195: r | C195: 2026234 | D195: z | E195: 1285807 | F195: r | G195: 1285165 | H195: r | I195: Bronze | J195: 2 | K195: 6 | L195: 78 | M195: 2014-06-07 | N195: 13 days | O195: 2014-06-21T11:02:20
A196: 2090821 | B196: r | C196: 1244672 | D196: r | E196: 360405 | F196: r | G196: 330469 | H196: z | I196: Bronze | J196: 3 | K196: 0 | L196: 76 | M196: 2014-05-05 | N196: 47 days | O196: 2014-06-21T11:02:20
A197: 1127429 | B197: z | C197: 440498 | D197: p | E197: 303866 | F197: p | G197: 33010 | H197: z | I197: Bronze | J197: 3 | K197: 2 | L197: 76 | M197: 2014-06-05 | N197: 2 days | O197: 2014-06-21T11:02:20
A198: 3803681 | B198: t | C198: 2793198 | D198: p | E198: 2792166 | F198: p | G198: 660405 | H198: t | I198: Bronze | J198: 4 | K198: 3 | L198: 76 | M198: 2014-05-30 | N198: 22 days | O198: 2014-06-21T11:02:20
A199: 3453771 | B199: z | C199: 3104561 | D199: p | E199: 1723302 | F199: p | G199: 663258 | H199: t | I199: Bronze | J199: 3 | K199: 4 | L199: 76 | M199: 2014-04-14 | N199: 65 days | O199: 2014-06-21T11:02:20
A200: 757393 | B200: z | C200: 408355 | D200: t | E200: 406780 | F200: t | G200: 381693 | H200: p | I200: Bronze | J200: 2 | K200: 3 | L200: 76 | M200: 2014-04-20 | N200: 62 days | O200: 2014-06-21T11:02:20
... 1431 more rows

Sheet 2v2r
A1: PlayerID | B1: PlayerName | C1: Race | D1: League | E1: Division | F1: Wins | G1: Losses | H1: Score | I1: Bonus Pool | J1: JoinDate | K1: Last Game | L1: Timestamp
A2: 47235 | C2: z | D2: Bronze | F2: 117 | G2: 145 | H2: 1155 | I2: 0 | J2: 2014-04-15 | K2: 1 days | L2: 2014-06-21T11:42:35
A3: 3975881 | B3: 삼산리김회장 | C3: r | D3: Bronze | F3: 50 | G3: 55 | H3: 1138 | I3: 0 | J3: 2014-05-29 | K3: 2 days | L3: 2014-06-21T11:42:35
A4: 849428 | B4: lee | C4: p | D4: Bronze | F4: 86 | G4: 105 | H4: 1097 | I4: 0 | J4: 2014-04-13 | K4: 3 days | L4: 2014-06-21T11:42:35
A5: 96509 | B5: kjla | C5: r | D5: Bronze | F5: 54 | G5: 79 | H5: 1066 | I5: 0 | J5: 2014-04-13 | K5: 1 days | L5: 2014-06-21T11:42:35
A6: 4229874 | B6: bESt | C6: z | D6: Bronze | F6: 39 | G6: 62 | H6: 1063 | I6: 0 | J6: 2014-04-17 | K6: 5 hours | L6: 2014-06-21T11:42:35
A7: 2284627 | C7: t | D7: Bronze | F7: 38 | G7: 47 | H7: 1058 | I7: 0 | J7: 2014-04-23 | K7: 7 hours | L7: 2014-06-21T11:42:35
A8: 954589 | B8: 소주댓병 | C8: t | D8: Bronze | F8: 58 | G8: 78 | H8: 1054 | I8: 0 | J8: 2014-04-24 | K8: 2 hours | L8: 2014-06-21T11:42:35
A9: 1335979 | B9: 老皮 | C9: z | D9: Bronze | F9: 61 | G9: 109 | H9: 1044 | I9: 0 | J9: 2014-05-08 | K9: 10 hours | L9: 2014-06-21T11:42:35
A10: 767675 | B10: 운명이다 | C10: p | D10: Bronze | F10: 60 | G10: 85 | H10: 1042 | I10: 0 | J10: 2014-04-25 | K10: 2 hours | L10: 2014-06-21T11:42:35
A11: 4154175 | B11: 처리랑희야랑 | C11: p | D11: Bronze | F11: 66 | G11: 97 | H11: 1041 | I11: 0 | J11: 2014-04-13 | K11: 5 hours | L11: 2014-06-21T11:42:35
A12: 1190748 | B12: geobreccia | C12: t | D12: Bronze | F12: 63 | G12: 76 | H12: 1024 | I12: 0 | J12: 2014-04-14 | K12: 2 hours | L12: 2014-06-21T11:42:35
A13: 4370941 | B13: 북극곰팅 | C13: t | D13: Bronze | F13: 35 | G13: 43 | H13: 999 | I13: 0 | J13: 2014-04-27 | K13: 7 hours | L13: 2014-06-21T11:42:35
A14: 2733866 | B14: DNAageloc | C14: r | D14: Bronze | F14: 36 | G14: 53 | H14: 988 | I14: 0 | J14: 2014-04-15 | K14: 4 hours | L14: 2014-06-21T11:42:35
A15: 258694 | B15: 天火焚城 | C15: t | D15: Bronze | F15: 148 | G15: 179 | H15: 985 | I15: 0 | J15: 2014-04-14 | K15: 13 days | L15: 2014-06-21T11:42:35
A16: 839268 | B16: 叮當貓 | C16: p | D16: Bronze | F16: 33 | G16: 51 | H16: 969 | I16: 0 | J16: 2014-05-05 | K16: 5 days | L16: 2014-06-21T11:42:35
A17: 4070819 | B17: psiple | C17: p | D17: Bronze | F17: 33 | G17: 63 | H17: 958 | I17: 0 | J17: 2014-04-23 | K17: 7 hours | L17: 2014-06-21T11:42:35
A18: 758178 | B18: 武告本趟 | C18: p | D18: Bronze | F18: 59 | G18: 88 | H18: 950 | I18: 0 | J18: 2014-04-18 | K18: 1 days | L18: 2014-06-21T11:42:35
A19: 1180766 | B19: DeppLee | C19: t | D19: Bronze | F19: 33 | G19: 58 | H19: 946 | I19: 0 | J19: 2014-05-09 | K19: 56 minutes | L19: 2014-06-21T11:42:35
A20: 4424332 | B20: Raindogs | C20: p | D20: Bronze | F20: 51 | G20: 72 | H20: 941 | I20: 0 | J20: 2014-04-14 | K20: 1 days | L20: 2014-06-21T11:42:35
A21: 1069892 | B21: Victorkate | C21: p | D21: Bronze | F21: 48 | G21: 75 | H21: 921 | I21: 0 | J21: 2014-04-23 | K21: 3 days | L21: 2014-06-21T11:42:35
A22: 884721 | B22: Jasonliu | C22: r | D22: Bronze | F22: 49 | G22: 79 | H22: 913 | I22: 0 | J22: 2014-04-14 | K22: 41 minutes | L22: 2014-06-21T11:42:35
A23: 979278 | B23: stevenyin | C23: p | D23: Bronze | F23: 62 | G23: 90 | H23: 907 | I23: 0 | J23: 2014-04-15 | K23: 9 days | L23: 2014-06-21T11:42:35
A24: 156826 | C24: p | D24: Bronze | F24: 57 | G24: 86 | H24: 882 | I24: 0 | J24: 2014-04-14 | K24: 6 days | L24: 2014-06-21T11:42:35
A25: 1038442 | B25: 메탈리카 | C25: r | D25: Bronze | F25: 37 | G25: 66 | H25: 873 | I25: 0 | J25: 2014-04-14 | K25: 2 hours | L25: 2014-06-21T11:42:35
A26: 945478 | C26: z | D26: Bronze | F26: 31 | G26: 50 | H26: 868 | I26: 0 | J26: 2014-05-21 | K26: 2 days | L26: 2014-06-21T11:42:35
A27: 925815 | B27: 다래 | C27: r | D27: Bronze | F27: 34 | G27: 28 | H27: 858 | I27: 0 | J27: 2014-04-18 | K27: 2 days | L27: 2014-06-21T11:42:35
A28: 220057 | B28: 제비한마리 | C28: t | D28: Bronze | F28: 38 | G28: 39 | H28: 856 | I28: 0 | J28: 2014-04-14 | K28: 6 days | L28: 2014-06-21T11:42:35
A29: 4091642 | B29: 초럭 | C29: p | D29: Bronze | F29: 32 | G29: 71 | H29: 828 | I29: 0 | J29: 2014-05-03 | K29: 1 hours | L29: 2014-06-21T11:42:35
A30: 310332 | B30: 빼꼼 | C30: r | D30: Bronze | F30: 29 | G30: 52 | H30: 815 | I30: 0 | J30: 2014-04-13 | K30: 4 days | L30: 2014-06-21T11:42:35
A31: 710957 | B31: 한판해보자 | C31: t | D31: Bronze | F31: 27 | G31: 52 | H31: 810 | I31: 0 | J31: 2014-05-05 | K31: 8 hours | L31: 2014-06-21T11:42:35
A32: 1749515 | C32: p | D32: Bronze | F32: 58 | G32: 92 | H32: 807 | I32: 0 | J32: 2014-04-13 | K32: 6 days | L32: 2014-06-21T11:42:35
A33: 1578285 | B33: singrules | C33: z | D33: Bronze | F33: 28 | G33: 53 | H33: 794 | I33: 0 | J33: 2014-04-13 | K33: 22 hours | L33: 2014-06-21T11:42:35
A34: 1988132 | B34: nsbang | C34: t | D34: Bronze | F34: 44 | G34: 55 | H34: 787 | I34: 0 | J34: 2014-05-04 | K34: 24 days | L34: 2014-06-21T11:42:35
A35: 3529808 | B35: 김성일 | C35: p | D35: Bronze | F35: 28 | G35: 30 | H35: 766 | I35: 0 | J35: 2014-04-26 | K35: 4 hours | L35: 2014-06-21T11:42:35
A36: 763933 | B36: Huang | C36: p | D36: Bronze | F36: 25 | G36: 49 | H36: 722 | I36: 0 | J36: 2014-04-13 | K36: 4 days | L36: 2014-06-21T11:42:35
A37: 603012 | C37: p | D37: Bronze | F37: 27 | G37: 30 | H37: 714 | I37: 0 | J37: 2014-05-07 | K37: 11 days | L37: 2014-06-21T11:42:35
A38: 4252528 | B38: geto | C38: p | D38: Bronze | F38: 28 | G38: 43 | H38: 684 | I38: 0 | J38: 2014-04-17 | K38: 5 hours | L38: 2014-06-21T11:42:35
A39: 1017560 | B39: 악타이온 | C39: p | D39: Bronze | F39: 23 | G39: 41 | H39: 682 | I39: 0 | J39: 2014-04-19 | K39: 3 days | L39: 2014-06-21T11:42:35
A40: 890685 | B40: Dieres | C40: p | D40: Bronze | F40: 33 | G40: 62 | H40: 681 | I40: 0 | J40: 2014-04-15 | K40: 12 days | L40: 2014-06-21T11:42:35
A41: 890549 | B41: Battle | C41: p | D41: Bronze | F41: 29 | G41: 49 | H41: 674 | I41: 0 | J41: 2014-04-16 | K41: 4 days | L41: 2014-06-21T11:42:35
A42: 2379885 | B42: slash | C42: t | D42: Bronze | F42: 24 | G42: 52 | H42: 674 | I42: 0 | J42: 2014-04-15 | K42: 4 days | L42: 2014-06-21T11:42:35
A43: 80368 | B43: kachen | C43: r | D43: Bronze | F43: 25 | G43: 48 | H43: 660 | I43: 0 | J43: 2014-05-11 | K43: 19 days | L43: 2014-06-21T11:42:35
A44: 299806 | B44: 貝西爾的漩渦 | C44: p | D44: Bronze | F44: 24 | G44: 65 | H44: 651 | I44: 0 | J44: 2014-04-18 | K44: 3 minutes | L44: 2014-06-21T11:42:35
A45: 3679010 | C45: p | D45: Bronze | F45: 25 | G45: 18 | H45: 644 | I45: 0 | J45: 2014-04-21 | K45: 2 days | L45: 2014-06-21T11:42:35
A46: 785907 | C46: z | D46: Bronze | F46: 23 | G46: 24 | H46: 631 | I46: 0 | J46: 2014-04-19 | K46: 6 days | L46: 2014-06-21T11:42:35
A47: 974286 | B47: 御飯糰藤 | C47: p | D47: Bronze | F47: 21 | G47: 31 | H47: 576 | I47: 0 | J47: 2014-04-19 | K47: 6 days | L47: 2014-06-21T11:42:35
A48: 3008266 | C48: t | D48: Bronze | F48: 30 | G48: 37 | H48: 569 | I48: 0 | J48: 2014-04-18 | K48: 40 days | L48: 2014-06-21T11:42:35
A49: 991197 | B49: jsh | C49: p | D49: Bronze | F49: 26 | G49: 36 | H49: 557 | I49: 0 | J49: 2014-04-18 | K49: 20 days | L49: 2014-06-21T11:42:35
A50: 3957735 | B50: BladeHunter | C50: t | D50: Bronze | F50: 24 | G50: 19 | H50: 552 | I50: 0 | J50: 2014-04-26 | K50: 41 days | L50: 2014-06-21T11:42:35
A51: 896259 | B51: 시르메리아 | C51: t | D51: Bronze | F51: 43 | G51: 51 | H51: 531 | I51: 0 | J51: 2014-04-14 | K51: 41 days | L51: 2014-06-21T11:42:35
A52: 683040 | B52: CBS | C52: p | D52: Bronze | F52: 38 | G52: 45 | H52: 529 | I52: 0 | J52: 2014-04-16 | K52: 36 days | L52: 2014-06-21T11:42:35
A53: 4351745 | B53: 꼬꼬끼 | C53: p | D53: Bronze | F53: 40 | G53: 86 | H53: 526 | I53: 0 | J53: 2014-04-13 | K53: 26 days | L53: 2014-06-21T11:42:35
A54: 4501473 | B54: JKGB | C54: r | D54: Bronze | F54: 18 | G54: 40 | H54: 526 | I54: 0 | J54: 2014-04-14 | K54: 1 days | L54: 2014-06-21T11:42:35
A55: 4565096 | B55: 메딕 | C55: t | D55: Bronze | F55: 37 | G55: 61 | H55: 491 | I55: 0 | J55: 2014-04-27 | K55: 44 days | L55: 2014-06-21T11:42:35
A56: 308089 | B56: 스타짱 | C56: t | D56: Bronze | F56: 16 | G56: 41 | H56: 480 | I56: 0 | J56: 2014-04-24 | K56: 5 days | L56: 2014-06-21T11:42:35
A57: 2945679 | B57: 찐고구마 | C57: r | D57: Bronze | F57: 17 | G57: 19 | H57: 478 | I57: 0 | J57: 2014-04-15 | K57: 22 days | L57: 2014-06-21T11:42:35
A58: 4360023 | B58: jpg | C58: p | D58: Bronze | F58: 15 | G58: 44 | H58: 466 | I58: 0 | J58: 2014-04-18 | K58: 16 days | L58: 2014-06-21T11:42:35
A59: 593932 | B59: scs | C59: t | D59: Bronze | F59: 16 | G59: 22 | H59: 460 | I59: 0 | J59: 2014-04-19 | K59: 7 days | L59: 2014-06-21T11:42:35
A60: 404762 | B60: Avenger | C60: r | D60: Bronze | F60: 21 | G60: 26 | H60: 459 | I60: 0 | J60: 2014-04-14 | K60: 36 days | L60: 2014-06-21T11:42:35
A61: 1246844 | B61: smile | C61: r | D61: Bronze | F61: 17 | G61: 23 | H61: 452 | I61: 0 | J61: 2014-04-21 | K61: 5 hours | L61: 2014-06-21T11:42:35
A62: 916481 | B62: SuddenSR | C62: z | D62: Bronze | F62: 17 | G62: 14 | H62: 448 | I62: 0 | J62: 2014-04-15 | K62: 5 days | L62: 2014-06-21T11:42:35
A63: 1735280 | C63: p | D63: Bronze | F63: 21 | G63: 24 | H63: 440 | I63: 0 | J63: 2014-04-27 | K63: 47 days | L63: 2014-06-21T11:42:35
A64: 2105611 | B64: 셜록홈즈 | C64: t | D64: Bronze | F64: 19 | G64: 10 | H64: 440 | I64: 0 | J64: 2014-04-17 | K64: 42 days | L64: 2014-06-21T11:42:35
A65: 273373 | B65: 몽당구 | C65: r | D65: Bronze | F65: 13 | G65: 14 | H65: 432 | I65: 0 | J65: 2014-05-01 | K65: 40 days | L65: 2014-06-21T11:42:35
A66: 220261 | C66: r | D66: Bronze | F66: 15 | G66: 28 | H66: 430 | I66: 0 | J66: 2014-05-09 | K66: 4 days | L66: 2014-06-21T11:42:35
A67: 897804 | B67: 高小牛廷睿 | C67: r | D67: Bronze | F67: 16 | G67: 37 | H67: 422 | I67: 0 | J67: 2014-05-03 | K67: 23 days | L67: 2014-06-21T11:42:35
A68: 1173806 | B68: 子彈風暴 | C68: t | D68: Bronze | F68: 14 | G68: 35 | H68: 422 | I68: 0 | J68: 2014-05-24 | K68: 1 days | L68: 2014-06-21T11:42:35
A69: 4263840 | B69: itepezle | C69: r | D69: Bronze | F69: 87 | G69: 207 | H69: 422 | I69: 0 | J69: 2014-04-16 | K69: 27 days | L69: 2014-06-21T11:42:35
A70: 1216205 | B70: 캠패인만 | C70: z | D70: Bronze | F70: 14 | G70: 12 | H70: 412 | I70: 0 | J70: 2014-05-06 | K70: 44 days | L70: 2014-06-21T11:42:35
A71: 2992349 | B71: kim | C71: p | D71: Bronze | F71: 15 | G71: 24 | H71: 412 | I71: 0 | J71: 2014-04-14 | K71: 5 days | L71: 2014-06-21T11:42:35
A72: 4218000 | B72: 내센스가에센스야 | C72: z | D72: Bronze | F72: 25 | G72: 25 | H72: 410 | I72: 0 | J72: 2014-04-14 | K72: 39 days | L72: 2014-06-21T11:42:35
A73: 304609 | B73: naiyumie | C73: t | D73: Bronze | F73: 15 | G73: 25 | H73: 408 | I73: 0 | J73: 2014-04-28 | K73: 15 days | L73: 2014-06-21T11:42:35
A74: 1211102 | C74: p | D74: Bronze | F74: 15 | G74: 30 | H74: 408 | I74: 0 | J74: 2014-04-14 | K74: 12 days | L74: 2014-06-21T11:42:35
A75: 3939069 | C75: p | D75: Bronze | F75: 15 | G75: 10 | H75: 408 | I75: 0 | J75: 2014-04-27 | K75: 43 days | L75: 2014-06-21T11:42:35
A76: 885036 | B76: 中華民國萬萬歲 | C76: r | D76: Bronze | F76: 14 | G76: 24 | H76: 405 | I76: 0 | J76: 2014-04-19 | K76: 34 days | L76: 2014-06-21T11:42:35
A77: 820212 | B77: Shane | C77: z | D77: Bronze | F77: 18 | G77: 21 | H77: 404 | I77: 0 | J77: 2014-04-17 | K77: 32 days | L77: 2014-06-21T11:42:35
A78: 2285945 | B78: chasong | C78: t | D78: Bronze | F78: 16 | G78: 25 | H78: 398 | I78: 0 | J78: 2014-04-16 | K78: 6 days | L78: 2014-06-21T11:42:35
A79: 3929265 | B79: 개시키 | C79: t | D79: Bronze | F79: 14 | G79: 43 | H79: 398 | I79: 0 | J79: 2014-04-29 | K79: 15 days | L79: 2014-06-21T11:42:35
A80: 3290317 | B80: ELTY | C80: p | D80: Bronze | F80: 14 | G80: 20 | H80: 390 | I80: 0 | J80: 2014-04-24 | K80: 22 days | L80: 2014-06-21T11:42:35
A81: 4200315 | B81: 시르크 | C81: p | D81: Bronze | F81: 15 | G81: 9 | H81: 388 | I81: 0 | J81: 2014-06-10 | K81: 1 days | L81: 2014-06-21T11:42:35
A82: 4351302 | B82: 태풍이 | C82: p | D82: Bronze | F82: 18 | G82: 36 | H82: 385 | I82: 0 | J82: 2014-04-13 | K82: 40 days | L82: 2014-06-21T11:42:35
A83: 283559 | B83: 아빈 | C83: r | D83: Bronze | F83: 14 | G83: 6 | H83: 384 | I83: 0 | J83: 2014-05-04 | K83: 39 days | L83: 2014-06-21T11:42:35
A84: 81526 | B84: 제로아워 | C84: t | D84: Bronze | F84: 22 | G84: 21 | H84: 383 | I84: 0 | J84: 2014-04-14 | K84: 55 days | L84: 2014-06-21T11:42:35
A85: 2650088 | B85: 오곡님 | C85: z | D85: Bronze | F85: 20 | G85: 12 | H85: 376 | I85: 0 | J85: 2014-04-19 | K85: 49 days | L85: 2014-06-21T11:42:35
A86: 4444924 | B86: AmoebA | C86: t | D86: Bronze | F86: 11 | G86: 16 | H86: 366 | I86: 0 | J86: 2014-04-22 | K86: 4 days | L86: 2014-06-21T11:42:36
A87: 3334594 | B87: 포신 | C87: p | D87: Bronze | F87: 13 | G87: 28 | H87: 360 | I87: 0 | J87: 2014-04-14 | K87: 32 days | L87: 2014-06-21T11:42:36
A88: 3754405 | C88: r | D88: Bronze | F88: 14 | G88: 7 | H88: 360 | I88: 0 | J88: 2014-04-25 | K88: 38 days | L88: 2014-06-21T11:42:36
A89: 466161 | B89: 獵人 | C89: p | D89: Bronze | F89: 15 | G89: 34 | H89: 352 | I89: 0 | J89: 2014-04-18 | K89: 35 days | L89: 2014-06-21T11:42:36
A90: 466657 | B90: GoGoGo | C90: r | D90: Bronze | F90: 12 | G90: 17 | H90: 352 | I90: 0 | J90: 2014-05-29 | K90: 14 days | L90: 2014-06-21T11:42:36
A91: 4648722 | B91: sharpen | C91: t | D91: Bronze | F91: 15 | G91: 13 | H91: 352 | I91: 0 | J91: 2014-06-14 | K91: 1 days | L91: 2014-06-21T11:42:36
A92: 273400 | B92: Algae | C92: r | D92: Bronze | F92: 30 | G92: 30 | H92: 348 | I92: 0 | J92: 2014-04-13 | K92: 51 days | L92: 2014-06-21T11:42:36
A93: 4440078 | B93: xragy | C93: t | D93: Bronze | F93: 11 | G93: 4 | H93: 346 | I93: 0 | J93: 2014-05-27 | K93: 4 days | L93: 2014-06-21T11:42:36
A94: 3457820 | B94: 쩡쭈 | C94: r | D94: Bronze | F94: 16 | G94: 17 | H94: 343 | I94: 0 | J94: 2014-04-20 | K94: 53 days | L94: 2014-06-21T11:42:36
A95: 77614 | C95: r | D95: Bronze | F95: 13 | G95: 16 | H95: 342 | I95: 0 | J95: 2014-04-18 | K95: 7 days | L95: 2014-06-21T11:42:36
A96: 1133577 | B96: 금목걸이 | C96: z | D96: Bronze | F96: 13 | G96: 5 | H96: 342 | I96: 0 | J96: 2014-05-06 | K96: 41 days | L96: 2014-06-21T11:42:36
A97: 729434 | B97: Nasca | C97: p | D97: Bronze | F97: 11 | G97: 14 | H97: 338 | I97: 0 | J97: 2014-04-22 | K97: 11 days | L97: 2014-06-21T11:42:36
A98: 1059316 | B98: 스타지존 | C98: r | D98: Bronze | F98: 11 | G98: 31 | H98: 338 | I98: 0 | J98: 2014-04-14 | K98: 28 days | L98: 2014-06-21T11:42:36
A99: 1202219 | B99: HolyWing | C99: t | D99: Bronze | F99: 12 | G99: 5 | H99: 338 | I99: 0 | J99: 2014-04-17 | K99: 42 days | L99: 2014-06-21T11:42:36
A100: 1243955 | B100: 파일구리 | C100: p | D100: Bronze | F100: 11 | G100: 0 | H100: 338 | I100: 0 | J100: 2014-04-19 | K100: 59 days | L100: 2014-06-21T11:42:36
A101: 2144311 | C101: t | D101: Bronze | F101: 12 | G101: 23 | H101: 338 | I101: 0 | J101: 2014-04-24 | K101: 10 days | L101: 2014-06-21T11:42:36
A102: 1011518 | B102: Koodrong | C102: r | D102: Bronze | F102: 11 | G102: 12 | H102: 336 | I102: 0 | J102: 2014-04-22 | K102: 1 days | L102: 2014-06-21T11:42:36
A103: 1184720 | C103: t | D103: Bronze | F103: 12 | G103: 33 | H103: 336 | I103: 0 | J103: 2014-04-14 | K103: 2 days | L103: 2014-06-21T11:42:36
A104: 4493521 | B104: 이종원 | C104: t | D104: Bronze | F104: 12 | G104: 27 | H104: 334 | I104: 0 | J104: 2014-04-22 | K104: 6 hours | L104: 2014-06-21T11:42:36
A105: 605624 | B105: Galaxy | C105: t | D105: Bronze | F105: 12 | G105: 16 | H105: 332 | I105: 0 | J105: 2014-04-20 | K105: 21 days | L105: 2014-06-21T11:42:36
A106: 2177820 | B106: darkduck | C106: t | D106: Bronze | F106: 12 | G106: 25 | H106: 332 | I106: 0 | J106: 2014-05-09 | K106: 39 days | L106: 2014-06-21T11:42:36
A107: 888981 | B107: 오다이바 | C107: p | D107: Bronze | F107: 29 | G107: 36 | H107: 329 | I107: 0 | J107: 2014-04-21 | K107: 52 days | L107: 2014-06-21T11:42:36
A108: 144906 | B108: miramirab | C108: p | D108: Bronze | F108: 11 | G108: 28 | H108: 326 | I108: 0 | J108: 2014-04-17 | K108: 15 days | L108: 2014-06-21T11:42:36
A109: 230461 | B109: KiriNKinG | C109: t | D109: Bronze | F109: 12 | G109: 12 | H109: 326 | I109: 0 | J109: 2014-04-14 | K109: 30 days | L109: 2014-06-21T11:42:36
A110: 4158676 | B110: django | C110: t | D110: Bronze | F110: 12 | G110: 18 | H110: 324 | I110: 0 | J110: 2014-04-18 | K110: 46 days | L110: 2014-06-21T11:42:36
A111: 617592 | B111: KANGJUN | C111: t | D111: Bronze | F111: 10 | G111: 21 | H111: 322 | I111: 0 | J111: 2014-04-28 | K111: 6 days | L111: 2014-06-21T11:42:36
A112: 3754669 | B112: 천개의바람 | C112: p | D112: Bronze | F112: 11 | G112: 27 | H112: 322 | I112: 0 | J112: 2014-04-26 | K112: 5 days | L112: 2014-06-21T11:42:36
A113: 1530242 | B113: 이비자 | C113: t | D113: Bronze | F113: 12 | G113: 19 | H113: 320 | I113: 0 | J113: 2014-05-09 | K113: 26 days | L113: 2014-06-21T11:42:36
A114: 4314221 | B114: Badmotherfuk | C114: r | D114: Bronze | F114: 13 | G114: 9 | H114: 316 | I114: 0 | J114: 2014-05-03 | K114: 41 days | L114: 2014-06-21T11:42:36
A115: 3170697 | B115: WoorimBae | C115: t | D115: Bronze | F115: 12 | G115: 24 | H115: 314 | I115: 0 | J115: 2014-04-30 | K115: 16 days | L115: 2014-06-21T11:42:36
A116: 4239451 | C116: r | D116: Bronze | F116: 11 | G116: 2 | H116: 314 | I116: 0 | J116: 2014-04-15 | K116: 42 days | L116: 2014-06-21T11:42:36
A117: 4275844 | B117: julianvan | C117: p | D117: Bronze | F117: 37 | G117: 41 | H117: 314 | I117: 0 | J117: 2014-04-14 | K117: 53 days | L117: 2014-06-21T11:42:36
A118: 121403 | B118: 나비 | C118: t | D118: Bronze | F118: 22 | G118: 58 | H118: 311 | I118: 0 | J118: 2014-04-17 | K118: 37 days | L118: 2014-06-21T11:42:36
A119: 1531567 | C119: z | D119: Bronze | F119: 10 | G119: 12 | H119: 310 | I119: 0 | J119: 2014-04-24 | K119: 6 days | L119: 2014-06-21T11:42:36
A120: 2666997 | B120: 가가가가 | C120: t | D120: Bronze | F120: 10 | G120: 18 | H120: 310 | I120: 0 | J120: 2014-04-20 | K120: 6 days | L120: 2014-06-21T11:42:36
A121: 213549 | B121: HouseMusic | C121: r | D121: Bronze | F121: 9 | G121: 9 | H121: 306 | I121: 0 | J121: 2014-04-19 | K121: 32 days | L121: 2014-06-21T11:42:36
A122: 866643 | B122: fdg | C122: r | D122: Bronze | F122: 10 | G122: 32 | H122: 302 | I122: 0 | J122: 2014-04-26 | K122: 14 days | L122: 2014-06-21T11:42:36
A123: 101341 | B123: 낭낭수라 | C123: t | D123: Bronze | F123: 11 | G123: 19 | H123: 300 | I123: 0 | J123: 2014-04-14 | K123: 2 days | L123: 2014-06-21T11:42:36
A124: 1023272 | B124: 건들면피똥싼다 | C124: p | D124: Bronze | F124: 10 | G124: 7 | H124: 300 | I124: 0 | J124: 2014-05-12 | K124: 39 days | L124: 2014-06-21T11:42:36
A125: 4127205 | B125: 김창연 | C125: t | D125: Bronze | F125: 11 | G125: 19 | H125: 300 | I125: 0 | J125: 2014-04-13 | K125: 44 days | L125: 2014-06-21T11:42:36
A126: 742785 | B126: forthefuture | C126: t | D126: Bronze | F126: 17 | G126: 14 | H126: 298 | I126: 0 | J126: 2014-04-15 | K126: 55 days | L126: 2014-06-21T11:42:36
A127: 1157914 | B127: Neo | C127: p | D127: Bronze | F127: 11 | G127: 14 | H127: 298 | I127: 0 | J127: 2014-04-14 | K127: 10 days | L127: 2014-06-21T11:42:36
A128: 713023 | C128: p | D128: Bronze | F128: 12 | G128: 12 | H128: 294 | I128: 0 | J128: 2014-04-14 | K128: 38 days | L128: 2014-06-21T11:42:36
A129: 4007858 | B129: CIYJS | C129: z | D129: Bronze | F129: 9 | G129: 9 | H129: 292 | I129: 0 | J129: 2014-04-26 | K129: 1 days | L129: 2014-06-21T11:42:36
A130: 1892012 | B130: 흑형무서버이 | C130: p | D130: Bronze | F130: 9 | G130: 22 | H130: 291 | I130: 0 | J130: 2014-04-16 | K130: 54 days | L130: 2014-06-21T11:42:36
A131: 4494997 | C131: p | D131: Bronze | F131: 12 | G131: 25 | H131: 290 | I131: 0 | J131: 2014-04-28 | K131: 37 days | L131: 2014-06-21T11:42:36
A132: 1267736 | B132: Blv | C132: r | D132: Bronze | F132: 9 | G132: 9 | H132: 288 | I132: 0 | J132: 2014-04-20 | K132: 52 days | L132: 2014-06-21T11:42:36
A133: 98686 | B133: AbyssBlue | C133: r | D133: Bronze | F133: 11 | G133: 9 | H133: 286 | I133: 0 | J133: 2014-05-01 | K133: 41 days | L133: 2014-06-21T11:42:36
A134: 891683 | C134: p | D134: Bronze | F134: 10 | G134: 21 | H134: 286 | I134: 0 | J134: 2014-06-13 | K134: 3 hours | L134: 2014-06-21T11:42:36
A135: 387001 | B135: 리차드오 | C135: r | D135: Bronze | F135: 11 | G135: 23 | H135: 281 | I135: 0 | J135: 2014-04-25 | K135: 48 days | L135: 2014-06-21T11:42:36
A136: 4309606 | C136: z | D136: Bronze | F136: 11 | G136: 12 | H136: 276 | I136: 0 | J136: 2014-05-11 | K136: 18 days | L136: 2014-06-21T11:42:36
A137: 1072339 | B137: 我是大帥哥 | C137: p | D137: Bronze | F137: 9 | G137: 33 | H137: 272 | I137: 0 | J137: 2014-05-02 | K137: 38 days | L137: 2014-06-21T11:42:36
A138: 3048996 | C138: r | D138: Bronze | F138: 9 | G138: 1 | H138: 272 | I138: 0 | J138: 2014-04-25 | K138: 54 days | L138: 2014-06-21T11:42:36
A139: 4669281 | B139: KAIZAR | C139: z | D139: Bronze | F139: 10 | G139: 15 | H139: 272 | I139: 0 | J139: 2014-06-18 | K139: 3 hours | L139: 2014-06-21T11:42:36
A140: 51582 | B140: Hawk | C140: z | D140: Bronze | F140: 21 | G140: 42 | H140: 271 | I140: 0 | J140: 2014-04-27 | K140: 46 days | L140: 2014-06-21T11:42:36
A141: 549040 | B141: 클놈 | C141: t | D141: Bronze | F141: 11 | G141: 17 | H141: 270 | I141: 0 | J141: 2014-04-14 | K141: 2 days | L141: 2014-06-21T11:42:36
A142: 1357128 | B142: 뤼라르손 | C142: t | D142: Bronze | F142: 10 | G142: 6 | H142: 270 | I142: 0 | J142: 2014-04-19 | K142: 46 days | L142: 2014-06-21T11:42:36
A143: 4209085 | C143: p | D143: Bronze | F143: 9 | G143: 20 | H143: 268 | I143: 0 | J143: 2014-05-11 | K143: 5 days | L143: 2014-06-21T11:42:36
A144: 4613980 | B144: 타지망할 | C144: p | D144: Bronze | F144: 11 | G144: 11 | H144: 268 | I144: 0 | J144: 2014-06-07 | K144: 6 days | L144: 2014-06-21T11:42:36
A145: 742557 | B145: sowhat | C145: t | D145: Bronze | F145: 10 | G145: 12 | H145: 266 | I145: 0 | J145: 2014-04-24 | K145: 50 days | L145: 2014-06-21T11:42:36
A146: 949810 | B146: 천사의기도 | C146: r | D146: Bronze | F146: 9 | G146: 18 | H146: 266 | I146: 0 | J146: 2014-05-25 | K146: 8 hours | L146: 2014-06-21T11:42:36
A147: 3068786 | B147: 스타첨해봐 | C147: p | D147: Bronze | F147: 9 | G147: 17 | H147: 266 | I147: 0 | J147: 2014-04-28 | K147: 19 days | L147: 2014-06-21T11:42:36
A148: 560588 | B148: Jovi | C148: t | D148: Bronze | F148: 8 | G148: 10 | H148: 264 | I148: 0 | J148: 2014-04-29 | K148: 21 days | L148: 2014-06-21T11:42:36
A149: 1295786 | B149: chiading | C149: p | D149: Bronze | F149: 10 | G149: 14 | H149: 262 | I149: 0 | J149: 2014-05-25 | K149: 3 hours | L149: 2014-06-21T11:42:36
A150: 3186000 | B150: TheSSam | C150: z | D150: Bronze | F150: 14 | G150: 11 | H150: 262 | I150: 0 | J150: 2014-04-17 | K150: 61 days | L150: 2014-06-21T11:42:36
A151: 1627492 | B151: 서곡 | C151: t | D151: Bronze | F151: 9 | G151: 5 | H151: 260 | I151: 0 | J151: 2014-05-22 | K151: 20 days | L151: 2014-06-21T11:42:36
A152: 4081345 | B152: Timefly | C152: r | D152: Bronze | F152: 9 | G152: 9 | H152: 260 | I152: 0 | J152: 2014-05-07 | K152: 21 days | L152: 2014-06-21T11:42:36
A153: 193356 | B153: 봉쥬르 | C153: r | D153: Bronze | F153: 10 | G153: 9 | H153: 259 | I153: 0 | J153: 2014-04-17 | K153: 34 days | L153: 2014-06-21T11:42:36
A154: 4290459 | B154: snowykira | C154: p | D154: Bronze | F154: 7 | G154: 7 | H154: 258 | I154: 0 | J154: 2014-04-19 | K154: 26 days | L154: 2014-06-21T11:42:36
A155: 1108452 | C155: r | D155: Bronze | F155: 10 | G155: 22 | H155: 256 | I155: 0 | J155: 2014-04-15 | K155: 19 days | L155: 2014-06-21T11:42:36
A156: 2119352 | C156: r | D156: Bronze | F156: 7 | G156: 10 | H156: 256 | I156: 0 | J156: 2014-04-17 | K156: 42 days | L156: 2014-06-21T11:42:36
A157: 2264692 | B157: 혹시나나 | C157: t | D157: Bronze | F157: 8 | G157: 4 | H157: 256 | I157: 0 | J157: 2014-04-26 | K157: 41 days | L157: 2014-06-21T11:42:36
A158: 4176903 | B158: Trendfactory | C158: z | D158: Bronze | F158: 14 | G158: 26 | H158: 253 | I158: 0 | J158: 2014-04-14 | K158: 53 days | L158: 2014-06-21T11:42:36
A159: 4600474 | C159: p | D159: Bronze | F159: 19 | G159: 32 | H159: 253 | I159: 0 | J159: 2014-04-21 | K159: 46 days | L159: 2014-06-21T11:42:36
A160: 994011 | C160: p | D160: Bronze | F160: 8 | G160: 14 | H160: 250 | I160: 0 | J160: 2014-04-16 | K160: 23 days | L160: 2014-06-21T11:42:36
A161: 193241 | C161: p | D161: Bronze | F161: 9 | G161: 17 | H161: 248 | I161: 0 | J161: 2014-04-17 | K161: 11 days | L161: 2014-06-21T11:42:36
A162: 952144 | B162: EunJa | C162: p | D162: Bronze | F162: 11 | G162: 14 | H162: 248 | I162: 0 | J162: 2014-05-10 | K162: 7 days | L162: 2014-06-21T11:42:36
A163: 1201585 | B163: Lokoma | C163: t | D163: Bronze | F163: 9 | G163: 23 | H163: 246 | I163: 0 | J163: 2014-05-01 | K163: 29 days | L163: 2014-06-21T11:42:36
A164: 2442671 | B164: Kurt | C164: r | D164: Bronze | F164: 8 | G164: 31 | H164: 244 | I164: 0 | J164: 2014-04-21 | K164: 6 days | L164: 2014-06-21T11:42:36
A165: 4321340 | B165: 똘똘이투 | C165: t | D165: Bronze | F165: 8 | G165: 14 | H165: 244 | I165: 0 | J165: 2014-06-03 | K165: 2 days | L165: 2014-06-21T11:42:36
A166: 4486848 | B166: Armylife | C166: t | D166: Bronze | F166: 9 | G166: 7 | H166: 244 | I166: 0 | J166: 2014-05-07 | K166: 43 days | L166: 2014-06-21T11:42:36
A167: 657277 | B167: ALEC | C167: t | D167: Bronze | F167: 9 | G167: 6 | H167: 242 | I167: 0 | J167: 2014-04-23 | K167: 44 days | L167: 2014-06-21T11:42:36
A168: 4609793 | B168: 익년아이리와 | C168: p | D168: Bronze | F168: 8 | G168: 9 | H168: 242 | I168: 0 | J168: 2014-04-20 | K168: 14 days | L168: 2014-06-21T11:42:36
A169: 459887 | C169: t | D169: Bronze | F169: 9 | G169: 5 | H169: 238 | I169: 0 | J169: 2014-05-02 | K169: 42 days | L169: 2014-06-21T11:42:36
A170: 1108647 | B170: AnNa | C170: p | D170: Bronze | F170: 8 | G170: 2 | H170: 238 | I170: 0 | J170: 2014-04-24 | K170: 21 days | L170: 2014-06-21T11:42:36
A171: 4439665 | B171: 푸른숲 | C171: p | D171: Bronze | F171: 8 | G171: 19 | H171: 238 | I171: 0 | J171: 2014-04-14 | K171: 16 days | L171: 2014-06-21T11:42:36
A172: 808209 | B172: 彭桑 | C172: p | D172: Bronze | F172: 9 | G172: 18 | H172: 236 | I172: 0 | J172: 2014-05-04 | K172: 36 days | L172: 2014-06-21T11:42:36
A173: 4405828 | C173: t | D173: Bronze | F173: 9 | G173: 18 | H173: 236 | I173: 0 | J173: 2014-04-23 | K173: 7 hours | L173: 2014-06-21T11:42:36
A174: 79373 | B174: Aphrodite | C174: z | D174: Bronze | F174: 7 | G174: 6 | H174: 234 | I174: 0 | J174: 2014-05-02 | K174: 49 days | L174: 2014-06-21T11:42:36
A175: 3912170 | B175: Praymeyer | C175: r | D175: Bronze | F175: 9 | G175: 3 | H175: 234 | I175: 0 | J175: 2014-05-03 | K175: 46 days | L175: 2014-06-21T11:42:36
A176: 4541521 | B176: 조르주바타유 | C176: p | D176: Bronze | F176: 10 | G176: 13 | H176: 234 | I176: 0 | J176: 2014-05-21 | K176: 8 days | L176: 2014-06-21T11:42:36
A177: 782034 | C177: p | D177: Bronze | F177: 8 | G177: 19 | H177: 230 | I177: 0 | J177: 2014-04-20 | K177: 7 days | L177: 2014-06-21T11:42:36
A178: 2309592 | B178: 테란 | C178: t | D178: Bronze | F178: 10 | G178: 5 | H178: 229 | I178: 0 | J178: 2014-04-17 | K178: 55 days | L178: 2014-06-21T11:42:36
A179: 4399508 | C179: r | D179: Bronze | F179: 9 | G179: 7 | H179: 228 | I179: 0 | J179: 2014-04-14 | K179: 40 days | L179: 2014-06-21T11:42:36
A180: 1145867 | B180: Gamer | C180: r | D180: Bronze | F180: 8 | G180: 6 | H180: 226 | I180: 0 | J180: 2014-04-21 | K180: 22 days | L180: 2014-06-21T11:42:36
A181: 2931214 | B181: hshkisskjs | C181: p | D181: Bronze | F181: 9 | G181: 9 | H181: 226 | I181: 0 | J181: 2014-04-19 | K181: 21 days | L181: 2014-06-21T11:42:36
A182: 3626470 | C182: p | D182: Bronze | F182: 9 | G182: 9 | H182: 226 | I182: 0 | J182: 2014-04-25 | K182: 51 days | L182: 2014-06-21T11:42:36
A183: 4318243 | B183: 저그 | C183: z | D183: Bronze | F183: 7 | G183: 13 | H183: 226 | I183: 0 | J183: 2014-06-08 | K183: 2 days | L183: 2014-06-21T11:42:36
A184: 4087939 | B184: 버져비터 | C184: t | D184: Bronze | F184: 8 | G184: 16 | H184: 224 | I184: 0 | J184: 2014-04-27 | K184: 41 days | L184: 2014-06-21T11:42:36
A185: 944478 | B185: 榮華帝國機動隊 | C185: p | D185: Bronze | F185: 9 | G185: 27 | H185: 222 | I185: 0 | J185: 2014-04-18 | K185: 40 days | L185: 2014-06-21T11:42:36
A186: 1309551 | C186: p | D186: Bronze | F186: 9 | G186: 24 | H186: 222 | I186: 0 | J186: 2014-06-01 | K186: 3 hours | L186: 2014-06-21T11:42:37
A187: 1085065 | B187: 고물컴터 | C187: z | D187: Bronze | F187: 8 | G187: 9 | H187: 220 | I187: 0 | J187: 2014-04-26 | K187: 3 hours | L187: 2014-06-21T11:42:37
A188: 4512274 | B188: trohun | C188: p | D188: Bronze | F188: 8 | G188: 8 | H188: 220 | I188: 0 | J188: 2014-05-06 | K188: 1 days | L188: 2014-06-21T11:42:37
A189: 251037 | C189: r | D189: Bronze | F189: 7 | G189: 6 | H189: 218 | I189: 0 | J189: 2014-04-25 | K189: 46 days | L189: 2014-06-21T11:42:37
A190: 1324059 | B190: 그레이트세이프티 | C190: r | D190: Bronze | F190: 9 | G190: 6 | H190: 218 | I190: 0 | J190: 2014-04-26 | K190: 43 days | L190: 2014-06-21T11:42:37
A191: 148049 | B191: 의자와신념 | C191: z | D191: Bronze | F191: 6 | G191: 8 | H191: 214 | I191: 0 | J191: 2014-04-27 | K191: 50 days | L191: 2014-06-21T11:42:37
A192: 1941468 | B192: 쥬앙고등학교 | C192: z | D192: Bronze | F192: 8 | G192: 10 | H192: 214 | I192: 0 | J192: 2014-05-18 | K192: 29 days | L192: 2014-06-21T11:42:37
A193: 242283 | B193: 사나이라면신라면 | C193: t | D193: Bronze | F193: 8 | G193: 9 | H193: 212 | I193: 0 | J193: 2014-05-09 | K193: 17 days | L193: 2014-06-21T11:42:37
A194: 1583676 | B194: 대구광역시민 | C194: p | D194: Bronze | F194: 9 | G194: 11 | H194: 211 | I194: 0 | J194: 2014-04-16 | K194: 45 days | L194: 2014-06-21T11:42:37
A195: 3378196 | B195: Snot | C195: p | D195: Bronze | F195: 9 | G195: 2 | H195: 209 | I195: 0 | J195: 2014-04-19 | K195: 62 days | L195: 2014-06-21T11:42:37
A196: 656885 | B196: ATfield | C196: t | D196: Bronze | F196: 7 | G196: 15 | H196: 208 | I196: 0 | J196: 2014-04-27 | K196: 13 days | L196: 2014-06-21T11:42:37
A197: 2798506 | B197: 이렇게멋진 | C197: z | D197: Bronze | F197: 5 | G197: 24 | H197: 208 | I197: 0 | J197: 2014-04-26 | K197: 36 days | L197: 2014-06-21T11:42:37
A198: 3328613 | B198: 하하하 | C198: r | D198: Bronze | F198: 8 | G198: 27 | H198: 208 | I198: 0 | J198: 2014-05-08 | K198: 5 days | L198: 2014-06-21T11:42:37
A199: 848492 | B199: 紅塵百鍊生 | C199: t | D199: Bronze | F199: 7 | G199: 20 | H199: 206 | I199: 0 | J199: 2014-04-29 | K199: 26 days | L199: 2014-06-21T11:42:37
A200: 1091659 | B200: 主宰者 | C200: t | D200: Bronze | F200: 9 | G200: 24 | H200: 206 | I200: 0 | J200: 2014-05-04 | K200: 19 days | L200: 2014-06-21T11:42:37
... 7433 more rows

Sheet 3v3r
A1: PlayerID | B1: PlayerName | C1: Race | D1: League | E1: Division | F1: Wins | G1: Losses | H1: Score | I1: Bonus Pool | J1: JoinDate | K1: Last Game | L1: Timestamp
A2: 1061544 | B2: 吳總裁 | C2: p | D2: Bronze | F2: 140 | G2: 158 | H2: 1202 | I2: 0 | J2: 2014-04-14 | K2: 1 hours | L2: 2014-06-21T12:31:16
A3: 186747 | C3: t | D3: Bronze | F3: 84 | G3: 100 | H3: 1167 | I3: 0 | J3: 2014-04-15 | K3: 4 hours | L3: 2014-06-21T12:31:16
A4: 1328177 | B4: 岸久舞若依 | C4: p | D4: Bronze | F4: 70 | G4: 91 | H4: 1139 | I4: 0 | J4: 2014-04-26 | K4: 23 hours | L4: 2014-06-21T12:31:16
A5: 1222258 | B5: 짝귀대장 | C5: p | D5: Bronze | F5: 68 | G5: 75 | H5: 1132 | I5: 0 | J5: 2014-04-14 | K5: 1 hours | L5: 2014-06-21T12:31:16
A6: 1880294 | B6: janus | C6: p | D6: Bronze | F6: 98 | G6: 129 | H6: 1130 | I6: 0 | J6: 2014-05-08 | K6: 1 days | L6: 2014-06-21T12:31:16
A7: 4333118 | B7: polo | C7: r | D7: Bronze | F7: 294 | G7: 442 | H7: 1127 | I7: 0 | J7: 2014-04-13 | K7: 3 hours | L7: 2014-06-21T12:31:16
A8: 108739 | B8: cash | C8: p | D8: Bronze | F8: 122 | G8: 148 | H8: 1120 | I8: 0 | J8: 2014-04-17 | K8: 4 hours | L8: 2014-06-21T12:31:16
A9: 602676 | B9: 星海魂 | C9: p | D9: Bronze | F9: 76 | G9: 91 | H9: 1111 | I9: 0 | J9: 2014-05-04 | K9: 19 minutes | L9: 2014-06-21T12:31:16
A10: 452990 | C10: t | D10: Bronze | F10: 47 | G10: 54 | H10: 1110 | I10: 0 | J10: 2014-04-15 | K10: 2 days | L10: 2014-06-21T12:31:16
A11: 752386 | B11: GTLai | C11: t | D11: Bronze | F11: 52 | G11: 63 | H11: 1108 | I11: 0 | J11: 2014-04-14 | K11: 6 hours | L11: 2014-06-21T12:31:16
A12: 152339 | B12: 우랏차차 | C12: z | D12: Bronze | F12: 61 | G12: 73 | H12: 1106 | I12: 0 | J12: 2014-04-18 | K12: 1 days | L12: 2014-06-21T12:31:16
A13: 1558121 | B13: chanmc | C13: r | D13: Bronze | F13: 106 | G13: 147 | H13: 1099 | I13: 0 | J13: 2014-04-16 | K13: 1 days | L13: 2014-06-21T12:31:16
A14: 614803 | B14: Tallulah | C14: r | D14: Bronze | F14: 148 | G14: 197 | H14: 1096 | I14: 0 | J14: 2014-04-13 | K14: 1 hours | L14: 2014-06-21T12:31:16
A15: 3675098 | B15: ROAD | C15: t | D15: Bronze | F15: 102 | G15: 109 | H15: 1093 | I15: 0 | J15: 2014-04-20 | K15: 7 days | L15: 2014-06-21T12:31:16
A16: 4052469 | B16: aldudrhf | C16: p | D16: Bronze | F16: 61 | G16: 75 | H16: 1079 | I16: 0 | J16: 2014-04-23 | K16: 4 days | L16: 2014-06-21T12:31:16
A17: 720762 | B17: 철갑배스 | C17: p | D17: Bronze | F17: 69 | G17: 90 | H17: 1078 | I17: 0 | J17: 2014-04-15 | K17: 9 hours | L17: 2014-06-21T12:31:16
A18: 2244591 | B18: 탱고 | C18: t | D18: Bronze | F18: 45 | G18: 60 | H18: 1076 | I18: 0 | J18: 2014-05-16 | K18: 19 hours | L18: 2014-06-21T12:31:16
A19: 1158049 | B19: zoo | C19: r | D19: Bronze | F19: 146 | G19: 200 | H19: 1066 | I19: 0 | J19: 2014-04-15 | K19: 2 days | L19: 2014-06-21T12:31:16
A20: 1276545 | C20: p | D20: Bronze | F20: 102 | G20: 140 | H20: 1062 | I20: 0 | J20: 2014-04-13 | K20: 23 hours | L20: 2014-06-21T12:31:16
A21: 603012 | C21: r | D21: Bronze | F21: 74 | G21: 94 | H21: 1061 | I21: 0 | J21: 2014-04-14 | K21: 1 days | L21: 2014-06-21T12:31:16
A22: 504504 | C22: r | D22: Bronze | F22: 40 | G22: 54 | H22: 1056 | I22: 0 | J22: 2014-04-16 | K22: 58 minutes | L22: 2014-06-21T12:31:16
A23: 3045576 | B23: hjkook | C23: p | D23: Bronze | F23: 39 | G23: 56 | H23: 1046 | I23: 0 | J23: 2014-04-26 | K23: 14 hours | L23: 2014-06-21T12:31:16
A24: 1385749 | C24: z | D24: Bronze | F24: 122 | G24: 180 | H24: 1043 | I24: 0 | J24: 2014-05-04 | K24: 2 hours | L24: 2014-06-21T12:31:16
A25: 3105480 | B25: bwon | C25: t | D25: Bronze | F25: 42 | G25: 57 | H25: 1039 | I25: 0 | J25: 2014-04-22 | K25: 1 days | L25: 2014-06-21T12:31:16
A26: 178347 | B26: 짐레이너와케리건 | C26: t | D26: Bronze | F26: 110 | G26: 146 | H26: 1037 | I26: 0 | J26: 2014-04-13 | K26: 1 days | L26: 2014-06-21T12:31:16
A27: 1136625 | B27: ilvdnc | C27: r | D27: Bronze | F27: 56 | G27: 70 | H27: 1037 | I27: 0 | J27: 2014-05-26 | K27: 4 hours | L27: 2014-06-21T12:31:16
A28: 683701 | C28: p | D28: Bronze | F28: 51 | G28: 63 | H28: 1030 | I28: 0 | J28: 2014-04-18 | K28: 1 hours | L28: 2014-06-21T12:31:16
A29: 1244580 | C29: r | D29: Bronze | F29: 45 | G29: 63 | H29: 1028 | I29: 0 | J29: 2014-04-14 | K29: 10 hours | L29: 2014-06-21T12:31:16
A30: 643952 | C30: t | D30: Bronze | F30: 259 | G30: 381 | H30: 1023 | I30: 0 | J30: 2014-04-13 | K30: 1 minutes | L30: 2014-06-21T12:31:16
A31: 1089135 | B31: 사막의여우 | C31: p | D31: Bronze | F31: 73 | G31: 101 | H31: 1022 | I31: 0 | J31: 2014-04-27 | K31: 2 hours | L31: 2014-06-21T12:31:16
A32: 867107 | B32: steven | C32: p | D32: Bronze | F32: 155 | G32: 234 | H32: 1014 | I32: 0 | J32: 2014-04-14 | K32: 1 hours | L32: 2014-06-21T12:31:16
A33: 899937 | B33: 騎車撞扛棒 | C33: p | D33: Bronze | F33: 35 | G33: 60 | H33: 1013 | I33: 0 | J33: 2014-04-13 | K33: 24 minutes | L33: 2014-06-21T12:31:16
A34: 567139 | B34: DRAGONsbyk | C34: z | D34: Bronze | F34: 56 | G34: 87 | H34: 1011 | I34: 0 | J34: 2014-05-09 | K34: 5 hours | L34: 2014-06-21T12:31:16
A35: 2037275 | B35: 청춘의날개 | C35: p | D35: Bronze | F35: 41 | G35: 53 | H35: 1004 | I35: 0 | J35: 2014-04-26 | K35: 6 days | L35: 2014-06-21T12:31:16
A36: 4605399 | B36: 소심한곰 | C36: p | D36: Bronze | F36: 119 | G36: 181 | H36: 1001 | I36: 0 | J36: 2014-04-15 | K36: 1 days | L36: 2014-06-21T12:31:16
A37: 291004 | B37: 熊寶貝 | C37: t | D37: Bronze | F37: 65 | G37: 106 | H37: 998 | I37: 0 | J37: 2014-04-18 | K37: 17 hours | L37: 2014-06-21T12:31:16
A38: 1215366 | B38: 걸어서하늘까지 | C38: p | D38: Bronze | F38: 42 | G38: 54 | H38: 992 | I38: 0 | J38: 2014-05-04 | K38: 8 days | L38: 2014-06-21T12:31:16
A39: 290116 | B39: Deoxone | C39: r | D39: Bronze | F39: 37 | G39: 41 | H39: 988 | I39: 0 | J39: 2014-06-07 | K39: 19 minutes | L39: 2014-06-21T12:31:16
A40: 211570 | B40: 육봉 | C40: p | D40: Bronze | F40: 75 | G40: 97 | H40: 984 | I40: 0 | J40: 2014-04-13 | K40: 1 days | L40: 2014-06-21T12:31:16
A41: 567618 | B41: Tommy | C41: t | D41: Bronze | F41: 80 | G41: 91 | H41: 982 | I41: 0 | J41: 2014-04-26 | K41: 6 days | L41: 2014-06-21T12:31:16
A42: 1062497 | B42: 어택 | C42: z | D42: Bronze | F42: 56 | G42: 84 | H42: 976 | I42: 0 | J42: 2014-04-21 | K42: 4 hours | L42: 2014-06-21T12:31:16
A43: 2058599 | B43: NeoJeDi | C43: t | D43: Bronze | F43: 82 | G43: 124 | H43: 973 | I43: 0 | J43: 2014-04-15 | K43: 1 days | L43: 2014-06-21T12:31:16
A44: 1306939 | B44: rich | C44: p | D44: Bronze | F44: 157 | G44: 219 | H44: 971 | I44: 0 | J44: 2014-04-13 | K44: 4 days | L44: 2014-06-21T12:31:16
A45: 758178 | B45: 武告本趟 | C45: p | D45: Bronze | F45: 58 | G45: 88 | H45: 966 | I45: 0 | J45: 2014-04-18 | K45: 3 hours | L45: 2014-06-21T12:31:16
A46: 1998889 | B46: DeathWing | C46: r | D46: Bronze | F46: 37 | G46: 48 | H46: 966 | I46: 0 | J46: 2014-04-17 | K46: 1 days | L46: 2014-06-21T12:31:16
A47: 797126 | B47: 遁電 | C47: t | D47: Bronze | F47: 134 | G47: 190 | H47: 960 | I47: 0 | J47: 2014-04-13 | K47: 1 days | L47: 2014-06-21T12:31:16
A48: 4351167 | B48: fISh | C48: z | D48: Bronze | F48: 42 | G48: 65 | H48: 960 | I48: 0 | J48: 2014-04-26 | K48: 1 hours | L48: 2014-06-21T12:31:16
A49: 877205 | B49: 바로바로 | C49: t | D49: Bronze | F49: 35 | G49: 53 | H49: 952 | I49: 0 | J49: 2014-04-25 | K49: 8 hours | L49: 2014-06-21T12:31:16
A50: 3760089 | B50: PeeGone | C50: t | D50: Bronze | F50: 42 | G50: 63 | H50: 948 | I50: 0 | J50: 2014-04-14 | K50: 1 days | L50: 2014-06-21T12:31:16
A51: 4438052 | B51: 암살자 | C51: r | D51: Bronze | F51: 56 | G51: 81 | H51: 947 | I51: 0 | J51: 2014-04-14 | K51: 6 hours | L51: 2014-06-21T12:31:16
A52: 593932 | B52: scs | C52: t | D52: Bronze | F52: 53 | G52: 68 | H52: 946 | I52: 0 | J52: 2014-04-14 | K52: 6 days | L52: 2014-06-21T12:31:16
A53: 172005 | B53: hayden | C53: r | D53: Bronze | F53: 38 | G53: 55 | H53: 944 | I53: 0 | J53: 2014-04-14 | K53: 2 days | L53: 2014-06-21T12:31:16
A54: 1019465 | B54: Evolution | C54: p | D54: Bronze | F54: 36 | G54: 39 | H54: 942 | I54: 0 | J54: 2014-04-19 | K54: 7 hours | L54: 2014-06-21T12:31:16
A55: 2406556 | B55: 색연필 | C55: z | D55: Bronze | F55: 52 | G55: 82 | H55: 941 | I55: 0 | J55: 2014-04-18 | K55: 2 days | L55: 2014-06-21T12:31:16
A56: 186704 | B56: jack | C56: p | D56: Bronze | F56: 240 | G56: 379 | H56: 939 | I56: 0 | J56: 2014-04-14 | K56: 7 hours | L56: 2014-06-21T12:31:16
A57: 3148394 | B57: 울트라캡짱 | C57: t | D57: Bronze | F57: 53 | G57: 59 | H57: 931 | I57: 0 | J57: 2014-04-14 | K57: 9 days | L57: 2014-06-21T12:31:16
A58: 3997304 | B58: Dizzy | C58: t | D58: Bronze | F58: 64 | G58: 81 | H58: 929 | I58: 0 | J58: 2014-04-17 | K58: 4 days | L58: 2014-06-21T12:31:16
A59: 327545 | B59: 白色騎士 | C59: p | D59: Bronze | F59: 134 | G59: 205 | H59: 924 | I59: 0 | J59: 2014-05-23 | K59: 1 hours | L59: 2014-06-21T12:31:16
A60: 161820 | B60: 현우준 | C60: t | D60: Bronze | F60: 100 | G60: 164 | H60: 923 | I60: 0 | J60: 2014-04-13 | K60: 9 hours | L60: 2014-06-21T12:31:16
A61: 484418 | B61: 나는조선의국보다 | C61: p | D61: Bronze | F61: 135 | G61: 181 | H61: 918 | I61: 0 | J61: 2014-04-14 | K61: 7 days | L61: 2014-06-21T12:31:16
A62: 946140 | B62: 재미로 | C62: t | D62: Bronze | F62: 46 | G62: 64 | H62: 911 | I62: 0 | J62: 2014-04-17 | K62: 12 days | L62: 2014-06-21T12:31:16
A63: 300981 | B63: 咆王 | C63: t | D63: Bronze | F63: 74 | G63: 115 | H63: 909 | I63: 0 | J63: 2014-04-18 | K63: 6 hours | L63: 2014-06-21T12:31:16
A64: 124845 | B64: KASHAKO | C64: z | D64: Bronze | F64: 40 | G64: 62 | H64: 905 | I64: 0 | J64: 2014-04-26 | K64: 10 days | L64: 2014-06-21T12:31:16
A65: 1335979 | B65: 老皮 | C65: t | D65: Bronze | F65: 192 | G65: 301 | H65: 903 | I65: 0 | J65: 2014-05-07 | K65: 4 days | L65: 2014-06-21T12:31:16
A66: 658476 | B66: 傲蒼皇 | C66: z | D66: Bronze | F66: 34 | G66: 41 | H66: 900 | I66: 0 | J66: 2014-06-12 | K66: 4 days | L66: 2014-06-21T12:31:16
A67: 171769 | B67: 태양의눈물 | C67: p | D67: Bronze | F67: 51 | G67: 60 | H67: 892 | I67: 0 | J67: 2014-04-16 | K67: 1 days | L67: 2014-06-21T12:31:16
A68: 3942802 | B68: Patagonia | C68: t | D68: Bronze | F68: 126 | G68: 131 | H68: 891 | I68: 0 | J68: 2014-04-15 | K68: 4 days | L68: 2014-06-21T12:31:16
A69: 751503 | B69: alan | C69: t | D69: Bronze | F69: 40 | G69: 58 | H69: 883 | I69: 0 | J69: 2014-04-17 | K69: 13 days | L69: 2014-06-21T12:31:16
A70: 3491132 | B70: Second | C70: t | D70: Bronze | F70: 49 | G70: 62 | H70: 881 | I70: 0 | J70: 2014-04-16 | K70: 2 days | L70: 2014-06-21T12:31:16
A71: 4323542 | B71: towns | C71: p | D71: Bronze | F71: 47 | G71: 73 | H71: 865 | I71: 0 | J71: 2014-04-17 | K71: 6 days | L71: 2014-06-21T12:31:16
A72: 4446563 | B72: 하늘별지기 | C72: r | D72: Bronze | F72: 58 | G72: 82 | H72: 860 | I72: 0 | J72: 2014-04-15 | K72: 9 days | L72: 2014-06-21T12:31:16
A73: 4070819 | B73: psiple | C73: p | D73: Bronze | F73: 35 | G73: 60 | H73: 859 | I73: 0 | J73: 2014-04-15 | K73: 8 hours | L73: 2014-06-21T12:31:16
A74: 657652 | B74: 발키리 | C74: t | D74: Bronze | F74: 55 | G74: 74 | H74: 852 | I74: 0 | J74: 2014-05-10 | K74: 18 days | L74: 2014-06-21T12:31:16
A75: 272642 | B75: Zeikr | C75: p | D75: Bronze | F75: 30 | G75: 50 | H75: 840 | I75: 0 | J75: 2014-04-18 | K75: 8 days | L75: 2014-06-21T12:31:16
A76: 1333708 | B76: 浪花倍野 | C76: t | D76: Bronze | F76: 36 | G76: 83 | H76: 833 | I76: 0 | J76: 2014-06-02 | K76: 2 hours | L76: 2014-06-21T12:31:16
A77: 943004 | B77: 일치탐욕진액 | C77: z | D77: Bronze | F77: 72 | G77: 136 | H77: 832 | I77: 0 | J77: 2014-04-15 | K77: 6 hours | L77: 2014-06-21T12:31:16
A78: 2747649 | B78: 로이두 | C78: p | D78: Bronze | F78: 40 | G78: 73 | H78: 830 | I78: 0 | J78: 2014-04-18 | K78: 10 hours | L78: 2014-06-21T12:31:16
A79: 1146857 | B79: Kalmah | C79: t | D79: Bronze | F79: 44 | G79: 98 | H79: 828 | I79: 0 | J79: 2014-04-14 | K79: 1 days | L79: 2014-06-21T12:31:16
A80: 253208 | B80: snooper | C80: p | D80: Bronze | F80: 30 | G80: 49 | H80: 826 | I80: 0 | J80: 2014-04-14 | K80: 1 hours | L80: 2014-06-21T12:31:16
A81: 316214 | B81: smwehd | C81: p | D81: Bronze | F81: 31 | G81: 41 | H81: 812 | I81: 0 | J81: 2014-04-22 | K81: 2 days | L81: 2014-06-21T12:31:16
A82: 4257339 | B82: 만다린 | C82: p | D82: Bronze | F82: 46 | G82: 71 | H82: 812 | I82: 0 | J82: 2014-04-22 | K82: 12 days | L82: 2014-06-21T12:31:16
A83: 316989 | B83: shaohasamasu | C83: p | D83: Bronze | F83: 31 | G83: 64 | H83: 811 | I83: 0 | J83: 2014-04-15 | K83: 1 days | L83: 2014-06-21T12:31:16
A84: 1855261 | B84: Seok | C84: t | D84: Bronze | F84: 29 | G84: 34 | H84: 804 | I84: 0 | J84: 2014-04-14 | K84: 3 days | L84: 2014-06-21T12:31:16
A85: 3668977 | B85: cmacker | C85: p | D85: Bronze | F85: 32 | G85: 35 | H85: 804 | I85: 0 | J85: 2014-06-07 | K85: 2 hours | L85: 2014-06-21T12:31:16
A86: 1695793 | B86: ERIC | C86: r | D86: Bronze | F86: 35 | G86: 42 | H86: 803 | I86: 0 | J86: 2014-04-13 | K86: 1 hours | L86: 2014-06-21T12:31:16
A87: 4529388 | B87: 고스티브잡스 | C87: r | D87: Bronze | F87: 51 | G87: 75 | H87: 803 | I87: 0 | J87: 2014-05-23 | K87: 16 days | L87: 2014-06-21T12:31:16
A88: 665617 | B88: RYO | C88: t | D88: Bronze | F88: 42 | G88: 72 | H88: 801 | I88: 0 | J88: 2014-04-16 | K88: 6 days | L88: 2014-06-21T12:31:16
A89: 2085291 | B89: 헠헠 | C89: r | D89: Bronze | F89: 38 | G89: 57 | H89: 795 | I89: 0 | J89: 2014-04-20 | K89: 10 days | L89: 2014-06-21T12:31:16
A90: 1040938 | B90: ALan | C90: t | D90: Bronze | F90: 67 | G90: 144 | H90: 787 | I90: 0 | J90: 2014-04-14 | K90: 13 hours | L90: 2014-06-21T12:31:16
A91: 693432 | C91: r | D91: Bronze | F91: 29 | G91: 33 | H91: 786 | I91: 0 | J91: 2014-04-19 | K91: 7 hours | L91: 2014-06-21T12:31:16
A92: 1244252 | B92: 亞歷山大 | C92: p | D92: Bronze | F92: 61 | G92: 100 | H92: 772 | I92: 0 | J92: 2014-04-15 | K92: 13 days | L92: 2014-06-21T12:31:16
A93: 4321340 | B93: 똘똘이투 | C93: t | D93: Bronze | F93: 31 | G93: 43 | H93: 771 | I93: 0 | J93: 2014-04-15 | K93: 16 days | L93: 2014-06-21T12:31:16
A94: 4476165 | B94: Dreamplayer | C94: p | D94: Bronze | F94: 159 | G94: 217 | H94: 770 | I94: 0 | J94: 2014-04-14 | K94: 21 days | L94: 2014-06-21T12:31:16
A95: 333458 | B95: 연다라 | C95: t | D95: Bronze | F95: 51 | G95: 80 | H95: 747 | I95: 0 | J95: 2014-04-14 | K95: 8 hours | L95: 2014-06-21T12:31:19
A96: 1278587 | B96: 納茲 | C96: r | D96: Bronze | F96: 44 | G96: 47 | H96: 747 | I96: 0 | J96: 2014-04-13 | K96: 18 days | L96: 2014-06-21T12:31:19
A97: 1038442 | B97: 메탈리카 | C97: r | D97: Bronze | F97: 52 | G97: 72 | H97: 739 | I97: 0 | J97: 2014-04-14 | K97: 2 hours | L97: 2014-06-21T12:31:19
A98: 1799667 | B98: iferden | C98: p | D98: Bronze | F98: 27 | G98: 40 | H98: 734 | I98: 0 | J98: 2014-04-30 | K98: 5 hours | L98: 2014-06-21T12:31:19
A99: 4627896 | B99: 초코우유님 | C99: t | D99: Bronze | F99: 29 | G99: 40 | H99: 727 | I99: 0 | J99: 2014-05-05 | K99: 16 days | L99: 2014-06-21T12:31:19
A100: 120217 | C100: r | D100: Bronze | F100: 47 | G100: 90 | H100: 722 | I100: 0 | J100: 2014-04-13 | K100: 3 hours | L100: 2014-06-21T12:31:19
A101: 4368446 | C101: z | D101: Bronze | F101: 38 | G101: 42 | H101: 717 | I101: 0 | J101: 2014-04-20 | K101: 4 days | L101: 2014-06-21T12:31:19
A102: 425125 | B102: WOUND | C102: p | D102: Bronze | F102: 43 | G102: 55 | H102: 714 | I102: 0 | J102: 2014-04-15 | K102: 5 days | L102: 2014-06-21T12:31:19
A103: 692257 | C103: p | D103: Bronze | F103: 90 | G103: 156 | H103: 711 | I103: 0 | J103: 2014-04-25 | K103: 19 days | L103: 2014-06-21T12:31:19
A104: 398301 | C104: p | D104: Bronze | F104: 29 | G104: 29 | H104: 710 | I104: 0 | J104: 2014-05-20 | K104: 1 days | L104: 2014-06-21T12:31:19
A105: 1210709 | B105: Jet | C105: p | D105: Bronze | F105: 38 | G105: 51 | H105: 706 | I105: 0 | J105: 2014-04-15 | K105: 13 days | L105: 2014-06-21T12:31:19
A106: 4360619 | B106: snowman | C106: t | D106: Bronze | F106: 35 | G106: 50 | H106: 706 | I106: 0 | J106: 2014-04-18 | K106: 1 days | L106: 2014-06-21T12:31:19
A107: 843475 | B107: 小傑 | C107: t | D107: Bronze | F107: 39 | G107: 65 | H107: 702 | I107: 0 | J107: 2014-04-14 | K107: 6 days | L107: 2014-06-21T12:31:19
A108: 433914 | B108: 太子傑 | C108: t | D108: Bronze | F108: 26 | G108: 31 | H108: 696 | I108: 0 | J108: 2014-04-20 | K108: 1 days | L108: 2014-06-21T12:31:19
A109: 999112 | B109: jjjjj | C109: r | D109: Bronze | F109: 25 | G109: 35 | H109: 684 | I109: 0 | J109: 2014-04-20 | K109: 14 days | L109: 2014-06-21T12:31:19
A110: 2087518 | B110: apache | C110: p | D110: Bronze | F110: 25 | G110: 42 | H110: 682 | I110: 0 | J110: 2014-04-20 | K110: 7 days | L110: 2014-06-21T12:31:19
A111: 387040 | B111: 트로이 | C111: t | D111: Bronze | F111: 27 | G111: 34 | H111: 678 | I111: 0 | J111: 2014-04-14 | K111: 3 days | L111: 2014-06-21T12:31:19
A112: 3633137 | B112: swchangbest | C112: t | D112: Bronze | F112: 44 | G112: 64 | H112: 667 | I112: 0 | J112: 2014-04-14 | K112: 22 days | L112: 2014-06-21T12:31:19
A113: 1053653 | B113: 疾風烈火 | C113: p | D113: Bronze | F113: 25 | G113: 40 | H113: 666 | I113: 0 | J113: 2014-04-18 | K113: 13 hours | L113: 2014-06-21T12:31:19
A114: 2037744 | B114: binusu | C114: p | D114: Bronze | F114: 24 | G114: 30 | H114: 666 | I114: 0 | J114: 2014-04-15 | K114: 1 days | L114: 2014-06-21T12:31:19
A115: 183879 | C115: p | D115: Bronze | F115: 26 | G115: 44 | H115: 664 | I115: 0 | J115: 2014-04-20 | K115: 2 days | L115: 2014-06-21T12:31:19
A116: 1972653 | B116: 평범은재난이다 | C116: r | D116: Bronze | F116: 52 | G116: 83 | H116: 663 | I116: 0 | J116: 2014-04-14 | K116: 10 days | L116: 2014-06-21T12:31:19
A117: 691478 | B117: sie | C117: r | D117: Bronze | F117: 23 | G117: 50 | H117: 658 | I117: 0 | J117: 2014-06-12 | K117: 8 days | L117: 2014-06-21T12:31:19
A118: 903536 | B118: star | C118: t | D118: Bronze | F118: 26 | G118: 53 | H118: 656 | I118: 0 | J118: 2014-04-16 | K118: 2 days | L118: 2014-06-21T12:31:19
A119: 1111169 | B119: SKY | C119: r | D119: Bronze | F119: 47 | G119: 75 | H119: 655 | I119: 0 | J119: 2014-04-23 | K119: 10 days | L119: 2014-06-21T12:31:19
A120: 837145 | B120: mozart | C120: t | D120: Bronze | F120: 23 | G120: 34 | H120: 648 | I120: 0 | J120: 2014-04-25 | K120: 3 days | L120: 2014-06-21T12:31:19
A121: 3248731 | C121: p | D121: Bronze | F121: 23 | G121: 45 | H121: 642 | I121: 0 | J121: 2014-04-14 | K121: 5 days | L121: 2014-06-21T12:31:19
A122: 2152918 | B122: 고문관 | C122: p | D122: Bronze | F122: 51 | G122: 69 | H122: 632 | I122: 0 | J122: 2014-04-15 | K122: 18 days | L122: 2014-06-21T12:31:19
A123: 144906 | B123: miramirab | C123: p | D123: Bronze | F123: 38 | G123: 96 | H123: 631 | I123: 0 | J123: 2014-04-14 | K123: 13 days | L123: 2014-06-21T12:31:19
A124: 4042520 | B124: 짱구박사 | C124: t | D124: Bronze | F124: 49 | G124: 100 | H124: 630 | I124: 0 | J124: 2014-04-17 | K124: 13 days | L124: 2014-06-21T12:31:19
A125: 1346486 | B125: jackal | C125: r | D125: Bronze | F125: 63 | G125: 101 | H125: 618 | I125: 0 | J125: 2014-04-16 | K125: 23 days | L125: 2014-06-21T12:31:19
A126: 180949 | B126: 붉은달의날개 | C126: t | D126: Bronze | F126: 24 | G126: 29 | H126: 608 | I126: 0 | J126: 2014-04-20 | K126: 3 days | L126: 2014-06-21T12:31:19
A127: 792937 | B127: sinhw | C127: r | D127: Bronze | F127: 33 | G127: 57 | H127: 604 | I127: 0 | J127: 2014-04-18 | K127: 10 hours | L127: 2014-06-21T12:31:19
A128: 2176339 | B128: ycsnet | C128: r | D128: Bronze | F128: 41 | G128: 36 | H128: 599 | I128: 0 | J128: 2014-04-19 | K128: 41 days | L128: 2014-06-21T12:31:19
A129: 636729 | B129: 구몬학습 | C129: t | D129: Bronze | F129: 44 | G129: 89 | H129: 595 | I129: 0 | J129: 2014-05-23 | K129: 16 days | L129: 2014-06-21T12:31:19
A130: 180697 | C130: t | D130: Bronze | F130: 27 | G130: 13 | H130: 594 | I130: 0 | J130: 2014-04-20 | K130: 47 days | L130: 2014-06-21T12:31:19
A131: 4619103 | B131: 비밀 | C131: t | D131: Bronze | F131: 26 | G131: 76 | H131: 594 | I131: 0 | J131: 2014-05-05 | K131: 2 days | L131: 2014-06-21T12:31:19
A132: 974317 | B132: llllllllll | C132: z | D132: Bronze | F132: 41 | G132: 36 | H132: 592 | I132: 0 | J132: 2014-05-02 | K132: 35 days | L132: 2014-06-21T12:31:19
A133: 1000387 | B133: CatKing | C133: p | D133: Bronze | F133: 22 | G133: 32 | H133: 590 | I133: 0 | J133: 2014-05-05 | K133: 21 days | L133: 2014-06-21T12:31:19
A134: 3037713 | B134: llllllllllll | C134: r | D134: Bronze | F134: 153 | G134: 587 | H134: 590 | I134: 0 | J134: 2014-05-23 | K134: 9 hours | L134: 2014-06-21T12:31:19
A135: 490213 | C135: t | D135: Bronze | F135: 25 | G135: 45 | H135: 586 | I135: 0 | J135: 2014-04-15 | K135: 7 days | L135: 2014-06-21T12:31:19
A136: 3031174 | B136: BrownEyes | C136: t | D136: Bronze | F136: 22 | G136: 32 | H136: 584 | I136: 0 | J136: 2014-04-17 | K136: 2 days | L136: 2014-06-21T12:31:19
A137: 701407 | B137: ZARA | C137: t | D137: Bronze | F137: 22 | G137: 23 | H137: 582 | I137: 0 | J137: 2014-04-14 | K137: 19 days | L137: 2014-06-21T12:31:19
A138: 422305 | B138: STARTCRAFT | C138: t | D138: Bronze | F138: 21 | G138: 16 | H138: 570 | I138: 0 | J138: 2014-04-28 | K138: 40 days | L138: 2014-06-21T12:31:19
A139: 766661 | B139: 月讀命 | C139: p | D139: Bronze | F139: 22 | G139: 27 | H139: 566 | I139: 0 | J139: 2014-05-21 | K139: 3 hours | L139: 2014-06-21T12:31:19
A140: 2919768 | B140: 우주최강멋쟁이 | C140: t | D140: Bronze | F140: 25 | G140: 18 | H140: 564 | I140: 0 | J140: 2014-04-14 | K140: 35 days | L140: 2014-06-21T12:31:19
A141: 770489 | B141: Destiny | C141: z | D141: Bronze | F141: 22 | G141: 23 | H141: 562 | I141: 0 | J141: 2014-04-14 | K141: 13 days | L141: 2014-06-21T12:31:19
A142: 159416 | B142: DarkKnight | C142: r | D142: Bronze | F142: 23 | G142: 28 | H142: 560 | I142: 0 | J142: 2014-04-18 | K142: 2 hours | L142: 2014-06-21T12:31:19
A143: 4192444 | B143: Lucius | C143: r | D143: Bronze | F143: 25 | G143: 19 | H143: 557 | I143: 0 | J143: 2014-05-01 | K143: 37 days | L143: 2014-06-21T12:31:19
A144: 1144102 | B144: soulmaster | C144: r | D144: Bronze | F144: 21 | G144: 26 | H144: 552 | I144: 0 | J144: 2014-05-19 | K144: 19 days | L144: 2014-06-21T12:31:19
A145: 493086 | B145: 비룡부대 | C145: p | D145: Bronze | F145: 26 | G145: 52 | H145: 549 | I145: 0 | J145: 2014-04-15 | K145: 7 hours | L145: 2014-06-21T12:31:19
A146: 71436 | B146: Intuition | C146: z | D146: Bronze | F146: 20 | G146: 31 | H146: 546 | I146: 0 | J146: 2014-05-03 | K146: 8 days | L146: 2014-06-21T12:31:19
A147: 192156 | B147: 龍翼 | C147: r | D147: Bronze | F147: 20 | G147: 33 | H147: 546 | I147: 0 | J147: 2014-05-05 | K147: 25 days | L147: 2014-06-21T12:31:19
A148: 4274516 | B148: 좁밥킹 | C148: p | D148: Bronze | F148: 20 | G148: 30 | H148: 534 | I148: 0 | J148: 2014-04-18 | K148: 2 days | L148: 2014-06-21T12:31:19
A149: 301103 | B149: kingsolomon | C149: t | D149: Bronze | F149: 154 | G149: 263 | H149: 531 | I149: 0 | J149: 2014-04-13 | K149: 30 days | L149: 2014-06-21T12:31:19
A150: 447174 | B150: hata | C150: r | D150: Bronze | F150: 23 | G150: 47 | H150: 531 | I150: 0 | J150: 2014-04-22 | K150: 5 days | L150: 2014-06-21T12:31:19
A151: 3638584 | C151: p | D151: Bronze | F151: 20 | G151: 28 | H151: 530 | I151: 0 | J151: 2014-05-02 | K151: 8 hours | L151: 2014-06-21T12:31:19
A152: 3223913 | B152: 낙무아이 | C152: p | D152: Bronze | F152: 35 | G152: 37 | H152: 527 | I152: 0 | J152: 2014-04-26 | K152: 41 days | L152: 2014-06-21T12:31:19
A153: 105452 | B153: jek | C153: p | D153: Bronze | F153: 20 | G153: 43 | H153: 526 | I153: 0 | J153: 2014-06-13 | K153: 54 minutes | L153: 2014-06-21T12:31:19
A154: 144083 | B154: 외상후통증 | C154: t | D154: Bronze | F154: 19 | G154: 57 | H154: 522 | I154: 0 | J154: 2014-06-05 | K154: 16 days | L154: 2014-06-21T12:31:19
A155: 376827 | C155: t | D155: Bronze | F155: 21 | G155: 16 | H155: 522 | I155: 0 | J155: 2014-04-25 | K155: 42 days | L155: 2014-06-21T12:31:19
A156: 4599453 | B156: ksuke | C156: p | D156: Bronze | F156: 23 | G156: 41 | H156: 519 | I156: 0 | J156: 2014-04-23 | K156: 30 days | L156: 2014-06-21T12:31:19
A157: 403609 | B157: 광전사 | C157: t | D157: Bronze | F157: 18 | G157: 28 | H157: 516 | I157: 0 | J157: 2014-04-15 | K157: 4 days | L157: 2014-06-21T12:31:19
A158: 2765668 | B158: lIllII | C158: r | D158: Bronze | F158: 36 | G158: 58 | H158: 516 | I158: 0 | J158: 2014-04-14 | K158: 26 days | L158: 2014-06-21T12:31:19
A159: 836107 | B159: KIOPS | C159: z | D159: Bronze | F159: 20 | G159: 21 | H159: 512 | I159: 0 | J159: 2014-05-16 | K159: 2 days | L159: 2014-06-21T12:31:19
A160: 3139958 | B160: Vincent | C160: t | D160: Bronze | F160: 19 | G160: 24 | H160: 508 | I160: 0 | J160: 2014-04-29 | K160: 21 days | L160: 2014-06-21T12:31:19
A161: 165839 | B161: cclab | C161: p | D161: Bronze | F161: 19 | G161: 20 | H161: 504 | I161: 0 | J161: 2014-04-15 | K161: 2 hours | L161: 2014-06-21T12:31:19
A162: 3032516 | B162: 매딕 | C162: t | D162: Bronze | F162: 37 | G162: 53 | H162: 504 | I162: 0 | J162: 2014-04-14 | K162: 12 days | L162: 2014-06-21T12:31:19
A163: 785818 | B163: 콜린스 | C163: r | D163: Bronze | F163: 17 | G163: 22 | H163: 500 | I163: 0 | J163: 2014-04-19 | K163: 3 days | L163: 2014-06-21T12:31:19
A164: 260192 | B164: 바두기 | C164: r | D164: Bronze | F164: 19 | G164: 24 | H164: 494 | I164: 0 | J164: 2014-04-20 | K164: 1 days | L164: 2014-06-21T12:31:19
A165: 4556914 | B165: Setspecial | C165: z | D165: Bronze | F165: 46 | G165: 42 | H165: 494 | I165: 0 | J165: 2014-04-15 | K165: 27 days | L165: 2014-06-21T12:31:19
A166: 1249623 | B166: POPO | C166: z | D166: Bronze | F166: 17 | G166: 42 | H166: 493 | I166: 0 | J166: 2014-04-16 | K166: 4 days | L166: 2014-06-21T12:31:19
A167: 766530 | B167: 南雞 | C167: r | D167: Bronze | F167: 18 | G167: 38 | H167: 492 | I167: 0 | J167: 2014-06-04 | K167: 1 days | L167: 2014-06-21T12:31:19
A168: 2347598 | B168: 공간도약 | C168: p | D168: Bronze | F168: 18 | G168: 33 | H168: 492 | I168: 0 | J168: 2014-04-15 | K168: 8 hours | L168: 2014-06-21T12:31:19
A169: 905053 | C169: r | D169: Bronze | F169: 18 | G169: 35 | H169: 486 | I169: 0 | J169: 2014-05-03 | K169: 27 days | L169: 2014-06-21T12:31:19
A170: 4251074 | B170: llllllllllll | C170: z | D170: Bronze | F170: 17 | G170: 20 | H170: 486 | I170: 0 | J170: 2014-06-18 | K170: 1 days | L170: 2014-06-21T12:31:19
A171: 4625363 | B171: 아오지탄광 | C171: p | D171: Bronze | F171: 20 | G171: 56 | H171: 486 | I171: 0 | J171: 2014-04-25 | K171: 2 days | L171: 2014-06-21T12:31:19
A172: 649917 | B172: AhengEgg | C172: p | D172: Bronze | F172: 28 | G172: 57 | H172: 484 | I172: 0 | J172: 2014-04-19 | K172: 14 days | L172: 2014-06-21T12:31:19
A173: 762382 | B173: SuperLeo | C173: r | D173: Bronze | F173: 60 | G173: 62 | H173: 482 | I173: 0 | J173: 2014-04-25 | K173: 40 days | L173: 2014-06-21T12:31:19
A174: 1209435 | C174: r | D174: Bronze | F174: 44 | G174: 65 | H174: 482 | I174: 0 | J174: 2014-04-20 | K174: 12 days | L174: 2014-06-21T12:31:19
A175: 1791130 | B175: 부산갈매기 | C175: t | D175: Bronze | F175: 18 | G175: 41 | H175: 482 | I175: 0 | J175: 2014-04-20 | K175: 2 days | L175: 2014-06-21T12:31:19
A176: 219986 | B176: binlan | C176: p | D176: Bronze | F176: 19 | G176: 9 | H176: 481 | I176: 0 | J176: 2014-04-26 | K176: 49 days | L176: 2014-06-21T12:31:19
A177: 100164 | C177: z | D177: Bronze | F177: 17 | G177: 37 | H177: 480 | I177: 0 | J177: 2014-05-10 | K177: 10 days | L177: 2014-06-21T12:31:19
A178: 1389420 | B178: 공작 | C178: r | D178: Bronze | F178: 19 | G178: 20 | H178: 476 | I178: 0 | J178: 2014-05-16 | K178: 5 days | L178: 2014-06-21T12:31:19
A179: 425007 | B179: MatthewSC | C179: t | D179: Bronze | F179: 24 | G179: 81 | H179: 475 | I179: 0 | J179: 2014-05-02 | K179: 1 days | L179: 2014-06-21T12:31:19
A180: 474755 | B180: knightmare | C180: z | D180: Bronze | F180: 16 | G180: 14 | H180: 466 | I180: 0 | J180: 2014-04-18 | K180: 14 hours | L180: 2014-06-21T12:31:19
A181: 2043550 | B181: turboguy | C181: t | D181: Bronze | F181: 33 | G181: 22 | H181: 465 | I181: 0 | J181: 2014-04-30 | K181: 49 days | L181: 2014-06-21T12:31:19
A182: 2112106 | B182: Zip | C182: r | D182: Bronze | F182: 17 | G182: 7 | H182: 460 | I182: 0 | J182: 2014-04-25 | K182: 46 days | L182: 2014-06-21T12:31:19
A183: 858707 | B183: 버드 | C183: p | D183: Bronze | F183: 16 | G183: 35 | H183: 458 | I183: 0 | J183: 2014-04-28 | K183: 7 days | L183: 2014-06-21T12:31:19
A184: 2852770 | C184: p | D184: Bronze | F184: 25 | G184: 38 | H184: 452 | I184: 0 | J184: 2014-04-19 | K184: 25 days | L184: 2014-06-21T12:31:19
A185: 36283 | C185: r | D185: Bronze | F185: 17 | G185: 23 | H185: 448 | I185: 0 | J185: 2014-04-18 | K185: 6 days | L185: 2014-06-21T12:31:19
A186: 937077 | B186: 천상비류현 | C186: p | D186: Bronze | F186: 16 | G186: 32 | H186: 444 | I186: 0 | J186: 2014-04-29 | K186: 13 days | L186: 2014-06-21T12:31:19
A187: 1221293 | C187: r | D187: Bronze | F187: 19 | G187: 14 | H187: 442 | I187: 0 | J187: 2014-05-03 | K187: 48 days | L187: 2014-06-21T12:31:19
A188: 3522696 | B188: 애정남 | C188: z | D188: Bronze | F188: 16 | G188: 20 | H188: 438 | I188: 0 | J188: 2014-05-06 | K188: 21 days | L188: 2014-06-21T12:31:19
A189: 81412 | B189: 아이시스 | C189: p | D189: Bronze | F189: 19 | G189: 19 | H189: 428 | I189: 0 | J189: 2014-04-14 | K189: 13 days | L189: 2014-06-21T12:31:19
A190: 1878301 | B190: Danii | C190: p | D190: Bronze | F190: 15 | G190: 30 | H190: 428 | I190: 0 | J190: 2014-04-28 | K190: 30 days | L190: 2014-06-21T12:31:19
A191: 1243524 | B191: RickHwang | C191: z | D191: Bronze | F191: 16 | G191: 12 | H191: 424 | I191: 0 | J191: 2014-04-28 | K191: 42 days | L191: 2014-06-21T12:31:19
A192: 1579332 | B192: 사장 | C192: r | D192: Bronze | F192: 15 | G192: 11 | H192: 422 | I192: 0 | J192: 2014-05-04 | K192: 43 days | L192: 2014-06-21T12:31:19
A193: 867398 | B193: SABER | C193: t | D193: Bronze | F193: 16 | G193: 14 | H193: 420 | I193: 0 | J193: 2014-04-19 | K193: 41 days | L193: 2014-06-21T12:31:19
A194: 1361944 | B194: king | C194: t | D194: Bronze | F194: 15 | G194: 36 | H194: 416 | I194: 0 | J194: 2014-04-30 | K194: 7 days | L194: 2014-06-21T12:31:19
A195: 273639 | B195: 스파르탄투하나오 | C195: p | D195: Bronze | F195: 15 | G195: 45 | H195: 414 | I195: 0 | J195: 2014-05-14 | K195: 2 days | L195: 2014-06-21T12:31:21
A196: 3672102 | B196: 미친곰탱이 | C196: z | D196: Bronze | F196: 17 | G196: 24 | H196: 413 | I196: 0 | J196: 2014-04-14 | K196: 44 days | L196: 2014-06-21T12:31:21
A197: 1034907 | B197: Book | C197: r | D197: Bronze | F197: 15 | G197: 22 | H197: 412 | I197: 0 | J197: 2014-05-11 | K197: 21 days | L197: 2014-06-21T12:31:21
A198: 4212881 | B198: 비루나루 | C198: p | D198: Bronze | F198: 18 | G198: 50 | H198: 411 | I198: 0 | J198: 2014-04-14 | K198: 9 days | L198: 2014-06-21T12:31:21
A199: 1920395 | B199: 볼리베엉 | C199: t | D199: Bronze | F199: 15 | G199: 24 | H199: 408 | I199: 0 | J199: 2014-04-19 | K199: 1 days | L199: 2014-06-21T12:31:21
A200: 239522 | B200: ten | C200: p | D200: Bronze | F200: 19 | G200: 32 | H200: 405 | I200: 0 | J200: 2014-04-14 | K200: 25 days | L200: 2014-06-21T12:31:21
... 4300 more rows

Sheet 4v4r
A1: PlayerID | B1: PlayerName | C1: Race | D1: League | E1: Division | F1: Wins | G1: Losses | H1: Score | I1: Bonus Pool | J1: JoinDate | K1: Last Game | L1: Timestamp
A2: 4438052 | B2: 암살자 | C2: t | D2: Bronze | F2: 125 | G2: 136 | H2: 1162 | I2: 0 | J2: 2014-05-04 | K2: 10 hours | L2: 2014-06-21T17:44:57
A3: 747092 | C3: t | D3: Bronze | F3: 39 | G3: 46 | H3: 1088 | I3: 0 | J3: 2014-05-03 | K3: 4 hours | L3: 2014-06-21T17:44:57
A4: 2820305 | B4: MSI | C4: t | D4: Bronze | F4: 69 | G4: 123 | H4: 1073 | I4: 0 | J4: 2014-05-25 | K4: 1 days | L4: 2014-06-21T17:44:57
A5: 759212 | B5: 史達林 | C5: t | D5: Bronze | F5: 46 | G5: 74 | H5: 1070 | I5: 0 | J5: 2014-04-20 | K5: 7 hours | L5: 2014-06-21T17:44:57
A6: 795179 | B6: 永恆聖者 | C6: t | D6: Bronze | F6: 52 | G6: 77 | H6: 1057 | I6: 0 | J6: 2014-04-14 | K6: 11 hours | L6: 2014-06-21T17:44:57
A7: 3760089 | B7: PeeGone | C7: p | D7: Bronze | F7: 39 | G7: 68 | H7: 1008 | I7: 0 | J7: 2014-04-25 | K7: 1 days | L7: 2014-06-21T17:44:57
A8: 801487 | C8: p | D8: Bronze | F8: 46 | G8: 74 | H8: 969 | I8: 0 | J8: 2014-04-27 | K8: 7 days | L8: 2014-06-21T17:44:57
A9: 1111169 | B9: SKY | C9: r | D9: Bronze | F9: 50 | G9: 88 | H9: 935 | I9: 0 | J9: 2014-04-13 | K9: 1 days | L9: 2014-06-21T17:44:57
A10: 141677 | B10: Galvus | C10: p | D10: Bronze | F10: 37 | G10: 72 | H10: 931 | I10: 0 | J10: 2014-04-14 | K10: 2 days | L10: 2014-06-21T17:44:57
A11: 1033438 | C11: p | D11: Bronze | F11: 53 | G11: 107 | H11: 930 | I11: 0 | J11: 2014-04-22 | K11: 8 hours | L11: 2014-06-21T17:44:57
A12: 184176 | C12: p | D12: Bronze | F12: 37 | G12: 84 | H12: 890 | I12: 0 | J12: 2014-04-14 | K12: 16 hours | L12: 2014-06-21T17:44:57
A13: 4253505 | B13: oxto | C13: t | D13: Bronze | F13: 40 | G13: 63 | H13: 884 | I13: 0 | J13: 2014-04-14 | K13: 11 days | L13: 2014-06-21T17:44:57
A14: 3702296 | B14: 조조맹덕 | C14: z | D14: Bronze | F14: 35 | G14: 59 | H14: 870 | I14: 0 | J14: 2014-04-16 | K14: 1 days | L14: 2014-06-21T17:44:57
A15: 227055 | B15: wangwei | C15: t | D15: Bronze | F15: 39 | G15: 72 | H15: 854 | I15: 0 | J15: 2014-04-25 | K15: 4 days | L15: 2014-06-21T17:44:57
A16: 930075 | B16: SuperVaka | C16: r | D16: Bronze | F16: 52 | G16: 94 | H16: 819 | I16: 0 | J16: 2014-04-14 | K16: 1 days | L16: 2014-06-21T17:44:57
A17: 100164 | C17: z | D17: Bronze | F17: 29 | G17: 35 | H17: 776 | I17: 0 | J17: 2014-04-26 | K17: 4 hours | L17: 2014-06-21T17:44:57
A18: 1061544 | B18: 吳總裁 | C18: p | D18: Bronze | F18: 33 | G18: 43 | H18: 747 | I18: 0 | J18: 2014-04-28 | K18: 2 days | L18: 2014-06-21T17:44:57
A19: 3754669 | B19: 천개의바람 | C19: p | D19: Bronze | F19: 36 | G19: 64 | H19: 743 | I19: 0 | J19: 2014-04-14 | K19: 4 days | L19: 2014-06-21T17:44:57
A20: 4434127 | B20: PowerMan | C20: p | D20: Bronze | F20: 25 | G20: 47 | H20: 738 | I20: 0 | J20: 2014-04-19 | K20: 5 hours | L20: 2014-06-21T17:44:57
A21: 4253441 | B21: llllllllllll | C21: p | D21: Bronze | F21: 107 | G21: 425 | H21: 721 | I21: 0 | J21: 2014-05-28 | K21: 7 hours | L21: 2014-06-21T17:44:57
A22: 181244 | B22: Ryan | C22: r | D22: Bronze | F22: 77 | G22: 110 | H22: 713 | I22: 0 | J22: 2014-04-14 | K22: 7 days | L22: 2014-06-21T17:44:57
A23: 1075297 | C23: t | D23: Bronze | F23: 25 | G23: 43 | H23: 707 | I23: 0 | J23: 2014-04-14 | K23: 13 hours | L23: 2014-06-21T17:44:58
A24: 905617 | C24: t | D24: Bronze | F24: 46 | G24: 122 | H24: 673 | I24: 0 | J24: 2014-04-19 | K24: 7 days | L24: 2014-06-21T17:44:58
A25: 1283351 | B25: 미도반 | C25: r | D25: Bronze | F25: 23 | G25: 37 | H25: 638 | I25: 0 | J25: 2014-06-01 | K25: 6 days | L25: 2014-06-21T17:44:58
A26: 1133729 | B26: zergzerg | C26: p | D26: Bronze | F26: 24 | G26: 36 | H26: 624 | I26: 0 | J26: 2014-04-14 | K26: 6 days | L26: 2014-06-21T17:44:58
A27: 3037713 | B27: llllllllllll | C27: p | D27: Bronze | F27: 107 | G27: 400 | H27: 618 | I27: 0 | J27: 2014-05-27 | K27: 7 hours | L27: 2014-06-21T17:44:58
A28: 1256535 | B28: 믿음소망사랑 | C28: r | D28: Bronze | F28: 19 | G28: 63 | H28: 570 | I28: 0 | J28: 2014-05-03 | K28: 12 hours | L28: 2014-06-21T17:44:58
A29: 363693 | B29: 阿明果 | C29: p | D29: Bronze | F29: 22 | G29: 38 | H29: 558 | I29: 0 | J29: 2014-04-15 | K29: 16 days | L29: 2014-06-21T17:44:58
A30: 2697878 | C30: r | D30: Bronze | F30: 19 | G30: 13 | H30: 551 | I30: 0 | J30: 2014-04-20 | K30: 45 days | L30: 2014-06-21T17:44:58
A31: 520773 | B31: Nick | C31: t | D31: Bronze | F31: 22 | G31: 52 | H31: 542 | I31: 0 | J31: 2014-04-22 | K31: 8 days | L31: 2014-06-21T17:44:58
A32: 4021161 | B32: 히유 | C32: t | D32: Bronze | F32: 24 | G32: 44 | H32: 533 | I32: 0 | J32: 2014-05-13 | K32: 35 days | L32: 2014-06-21T17:44:58
A33: 4447918 | B33: ILikePonies | C33: z | D33: Bronze | F33: 63 | G33: 94 | H33: 522 | I33: 0 | J33: 2014-04-18 | K33: 31 days | L33: 2014-06-21T17:44:58
A34: 216843 | B34: llllllllllll | C34: r | D34: Bronze | F34: 21 | G34: 32 | H34: 512 | I34: 0 | J34: 2014-04-14 | K34: 8 hours | L34: 2014-06-21T17:44:58
A35: 4454248 | B35: bunny | C35: r | D35: Bronze | F35: 35 | G35: 62 | H35: 501 | I35: 0 | J35: 2014-04-26 | K35: 14 days | L35: 2014-06-21T17:44:58
A36: 1032057 | C36: p | D36: Bronze | F36: 27 | G36: 45 | H36: 497 | I36: 0 | J36: 2014-04-15 | K36: 7 days | L36: 2014-06-21T17:44:58
A37: 127251 | B37: 多情狼 | C37: t | D37: Bronze | F37: 20 | G37: 27 | H37: 474 | I37: 0 | J37: 2014-04-14 | K37: 2 days | L37: 2014-06-21T17:44:58
A38: 933486 | C38: p | D38: Bronze | F38: 42 | G38: 50 | H38: 472 | I38: 0 | J38: 2014-04-22 | K38: 44 days | L38: 2014-06-21T17:44:58
A39: 1265292 | C39: t | D39: Bronze | F39: 17 | G39: 53 | H39: 468 | I39: 0 | J39: 2014-05-12 | K39: 27 days | L39: 2014-06-21T17:44:58
A40: 239490 | C40: z | D40: Bronze | F40: 26 | G40: 55 | H40: 467 | I40: 0 | J40: 2014-04-16 | K40: 13 days | L40: 2014-06-21T17:44:58
A41: 353284 | B41: 撒野 | C41: p | D41: Bronze | F41: 19 | G41: 25 | H41: 466 | I41: 0 | J41: 2014-04-15 | K41: 23 days | L41: 2014-06-21T17:44:58
A42: 231862 | B42: RICHARD | C42: p | D42: Bronze | F42: 16 | G42: 28 | H42: 452 | I42: 0 | J42: 2014-04-14 | K42: 8 days | L42: 2014-06-21T17:44:58
A43: 4052469 | B43: aldudrhf | C43: p | D43: Bronze | F43: 38 | G43: 74 | H43: 452 | I43: 0 | J43: 2014-04-13 | K43: 4 days | L43: 2014-06-21T17:44:58
A44: 2695169 | B44: 종결자 | C44: t | D44: Bronze | F44: 18 | G44: 7 | H44: 444 | I44: 0 | J44: 2014-05-04 | K44: 28 days | L44: 2014-06-21T17:44:58
A45: 257175 | B45: daview | C45: r | D45: Bronze | F45: 37 | G45: 40 | H45: 439 | I45: 0 | J45: 2014-04-14 | K45: 50 days | L45: 2014-06-21T17:44:58
A46: 276012 | B46: 청년장교 | C46: t | D46: Bronze | F46: 37 | G46: 77 | H46: 410 | I46: 0 | J46: 2014-04-16 | K46: 19 days | L46: 2014-06-21T17:44:58
A47: 653804 | C47: t | D47: Bronze | F47: 14 | G47: 26 | H47: 402 | I47: 0 | J47: 2014-04-28 | K47: 23 days | L47: 2014-06-21T17:44:58
A48: 903536 | B48: star | C48: t | D48: Bronze | F48: 15 | G48: 39 | H48: 400 | I48: 0 | J48: 2014-04-18 | K48: 2 days | L48: 2014-06-21T17:44:58
A49: 1269543 | B49: Don | C49: r | D49: Bronze | F49: 19 | G49: 32 | H49: 388 | I49: 0 | J49: 2014-04-15 | K49: 41 days | L49: 2014-06-21T17:44:58
A50: 795400 | B50: ABMM | C50: p | D50: Bronze | F50: 15 | G50: 20 | H50: 387 | I50: 0 | J50: 2014-04-14 | K50: 24 days | L50: 2014-06-21T17:44:58
A51: 4222792 | B51: Ziran | C51: r | D51: Bronze | F51: 13 | G51: 29 | H51: 376 | I51: 0 | J51: 2014-05-24 | K51: 6 days | L51: 2014-06-21T17:44:58
A52: 2872324 | C52: r | D52: Bronze | F52: 12 | G52: 12 | H52: 374 | I52: 0 | J52: 2014-04-20 | K52: 43 days | L52: 2014-06-21T17:44:58
A53: 2912275 | B53: 바버얌 | C53: t | D53: Bronze | F53: 67 | G53: 156 | H53: 374 | I53: 0 | J53: 2014-04-14 | K53: 7 days | L53: 2014-06-21T17:44:58
A54: 713359 | C54: p | D54: Bronze | F54: 16 | G54: 20 | H54: 367 | I54: 0 | J54: 2014-04-18 | K54: 41 days | L54: 2014-06-21T17:44:58
A55: 1225063 | B55: Gary | C55: z | D55: Bronze | F55: 15 | G55: 10 | H55: 366 | I55: 0 | J55: 2014-05-01 | K55: 35 days | L55: 2014-06-21T17:44:58
A56: 2986318 | B56: 배터리충전기 | C56: t | D56: Bronze | F56: 13 | G56: 26 | H56: 362 | I56: 0 | J56: 2014-05-02 | K56: 12 hours | L56: 2014-06-21T17:44:58
A57: 713565 | C57: r | D57: Bronze | F57: 15 | G57: 41 | H57: 355 | I57: 0 | J57: 2014-05-04 | K57: 38 days | L57: 2014-06-21T17:44:58
A58: 768948 | B58: father | C58: t | D58: Bronze | F58: 11 | G58: 28 | H58: 354 | I58: 0 | J58: 2014-04-17 | K58: 30 days | L58: 2014-06-21T17:44:58
A59: 117640 | B59: 가온누리 | C59: p | D59: Bronze | F59: 13 | G59: 12 | H59: 351 | I59: 0 | J59: 2014-04-21 | K59: 53 days | L59: 2014-06-21T17:44:58
A60: 47119 | C60: r | D60: Bronze | F60: 12 | G60: 10 | H60: 346 | I60: 0 | J60: 2014-04-25 | K60: 48 days | L60: 2014-06-21T17:44:58
A61: 1136267 | B61: sam | C61: t | D61: Bronze | F61: 13 | G61: 25 | H61: 346 | I61: 0 | J61: 2014-04-29 | K61: 25 days | L61: 2014-06-21T17:44:58
A62: 3949473 | C62: r | D62: Bronze | F62: 13 | G62: 18 | H62: 340 | I62: 0 | J62: 2014-05-01 | K62: 1 days | L62: 2014-06-21T17:44:58
A63: 1674741 | B63: rkdrkels | C63: p | D63: Bronze | F63: 13 | G63: 34 | H63: 338 | I63: 0 | J63: 2014-04-20 | K63: 4 days | L63: 2014-06-21T17:44:58
A64: 1567146 | B64: 소돌이 | C64: t | D64: Bronze | F64: 13 | G64: 22 | H64: 337 | I64: 0 | J64: 2014-04-24 | K64: 17 days | L64: 2014-06-21T17:44:58
A65: 923684 | C65: p | D65: Bronze | F65: 13 | G65: 42 | H65: 336 | I65: 0 | J65: 2014-04-17 | K65: 6 hours | L65: 2014-06-21T17:44:58
A66: 230397 | C66: p | D66: Bronze | F66: 12 | G66: 34 | H66: 326 | I66: 0 | J66: 2014-04-18 | K66: 8 days | L66: 2014-06-21T17:44:58
A67: 712514 | B67: 眼睛黏到蛤蠣肉 | C67: p | D67: Bronze | F67: 12 | G67: 9 | H67: 322 | I67: 0 | J67: 2014-04-30 | K67: 44 days | L67: 2014-06-21T17:44:58
A68: 893062 | B68: FENGGUANG | C68: p | D68: Bronze | F68: 14 | G68: 15 | H68: 322 | I68: 0 | J68: 2014-04-17 | K68: 41 days | L68: 2014-06-21T17:44:58
A69: 343395 | C69: r | D69: Bronze | F69: 12 | G69: 12 | H69: 316 | I69: 0 | J69: 2014-04-24 | K69: 2 days | L69: 2014-06-21T17:44:58
A70: 966114 | B70: changmo | C70: t | D70: Bronze | F70: 13 | G70: 30 | H70: 308 | I70: 0 | J70: 2014-04-19 | K70: 15 days | L70: 2014-06-21T17:44:58
A71: 715076 | C71: r | D71: Bronze | F71: 11 | G71: 5 | H71: 302 | I71: 0 | J71: 2014-04-14 | K71: 5 days | L71: 2014-06-21T17:44:58
A72: 108002 | C72: t | D72: Bronze | F72: 10 | G72: 22 | H72: 298 | I72: 0 | J72: 2014-04-17 | K72: 48 days | L72: 2014-06-21T17:44:58
A73: 481506 | B73: nabi | C73: r | D73: Bronze | F73: 12 | G73: 18 | H73: 295 | I73: 0 | J73: 2014-04-15 | K73: 47 days | L73: 2014-06-21T17:44:58
A74: 1355158 | B74: 리씨 | C74: p | D74: Bronze | F74: 12 | G74: 36 | H74: 294 | I74: 0 | J74: 2014-04-19 | K74: 6 days | L74: 2014-06-21T17:44:58
A75: 4387119 | B75: djMolesto | C75: p | D75: Bronze | F75: 9 | G75: 13 | H75: 290 | I75: 0 | J75: 2014-04-29 | K75: 48 days | L75: 2014-06-21T17:44:58
A76: 1867743 | B76: 살벌한분 | C76: z | D76: Bronze | F76: 10 | G76: 5 | H76: 288 | I76: 0 | J76: 2014-04-17 | K76: 32 days | L76: 2014-06-21T17:44:58
A77: 636877 | B77: qustion | C77: t | D77: Bronze | F77: 10 | G77: 22 | H77: 286 | I77: 0 | J77: 2014-04-20 | K77: 13 hours | L77: 2014-06-21T17:44:58
A78: 668885 | B78: 風中尋緣 | C78: t | D78: Bronze | F78: 38 | G78: 53 | H78: 280 | I78: 0 | J78: 2014-04-26 | K78: 52 days | L78: 2014-06-21T17:44:58
A79: 857125 | B79: HarLen | C79: t | D79: Bronze | F79: 10 | G79: 4 | H79: 272 | I79: 0 | J79: 2014-04-13 | K79: 51 days | L79: 2014-06-21T17:44:58
A80: 1102480 | C80: r | D80: Bronze | F80: 8 | G80: 4 | H80: 270 | I80: 0 | J80: 2014-05-16 | K80: 11 hours | L80: 2014-06-21T17:44:58
A81: 853630 | C81: z | D81: Bronze | F81: 11 | G81: 9 | H81: 264 | I81: 0 | J81: 2014-04-21 | K81: 3 days | L81: 2014-06-21T17:44:58
A82: 275945 | C82: r | D82: Bronze | F82: 9 | G82: 8 | H82: 262 | I82: 0 | J82: 2014-05-02 | K82: 42 days | L82: 2014-06-21T17:44:58
A83: 1100172 | C83: t | D83: Bronze | F83: 9 | G83: 11 | H83: 260 | I83: 0 | J83: 2014-05-02 | K83: 48 days | L83: 2014-06-21T17:44:58
A84: 1136090 | B84: thinkfull | C84: z | D84: Bronze | F84: 9 | G84: 5 | H84: 260 | I84: 0 | J84: 2014-04-14 | K84: 47 days | L84: 2014-06-21T17:44:58
A85: 1735190 | B85: 테일러 | C85: t | D85: Bronze | F85: 11 | G85: 16 | H85: 260 | I85: 0 | J85: 2014-04-20 | K85: 30 days | L85: 2014-06-21T17:44:58
A86: 3567496 | B86: 박애정 | C86: p | D86: Bronze | F86: 12 | G86: 8 | H86: 260 | I86: 0 | J86: 2014-04-19 | K86: 51 days | L86: 2014-06-21T17:44:58
A87: 724892 | C87: z | D87: Bronze | F87: 11 | G87: 11 | H87: 256 | I87: 0 | J87: 2014-05-02 | K87: 47 days | L87: 2014-06-21T17:44:58
A88: 237832 | C88: t | D88: Bronze | F88: 9 | G88: 8 | H88: 254 | I88: 0 | J88: 2014-04-18 | K88: 53 days | L88: 2014-06-21T17:44:58
A89: 652953 | C89: z | D89: Bronze | F89: 11 | G89: 6 | H89: 252 | I89: 0 | J89: 2014-04-18 | K89: 37 days | L89: 2014-06-21T17:44:58
A90: 1835030 | B90: ShockWave | C90: r | D90: Bronze | F90: 9 | G90: 3 | H90: 252 | I90: 0 | J90: 2014-04-19 | K90: 20 days | L90: 2014-06-21T17:44:58
A91: 132888 | B91: Civilwar | C91: t | D91: Bronze | F91: 9 | G91: 21 | H91: 250 | I91: 0 | J91: 2014-04-17 | K91: 7 days | L91: 2014-06-21T17:44:58
A92: 2756439 | C92: p | D92: Bronze | F92: 9 | G92: 17 | H92: 250 | I92: 0 | J92: 2014-04-30 | K92: 35 days | L92: 2014-06-21T17:44:58
A93: 4091642 | B93: 초럭 | C93: t | D93: Bronze | F93: 10 | G93: 44 | H93: 250 | I93: 0 | J93: 2014-04-17 | K93: 13 days | L93: 2014-06-21T17:44:58
A94: 2759555 | C94: t | D94: Bronze | F94: 11 | G94: 6 | H94: 248 | I94: 0 | J94: 2014-04-23 | K94: 14 days | L94: 2014-06-21T17:44:58
A95: 3870035 | B95: aramiskim | C95: p | D95: Bronze | F95: 12 | G95: 22 | H95: 242 | I95: 0 | J95: 2014-04-14 | K95: 21 days | L95: 2014-06-21T17:44:58
A96: 366161 | B96: ATA | C96: r | D96: Bronze | F96: 8 | G96: 9 | H96: 236 | I96: 0 | J96: 2014-04-20 | K96: 45 days | L96: 2014-06-21T17:44:58
A97: 221335 | B97: 고녀석 | C97: p | D97: Bronze | F97: 8 | G97: 10 | H97: 234 | I97: 0 | J97: 2014-04-17 | K97: 42 days | L97: 2014-06-21T17:44:58
A98: 381693 | C98: r | D98: Bronze | F98: 9 | G98: 2 | H98: 234 | I98: 0 | J98: 2014-04-18 | K98: 48 days | L98: 2014-06-21T17:44:58
A99: 3386153 | C99: p | D99: Bronze | F99: 10 | G99: 7 | H99: 234 | I99: 0 | J99: 2014-04-18 | K99: 39 days | L99: 2014-06-21T17:44:58
A100: 4179449 | C100: z | D100: Bronze | F100: 12 | G100: 4 | H100: 234 | I100: 0 | J100: 2014-04-21 | K100: 41 days | L100: 2014-06-21T17:44:58
A101: 4505298 | B101: TheWhiteUrn | C101: r | D101: Bronze | F101: 7 | G101: 6 | H101: 234 | I101: 0 | J101: 2014-04-29 | K101: 48 days | L101: 2014-06-21T17:44:58
A102: 1788898 | C102: p | D102: Bronze | F102: 9 | G102: 16 | H102: 232 | I102: 0 | J102: 2014-04-19 | K102: 7 days | L102: 2014-06-21T17:44:58
A103: 4359393 | B103: meataxe | C103: r | D103: Bronze | F103: 14 | G103: 29 | H103: 232 | I103: 0 | J103: 2014-04-14 | K103: 16 hours | L103: 2014-06-21T17:44:58
A104: 888250 | B104: lee | C104: t | D104: Bronze | F104: 14 | G104: 11 | H104: 230 | I104: 0 | J104: 2014-04-18 | K104: 60 days | L104: 2014-06-21T17:44:58
A105: 3380977 | B105: HSwinner | C105: p | D105: Bronze | F105: 8 | G105: 23 | H105: 230 | I105: 0 | J105: 2014-05-17 | K105: 28 days | L105: 2014-06-21T17:44:58
A106: 864701 | B106: 諾亞方舟 | C106: r | D106: Bronze | F106: 10 | G106: 27 | H106: 228 | I106: 0 | J106: 2014-04-16 | K106: 8 hours | L106: 2014-06-21T17:44:58
A107: 3133031 | C107: t | D107: Bronze | F107: 12 | G107: 19 | H107: 228 | I107: 0 | J107: 2014-04-13 | K107: 18 days | L107: 2014-06-21T17:44:58
A108: 4292037 | C108: p | D108: Bronze | F108: 7 | G108: 9 | H108: 228 | I108: 0 | J108: 2014-04-20 | K108: 6 days | L108: 2014-06-21T17:44:58
A109: 291004 | B109: 熊寶貝 | C109: p | D109: Bronze | F109: 7 | G109: 5 | H109: 226 | I109: 0 | J109: 2014-04-26 | K109: 53 days | L109: 2014-06-21T17:44:58
A110: 4399304 | C110: t | D110: Bronze | F110: 9 | G110: 17 | H110: 226 | I110: 0 | J110: 2014-04-17 | K110: 10 days | L110: 2014-06-21T17:44:58
A111: 798688 | C111: z | D111: Bronze | F111: 9 | G111: 4 | H111: 222 | I111: 0 | J111: 2014-04-14 | K111: 49 days | L111: 2014-06-21T17:44:58
A112: 1038442 | B112: 메탈리카 | C112: r | D112: Bronze | F112: 10 | G112: 32 | H112: 222 | I112: 0 | J112: 2014-04-14 | K112: 15 days | L112: 2014-06-21T17:44:58
A113: 122826 | B113: 산다라박봄 | C113: z | D113: Bronze | F113: 9 | G113: 13 | H113: 218 | I113: 0 | J113: 2014-04-21 | K113: 21 days | L113: 2014-06-21T17:44:58
A114: 88772 | C114: z | D114: Bronze | F114: 29 | G114: 68 | H114: 216 | I114: 0 | J114: 2014-04-29 | K114: 46 days | L114: 2014-06-21T17:44:58
A115: 373448 | B115: 紫風 | C115: z | D115: Bronze | F115: 9 | G115: 33 | H115: 214 | I115: 0 | J115: 2014-04-14 | K115: 7 days | L115: 2014-06-21T17:44:58
A116: 759218 | C116: r | D116: Bronze | F116: 10 | G116: 4 | H116: 212 | I116: 0 | J116: 2014-04-26 | K116: 54 days | L116: 2014-06-21T17:44:58
A117: 268996 | B117: 德鳴 | C117: p | D117: Bronze | F117: 9 | G117: 28 | H117: 210 | I117: 0 | J117: 2014-04-14 | K117: 1 days | L117: 2014-06-21T17:44:58
A118: 561383 | C118: p | D118: Bronze | F118: 6 | G118: 6 | H118: 206 | I118: 0 | J118: 2014-05-03 | K118: 41 days | L118: 2014-06-21T17:44:58
A119: 3961565 | C119: r | D119: Bronze | F119: 7 | G119: 2 | H119: 206 | I119: 0 | J119: 2014-05-04 | K119: 41 days | L119: 2014-06-21T17:44:58
A120: 339516 | C120: r | D120: Bronze | F120: 7 | G120: 9 | H120: 202 | I120: 0 | J120: 2014-04-20 | K120: 40 days | L120: 2014-06-21T17:44:58
A121: 2792903 | C121: p | D121: Bronze | F121: 8 | G121: 14 | H121: 200 | I121: 0 | J121: 2014-04-15 | K121: 2 days | L121: 2014-06-21T17:44:58
A122: 4445594 | C122: t | D122: Bronze | F122: 9 | G122: 12 | H122: 199 | I122: 0 | J122: 2014-04-13 | K122: 9 days | L122: 2014-06-21T17:44:58
A123: 2195623 | B123: IlIlIlIIllI | C123: p | D123: Bronze | F123: 8 | G123: 3 | H123: 196 | I123: 0 | J123: 2014-04-22 | K123: 58 days | L123: 2014-06-21T17:44:58
A124: 2367537 | C124: r | D124: Bronze | F124: 7 | G124: 12 | H124: 196 | I124: 0 | J124: 2014-04-28 | K124: 46 days | L124: 2014-06-21T17:44:58
A125: 1028686 | C125: r | D125: Bronze | F125: 8 | G125: 5 | H125: 194 | I125: 0 | J125: 2014-04-22 | K125: 7 days | L125: 2014-06-21T17:44:58
A126: 3113138 | C126: z | D126: Bronze | F126: 7 | G126: 10 | H126: 192 | I126: 0 | J126: 2014-05-31 | K126: 10 hours | L126: 2014-06-21T17:44:58
A127: 4110603 | B127: DDOLDDOLI | C127: z | D127: Bronze | F127: 7 | G127: 15 | H127: 192 | I127: 0 | J127: 2014-04-25 | K127: 27 days | L127: 2014-06-21T17:44:58
A128: 4206090 | B128: rayjiho | C128: p | D128: Bronze | F128: 7 | G128: 11 | H128: 192 | I128: 0 | J128: 2014-04-26 | K128: 48 days | L128: 2014-06-21T17:44:58
A129: 4230327 | C129: t | D129: Bronze | F129: 7 | G129: 4 | H129: 192 | I129: 0 | J129: 2014-05-18 | K129: 32 days | L129: 2014-06-21T17:44:58
A130: 4631988 | B130: ricochet | C130: z | D130: Bronze | F130: 5 | G130: 13 | H130: 192 | I130: 0 | J130: 2014-05-03 | K130: 49 days | L130: 2014-06-21T17:44:58
A131: 114953 | B131: 후루룩맛있는라면 | C131: r | D131: Bronze | F131: 8 | G131: 8 | H131: 190 | I131: 0 | J131: 2014-05-01 | K131: 48 days | L131: 2014-06-21T17:44:58
A132: 443385 | B132: GoGoGo | C132: p | D132: Bronze | F132: 8 | G132: 15 | H132: 190 | I132: 0 | J132: 2014-04-20 | K132: 20 days | L132: 2014-06-21T17:44:58
A133: 522362 | B133: 세로토닌 | C133: p | D133: Bronze | F133: 7 | G133: 3 | H133: 190 | I133: 0 | J133: 2014-04-25 | K133: 29 days | L133: 2014-06-21T17:44:58
A134: 928644 | C134: r | D134: Bronze | F134: 7 | G134: 9 | H134: 188 | I134: 0 | J134: 2014-04-23 | K134: 58 days | L134: 2014-06-21T17:44:58
A135: 4226360 | B135: SamTH | C135: t | D135: Bronze | F135: 8 | G135: 5 | H135: 188 | I135: 0 | J135: 2014-04-18 | K135: 7 days | L135: 2014-06-21T17:44:58
A136: 1125038 | B136: keith | C136: p | D136: Bronze | F136: 9 | G136: 9 | H136: 187 | I136: 0 | J136: 2014-04-14 | K136: 62 days | L136: 2014-06-21T17:44:58
A137: 376294 | C137: z | D137: Bronze | F137: 9 | G137: 8 | H137: 186 | I137: 0 | J137: 2014-04-14 | K137: 61 days | L137: 2014-06-21T17:44:58
A138: 828216 | B138: 우주최고깜찌기 | C138: r | D138: Bronze | F138: 5 | G138: 13 | H138: 186 | I138: 0 | J138: 2014-04-26 | K138: 53 days | L138: 2014-06-21T17:44:58
A139: 427336 | B139: KaradRaigel | C139: r | D139: Bronze | F139: 7 | G139: 10 | H139: 184 | I139: 0 | J139: 2014-05-01 | K139: 39 days | L139: 2014-06-21T17:44:58
A140: 163447 | B140: 카피바라상 | C140: r | D140: Bronze | F140: 8 | G140: 22 | H140: 182 | I140: 0 | J140: 2014-04-26 | K140: 4 days | L140: 2014-06-21T17:44:58
A141: 1497731 | C141: t | D141: Bronze | F141: 6 | G141: 2 | H141: 182 | I141: 0 | J141: 2014-05-29 | K141: 19 days | L141: 2014-06-21T17:44:58
A142: 179989 | B142: 나쁜피 | C142: t | D142: Bronze | F142: 8 | G142: 19 | H142: 180 | I142: 0 | J142: 2014-04-16 | K142: 18 days | L142: 2014-06-21T17:44:58
A143: 981777 | C143: r | D143: Bronze | F143: 7 | G143: 13 | H143: 180 | I143: 0 | J143: 2014-05-18 | K143: 18 days | L143: 2014-06-21T17:44:58
A144: 2730683 | C144: t | D144: Bronze | F144: 6 | G144: 8 | H144: 180 | I144: 0 | J144: 2014-04-18 | K144: 23 days | L144: 2014-06-21T17:44:58
A145: 3119351 | C145: t | D145: Bronze | F145: 7 | G145: 6 | H145: 180 | I145: 0 | J145: 2014-05-12 | K145: 40 days | L145: 2014-06-21T17:44:58
A146: 124237 | C146: t | D146: Bronze | F146: 7 | G146: 1 | H146: 178 | I146: 0 | J146: 2014-04-27 | K146: 52 days | L146: 2014-06-21T17:44:58
A147: 758717 | B147: 小風騷 | C147: t | D147: Bronze | F147: 5 | G147: 3 | H147: 176 | I147: 0 | J147: 2014-04-27 | K147: 48 days | L147: 2014-06-21T17:44:58
A148: 4256472 | B148: ImNotKorean | C148: t | D148: Bronze | F148: 7 | G148: 5 | H148: 176 | I148: 0 | J148: 2014-04-22 | K148: 45 days | L148: 2014-06-21T17:44:58
A149: 251303 | B149: 阿神 | C149: r | D149: Bronze | F149: 7 | G149: 13 | H149: 174 | I149: 0 | J149: 2014-04-26 | K149: 41 days | L149: 2014-06-21T17:44:58
A150: 85334 | B150: aPMzerO | C150: r | D150: Bronze | F150: 7 | G150: 7 | H150: 172 | I150: 0 | J150: 2014-06-04 | K150: 16 days | L150: 2014-06-21T17:44:58
A151: 455022 | B151: Fai | C151: z | D151: Bronze | F151: 6 | G151: 7 | H151: 172 | I151: 0 | J151: 2014-04-20 | K151: 39 days | L151: 2014-06-21T17:44:58
A152: 632307 | C152: r | D152: Bronze | F152: 6 | G152: 12 | H152: 172 | I152: 0 | J152: 2014-06-01 | K152: 5 days | L152: 2014-06-21T17:44:58
A153: 2178247 | B153: 비담 | C153: r | D153: Bronze | F153: 7 | G153: 2 | H153: 172 | I153: 0 | J153: 2014-05-26 | K153: 9 days | L153: 2014-06-21T17:44:58
A154: 232277 | C154: t | D154: Bronze | F154: 7 | G154: 1 | H154: 170 | I154: 0 | J154: 2014-05-07 | K154: 40 days | L154: 2014-06-21T17:44:58
A155: 2045421 | B155: 체육과 | C155: t | D155: Bronze | F155: 7 | G155: 11 | H155: 170 | I155: 0 | J155: 2014-04-18 | K155: 1 days | L155: 2014-06-21T17:44:58
A156: 2629680 | B156: porsche | C156: p | D156: Bronze | F156: 5 | G156: 6 | H156: 170 | I156: 0 | J156: 2014-04-30 | K156: 50 days | L156: 2014-06-21T17:44:58
A157: 4185932 | B157: LoupskilII | C157: p | D157: Bronze | F157: 7 | G157: 9 | H157: 170 | I157: 0 | J157: 2014-05-24 | K157: 8 days | L157: 2014-06-21T17:44:58
A158: 550039 | B158: HUA | C158: p | D158: Bronze | F158: 5 | G158: 7 | H158: 168 | I158: 0 | J158: 2014-05-18 | K158: 30 days | L158: 2014-06-21T17:44:58
A159: 697303 | B159: 古德利安 | C159: t | D159: Bronze | F159: 6 | G159: 13 | H159: 168 | I159: 0 | J159: 2014-04-25 | K159: 39 days | L159: 2014-06-21T17:44:58
A160: 40763 | B160: Adalon | C160: t | D160: Bronze | F160: 6 | G160: 14 | H160: 166 | I160: 0 | J160: 2014-05-30 | K160: 10 days | L160: 2014-06-21T17:44:58
A161: 220603 | C161: t | D161: Bronze | F161: 7 | G161: 6 | H161: 166 | I161: 0 | J161: 2014-04-15 | K161: 38 days | L161: 2014-06-21T17:44:58
A162: 1172696 | B162: JAMESSHU | C162: r | D162: Bronze | F162: 6 | G162: 9 | H162: 166 | I162: 0 | J162: 2014-04-24 | K162: 47 days | L162: 2014-06-21T17:44:58
A163: 4418046 | B163: Clinik | C163: z | D163: Bronze | F163: 6 | G163: 4 | H163: 166 | I163: 0 | J163: 2014-05-09 | K163: 42 days | L163: 2014-06-21T17:44:58
A164: 839001 | C164: z | D164: Bronze | F164: 7 | G164: 9 | H164: 164 | I164: 0 | J164: 2014-04-27 | K164: 41 days | L164: 2014-06-21T17:44:58
A165: 885577 | C165: t | D165: Bronze | F165: 6 | G165: 6 | H165: 164 | I165: 0 | J165: 2014-05-09 | K165: 32 days | L165: 2014-06-21T17:44:58
A166: 3276271 | C166: t | D166: Bronze | F166: 8 | G166: 4 | H166: 162 | I166: 0 | J166: 2014-04-20 | K166: 26 days | L166: 2014-06-21T17:44:58
A167: 79373 | B167: Aphrodite | C167: r | D167: Bronze | F167: 6 | G167: 4 | H167: 158 | I167: 0 | J167: 2014-05-04 | K167: 42 days | L167: 2014-06-21T17:44:58
A168: 402209 | B168: lulululululu | C168: z | D168: Bronze | F168: 6 | G168: 2 | H168: 158 | I168: 0 | J168: 2014-05-01 | K168: 21 days | L168: 2014-06-21T17:44:58
A169: 2490597 | C169: z | D169: Bronze | F169: 6 | G169: 9 | H169: 158 | I169: 0 | J169: 2014-04-16 | K169: 21 days | L169: 2014-06-21T17:44:58
A170: 570788 | B170: 燒魚 | C170: r | D170: Bronze | F170: 7 | G170: 8 | H170: 156 | I170: 0 | J170: 2014-04-18 | K170: 14 days | L170: 2014-06-21T17:44:58
A171: 3302851 | B171: 처키뽀 | C171: p | D171: Bronze | F171: 7 | G171: 10 | H171: 156 | I171: 0 | J171: 2014-05-24 | K171: 13 days | L171: 2014-06-21T17:44:58
A172: 3599709 | B172: 야옹도령 | C172: t | D172: Bronze | F172: 6 | G172: 5 | H172: 156 | I172: 0 | J172: 2014-04-18 | K172: 42 days | L172: 2014-06-21T17:44:58
A173: 79615 | B173: YoonAh | C173: p | D173: Bronze | F173: 5 | G173: 14 | H173: 154 | I173: 0 | J173: 2014-04-19 | K173: 14 days | L173: 2014-06-21T17:44:58
A174: 328283 | B174: 꼬마대통령 | C174: p | D174: Bronze | F174: 6 | G174: 4 | H174: 152 | I174: 0 | J174: 2014-05-16 | K174: 36 days | L174: 2014-06-21T17:44:58
A175: 354344 | B175: Zint | C175: r | D175: Bronze | F175: 6 | G175: 1 | H175: 152 | I175: 0 | J175: 2014-04-30 | K175: 52 days | L175: 2014-06-21T17:44:58
A176: 3268760 | B176: 마인부우 | C176: r | D176: Bronze | F176: 7 | G176: 4 | H176: 152 | I176: 0 | J176: 2014-04-14 | K176: 60 days | L176: 2014-06-21T17:44:58
A177: 4200265 | B177: yjkim | C177: t | D177: Bronze | F177: 7 | G177: 10 | H177: 152 | I177: 0 | J177: 2014-05-03 | K177: 13 hours | L177: 2014-06-21T17:44:58
A178: 4324750 | B178: Karuma | C178: t | D178: Bronze | F178: 6 | G178: 4 | H178: 152 | I178: 0 | J178: 2014-04-18 | K178: 51 days | L178: 2014-06-21T17:44:58
A179: 4453533 | B179: RiDz | C179: z | D179: Bronze | F179: 5 | G179: 9 | H179: 152 | I179: 0 | J179: 2014-04-19 | K179: 50 days | L179: 2014-06-21T17:44:58
A180: 62804 | B180: NicePlay | C180: t | D180: Bronze | F180: 6 | G180: 1 | H180: 150 | I180: 0 | J180: 2014-04-21 | K180: 43 days | L180: 2014-06-21T17:44:58
A181: 774708 | B181: goodwiwi | C181: r | D181: Bronze | F181: 6 | G181: 13 | H181: 150 | I181: 0 | J181: 2014-05-18 | K181: 21 days | L181: 2014-06-21T17:44:58
A182: 1210311 | B182: 零零七 | C182: p | D182: Bronze | F182: 7 | G182: 6 | H182: 150 | I182: 0 | J182: 2014-05-28 | K182: 18 days | L182: 2014-06-21T17:44:58
A183: 107916 | C183: z | D183: Bronze | F183: 5 | G183: 3 | H183: 146 | I183: 0 | J183: 2014-04-14 | K183: 50 days | L183: 2014-06-21T17:44:58
A184: 4584216 | B184: 자연 | C184: t | D184: Bronze | F184: 6 | G184: 21 | H184: 146 | I184: 0 | J184: 2014-04-18 | K184: 20 days | L184: 2014-06-21T17:44:58
A185: 2555557 | B185: 수리부엉이 | C185: z | D185: Bronze | F185: 6 | G185: 4 | H185: 145 | I185: 0 | J185: 2014-04-16 | K185: 64 days | L185: 2014-06-21T17:44:58
A186: 1157632 | B186: EggMon | C186: t | D186: Bronze | F186: 6 | G186: 3 | H186: 144 | I186: 0 | J186: 2014-04-23 | K186: 44 days | L186: 2014-06-21T17:44:58
A187: 1239854 | B187: NOING | C187: t | D187: Bronze | F187: 8 | G187: 18 | H187: 144 | I187: 0 | J187: 2014-04-14 | K187: 48 days | L187: 2014-06-21T17:44:58
A188: 1592018 | B188: loku | C188: p | D188: Bronze | F188: 6 | G188: 7 | H188: 142 | I188: 0 | J188: 2014-04-20 | K188: 55 days | L188: 2014-06-21T17:44:58
A189: 2082668 | B189: 아르고 | C189: p | D189: Bronze | F189: 5 | G189: 8 | H189: 142 | I189: 0 | J189: 2014-04-20 | K189: 55 days | L189: 2014-06-21T17:44:58
A190: 34461 | B190: 神聖之盾 | C190: r | D190: Bronze | F190: 5 | G190: 2 | H190: 140 | I190: 0 | J190: 2014-04-29 | K190: 53 days | L190: 2014-06-21T17:44:58
A191: 87264 | B191: Snowman | C191: r | D191: Bronze | F191: 9 | G191: 12 | H191: 138 | I191: 0 | J191: 2014-04-14 | K191: 65 days | L191: 2014-06-21T17:44:58
A192: 748509 | B192: 안녕장미 | C192: t | D192: Bronze | F192: 6 | G192: 4 | H192: 138 | I192: 0 | J192: 2014-05-03 | K192: 46 days | L192: 2014-06-21T17:44:58
A193: 1091041 | C193: p | D193: Bronze | F193: 6 | G193: 7 | H193: 138 | I193: 0 | J193: 2014-05-08 | K193: 35 days | L193: 2014-06-21T17:44:58
A194: 1326568 | B194: 息如奔雷 | C194: r | D194: Bronze | F194: 5 | G194: 12 | H194: 138 | I194: 0 | J194: 2014-04-21 | K194: 48 days | L194: 2014-06-21T17:44:58
A195: 4344840 | C195: t | D195: Bronze | F195: 6 | G195: 5 | H195: 138 | I195: 0 | J195: 2014-04-26 | K195: 52 days | L195: 2014-06-21T17:44:58
A196: 124551 | B196: Infinity | C196: t | D196: Bronze | F196: 5 | G196: 14 | H196: 136 | I196: 0 | J196: 2014-04-18 | K196: 8 days | L196: 2014-06-21T17:44:58
A197: 342720 | C197: r | D197: Bronze | F197: 6 | G197: 7 | H197: 136 | I197: 0 | J197: 2014-04-21 | K197: 37 days | L197: 2014-06-21T17:44:58
A198: 1059498 | B198: 紅茄苳 | C198: z | D198: Bronze | F198: 5 | G198: 5 | H198: 136 | I198: 0 | J198: 2014-04-15 | K198: 7 days | L198: 2014-06-21T17:44:58
A199: 1787206 | B199: 왕초 | C199: r | D199: Bronze | F199: 6 | G199: 2 | H199: 136 | I199: 0 | J199: 2014-04-20 | K199: 62 days | L199: 2014-06-21T17:44:58
A200: 2237687 | B200: 고양이쥐 | C200: p | D200: Bronze | F200: 6 | G200: 6 | H200: 136 | I200: 0 | J200: 2014-04-20 | K200: 56 days | L200: 2014-06-21T17:44:58
... 4349 more rows
